Workbook

Sheet DropDowns (hidden)
A1: 250 | B1: Rounds and Readings | C1: 250
A2: 104 | B2: Rounds and Readings | C2: 104
A3: 52 | B3: Rounds and Readings | C3: 52
A4: 26 | B4: Rounds and Readings | C4: 26
A5: 12 | B5: Rounds and Readings | C5: 12
A7: 250 | B7: Water Treatment | C7: 250
A8: 104 | B8: Water Treatment | C8: 104
A9: 52 | B9: Water Treatment | C9: 52
A10: 26 | B10: Water Treatment | C10: 26
A11: 12 | B11: Water Treatment | C11: 12

Sheet Summary Pricing Sheet
A1: JCC- Facility Operation and Maintenance Service Provider - Summary Pricing Sheet and Systems Matrix
A2: RFP # | B2: RFP-FS-SP-2019-03-JP
A3: Proposer | B3: Firm Name TBD
H4: System | I4: Access | J4: HVAC | V4: Electrical | AE4: Life Safety | AG4: Plumbing | AN4: Building Systems | AW4: Corporate | AZ4: Fixed Price - Facility Total Annual Cost Year 1 | BB4: Unit Pricing
H5: Subsystem | I5: Access Doors, Gates, Sally Port | J5: Air Cooled DX (Split System) | K5: Air Handling Unit (Air Cooled DX / Package) | L5: Air-Cooled Chiller | M5: Centrifugal Chiller | N5: Cooling Tower (Induced Draft) | O5: Ice Chiller Tank | P5: Geothermal System | Q5: Water Source Heat Pump | R5: Fan Coil System | S5: Supply / Return Fan and Exhaust | T5: Evaporative and Spot Coolers (swamp coolers; spot cooler) | U5: Unique HVAC System | V5: Electrical Panels | W5: Emergency Generator | X5: Motor Control Center | Y5: Automatic Transfer Switch | Z5: Building Automated Systems (BAS) | AA5: Transformer (Dry-Type) | AB5: Uninterruptible Power Supply (UPS) | AC5: Lighting and Controls (Interior and Exterior) | AD5: Unique Electrical System | AE5: Life Safety Systems | AF5: Reduced Pressure Backflow Preventer(s) | AG5: Boiler (Condensing) | AH5: Domestic Water Heater (Gas-Fired, Condensing) | AI5: Domestic Water Heater (Electric, Non- Condensing) | AJ5: Boiler (Steam, low pressure) | AK5: Steam System | AL5: Pneumatic Compressor System | AM5: Unique Plumbing System | AN5: Rounds and Readings | AO5: Vertical Transportation | AP5: Water Treatment | AQ5: Building Exterior / Hardscape (Monthly) | AR5: Fountain Maintenance (Monthly) | AS5: Above-Ground/Underground Fuel Storage Tanks (Quarterly) If applicable | AT5: Landscape Maintenance * | AU5: Pest Control (Monthly) | AV5: Photovoltaic (PV) System | AW5: Account Management and Supervision (Monthly) | AX5: Fee (Monthly) | BB5: Snow Removal - (crew hourly rate) | BC5: Unclogging Blocked Toilet - In-custody holding cell (labor) | BD5: Unclogging Blocked Toilet - Public/Court Staff (labor) | BE5: Clean up & Disposal of Biological Waste Event | BF5: Clean up & Disposal of Biological Waste Labor Rate | BG5: Hourly Rate | BH5: Markup on Materials | BI5: Markup on Subcontractors/Third-Parties
A6: JCC ID | B6: Facility Name | C6: Address | D6: City / Town | E6: Zip Code | F6: County | G6: Region | H6: System ID | I6: A1 | J6: H1 | K6: H2 | L6: H3 | M6: H4 | N6: H5 | O6: H6 | P6: H7 | Q6: H8 | R6: H9 | S6: H10 | T6: H11 | U6: H12 | V6: E1 | W6: E2 | X6: E3 | Y6: E4 | Z6: E5 | AA6: E6 | AB6: E7 | AC6: E8 | AD6: E9 | AE6: L1 | AF6: L2 | AG6: P1 | AH6: P2 | AI6: P3 | AJ6: P4 | AK6: P5 | AL6: P6 | AM6: P7 | AN6: R1 | AO6: V1 | AP6: W1 | AQ6: B1 | AR6: F1 | AS6: F2 | AT6: G1 | AU6: PC1 | AV6: PV1 | AW6: C1 | AX6: C2 | BB6: S1 | BC6: I1 | BD6: I2 | BE6: I3 | BF6: I4 | BG6: Hr 1 | BH6: M1 | BI6: Sub1
A7: =+'01-B3'!Z$6 -> 01-B3 | B7: =+'01-B3'!AA$6 -> Wiley W. Manuel Courthouse | C7: =+'01-B3'!AB$6 -> 661 Washington St. | D7: =+'01-B3'!AC$6 -> Oakland | E7: =+'01-B3'!AD$6 -> 94607 | F7: =+'01-B3'!AE$6 -> Alameda | G7: =+'01-B3'!AF$6 -> BANCRO | I7: =+'01-B3'!AH$6 -> 0 | J7: =+'01-B3'!AI$6 -> 0 | K7: =+'01-B3'!AJ$6 -> 0 | L7: =+'01-B3'!AK$6 -> 0 | M7: =+'01-B3'!AL$6 -> 0 | N7: =+'01-B3'!AM$6 -> 0 | O7: =+'01-B3'!AN$6 -> 0 | P7: =+'01-B3'!AO$6 -> 0 | Q7: =+'01-B3'!AP$6 -> 0 | R7: =+'01-B3'!AQ$6 -> 0 | S7: =+'01-B3'!AR$6 -> 0 | T7: =+'01-B3'!AS$6 -> 0 | U7: =+'01-B3'!AT$6 -> 0 | V7: =+'01-B3'!AU$6 -> 0 | W7: =+'01-B3'!AV$6 -> 0 | X7: =+'01-B3'!AW$6 -> 0 | Y7: =+'01-B3'!AX$6 -> 0 | Z7: =+'01-B3'!AY$6 -> 0 | AA7: =+'01-B3'!AZ$6 -> 0 | AB7: =+'01-B3'!BA$6 -> 0 | AC7: =+'01-B3'!BB$6 -> 0 | AD7: =+'01-B3'!BC$6 -> 0 | AE7: =+'01-B3'!BD$6 -> 0 | AF7: =+'01-B3'!BE$6 -> 0 | AG7: =+'01-B3'!BF$6 -> 0 | AH7: =+'01-B3'!BG$6 -> 0 | AI7: =+'01-B3'!BH$6 -> 0 | AJ7: =+'01-B3'!BI$6 -> 0 | AK7: =+'01-B3'!BJ$6 -> 0 | AL7: =+'01-B3'!BK$6 -> 0 | AM7: =+'01-B3'!BL$6 -> 0 | AN7: =+'01-B3'!BM$6 -> 0 | AO7: =+'01-B3'!BN$6 -> 0 | AP7: =+'01-B3'!BO$6 -> 0 | AQ7: =+'01-B3'!BP$6 -> 0 | AR7: =+'01-B3'!BQ$6 -> 0 | AS7: =+'01-B3'!BR$6 -> 0 | AT7: =+'01-B3'!BS$6 -> 0 | AU7: =+'01-B3'!BT$6 -> 0 | AV7: =+'01-B3'!BU$6 -> 0 | AW7: =+'01-B3'!BV$6 -> 0 | AX7: =+'01-B3'!BW$6 -> 0 | AZ7: =+'01-B3'!BY$6 -> 0 | BB7: =+'01-B3'!CA$6 -> 0 | BC7: =+'01-B3'!CB$6 -> 0 | BD7: =+'01-B3'!CC$6 -> 0 | BE7: =+'01-B3'!CD$6 -> 0 | BF7: =+'01-B3'!CE$6 -> 0 | BG7: =+'01-B3'!CF$6 -> 0 | BH7: =+'01-B3'!CG$6 -> 0 | BI7: =+'01-B3'!CH$6 -> 0
A8: =+'01-D1'!Z$6 -> 01-D1 | B8: =+'01-D1'!AA$6 -> Hayward Hall of Justice | C8: =+'01-D1'!AB$6 -> 24405 Amador St. | D8: =+'01-D1'!AC$6 -> Hayward | E8: =+'01-D1'!AD$6 -> 94544 | F8: =+'01-D1'!AE$6 -> Alameda | G8: =+'01-D1'!AF$6 -> BANCRO | I8: =+'01-D1'!AH$6 -> 0 | J8: =+'01-D1'!AI$6 -> 0 | K8: =+'01-D1'!AJ$6 -> 0 | L8: =+'01-D1'!AK$6 -> 0 | M8: =+'01-D1'!AL$6 -> 0 | N8: =+'01-D1'!AM$6 -> 0 | O8: =+'01-D1'!AN$6 -> 0 | P8: =+'01-D1'!AO$6 -> 0 | Q8: =+'01-D1'!AP$6 -> 0 | R8: =+'01-D1'!AQ$6 -> 0 | S8: =+'01-D1'!AR$6 -> 0 | T8: =+'01-D1'!AS$6 -> 0 | U8: =+'01-D1'!AT$6 -> 0 | V8: =+'01-D1'!AU$6 -> 0 | W8: =+'01-D1'!AV$6 -> 0 | X8: =+'01-D1'!AW$6 -> 0 | Y8: =+'01-D1'!AX$6 -> 0 | Z8: =+'01-D1'!AY$6 -> 0 | AA8: =+'01-D1'!AZ$6 -> 0 | AB8: =+'01-D1'!BA$6 -> 0 | AC8: =+'01-D1'!BB$6 -> 0 | AD8: =+'01-D1'!BC$6 -> 0 | AE8: =+'01-D1'!BD$6 -> 0 | AF8: =+'01-D1'!BE$6 -> 0 | AG8: =+'01-D1'!BF$6 -> 0 | AH8: =+'01-D1'!BG$6 -> 0 | AI8: =+'01-D1'!BH$6 -> 0 | AJ8: =+'01-D1'!BI$6 -> 0 | AK8: =+'01-D1'!BJ$6 -> 0 | AL8: =+'01-D1'!BK$6 -> 0 | AM8: =+'01-D1'!BL$6 -> 0 | AN8: =+'01-D1'!BM$6 -> 0 | AO8: =+'01-D1'!BN$6 -> 0 | AP8: =+'01-D1'!BO$6 -> 0 | AQ8: =+'01-D1'!BP$6 -> 0 | AR8: =+'01-D1'!BQ$6 -> 0 | AS8: =+'01-D1'!BR$6 -> 0 | AT8: =+'01-D1'!BS$6 -> 0 | AU8: =+'01-D1'!BT$6 -> 0 | AV8: =+'01-D1'!BU$6 -> 0 | AW8: =+'01-D1'!BV$6 -> 0 | AX8: =+'01-D1'!BW$6 -> 0 | AZ8: =+'01-D1'!BY$6 -> 0 | BB8: =+'01-D1'!CA$6 -> 0 | BC8: =+'01-D1'!CB$6 -> 0 | BD8: =+'01-D1'!CC$6 -> 0 | BE8: =+'01-D1'!CD$6 -> 0 | BF8: =+'01-D1'!CE$6 -> 0 | BG8: =+'01-D1'!CF$6 -> 0 | BH8: =+'01-D1'!CG$6 -> 0 | BI8: =+'01-D1'!CH$6 -> 0
A9: =+'01-F1'!Z$6 -> 01-F1 | B9: =+'01-F1'!AA$6 -> George E. McDonald Hall of Justice | C9: =+'01-F1'!AB$6 -> 2233 Shoreline Drive | D9: =+'01-F1'!AC$6 -> Alameda | E9: =+'01-F1'!AD$6 -> 94501 | F9: =+'01-F1'!AE$6 -> Alameda | G9: =+'01-F1'!AF$6 -> BANCRO | I9: =+'01-F1'!AH$6 -> 0 | J9: =+'01-F1'!AI$6 -> 0 | K9: =+'01-F1'!AJ$6 -> 0 | L9: =+'01-F1'!AK$6 -> 0 | M9: =+'01-F1'!AL$6 -> 0 | N9: =+'01-F1'!AM$6 -> 0 | O9: =+'01-F1'!AN$6 -> 0 | P9: =+'01-F1'!AO$6 -> 0 | Q9: =+'01-F1'!AP$6 -> 0 | R9: =+'01-F1'!AQ$6 -> 0 | S9: =+'01-F1'!AR$6 -> 0 | T9: =+'01-F1'!AS$6 -> 0 | U9: =+'01-F1'!AT$6 -> 0 | V9: =+'01-F1'!AU$6 -> 0 | W9: =+'01-F1'!AV$6 -> 0 | X9: =+'01-F1'!AW$6 -> 0 | Y9: =+'01-F1'!AX$6 -> 0 | Z9: =+'01-F1'!AY$6 -> 0 | AA9: =+'01-F1'!AZ$6 -> 0 | AB9: =+'01-F1'!BA$6 -> 0 | AC9: =+'01-F1'!BB$6 -> 0 | AD9: =+'01-F1'!BC$6 -> 0 | AE9: =+'01-F1'!BD$6 -> 0 | AF9: =+'01-F1'!BE$6 -> 0 | AG9: =+'01-F1'!BF$6 -> 0 | AH9: =+'01-F1'!BG$6 -> 0 | AI9: =+'01-F1'!BH$6 -> 0 | AJ9: =+'01-F1'!BI$6 -> 0 | AK9: =+'01-F1'!BJ$6 -> 0 | AL9: =+'01-F1'!BK$6 -> 0 | AM9: =+'01-F1'!BL$6 -> 0 | AN9: =+'01-F1'!BM$6 -> 0 | AO9: =+'01-F1'!BN$6 -> 0 | AP9: =+'01-F1'!BO$6 -> 0 | AQ9: =+'01-F1'!BP$6 -> 0 | AR9: =+'01-F1'!BQ$6 -> 0 | AS9: =+'01-F1'!BR$6 -> 0 | AT9: =+'01-F1'!BS$6 -> 0 | AU9: =+'01-F1'!BT$6 -> 0 | AV9: =+'01-F1'!BU$6 -> 0 | AW9: =+'01-F1'!BV$6 -> 0 | AX9: =+'01-F1'!BW$6 -> 0 | AZ9: =+'01-F1'!BY$6 -> 0 | BB9: =+'01-F1'!CA$6 -> 0 | BC9: =+'01-F1'!CB$6 -> 0 | BD9: =+'01-F1'!CC$6 -> 0 | BE9: =+'01-F1'!CD$6 -> 0 | BF9: =+'01-F1'!CE$6 -> 0 | BG9: =+'01-F1'!CF$6 -> 0 | BH9: =+'01-F1'!CG$6 -> 0 | BI9: =+'01-F1'!CH$6 -> 0
A10: =+'01-G1'!Z$6 -> 01-G1 | B10: =+'01-G1'!AA$6 -> Berkeley Courthouse | C10: =+'01-G1'!AB$6 -> 2120 Martin Luther King, Jr. Way | D10: =+'01-G1'!AC$6 -> Berkeley | E10: =+'01-G1'!AD$6 -> 94704 | F10: =+'01-G1'!AE$6 -> Alameda | G10: =+'01-G1'!AF$6 -> BANCRO | I10: =+'01-G1'!AH$6 -> 0 | J10: =+'01-G1'!AI$6 -> 0 | K10: =+'01-G1'!AJ$6 -> 0 | L10: =+'01-G1'!AK$6 -> 0 | M10: =+'01-G1'!AL$6 -> 0 | N10: =+'01-G1'!AM$6 -> 0 | O10: =+'01-G1'!AN$6 -> 0 | P10: =+'01-G1'!AO$6 -> 0 | Q10: =+'01-G1'!AP$6 -> 0 | R10: =+'01-G1'!AQ$6 -> 0 | S10: =+'01-G1'!AR$6 -> 0 | T10: =+'01-G1'!AS$6 -> 0 | U10: =+'01-G1'!AT$6 -> 0 | V10: =+'01-G1'!AU$6 -> 0 | W10: =+'01-G1'!AV$6 -> 0 | X10: =+'01-G1'!AW$6 -> 0 | Y10: =+'01-G1'!AX$6 -> 0 | Z10: =+'01-G1'!AY$6 -> 0 | AA10: =+'01-G1'!AZ$6 -> 0 | AB10: =+'01-G1'!BA$6 -> 0 | AC10: =+'01-G1'!BB$6 -> 0 | AD10: =+'01-G1'!BC$6 -> 0 | AE10: =+'01-G1'!BD$6 -> 0 | AF10: =+'01-G1'!BE$6 -> 0 | AG10: =+'01-G1'!BF$6 -> 0 | AH10: =+'01-G1'!BG$6 -> 0 | AI10: =+'01-G1'!BH$6 -> 0 | AJ10: =+'01-G1'!BI$6 -> 0 | AK10: =+'01-G1'!BJ$6 -> 0 | AL10: =+'01-G1'!BK$6 -> 0 | AM10: =+'01-G1'!BL$6 -> 0 | AN10: =+'01-G1'!BM$6 -> 0 | AO10: =+'01-G1'!BN$6 -> 0 | AP10: =+'01-G1'!BO$6 -> 0 | AQ10: =+'01-G1'!BP$6 -> 0 | AR10: =+'01-G1'!BQ$6 -> 0 | AS10: =+'01-G1'!BR$6 -> 0 | AT10: =+'01-G1'!BS$6 -> 0 | AU10: =+'01-G1'!BT$6 -> 0 | AV10: =+'01-G1'!BU$6 -> 0 | AW10: =+'01-G1'!BV$6 -> 0 | AX10: =+'01-G1'!BW$6 -> 0 | AZ10: =+'01-G1'!BY$6 -> 0 | BB10: =+'01-G1'!CA$6 -> 0 | BC10: =+'01-G1'!CB$6 -> 0 | BD10: =+'01-G1'!CC$6 -> 0 | BE10: =+'01-G1'!CD$6 -> 0 | BF10: =+'01-G1'!CE$6 -> 0 | BG10: =+'01-G1'!CF$6 -> 0 | BH10: =+'01-G1'!CG$6 -> 0 | BI10: =+'01-G1'!CH$6 -> 0
A11: =+'01-H1'!Z$6 -> 01-H1 | B11: =+'01-H1'!AA$6 -> Fremont Hall of Justice | C11: =+'01-H1'!AB$6 -> 39439 Paseo Padre Pkwy. | D11: =+'01-H1'!AC$6 -> Fremont | E11: =+'01-H1'!AD$6 -> 94538 | F11: =+'01-H1'!AE$6 -> Alameda | G11: =+'01-H1'!AF$6 -> BANCRO | I11: =+'01-H1'!AH$6 -> 0 | J11: =+'01-H1'!AI$6 -> 0 | K11: =+'01-H1'!AJ$6 -> 0 | L11: =+'01-H1'!AK$6 -> 0 | M11: =+'01-H1'!AL$6 -> 0 | N11: =+'01-H1'!AM$6 -> 0 | O11: =+'01-H1'!AN$6 -> 0 | P11: =+'01-H1'!AO$6 -> 0 | Q11: =+'01-H1'!AP$6 -> 0 | R11: =+'01-H1'!AQ$6 -> 0 | S11: =+'01-H1'!AR$6 -> 0 | T11: =+'01-H1'!AS$6 -> 0 | U11: =+'01-H1'!AT$6 -> 0 | V11: =+'01-H1'!AU$6 -> 0 | W11: =+'01-H1'!AV$6 -> 0 | X11: =+'01-H1'!AW$6 -> 0 | Y11: =+'01-H1'!AX$6 -> 0 | Z11: =+'01-H1'!AY$6 -> 0 | AA11: =+'01-H1'!AZ$6 -> 0 | AB11: =+'01-H1'!BA$6 -> 0 | AC11: =+'01-H1'!BB$6 -> 0 | AD11: =+'01-H1'!BC$6 -> 0 | AE11: =+'01-H1'!BD$6 -> 0 | AF11: =+'01-H1'!BE$6 -> 0 | AG11: =+'01-H1'!BF$6 -> 0 | AH11: =+'01-H1'!BG$6 -> 0 | AI11: =+'01-H1'!BH$6 -> 0 | AJ11: =+'01-H1'!BI$6 -> 0 | AK11: =+'01-H1'!BJ$6 -> 0 | AL11: =+'01-H1'!BK$6 -> 0 | AM11: =+'01-H1'!BL$6 -> 0 | AN11: =+'01-H1'!BM$6 -> 0 | AO11: =+'01-H1'!BN$6 -> 0 | AP11: =+'01-H1'!BO$6 -> 0 | AQ11: =+'01-H1'!BP$6 -> 0 | AR11: =+'01-H1'!BQ$6 -> 0 | AS11: =+'01-H1'!BR$6 -> 0 | AT11: =+'01-H1'!BS$6 -> 0 | AU11: =+'01-H1'!BT$6 -> 0 | AV11: =+'01-H1'!BU$6 -> 0 | AW11: =+'01-H1'!BV$6 -> 0 | AX11: =+'01-H1'!BW$6 -> 0 | AZ11: =+'01-H1'!BY$6 -> 0 | BB11: =+'01-H1'!CA$6 -> 0 | BC11: =+'01-H1'!CB$6 -> 0 | BD11: =+'01-H1'!CC$6 -> 0 | BE11: =+'01-H1'!CD$6 -> 0 | BF11: =+'01-H1'!CE$6 -> 0 | BG11: =+'01-H1'!CF$6 -> 0 | BH11: =+'01-H1'!CG$6 -> 0 | BI11: =+'01-H1'!CH$6 -> 0
A12: =+'01-J1'!Z$6 -> 01-J1 | B12: =+'01-J1'!AA$6 -> New East County Hall of Justice | C12: =+'01-J1'!AB$6 -> 5151 Gleason Drive | D12: =+'01-J1'!AC$6 -> Dublin | E12: =+'01-J1'!AD$6 -> 94568 | F12: =+'01-J1'!AE$6 -> Alameda | G12: =+'01-J1'!AF$6 -> BANCRO | I12: =+'01-J1'!AH$6 -> 0 | J12: =+'01-J1'!AI$6 -> 0 | K12: =+'01-J1'!AJ$6 -> 0 | L12: =+'01-J1'!AK$6 -> 0 | M12: =+'01-J1'!AL$6 -> 0 | N12: =+'01-J1'!AM$6 -> 0 | O12: =+'01-J1'!AN$6 -> 0 | P12: =+'01-J1'!AO$6 -> 0 | Q12: =+'01-J1'!AP$6 -> 0 | R12: =+'01-J1'!AQ$6 -> 0 | S12: =+'01-J1'!AR$6 -> 0 | T12: =+'01-J1'!AS$6 -> 0 | U12: =+'01-J1'!AT$6 -> 0 | V12: =+'01-J1'!AU$6 -> 0 | W12: =+'01-J1'!AV$6 -> 0 | X12: =+'01-J1'!AW$6 -> 0 | Y12: =+'01-J1'!AX$6 -> 0 | Z12: =+'01-J1'!AY$6 -> 0 | AA12: =+'01-J1'!AZ$6 -> 0 | AB12: =+'01-J1'!BA$6 -> 0 | AC12: =+'01-J1'!BB$6 -> 0 | AD12: =+'01-J1'!BC$6 -> 0 | AE12: =+'01-J1'!BD$6 -> 0 | AF12: =+'01-J1'!BE$6 -> 0 | AG12: =+'01-J1'!BF$6 -> 0 | AH12: =+'01-J1'!BG$6 -> 0 | AI12: =+'01-J1'!BH$6 -> 0 | AJ12: =+'01-J1'!BI$6 -> 0 | AK12: =+'01-J1'!BJ$6 -> 0 | AL12: =+'01-J1'!BK$6 -> 0 | AM12: =+'01-J1'!BL$6 -> 0 | AN12: =+'01-J1'!BM$6 -> 0 | AO12: =+'01-J1'!BN$6 -> 0 | AP12: =+'01-J1'!BO$6 -> 0 | AQ12: =+'01-J1'!BP$6 -> 0 | AR12: =+'01-J1'!BQ$6 -> 0 | AS12: =+'01-J1'!BR$6 -> 0 | AT12: =+'01-J1'!BS$6 -> 0 | AU12: =+'01-J1'!BT$6 -> 0 | AV12: =+'01-J1'!BU$6 -> 0 | AW12: =+'01-J1'!BV$6 -> 0 | AX12: =+'01-J1'!BW$6 -> 0 | AZ12: =+'01-J1'!BY$6 -> 0 | BB12: =+'01-J1'!CA$6 -> 0 | BC12: =+'01-J1'!CB$6 -> 0 | BD12: =+'01-J1'!CC$6 -> 0 | BE12: =+'01-J1'!CD$6 -> 0 | BF12: =+'01-J1'!CE$6 -> 0 | BG12: =+'01-J1'!CF$6 -> 0 | BH12: =+'01-J1'!CG$6 -> 0 | BI12: =+'01-J1'!CH$6 -> 0
A13: =+'07-A14'!Z$6 -> 07-A14 | B13: =+'07-A14'!AA$6 -> Family Law Center | C13: =+'07-A14'!AB$6 -> 751 Pine Street | D13: =+'07-A14'!AC$6 -> Martinez | E13: =+'07-A14'!AD$6 -> 94553 | F13: =+'07-A14'!AE$6 -> Contra Costa | G13: =+'07-A14'!AF$6 -> BANCRO | I13: =+'07-A14'!AH$6 -> 0 | J13: =+'07-A14'!AI$6 -> 0 | K13: =+'07-A14'!AJ$6 -> 0 | L13: =+'07-A14'!AK$6 -> 0 | M13: =+'07-A14'!AL$6 -> 0 | N13: =+'07-A14'!AM$6 -> 0 | O13: =+'07-A14'!AN$6 -> 0 | P13: =+'07-A14'!AO$6 -> 0 | Q13: =+'07-A14'!AP$6 -> 0 | R13: =+'07-A14'!AQ$6 -> 0 | S13: =+'07-A14'!AR$6 -> 0 | T13: =+'07-A14'!AS$6 -> 0 | U13: =+'07-A14'!AT$6 -> 0 | V13: =+'07-A14'!AU$6 -> 0 | W13: =+'07-A14'!AV$6 -> 0 | X13: =+'07-A14'!AW$6 -> 0 | Y13: =+'07-A14'!AX$6 -> 0 | Z13: =+'07-A14'!AY$6 -> 0 | AA13: =+'07-A14'!AZ$6 -> 0 | AB13: =+'07-A14'!BA$6 -> 0 | AC13: =+'07-A14'!BB$6 -> 0 | AD13: =+'07-A14'!BC$6 -> 0 | AE13: =+'07-A14'!BD$6 -> 0 | AF13: =+'07-A14'!BE$6 -> 0 | AG13: =+'07-A14'!BF$6 -> 0 | AH13: =+'07-A14'!BG$6 -> 0 | AI13: =+'07-A14'!BH$6 -> 0 | AJ13: =+'07-A14'!BI$6 -> 0 | AK13: =+'07-A14'!BJ$6 -> 0 | AL13: =+'07-A14'!BK$6 -> 0 | AM13: =+'07-A14'!BL$6 -> 0 | AN13: =+'07-A14'!BM$6 -> 0 | AO13: =+'07-A14'!BN$6 -> 0 | AP13: =+'07-A14'!BO$6 -> 0 | AQ13: =+'07-A14'!BP$6 -> 0 | AR13: =+'07-A14'!BQ$6 -> 0 | AS13: =+'07-A14'!BR$6 -> 0 | AT13: =+'07-A14'!BS$6 -> 0 | AU13: =+'07-A14'!BT$6 -> 0 | AV13: =+'07-A14'!BU$6 -> 0 | AW13: =+'07-A14'!BV$6 -> 0 | AX13: =+'07-A14'!BW$6 -> 0 | AZ13: =+'07-A14'!BY$6 -> 0 | BB13: =+'07-A14'!CA$6 -> 0 | BC13: =+'07-A14'!CB$6 -> 0 | BD13: =+'07-A14'!CC$6 -> 0 | BE13: =+'07-A14'!CD$6 -> 0 | BF13: =+'07-A14'!CE$6 -> 0 | BG13: =+'07-A14'!CF$6 -> 0 | BH13: =+'07-A14'!CG$6 -> 0 | BI13: =+'07-A14'!CH$6 -> 0
A14: =+'07-A2'!Z$6 -> 07-A2 | B14: =+'07-A2'!AA$6 -> Wakefield Taylor Courthouse | C14: =+'07-A2'!AB$6 -> 725 Court St. | D14: =+'07-A2'!AC$6 -> Martinez | E14: =+'07-A2'!AD$6 -> 94553 | F14: =+'07-A2'!AE$6 -> Contra Costa | G14: =+'07-A2'!AF$6 -> BANCRO | I14: =+'07-A2'!AH$6 -> 0 | J14: =+'07-A2'!AI$6 -> 0 | K14: =+'07-A2'!AJ$6 -> 0 | L14: =+'07-A2'!AK$6 -> 0 | M14: =+'07-A2'!AL$6 -> 0 | N14: =+'07-A2'!AM$6 -> 0 | O14: =+'07-A2'!AN$6 -> 0 | P14: =+'07-A2'!AO$6 -> 0 | Q14: =+'07-A2'!AP$6 -> 0 | R14: =+'07-A2'!AQ$6 -> 0 | S14: =+'07-A2'!AR$6 -> 0 | T14: =+'07-A2'!AS$6 -> 0 | U14: =+'07-A2'!AT$6 -> 0 | V14: =+'07-A2'!AU$6 -> 0 | W14: =+'07-A2'!AV$6 -> 0 | X14: =+'07-A2'!AW$6 -> 0 | Y14: =+'07-A2'!AX$6 -> 0 | Z14: =+'07-A2'!AY$6 -> 0 | AA14: =+'07-A2'!AZ$6 -> 0 | AB14: =+'07-A2'!BA$6 -> 0 | AC14: =+'07-A2'!BB$6 -> 0 | AD14: =+'07-A2'!BC$6 -> 0 | AE14: =+'07-A2'!BD$6 -> 0 | AF14: =+'07-A2'!BE$6 -> 0 | AG14: =+'07-A2'!BF$6 -> 0 | AH14: =+'07-A2'!BG$6 -> 0 | AI14: =+'07-A2'!BH$6 -> 0 | AJ14: =+'07-A2'!BI$6 -> 0 | AK14: =+'07-A2'!BJ$6 -> 0 | AL14: =+'07-A2'!BK$6 -> 0 | AM14: =+'07-A2'!BL$6 -> 0 | AN14: =+'07-A2'!BM$6 -> 0 | AO14: =+'07-A2'!BN$6 -> 0 | AP14: =+'07-A2'!BO$6 -> 0 | AQ14: =+'07-A2'!BP$6 -> 0 | AR14: =+'07-A2'!BQ$6 -> 0 | AS14: =+'07-A2'!BR$6 -> 0 | AT14: =+'07-A2'!BS$6 -> 0 | AU14: =+'07-A2'!BT$6 -> 0 | AV14: =+'07-A2'!BU$6 -> 0 | AW14: =+'07-A2'!BV$6 -> 0 | AX14: =+'07-A2'!BW$6 -> 0 | AZ14: =+'07-A2'!BY$6 -> 0 | BB14: =+'07-A2'!CA$6 -> 0 | BC14: =+'07-A2'!CB$6 -> 0 | BD14: =+'07-A2'!CC$6 -> 0 | BE14: =+'07-A2'!CD$6 -> 0 | BF14: =+'07-A2'!CE$6 -> 0 | BG14: =+'07-A2'!CF$6 -> 0 | BH14: =+'07-A2'!CG$6 -> 0 | BI14: =+'07-A2'!CH$6 -> 0
A15: =+'07-A3'!Z$6 -> 07-A3 | B15: =+'07-A3'!AA$6 -> Bray Courts | C15: =+'07-A3'!AB$6 -> 1020 Ward St. | D15: =+'07-A3'!AC$6 -> Martinez | E15: =+'07-A3'!AD$6 -> 94553 | F15: =+'07-A3'!AE$6 -> Contra Costa | G15: =+'07-A3'!AF$6 -> BANCRO | I15: =+'07-A3'!AH$6 -> 0 | J15: =+'07-A3'!AI$6 -> 0 | K15: =+'07-A3'!AJ$6 -> 0 | L15: =+'07-A3'!AK$6 -> 0 | M15: =+'07-A3'!AL$6 -> 0 | N15: =+'07-A3'!AM$6 -> 0 | O15: =+'07-A3'!AN$6 -> 0 | P15: =+'07-A3'!AO$6 -> 0 | Q15: =+'07-A3'!AP$6 -> 0 | R15: =+'07-A3'!AQ$6 -> 0 | S15: =+'07-A3'!AR$6 -> 0 | T15: =+'07-A3'!AS$6 -> 0 | U15: =+'07-A3'!AT$6 -> 0 | V15: =+'07-A3'!AU$6 -> 0 | W15: =+'07-A3'!AV$6 -> 0 | X15: =+'07-A3'!AW$6 -> 0 | Y15: =+'07-A3'!AX$6 -> 0 | Z15: =+'07-A3'!AY$6 -> 0 | AA15: =+'07-A3'!AZ$6 -> 0 | AB15: =+'07-A3'!BA$6 -> 0 | AC15: =+'07-A3'!BB$6 -> 0 | AD15: =+'07-A3'!BC$6 -> 0 | AE15: =+'07-A3'!BD$6 -> 0 | AF15: =+'07-A3'!BE$6 -> 0 | AG15: =+'07-A3'!BF$6 -> 0 | AH15: =+'07-A3'!BG$6 -> 0 | AI15: =+'07-A3'!BH$6 -> 0 | AJ15: =+'07-A3'!BI$6 -> 0 | AK15: =+'07-A3'!BJ$6 -> 0 | AL15: =+'07-A3'!BK$6 -> 0 | AM15: =+'07-A3'!BL$6 -> 0 | AN15: =+'07-A3'!BM$6 -> 0 | AO15: =+'07-A3'!BN$6 -> 0 | AP15: =+'07-A3'!BO$6 -> 0 | AQ15: =+'07-A3'!BP$6 -> 0 | AR15: =+'07-A3'!BQ$6 -> 0 | AS15: =+'07-A3'!BR$6 -> 0 | AT15: =+'07-A3'!BS$6 -> 0 | AU15: =+'07-A3'!BT$6 -> 0 | AV15: =+'07-A3'!BU$6 -> 0 | AW15: =+'07-A3'!BV$6 -> 0 | AX15: =+'07-A3'!BW$6 -> 0 | AZ15: =+'07-A3'!BY$6 -> 0 | BB15: =+'07-A3'!CA$6 -> 0 | BC15: =+'07-A3'!CB$6 -> 0 | BD15: =+'07-A3'!CC$6 -> 0 | BE15: =+'07-A3'!CD$6 -> 0 | BF15: =+'07-A3'!CE$6 -> 0 | BG15: =+'07-A3'!CF$6 -> 0 | BH15: =+'07-A3'!CG$6 -> 0 | BI15: =+'07-A3'!CH$6 -> 0
A16: =+'07-C1'!Z$6 -> 07-C1 | B16: =+'07-C1'!AA$6 -> Walnut Creek Courthouse | C16: =+'07-C1'!AB$6 -> 640 Ygnacio Valley Rd. | D16: =+'07-C1'!AC$6 -> Walnut Creek | E16: =+'07-C1'!AD$6 -> 94596 | F16: =+'07-C1'!AE$6 -> Contra Costa | G16: =+'07-C1'!AF$6 -> BANCRO | I16: =+'07-C1'!AH$6 -> 0 | J16: =+'07-C1'!AI$6 -> 0 | K16: =+'07-C1'!AJ$6 -> 0 | L16: =+'07-C1'!AK$6 -> 0 | M16: =+'07-C1'!AL$6 -> 0 | N16: =+'07-C1'!AM$6 -> 0 | O16: =+'07-C1'!AN$6 -> 0 | P16: =+'07-C1'!AO$6 -> 0 | Q16: =+'07-C1'!AP$6 -> 0 | R16: =+'07-C1'!AQ$6 -> 0 | S16: =+'07-C1'!AR$6 -> 0 | T16: =+'07-C1'!AS$6 -> 0 | U16: =+'07-C1'!AT$6 -> 0 | V16: =+'07-C1'!AU$6 -> 0 | W16: =+'07-C1'!AV$6 -> 0 | X16: =+'07-C1'!AW$6 -> 0 | Y16: =+'07-C1'!AX$6 -> 0 | Z16: =+'07-C1'!AY$6 -> 0 | AA16: =+'07-C1'!AZ$6 -> 0 | AB16: =+'07-C1'!BA$6 -> 0 | AC16: =+'07-C1'!BB$6 -> 0 | AD16: =+'07-C1'!BC$6 -> 0 | AE16: =+'07-C1'!BD$6 -> 0 | AF16: =+'07-C1'!BE$6 -> 0 | AG16: =+'07-C1'!BF$6 -> 0 | AH16: =+'07-C1'!BG$6 -> 0 | AI16: =+'07-C1'!BH$6 -> 0 | AJ16: =+'07-C1'!BI$6 -> 0 | AK16: =+'07-C1'!BJ$6 -> 0 | AL16: =+'07-C1'!BK$6 -> 0 | AM16: =+'07-C1'!BL$6 -> 0 | AN16: =+'07-C1'!BM$6 -> 0 | AO16: =+'07-C1'!BN$6 -> 0 | AP16: =+'07-C1'!BO$6 -> 0 | AQ16: =+'07-C1'!BP$6 -> 0 | AR16: =+'07-C1'!BQ$6 -> 0 | AS16: =+'07-C1'!BR$6 -> 0 | AT16: =+'07-C1'!BS$6 -> 0 | AU16: =+'07-C1'!BT$6 -> 0 | AV16: =+'07-C1'!BU$6 -> 0 | AW16: =+'07-C1'!BV$6 -> 0 | AX16: =+'07-C1'!BW$6 -> 0 | AZ16: =+'07-C1'!BY$6 -> 0 | BB16: =+'07-C1'!CA$6 -> 0 | BC16: =+'07-C1'!CB$6 -> 0 | BD16: =+'07-C1'!CC$6 -> 0 | BE16: =+'07-C1'!CD$6 -> 0 | BF16: =+'07-C1'!CE$6 -> 0 | BG16: =+'07-C1'!CF$6 -> 0 | BH16: =+'07-C1'!CG$6 -> 0 | BI16: =+'07-C1'!CH$6 -> 0
A17: =+'07-D1'!Z$6 -> 07-D1 | B17: =+'07-D1'!AA$6 -> Concord Courthouse | C17: =+'07-D1'!AB$6 -> 2970 Willow Pass Rd. | D17: =+'07-D1'!AC$6 -> Concord | E17: =+'07-D1'!AD$6 -> 94519 | F17: =+'07-D1'!AE$6 -> Contra Costa | G17: =+'07-D1'!AF$6 -> BANCRO | I17: =+'07-D1'!AH$6 -> 0 | J17: =+'07-D1'!AI$6 -> 0 | K17: =+'07-D1'!AJ$6 -> 0 | L17: =+'07-D1'!AK$6 -> 0 | M17: =+'07-D1'!AL$6 -> 0 | N17: =+'07-D1'!AM$6 -> 0 | O17: =+'07-D1'!AN$6 -> 0 | P17: =+'07-D1'!AO$6 -> 0 | Q17: =+'07-D1'!AP$6 -> 0 | R17: =+'07-D1'!AQ$6 -> 0 | S17: =+'07-D1'!AR$6 -> 0 | T17: =+'07-D1'!AS$6 -> 0 | U17: =+'07-D1'!AT$6 -> 0 | V17: =+'07-D1'!AU$6 -> 0 | W17: =+'07-D1'!AV$6 -> 0 | X17: =+'07-D1'!AW$6 -> 0 | Y17: =+'07-D1'!AX$6 -> 0 | Z17: =+'07-D1'!AY$6 -> 0 | AA17: =+'07-D1'!AZ$6 -> 0 | AB17: =+'07-D1'!BA$6 -> 0 | AC17: =+'07-D1'!BB$6 -> 0 | AD17: =+'07-D1'!BC$6 -> 0 | AE17: =+'07-D1'!BD$6 -> 0 | AF17: =+'07-D1'!BE$6 -> 0 | AG17: =+'07-D1'!BF$6 -> 0 | AH17: =+'07-D1'!BG$6 -> 0 | AI17: =+'07-D1'!BH$6 -> 0 | AJ17: =+'07-D1'!BI$6 -> 0 | AK17: =+'07-D1'!BJ$6 -> 0 | AL17: =+'07-D1'!BK$6 -> 0 | AM17: =+'07-D1'!BL$6 -> 0 | AN17: =+'07-D1'!BM$6 -> 0 | AO17: =+'07-D1'!BN$6 -> 0 | AP17: =+'07-D1'!BO$6 -> 0 | AQ17: =+'07-D1'!BP$6 -> 0 | AR17: =+'07-D1'!BQ$6 -> 0 | AS17: =+'07-D1'!BR$6 -> 0 | AT17: =+'07-D1'!BS$6 -> 0 | AU17: =+'07-D1'!BT$6 -> 0 | AV17: =+'07-D1'!BU$6 -> 0 | AW17: =+'07-D1'!BV$6 -> 0 | AX17: =+'07-D1'!BW$6 -> 0 | AZ17: =+'07-D1'!BY$6 -> 0 | BB17: =+'07-D1'!CA$6 -> 0 | BC17: =+'07-D1'!CB$6 -> 0 | BD17: =+'07-D1'!CC$6 -> 0 | BE17: =+'07-D1'!CD$6 -> 0 | BF17: =+'07-D1'!CE$6 -> 0 | BG17: =+'07-D1'!CF$6 -> 0 | BH17: =+'07-D1'!CG$6 -> 0 | BI17: =+'07-D1'!CH$6 -> 0
A18: =+'07-E3'!Z$6 -> 07-E3 | B18: =+'07-E3'!AA$6 -> Richard E. Arnason Justice Center | C18: =+'07-E3'!AB$6 -> 1000 Center Drive | D18: =+'07-E3'!AC$6 -> Pittsburg | E18: =+'07-E3'!AD$6 -> 94565 | F18: =+'07-E3'!AE$6 -> Contra Costa | G18: =+'07-E3'!AF$6 -> BANCRO | I18: =+'07-E3'!AH$6 -> 0 | J18: =+'07-E3'!AI$6 -> 0 | K18: =+'07-E3'!AJ$6 -> 0 | L18: =+'07-E3'!AK$6 -> 0 | M18: =+'07-E3'!AL$6 -> 0 | N18: =+'07-E3'!AM$6 -> 0 | O18: =+'07-E3'!AN$6 -> 0 | P18: =+'07-E3'!AO$6 -> 0 | Q18: =+'07-E3'!AP$6 -> 0 | R18: =+'07-E3'!AQ$6 -> 0 | S18: =+'07-E3'!AR$6 -> 0 | T18: =+'07-E3'!AS$6 -> 0 | U18: =+'07-E3'!AT$6 -> 0 | V18: =+'07-E3'!AU$6 -> 0 | W18: =+'07-E3'!AV$6 -> 0 | X18: =+'07-E3'!AW$6 -> 0 | Y18: =+'07-E3'!AX$6 -> 0 | Z18: =+'07-E3'!AY$6 -> 0 | AA18: =+'07-E3'!AZ$6 -> 0 | AB18: =+'07-E3'!BA$6 -> 0 | AC18: =+'07-E3'!BB$6 -> 0 | AD18: =+'07-E3'!BC$6 -> 0 | AE18: =+'07-E3'!BD$6 -> 0 | AF18: =+'07-E3'!BE$6 -> 0 | AG18: =+'07-E3'!BF$6 -> 0 | AH18: =+'07-E3'!BG$6 -> 0 | AI18: =+'07-E3'!BH$6 -> 0 | AJ18: =+'07-E3'!BI$6 -> 0 | AK18: =+'07-E3'!BJ$6 -> 0 | AL18: =+'07-E3'!BK$6 -> 0 | AM18: =+'07-E3'!BL$6 -> 0 | AN18: =+'07-E3'!BM$6 -> 0 | AO18: =+'07-E3'!BN$6 -> 0 | AP18: =+'07-E3'!BO$6 -> 0 | AQ18: =+'07-E3'!BP$6 -> 0 | AR18: =+'07-E3'!BQ$6 -> 0 | AS18: =+'07-E3'!BR$6 -> 0 | AT18: =+'07-E3'!BS$6 -> 0 | AU18: =+'07-E3'!BT$6 -> 0 | AV18: =+'07-E3'!BU$6 -> 0 | AW18: =+'07-E3'!BV$6 -> 0 | AX18: =+'07-E3'!BW$6 -> 0 | AZ18: =+'07-E3'!BY$6 -> 0 | BB18: =+'07-E3'!CA$6 -> 0 | BC18: =+'07-E3'!CB$6 -> 0 | BD18: =+'07-E3'!CC$6 -> 0 | BE18: =+'07-E3'!CD$6 -> 0 | BF18: =+'07-E3'!CE$6 -> 0 | BG18: =+'07-E3'!CF$6 -> 0 | BH18: =+'07-E3'!CG$6 -> 0 | BI18: =+'07-E3'!CH$6 -> 0
A19: =+'07-F1'!Z$6 -> 07-F1 | B19: =+'07-F1'!AA$6 -> George D. Carroll Courthouse | C19: =+'07-F1'!AB$6 -> 100 37th St. | D19: =+'07-F1'!AC$6 -> Richmond | E19: =+'07-F1'!AD$6 -> 94805 | F19: =+'07-F1'!AE$6 -> Contra Costa | G19: =+'07-F1'!AF$6 -> BANCRO | I19: =+'07-F1'!AH$6 -> 0 | J19: =+'07-F1'!AI$6 -> 0 | K19: =+'07-F1'!AJ$6 -> 0 | L19: =+'07-F1'!AK$6 -> 0 | M19: =+'07-F1'!AL$6 -> 0 | N19: =+'07-F1'!AM$6 -> 0 | O19: =+'07-F1'!AN$6 -> 0 | P19: =+'07-F1'!AO$6 -> 0 | Q19: =+'07-F1'!AP$6 -> 0 | R19: =+'07-F1'!AQ$6 -> 0 | S19: =+'07-F1'!AR$6 -> 0 | T19: =+'07-F1'!AS$6 -> 0 | U19: =+'07-F1'!AT$6 -> 0 | V19: =+'07-F1'!AU$6 -> 0 | W19: =+'07-F1'!AV$6 -> 0 | X19: =+'07-F1'!AW$6 -> 0 | Y19: =+'07-F1'!AX$6 -> 0 | Z19: =+'07-F1'!AY$6 -> 0 | AA19: =+'07-F1'!AZ$6 -> 0 | AB19: =+'07-F1'!BA$6 -> 0 | AC19: =+'07-F1'!BB$6 -> 0 | AD19: =+'07-F1'!BC$6 -> 0 | AE19: =+'07-F1'!BD$6 -> 0 | AF19: =+'07-F1'!BE$6 -> 0 | AG19: =+'07-F1'!BF$6 -> 0 | AH19: =+'07-F1'!BG$6 -> 0 | AI19: =+'07-F1'!BH$6 -> 0 | AJ19: =+'07-F1'!BI$6 -> 0 | AK19: =+'07-F1'!BJ$6 -> 0 | AL19: =+'07-F1'!BK$6 -> 0 | AM19: =+'07-F1'!BL$6 -> 0 | AN19: =+'07-F1'!BM$6 -> 0 | AO19: =+'07-F1'!BN$6 -> 0 | AP19: =+'07-F1'!BO$6 -> 0 | AQ19: =+'07-F1'!BP$6 -> 0 | AR19: =+'07-F1'!BQ$6 -> 0 | AS19: =+'07-F1'!BR$6 -> 0 | AT19: =+'07-F1'!BS$6 -> 0 | AU19: =+'07-F1'!BT$6 -> 0 | AV19: =+'07-F1'!BU$6 -> 0 | AW19: =+'07-F1'!BV$6 -> 0 | AX19: =+'07-F1'!BW$6 -> 0 | AZ19: =+'07-F1'!BY$6 -> 0 | BB19: =+'07-F1'!CA$6 -> 0 | BC19: =+'07-F1'!CB$6 -> 0 | BD19: =+'07-F1'!CC$6 -> 0 | BE19: =+'07-F1'!CD$6 -> 0 | BF19: =+'07-F1'!CE$6 -> 0 | BG19: =+'07-F1'!CF$6 -> 0 | BH19: =+'07-F1'!CG$6 -> 0 | BI19: =+'07-F1'!CH$6 -> 0
A20: =+'08-A1'!Z$6 -> 08-A1 | B20: =+'08-A1'!AA$6 -> Del Norte County Superior Court | C20: =+'08-A1'!AB$6 -> 450 'H' St. | D20: =+'08-A1'!AC$6 -> Crescent City | E20: =+'08-A1'!AD$6 -> 95531 | F20: =+'08-A1'!AE$6 -> Del Norte | G20: =+'08-A1'!AF$6 -> BANCRO | I20: =+'08-A1'!AH$6 -> 0 | J20: =+'08-A1'!AI$6 -> 0 | K20: =+'08-A1'!AJ$6 -> 0 | L20: =+'08-A1'!AK$6 -> 0 | M20: =+'08-A1'!AL$6 -> 0 | N20: =+'08-A1'!AM$6 -> 0 | O20: =+'08-A1'!AN$6 -> 0 | P20: =+'08-A1'!AO$6 -> 0 | Q20: =+'08-A1'!AP$6 -> 0 | R20: =+'08-A1'!AQ$6 -> 0 | S20: =+'08-A1'!AR$6 -> 0 | T20: =+'08-A1'!AS$6 -> 0 | U20: =+'08-A1'!AT$6 -> 0 | V20: =+'08-A1'!AU$6 -> 0 | W20: =+'08-A1'!AV$6 -> 0 | X20: =+'08-A1'!AW$6 -> 0 | Y20: =+'08-A1'!AX$6 -> 0 | Z20: =+'08-A1'!AY$6 -> 0 | AA20: =+'08-A1'!AZ$6 -> 0 | AB20: =+'08-A1'!BA$6 -> 0 | AC20: =+'08-A1'!BB$6 -> 0 | AD20: =+'08-A1'!BC$6 -> 0 | AE20: =+'08-A1'!BD$6 -> 0 | AF20: =+'08-A1'!BE$6 -> 0 | AG20: =+'08-A1'!BF$6 -> 0 | AH20: =+'08-A1'!BG$6 -> 0 | AI20: =+'08-A1'!BH$6 -> 0 | AJ20: =+'08-A1'!BI$6 -> 0 | AK20: =+'08-A1'!BJ$6 -> 0 | AL20: =+'08-A1'!BK$6 -> 0 | AM20: =+'08-A1'!BL$6 -> 0 | AN20: =+'08-A1'!BM$6 -> 0 | AO20: =+'08-A1'!BN$6 -> 0 | AP20: =+'08-A1'!BO$6 -> 0 | AQ20: =+'08-A1'!BP$6 -> 0 | AR20: =+'08-A1'!BQ$6 -> 0 | AS20: =+'08-A1'!BR$6 -> 0 | AT20: =+'08-A1'!BS$6 -> 0 | AU20: =+'08-A1'!BT$6 -> 0 | AV20: =+'08-A1'!BU$6 -> 0 | AW20: =+'08-A1'!BV$6 -> 0 | AX20: =+'08-A1'!BW$6 -> 0 | AZ20: =+'08-A1'!BY$6 -> 0 | BB20: =+'08-A1'!CA$6 -> 0 | BC20: =+'08-A1'!CB$6 -> 0 | BD20: =+'08-A1'!CC$6 -> 0 | BE20: =+'08-A1'!CD$6 -> 0 | BF20: =+'08-A1'!CE$6 -> 0 | BG20: =+'08-A1'!CF$6 -> 0 | BH20: =+'08-A1'!CG$6 -> 0 | BI20: =+'08-A1'!CH$6 -> 0
A21: =+'17-B1'!Z$6 -> 17-B1 | B21: =+'17-B1'!AA$6 -> South Civic Center | C21: =+'17-B1'!AB$6 -> 7000A S. Center Dr. | D21: =+'17-B1'!AC$6 -> Clearlake | E21: =+'17-B1'!AD$6 -> 95422 | F21: =+'17-B1'!AE$6 -> Lake | G21: =+'17-B1'!AF$6 -> BANCRO | I21: =+'17-B1'!AH$6 -> 0 | J21: =+'17-B1'!AI$6 -> 0 | K21: =+'17-B1'!AJ$6 -> 0 | L21: =+'17-B1'!AK$6 -> 0 | M21: =+'17-B1'!AL$6 -> 0 | N21: =+'17-B1'!AM$6 -> 0 | O21: =+'17-B1'!AN$6 -> 0 | P21: =+'17-B1'!AO$6 -> 0 | Q21: =+'17-B1'!AP$6 -> 0 | R21: =+'17-B1'!AQ$6 -> 0 | S21: =+'17-B1'!AR$6 -> 0 | T21: =+'17-B1'!AS$6 -> 0 | U21: =+'17-B1'!AT$6 -> 0 | V21: =+'17-B1'!AU$6 -> 0 | W21: =+'17-B1'!AV$6 -> 0 | X21: =+'17-B1'!AW$6 -> 0 | Y21: =+'17-B1'!AX$6 -> 0 | Z21: =+'17-B1'!AY$6 -> 0 | AA21: =+'17-B1'!AZ$6 -> 0 | AB21: =+'17-B1'!BA$6 -> 0 | AC21: =+'17-B1'!BB$6 -> 0 | AD21: =+'17-B1'!BC$6 -> 0 | AE21: =+'17-B1'!BD$6 -> 0 | AF21: =+'17-B1'!BE$6 -> 0 | AG21: =+'17-B1'!BF$6 -> 0 | AH21: =+'17-B1'!BG$6 -> 0 | AI21: =+'17-B1'!BH$6 -> 0 | AJ21: =+'17-B1'!BI$6 -> 0 | AK21: =+'17-B1'!BJ$6 -> 0 | AL21: =+'17-B1'!BK$6 -> 0 | AM21: =+'17-B1'!BL$6 -> 0 | AN21: =+'17-B1'!BM$6 -> 0 | AO21: =+'17-B1'!BN$6 -> 0 | AP21: =+'17-B1'!BO$6 -> 0 | AQ21: =+'17-B1'!BP$6 -> 0 | AR21: =+'17-B1'!BQ$6 -> 0 | AS21: =+'17-B1'!BR$6 -> 0 | AT21: =+'17-B1'!BS$6 -> 0 | AU21: =+'17-B1'!BT$6 -> 0 | AV21: =+'17-B1'!BU$6 -> 0 | AW21: =+'17-B1'!BV$6 -> 0 | AX21: =+'17-B1'!BW$6 -> 0 | AZ21: =+'17-B1'!BY$6 -> 0 | BB21: =+'17-B1'!CA$6 -> 0 | BC21: =+'17-B1'!CB$6 -> 0 | BD21: =+'17-B1'!CC$6 -> 0 | BE21: =+'17-B1'!CD$6 -> 0 | BF21: =+'17-B1'!CE$6 -> 0 | BG21: =+'17-B1'!CF$6 -> 0 | BH21: =+'17-B1'!CG$6 -> 0 | BI21: =+'17-B1'!CH$6 -> 0
A22: =+'23-A1'!Z$6 -> 23-A1 | B22: =+'23-A1'!AA$6 -> County Courthouse | C22: =+'23-A1'!AB$6 -> 100 N. State St. | D22: =+'23-A1'!AC$6 -> Ukiah | E22: =+'23-A1'!AD$6 -> 95482 | F22: =+'23-A1'!AE$6 -> Mendocino | G22: =+'23-A1'!AF$6 -> BANCRO | I22: =+'23-A1'!AH$6 -> 0 | J22: =+'23-A1'!AI$6 -> 0 | K22: =+'23-A1'!AJ$6 -> 0 | L22: =+'23-A1'!AK$6 -> 0 | M22: =+'23-A1'!AL$6 -> 0 | N22: =+'23-A1'!AM$6 -> 0 | O22: =+'23-A1'!AN$6 -> 0 | P22: =+'23-A1'!AO$6 -> 0 | Q22: =+'23-A1'!AP$6 -> 0 | R22: =+'23-A1'!AQ$6 -> 0 | S22: =+'23-A1'!AR$6 -> 0 | T22: =+'23-A1'!AS$6 -> 0 | U22: =+'23-A1'!AT$6 -> 0 | V22: =+'23-A1'!AU$6 -> 0 | W22: =+'23-A1'!AV$6 -> 0 | X22: =+'23-A1'!AW$6 -> 0 | Y22: =+'23-A1'!AX$6 -> 0 | Z22: =+'23-A1'!AY$6 -> 0 | AA22: =+'23-A1'!AZ$6 -> 0 | AB22: =+'23-A1'!BA$6 -> 0 | AC22: =+'23-A1'!BB$6 -> 0 | AD22: =+'23-A1'!BC$6 -> 0 | AE22: =+'23-A1'!BD$6 -> 0 | AF22: =+'23-A1'!BE$6 -> 0 | AG22: =+'23-A1'!BF$6 -> 0 | AH22: =+'23-A1'!BG$6 -> 0 | AI22: =+'23-A1'!BH$6 -> 0 | AJ22: =+'23-A1'!BI$6 -> 0 | AK22: =+'23-A1'!BJ$6 -> 0 | AL22: =+'23-A1'!BK$6 -> 0 | AM22: =+'23-A1'!BL$6 -> 0 | AN22: =+'23-A1'!BM$6 -> 0 | AO22: =+'23-A1'!BN$6 -> 0 | AP22: =+'23-A1'!BO$6 -> 0 | AQ22: =+'23-A1'!BP$6 -> 0 | AR22: =+'23-A1'!BQ$6 -> 0 | AS22: =+'23-A1'!BR$6 -> 0 | AT22: =+'23-A1'!BS$6 -> 0 | AU22: =+'23-A1'!BT$6 -> 0 | AV22: =+'23-A1'!BU$6 -> 0 | AW22: =+'23-A1'!BV$6 -> 0 | AX22: =+'23-A1'!BW$6 -> 0 | AZ22: =+'23-A1'!BY$6 -> 0 | BB22: =+'23-A1'!CA$6 -> 0 | BC22: =+'23-A1'!CB$6 -> 0 | BD22: =+'23-A1'!CC$6 -> 0 | BE22: =+'23-A1'!CD$6 -> 0 | BF22: =+'23-A1'!CE$6 -> 0 | BG22: =+'23-A1'!CF$6 -> 0 | BH22: =+'23-A1'!CG$6 -> 0 | BI22: =+'23-A1'!CH$6 -> 0
A23: =+'27-A1'!Z$6 -> 27-A1 | B23: =+'27-A1'!AA$6 -> Salinas Courthouse- North Wing | C23: =+'27-A1'!AB$6 -> 240 Church St. | D23: =+'27-A1'!AC$6 -> Salinas | E23: =+'27-A1'!AD$6 -> 93901 | F23: =+'27-A1'!AE$6 -> Monterey | G23: =+'27-A1'!AF$6 -> BANCRO | I23: =+'27-A1'!AH$6 -> 0 | J23: =+'27-A1'!AI$6 -> 0 | K23: =+'27-A1'!AJ$6 -> 0 | L23: =+'27-A1'!AK$6 -> 0 | M23: =+'27-A1'!AL$6 -> 0 | N23: =+'27-A1'!AM$6 -> 0 | O23: =+'27-A1'!AN$6 -> 0 | P23: =+'27-A1'!AO$6 -> 0 | Q23: =+'27-A1'!AP$6 -> 0 | R23: =+'27-A1'!AQ$6 -> 0 | S23: =+'27-A1'!AR$6 -> 0 | T23: =+'27-A1'!AS$6 -> 0 | U23: =+'27-A1'!AT$6 -> 0 | V23: =+'27-A1'!AU$6 -> 0 | W23: =+'27-A1'!AV$6 -> 0 | X23: =+'27-A1'!AW$6 -> 0 | Y23: =+'27-A1'!AX$6 -> 0 | Z23: =+'27-A1'!AY$6 -> 0 | AA23: =+'27-A1'!AZ$6 -> 0 | AB23: =+'27-A1'!BA$6 -> 0 | AC23: =+'27-A1'!BB$6 -> 0 | AD23: =+'27-A1'!BC$6 -> 0 | AE23: =+'27-A1'!BD$6 -> 0 | AF23: =+'27-A1'!BE$6 -> 0 | AG23: =+'27-A1'!BF$6 -> 0 | AH23: =+'27-A1'!BG$6 -> 0 | AI23: =+'27-A1'!BH$6 -> 0 | AJ23: =+'27-A1'!BI$6 -> 0 | AK23: =+'27-A1'!BJ$6 -> 0 | AL23: =+'27-A1'!BK$6 -> 0 | AM23: =+'27-A1'!BL$6 -> 0 | AN23: =+'27-A1'!BM$6 -> 0 | AO23: =+'27-A1'!BN$6 -> 0 | AP23: =+'27-A1'!BO$6 -> 0 | AQ23: =+'27-A1'!BP$6 -> 0 | AR23: =+'27-A1'!BQ$6 -> 0 | AS23: =+'27-A1'!BR$6 -> 0 | AT23: =+'27-A1'!BS$6 -> 0 | AU23: =+'27-A1'!BT$6 -> 0 | AV23: =+'27-A1'!BU$6 -> 0 | AW23: =+'27-A1'!BV$6 -> 0 | AX23: =+'27-A1'!BW$6 -> 0 | AZ23: =+'27-A1'!BY$6 -> 0 | BB23: =+'27-A1'!CA$6 -> 0 | BC23: =+'27-A1'!CB$6 -> 0 | BD23: =+'27-A1'!CC$6 -> 0 | BE23: =+'27-A1'!CD$6 -> 0 | BF23: =+'27-A1'!CE$6 -> 0 | BG23: =+'27-A1'!CF$6 -> 0 | BH23: =+'27-A1'!CG$6 -> 0 | BI23: =+'27-A1'!CH$6 -> 0
A24: =+'27-B1'!Z$6 -> 27-B1 | B24: =+'27-B1'!AA$6 -> Marina Courthouse | C24: =+'27-B1'!AB$6 -> 3180 Del Monte Blvd. | D24: =+'27-B1'!AC$6 -> Marina | E24: =+'27-B1'!AD$6 -> 93933 | F24: =+'27-B1'!AE$6 -> Monterey | G24: =+'27-B1'!AF$6 -> BANCRO | I24: =+'27-B1'!AH$6 -> 0 | J24: =+'27-B1'!AI$6 -> 0 | K24: =+'27-B1'!AJ$6 -> 0 | L24: =+'27-B1'!AK$6 -> 0 | M24: =+'27-B1'!AL$6 -> 0 | N24: =+'27-B1'!AM$6 -> 0 | O24: =+'27-B1'!AN$6 -> 0 | P24: =+'27-B1'!AO$6 -> 0 | Q24: =+'27-B1'!AP$6 -> 0 | R24: =+'27-B1'!AQ$6 -> 0 | S24: =+'27-B1'!AR$6 -> 0 | T24: =+'27-B1'!AS$6 -> 0 | U24: =+'27-B1'!AT$6 -> 0 | V24: =+'27-B1'!AU$6 -> 0 | W24: =+'27-B1'!AV$6 -> 0 | X24: =+'27-B1'!AW$6 -> 0 | Y24: =+'27-B1'!AX$6 -> 0 | Z24: =+'27-B1'!AY$6 -> 0 | AA24: =+'27-B1'!AZ$6 -> 0 | AB24: =+'27-B1'!BA$6 -> 0 | AC24: =+'27-B1'!BB$6 -> 0 | AD24: =+'27-B1'!BC$6 -> 0 | AE24: =+'27-B1'!BD$6 -> 0 | AF24: =+'27-B1'!BE$6 -> 0 | AG24: =+'27-B1'!BF$6 -> 0 | AH24: =+'27-B1'!BG$6 -> 0 | AI24: =+'27-B1'!BH$6 -> 0 | AJ24: =+'27-B1'!BI$6 -> 0 | AK24: =+'27-B1'!BJ$6 -> 0 | AL24: =+'27-B1'!BK$6 -> 0 | AM24: =+'27-B1'!BL$6 -> 0 | AN24: =+'27-B1'!BM$6 -> 0 | AO24: =+'27-B1'!BN$6 -> 0 | AP24: =+'27-B1'!BO$6 -> 0 | AQ24: =+'27-B1'!BP$6 -> 0 | AR24: =+'27-B1'!BQ$6 -> 0 | AS24: =+'27-B1'!BR$6 -> 0 | AT24: =+'27-B1'!BS$6 -> 0 | AU24: =+'27-B1'!BT$6 -> 0 | AV24: =+'27-B1'!BU$6 -> 0 | AW24: =+'27-B1'!BV$6 -> 0 | AX24: =+'27-B1'!BW$6 -> 0 | AZ24: =+'27-B1'!BY$6 -> 0 | BB24: =+'27-B1'!CA$6 -> 0 | BC24: =+'27-B1'!CB$6 -> 0 | BD24: =+'27-B1'!CC$6 -> 0 | BE24: =+'27-B1'!CD$6 -> 0 | BF24: =+'27-B1'!CE$6 -> 0 | BG24: =+'27-B1'!CF$6 -> 0 | BH24: =+'27-B1'!CG$6 -> 0 | BI24: =+'27-B1'!CH$6 -> 0
A25: =+'27-C1'!Z$6 -> 27-C1 | B25: =+'27-C1'!AA$6 -> Monterey Courthouse | C25: =+'27-C1'!AB$6 -> 1200 Aguajito Rd. | D25: =+'27-C1'!AC$6 -> Monterey | E25: =+'27-C1'!AD$6 -> 93940 | F25: =+'27-C1'!AE$6 -> Monterey | G25: =+'27-C1'!AF$6 -> BANCRO | I25: =+'27-C1'!AH$6 -> 0 | J25: =+'27-C1'!AI$6 -> 0 | K25: =+'27-C1'!AJ$6 -> 0 | L25: =+'27-C1'!AK$6 -> 0 | M25: =+'27-C1'!AL$6 -> 0 | N25: =+'27-C1'!AM$6 -> 0 | O25: =+'27-C1'!AN$6 -> 0 | P25: =+'27-C1'!AO$6 -> 0 | Q25: =+'27-C1'!AP$6 -> 0 | R25: =+'27-C1'!AQ$6 -> 0 | S25: =+'27-C1'!AR$6 -> 0 | T25: =+'27-C1'!AS$6 -> 0 | U25: =+'27-C1'!AT$6 -> 0 | V25: =+'27-C1'!AU$6 -> 0 | W25: =+'27-C1'!AV$6 -> 0 | X25: =+'27-C1'!AW$6 -> 0 | Y25: =+'27-C1'!AX$6 -> 0 | Z25: =+'27-C1'!AY$6 -> 0 | AA25: =+'27-C1'!AZ$6 -> 0 | AB25: =+'27-C1'!BA$6 -> 0 | AC25: =+'27-C1'!BB$6 -> 0 | AD25: =+'27-C1'!BC$6 -> 0 | AE25: =+'27-C1'!BD$6 -> 0 | AF25: =+'27-C1'!BE$6 -> 0 | AG25: =+'27-C1'!BF$6 -> 0 | AH25: =+'27-C1'!BG$6 -> 0 | AI25: =+'27-C1'!BH$6 -> 0 | AJ25: =+'27-C1'!BI$6 -> 0 | AK25: =+'27-C1'!BJ$6 -> 0 | AL25: =+'27-C1'!BK$6 -> 0 | AM25: =+'27-C1'!BL$6 -> 0 | AN25: =+'27-C1'!BM$6 -> 0 | AO25: =+'27-C1'!BN$6 -> 0 | AP25: =+'27-C1'!BO$6 -> 0 | AQ25: =+'27-C1'!BP$6 -> 0 | AR25: =+'27-C1'!BQ$6 -> 0 | AS25: =+'27-C1'!BR$6 -> 0 | AT25: =+'27-C1'!BS$6 -> 0 | AU25: =+'27-C1'!BT$6 -> 0 | AV25: =+'27-C1'!BU$6 -> 0 | AW25: =+'27-C1'!BV$6 -> 0 | AX25: =+'27-C1'!BW$6 -> 0 | AZ25: =+'27-C1'!BY$6 -> 0 | BB25: =+'27-C1'!CA$6 -> 0 | BC25: =+'27-C1'!CB$6 -> 0 | BD25: =+'27-C1'!CC$6 -> 0 | BE25: =+'27-C1'!CD$6 -> 0 | BF25: =+'27-C1'!CE$6 -> 0 | BG25: =+'27-C1'!CF$6 -> 0 | BH25: =+'27-C1'!CG$6 -> 0 | BI25: =+'27-C1'!CH$6 -> 0
A26: =+'28-A1'!Z$6 -> 28-A1 | B26: =+'28-A1'!AA$6 -> Criminal Court Building | C26: =+'28-A1'!AB$6 -> 1111 Third St. | D26: =+'28-A1'!AC$6 -> Napa | E26: =+'28-A1'!AD$6 -> 94559 | F26: =+'28-A1'!AE$6 -> Napa | G26: =+'28-A1'!AF$6 -> BANCRO | I26: =+'28-A1'!AH$6 -> 0 | J26: =+'28-A1'!AI$6 -> 0 | K26: =+'28-A1'!AJ$6 -> 0 | L26: =+'28-A1'!AK$6 -> 0 | M26: =+'28-A1'!AL$6 -> 0 | N26: =+'28-A1'!AM$6 -> 0 | O26: =+'28-A1'!AN$6 -> 0 | P26: =+'28-A1'!AO$6 -> 0 | Q26: =+'28-A1'!AP$6 -> 0 | R26: =+'28-A1'!AQ$6 -> 0 | S26: =+'28-A1'!AR$6 -> 0 | T26: =+'28-A1'!AS$6 -> 0 | U26: =+'28-A1'!AT$6 -> 0 | V26: =+'28-A1'!AU$6 -> 0 | W26: =+'28-A1'!AV$6 -> 0 | X26: =+'28-A1'!AW$6 -> 0 | Y26: =+'28-A1'!AX$6 -> 0 | Z26: =+'28-A1'!AY$6 -> 0 | AA26: =+'28-A1'!AZ$6 -> 0 | AB26: =+'28-A1'!BA$6 -> 0 | AC26: =+'28-A1'!BB$6 -> 0 | AD26: =+'28-A1'!BC$6 -> 0 | AE26: =+'28-A1'!BD$6 -> 0 | AF26: =+'28-A1'!BE$6 -> 0 | AG26: =+'28-A1'!BF$6 -> 0 | AH26: =+'28-A1'!BG$6 -> 0 | AI26: =+'28-A1'!BH$6 -> 0 | AJ26: =+'28-A1'!BI$6 -> 0 | AK26: =+'28-A1'!BJ$6 -> 0 | AL26: =+'28-A1'!BK$6 -> 0 | AM26: =+'28-A1'!BL$6 -> 0 | AN26: =+'28-A1'!BM$6 -> 0 | AO26: =+'28-A1'!BN$6 -> 0 | AP26: =+'28-A1'!BO$6 -> 0 | AQ26: =+'28-A1'!BP$6 -> 0 | AR26: =+'28-A1'!BQ$6 -> 0 | AS26: =+'28-A1'!BR$6 -> 0 | AT26: =+'28-A1'!BS$6 -> 0 | AU26: =+'28-A1'!BT$6 -> 0 | AV26: =+'28-A1'!BU$6 -> 0 | AW26: =+'28-A1'!BV$6 -> 0 | AX26: =+'28-A1'!BW$6 -> 0 | AZ26: =+'28-A1'!BY$6 -> 0 | BB26: =+'28-A1'!CA$6 -> 0 | BC26: =+'28-A1'!CB$6 -> 0 | BD26: =+'28-A1'!CC$6 -> 0 | BE26: =+'28-A1'!CD$6 -> 0 | BF26: =+'28-A1'!CE$6 -> 0 | BG26: =+'28-A1'!CF$6 -> 0 | BH26: =+'28-A1'!CG$6 -> 0 | BI26: =+'28-A1'!CH$6 -> 0
A27: =+'28-B1'!Z$6 -> 28-B1 | B27: =+'28-B1'!AA$6 -> Historic Courthouse | C27: =+'28-B1'!AB$6 -> 825 Brown St. | D27: =+'28-B1'!AC$6 -> Napa | E27: =+'28-B1'!AD$6 -> 94559 | F27: =+'28-B1'!AE$6 -> Napa | G27: =+'28-B1'!AF$6 -> BANCRO | I27: =+'28-B1'!AH$6 -> 0 | J27: =+'28-B1'!AI$6 -> 0 | K27: =+'28-B1'!AJ$6 -> 0 | L27: =+'28-B1'!AK$6 -> 0 | M27: =+'28-B1'!AL$6 -> 0 | N27: =+'28-B1'!AM$6 -> 0 | O27: =+'28-B1'!AN$6 -> 0 | P27: =+'28-B1'!AO$6 -> 0 | Q27: =+'28-B1'!AP$6 -> 0 | R27: =+'28-B1'!AQ$6 -> 0 | S27: =+'28-B1'!AR$6 -> 0 | T27: =+'28-B1'!AS$6 -> 0 | U27: =+'28-B1'!AT$6 -> 0 | V27: =+'28-B1'!AU$6 -> 0 | W27: =+'28-B1'!AV$6 -> 0 | X27: =+'28-B1'!AW$6 -> 0 | Y27: =+'28-B1'!AX$6 -> 0 | Z27: =+'28-B1'!AY$6 -> 0 | AA27: =+'28-B1'!AZ$6 -> 0 | AB27: =+'28-B1'!BA$6 -> 0 | AC27: =+'28-B1'!BB$6 -> 0 | AD27: =+'28-B1'!BC$6 -> 0 | AE27: =+'28-B1'!BD$6 -> 0 | AF27: =+'28-B1'!BE$6 -> 0 | AG27: =+'28-B1'!BF$6 -> 0 | AH27: =+'28-B1'!BG$6 -> 0 | AI27: =+'28-B1'!BH$6 -> 0 | AJ27: =+'28-B1'!BI$6 -> 0 | AK27: =+'28-B1'!BJ$6 -> 0 | AL27: =+'28-B1'!BK$6 -> 0 | AM27: =+'28-B1'!BL$6 -> 0 | AN27: =+'28-B1'!BM$6 -> 0 | AO27: =+'28-B1'!BN$6 -> 0 | AP27: =+'28-B1'!BO$6 -> 0 | AQ27: =+'28-B1'!BP$6 -> 0 | AR27: =+'28-B1'!BQ$6 -> 0 | AS27: =+'28-B1'!BR$6 -> 0 | AT27: =+'28-B1'!BS$6 -> 0 | AU27: =+'28-B1'!BT$6 -> 0 | AV27: =+'28-B1'!BU$6 -> 0 | AW27: =+'28-B1'!BV$6 -> 0 | AX27: =+'28-B1'!BW$6 -> 0 | AZ27: =+'28-B1'!BY$6 -> 0 | BB27: =+'28-B1'!CA$6 -> 0 | BC27: =+'28-B1'!CB$6 -> 0 | BD27: =+'28-B1'!CC$6 -> 0 | BE27: =+'28-B1'!CD$6 -> 0 | BF27: =+'28-B1'!CE$6 -> 0 | BG27: =+'28-B1'!CF$6 -> 0 | BH27: =+'28-B1'!CG$6 -> 0 | BI27: =+'28-B1'!CH$6 -> 0
A28: =+'28-C1'!Z$6 -> 28-C1 | B28: =+'28-C1'!AA$6 -> Napa Juvenile Court | C28: =+'28-C1'!AB$6 -> 2350 Old Sonoma Rd. | D28: =+'28-C1'!AC$6 -> Napa | E28: =+'28-C1'!AD$6 -> 94559 | F28: =+'28-C1'!AE$6 -> Napa | G28: =+'28-C1'!AF$6 -> BANCRO | I28: =+'28-C1'!AH$6 -> 0 | J28: =+'28-C1'!AI$6 -> 0 | K28: =+'28-C1'!AJ$6 -> 0 | L28: =+'28-C1'!AK$6 -> 0 | M28: =+'28-C1'!AL$6 -> 0 | N28: =+'28-C1'!AM$6 -> 0 | O28: =+'28-C1'!AN$6 -> 0 | P28: =+'28-C1'!AO$6 -> 0 | Q28: =+'28-C1'!AP$6 -> 0 | R28: =+'28-C1'!AQ$6 -> 0 | S28: =+'28-C1'!AR$6 -> 0 | T28: =+'28-C1'!AS$6 -> 0 | U28: =+'28-C1'!AT$6 -> 0 | V28: =+'28-C1'!AU$6 -> 0 | W28: =+'28-C1'!AV$6 -> 0 | X28: =+'28-C1'!AW$6 -> 0 | Y28: =+'28-C1'!AX$6 -> 0 | Z28: =+'28-C1'!AY$6 -> 0 | AA28: =+'28-C1'!AZ$6 -> 0 | AB28: =+'28-C1'!BA$6 -> 0 | AC28: =+'28-C1'!BB$6 -> 0 | AD28: =+'28-C1'!BC$6 -> 0 | AE28: =+'28-C1'!BD$6 -> 0 | AF28: =+'28-C1'!BE$6 -> 0 | AG28: =+'28-C1'!BF$6 -> 0 | AH28: =+'28-C1'!BG$6 -> 0 | AI28: =+'28-C1'!BH$6 -> 0 | AJ28: =+'28-C1'!BI$6 -> 0 | AK28: =+'28-C1'!BJ$6 -> 0 | AL28: =+'28-C1'!BK$6 -> 0 | AM28: =+'28-C1'!BL$6 -> 0 | AN28: =+'28-C1'!BM$6 -> 0 | AO28: =+'28-C1'!BN$6 -> 0 | AP28: =+'28-C1'!BO$6 -> 0 | AQ28: =+'28-C1'!BP$6 -> 0 | AR28: =+'28-C1'!BQ$6 -> 0 | AS28: =+'28-C1'!BR$6 -> 0 | AT28: =+'28-C1'!BS$6 -> 0 | AU28: =+'28-C1'!BT$6 -> 0 | AV28: =+'28-C1'!BU$6 -> 0 | AW28: =+'28-C1'!BV$6 -> 0 | AX28: =+'28-C1'!BW$6 -> 0 | AZ28: =+'28-C1'!BY$6 -> 0 | BB28: =+'28-C1'!CA$6 -> 0 | BC28: =+'28-C1'!CB$6 -> 0 | BD28: =+'28-C1'!CC$6 -> 0 | BE28: =+'28-C1'!CD$6 -> 0 | BF28: =+'28-C1'!CE$6 -> 0 | BG28: =+'28-C1'!CF$6 -> 0 | BH28: =+'28-C1'!CG$6 -> 0 | BI28: =+'28-C1'!CH$6 -> 0
A29: =+'35-C1'!Z$6 -> 35-C1 | B29: =+'35-C1'!AA$6 -> New Hollister Courthouse | C29: =+'35-C1'!AB$6 -> 450 Fourth Street | D29: =+'35-C1'!AC$6 -> Hollister | E29: =+'35-C1'!AD$6 -> 95023 | F29: =+'35-C1'!AE$6 -> San Benito | G29: =+'35-C1'!AF$6 -> BANCRO | I29: =+'35-C1'!AH$6 -> 0 | J29: =+'35-C1'!AI$6 -> 0 | K29: =+'35-C1'!AJ$6 -> 0 | L29: =+'35-C1'!AK$6 -> 0 | M29: =+'35-C1'!AL$6 -> 0 | N29: =+'35-C1'!AM$6 -> 0 | O29: =+'35-C1'!AN$6 -> 0 | P29: =+'35-C1'!AO$6 -> 0 | Q29: =+'35-C1'!AP$6 -> 0 | R29: =+'35-C1'!AQ$6 -> 0 | S29: =+'35-C1'!AR$6 -> 0 | T29: =+'35-C1'!AS$6 -> 0 | U29: =+'35-C1'!AT$6 -> 0 | V29: =+'35-C1'!AU$6 -> 0 | W29: =+'35-C1'!AV$6 -> 0 | X29: =+'35-C1'!AW$6 -> 0 | Y29: =+'35-C1'!AX$6 -> 0 | Z29: =+'35-C1'!AY$6 -> 0 | AA29: =+'35-C1'!AZ$6 -> 0 | AB29: =+'35-C1'!BA$6 -> 0 | AC29: =+'35-C1'!BB$6 -> 0 | AD29: =+'35-C1'!BC$6 -> 0 | AE29: =+'35-C1'!BD$6 -> 0 | AF29: =+'35-C1'!BE$6 -> 0 | AG29: =+'35-C1'!BF$6 -> 0 | AH29: =+'35-C1'!BG$6 -> 0 | AI29: =+'35-C1'!BH$6 -> 0 | AJ29: =+'35-C1'!BI$6 -> 0 | AK29: =+'35-C1'!BJ$6 -> 0 | AL29: =+'35-C1'!BK$6 -> 0 | AM29: =+'35-C1'!BL$6 -> 0 | AN29: =+'35-C1'!BM$6 -> 0 | AO29: =+'35-C1'!BN$6 -> 0 | AP29: =+'35-C1'!BO$6 -> 0 | AQ29: =+'35-C1'!BP$6 -> 0 | AR29: =+'35-C1'!BQ$6 -> 0 | AS29: =+'35-C1'!BR$6 -> 0 | AT29: =+'35-C1'!BS$6 -> 0 | AU29: =+'35-C1'!BT$6 -> 0 | AV29: =+'35-C1'!BU$6 -> 0 | AW29: =+'35-C1'!BV$6 -> 0 | AX29: =+'35-C1'!BW$6 -> 0 | AZ29: =+'35-C1'!BY$6 -> 0 | BB29: =+'35-C1'!CA$6 -> 0 | BC29: =+'35-C1'!CB$6 -> 0 | BD29: =+'35-C1'!CC$6 -> 0 | BE29: =+'35-C1'!CD$6 -> 0 | BF29: =+'35-C1'!CE$6 -> 0 | BG29: =+'35-C1'!CF$6 -> 0 | BH29: =+'35-C1'!CG$6 -> 0 | BI29: =+'35-C1'!CH$6 -> 0
A30: =+'38-A1'!Z$6 -> 38-A1 | B30: =+'38-A1'!AA$6 -> Civic Center Courthouse | C30: =+'38-A1'!AB$6 -> 400 McAllister St. | D30: =+'38-A1'!AC$6 -> San Francisco | E30: =+'38-A1'!AD$6 -> 94102 | F30: =+'38-A1'!AE$6 -> San Francisco | G30: =+'38-A1'!AF$6 -> BANCRO | I30: =+'38-A1'!AH$6 -> 0 | J30: =+'38-A1'!AI$6 -> 0 | K30: =+'38-A1'!AJ$6 -> 0 | L30: =+'38-A1'!AK$6 -> 0 | M30: =+'38-A1'!AL$6 -> 0 | N30: =+'38-A1'!AM$6 -> 0 | O30: =+'38-A1'!AN$6 -> 0 | P30: =+'38-A1'!AO$6 -> 0 | Q30: =+'38-A1'!AP$6 -> 0 | R30: =+'38-A1'!AQ$6 -> 0 | S30: =+'38-A1'!AR$6 -> 0 | T30: =+'38-A1'!AS$6 -> 0 | U30: =+'38-A1'!AT$6 -> 0 | V30: =+'38-A1'!AU$6 -> 0 | W30: =+'38-A1'!AV$6 -> 0 | X30: =+'38-A1'!AW$6 -> 0 | Y30: =+'38-A1'!AX$6 -> 0 | Z30: =+'38-A1'!AY$6 -> 0 | AA30: =+'38-A1'!AZ$6 -> 0 | AB30: =+'38-A1'!BA$6 -> 0 | AC30: =+'38-A1'!BB$6 -> 0 | AD30: =+'38-A1'!BC$6 -> 0 | AE30: =+'38-A1'!BD$6 -> 0 | AF30: =+'38-A1'!BE$6 -> 0 | AG30: =+'38-A1'!BF$6 -> 0 | AH30: =+'38-A1'!BG$6 -> 0 | AI30: =+'38-A1'!BH$6 -> 0 | AJ30: =+'38-A1'!BI$6 -> 0 | AK30: =+'38-A1'!BJ$6 -> 0 | AL30: =+'38-A1'!BK$6 -> 0 | AM30: =+'38-A1'!BL$6 -> 0 | AN30: =+'38-A1'!BM$6 -> 0 | AO30: =+'38-A1'!BN$6 -> 0 | AP30: =+'38-A1'!BO$6 -> 0 | AQ30: =+'38-A1'!BP$6 -> 0 | AR30: =+'38-A1'!BQ$6 -> 0 | AS30: =+'38-A1'!BR$6 -> 0 | AT30: =+'38-A1'!BS$6 -> 0 | AU30: =+'38-A1'!BT$6 -> 0 | AV30: =+'38-A1'!BU$6 -> 0 | AW30: =+'38-A1'!BV$6 -> 0 | AX30: =+'38-A1'!BW$6 -> 0 | AZ30: =+'38-A1'!BY$6 -> 0 | BB30: =+'38-A1'!CA$6 -> 0 | BC30: =+'38-A1'!CB$6 -> 0 | BD30: =+'38-A1'!CC$6 -> 0 | BE30: =+'38-A1'!CD$6 -> 0 | BF30: =+'38-A1'!CE$6 -> 0 | BG30: =+'38-A1'!CF$6 -> 0 | BH30: =+'38-A1'!CG$6 -> 0 | BI30: =+'38-A1'!CH$6 -> 0
A31: =+'38-C2'!Z$6 -> 38-C2 | B31: =+'38-C2'!AA$6 -> Family Justice Center | C31: =+'38-C2'!AB$6 -> Woodside Ave. and Portola | D31: =+'38-C2'!AC$6 -> San Francisco | E31: =+'38-C2'!AD$6 -> 94127 | F31: =+'38-C2'!AE$6 -> San Francisco | G31: =+'38-C2'!AF$6 -> BANCRO | I31: =+'38-C2'!AH$6 -> 0 | J31: =+'38-C2'!AI$6 -> 0 | K31: =+'38-C2'!AJ$6 -> 0 | L31: =+'38-C2'!AK$6 -> 0 | M31: =+'38-C2'!AL$6 -> 0 | N31: =+'38-C2'!AM$6 -> 0 | O31: =+'38-C2'!AN$6 -> 0 | P31: =+'38-C2'!AO$6 -> 0 | Q31: =+'38-C2'!AP$6 -> 0 | R31: =+'38-C2'!AQ$6 -> 0 | S31: =+'38-C2'!AR$6 -> 0 | T31: =+'38-C2'!AS$6 -> 0 | U31: =+'38-C2'!AT$6 -> 0 | V31: =+'38-C2'!AU$6 -> 0 | W31: =+'38-C2'!AV$6 -> 0 | X31: =+'38-C2'!AW$6 -> 0 | Y31: =+'38-C2'!AX$6 -> 0 | Z31: =+'38-C2'!AY$6 -> 0 | AA31: =+'38-C2'!AZ$6 -> 0 | AB31: =+'38-C2'!BA$6 -> 0 | AC31: =+'38-C2'!BB$6 -> 0 | AD31: =+'38-C2'!BC$6 -> 0 | AE31: =+'38-C2'!BD$6 -> 0 | AF31: =+'38-C2'!BE$6 -> 0 | AG31: =+'38-C2'!BF$6 -> 0 | AH31: =+'38-C2'!BG$6 -> 0 | AI31: =+'38-C2'!BH$6 -> 0 | AJ31: =+'38-C2'!BI$6 -> 0 | AK31: =+'38-C2'!BJ$6 -> 0 | AL31: =+'38-C2'!BK$6 -> 0 | AM31: =+'38-C2'!BL$6 -> 0 | AN31: =+'38-C2'!BM$6 -> 0 | AO31: =+'38-C2'!BN$6 -> 0 | AP31: =+'38-C2'!BO$6 -> 0 | AQ31: =+'38-C2'!BP$6 -> 0 | AR31: =+'38-C2'!BQ$6 -> 0 | AS31: =+'38-C2'!BR$6 -> 0 | AT31: =+'38-C2'!BS$6 -> 0 | AU31: =+'38-C2'!BT$6 -> 0 | AV31: =+'38-C2'!BU$6 -> 0 | AW31: =+'38-C2'!BV$6 -> 0 | AX31: =+'38-C2'!BW$6 -> 0 | AZ31: =+'38-C2'!BY$6 -> 0 | BB31: =+'38-C2'!CA$6 -> 0 | BC31: =+'38-C2'!CB$6 -> 0 | BD31: =+'38-C2'!CC$6 -> 0 | BE31: =+'38-C2'!CD$6 -> 0 | BF31: =+'38-C2'!CE$6 -> 0 | BG31: =+'38-C2'!CF$6 -> 0 | BH31: =+'38-C2'!CG$6 -> 0 | BI31: =+'38-C2'!CH$6 -> 0
A32: =+'38-C3'!Z$6 -> 38-C3 | B32: =+'38-C3'!AA$6 -> Family Justice Center Site - Bldg 1 | C32: =+'38-C3'!AB$6 -> 375 Woodside Avenue | D32: =+'38-C3'!AC$6 -> San Francisco | E32: =+'38-C3'!AD$6 -> 94127 | F32: =+'38-C3'!AE$6 -> San Francisco | G32: =+'38-C3'!AF$6 -> BANCRO | I32: =+'38-C3'!AH$6 -> 0 | J32: =+'38-C3'!AI$6 -> 0 | K32: =+'38-C3'!AJ$6 -> 0 | L32: =+'38-C3'!AK$6 -> 0 | M32: =+'38-C3'!AL$6 -> 0 | N32: =+'38-C3'!AM$6 -> 0 | O32: =+'38-C3'!AN$6 -> 0 | P32: =+'38-C3'!AO$6 -> 0 | Q32: =+'38-C3'!AP$6 -> 0 | R32: =+'38-C3'!AQ$6 -> 0 | S32: =+'38-C3'!AR$6 -> 0 | T32: =+'38-C3'!AS$6 -> 0 | U32: =+'38-C3'!AT$6 -> 0 | V32: =+'38-C3'!AU$6 -> 0 | W32: =+'38-C3'!AV$6 -> 0 | X32: =+'38-C3'!AW$6 -> 0 | Y32: =+'38-C3'!AX$6 -> 0 | Z32: =+'38-C3'!AY$6 -> 0 | AA32: =+'38-C3'!AZ$6 -> 0 | AB32: =+'38-C3'!BA$6 -> 0 | AC32: =+'38-C3'!BB$6 -> 0 | AD32: =+'38-C3'!BC$6 -> 0 | AE32: =+'38-C3'!BD$6 -> 0 | AF32: =+'38-C3'!BE$6 -> 0 | AG32: =+'38-C3'!BF$6 -> 0 | AH32: =+'38-C3'!BG$6 -> 0 | AI32: =+'38-C3'!BH$6 -> 0 | AJ32: =+'38-C3'!BI$6 -> 0 | AK32: =+'38-C3'!BJ$6 -> 0 | AL32: =+'38-C3'!BK$6 -> 0 | AM32: =+'38-C3'!BL$6 -> 0 | AN32: =+'38-C3'!BM$6 -> 0 | AO32: =+'38-C3'!BN$6 -> 0 | AP32: =+'38-C3'!BO$6 -> 0 | AQ32: =+'38-C3'!BP$6 -> 0 | AR32: =+'38-C3'!BQ$6 -> 0 | AS32: =+'38-C3'!BR$6 -> 0 | AT32: =+'38-C3'!BS$6 -> 0 | AU32: =+'38-C3'!BT$6 -> 0 | AV32: =+'38-C3'!BU$6 -> 0 | AW32: =+'38-C3'!BV$6 -> 0 | AX32: =+'38-C3'!BW$6 -> 0 | AZ32: =+'38-C3'!BY$6 -> 0 | BB32: =+'38-C3'!CA$6 -> 0 | BC32: =+'38-C3'!CB$6 -> 0 | BD32: =+'38-C3'!CC$6 -> 0 | BE32: =+'38-C3'!CD$6 -> 0 | BF32: =+'38-C3'!CE$6 -> 0 | BG32: =+'38-C3'!CF$6 -> 0 | BH32: =+'38-C3'!CG$6 -> 0 | BI32: =+'38-C3'!CH$6 -> 0
A33: =+'38-C4'!Z$6 -> 38-C4 | B33: =+'38-C4'!AA$6 -> Family Justice Center Site - Bldg 2 | C33: =+'38-C4'!AB$6 -> 375 Woodside Avenue | D33: =+'38-C4'!AC$6 -> San Francisco | E33: =+'38-C4'!AD$6 -> 94127 | F33: =+'38-C4'!AE$6 -> San Francisco | G33: =+'38-C4'!AF$6 -> BANCRO | I33: =+'38-C4'!AH$6 -> 0 | J33: =+'38-C4'!AI$6 -> 0 | K33: =+'38-C4'!AJ$6 -> 0 | L33: =+'38-C4'!AK$6 -> 0 | M33: =+'38-C4'!AL$6 -> 0 | N33: =+'38-C4'!AM$6 -> 0 | O33: =+'38-C4'!AN$6 -> 0 | P33: =+'38-C4'!AO$6 -> 0 | Q33: =+'38-C4'!AP$6 -> 0 | R33: =+'38-C4'!AQ$6 -> 0 | S33: =+'38-C4'!AR$6 -> 0 | T33: =+'38-C4'!AS$6 -> 0 | U33: =+'38-C4'!AT$6 -> 0 | V33: =+'38-C4'!AU$6 -> 0 | W33: =+'38-C4'!AV$6 -> 0 | X33: =+'38-C4'!AW$6 -> 0 | Y33: =+'38-C4'!AX$6 -> 0 | Z33: =+'38-C4'!AY$6 -> 0 | AA33: =+'38-C4'!AZ$6 -> 0 | AB33: =+'38-C4'!BA$6 -> 0 | AC33: =+'38-C4'!BB$6 -> 0 | AD33: =+'38-C4'!BC$6 -> 0 | AE33: =+'38-C4'!BD$6 -> 0 | AF33: =+'38-C4'!BE$6 -> 0 | AG33: =+'38-C4'!BF$6 -> 0 | AH33: =+'38-C4'!BG$6 -> 0 | AI33: =+'38-C4'!BH$6 -> 0 | AJ33: =+'38-C4'!BI$6 -> 0 | AK33: =+'38-C4'!BJ$6 -> 0 | AL33: =+'38-C4'!BK$6 -> 0 | AM33: =+'38-C4'!BL$6 -> 0 | AN33: =+'38-C4'!BM$6 -> 0 | AO33: =+'38-C4'!BN$6 -> 0 | AP33: =+'38-C4'!BO$6 -> 0 | AQ33: =+'38-C4'!BP$6 -> 0 | AR33: =+'38-C4'!BQ$6 -> 0 | AS33: =+'38-C4'!BR$6 -> 0 | AT33: =+'38-C4'!BS$6 -> 0 | AU33: =+'38-C4'!BT$6 -> 0 | AV33: =+'38-C4'!BU$6 -> 0 | AW33: =+'38-C4'!BV$6 -> 0 | AX33: =+'38-C4'!BW$6 -> 0 | AZ33: =+'38-C4'!BY$6 -> 0 | BB33: =+'38-C4'!CA$6 -> 0 | BC33: =+'38-C4'!CB$6 -> 0 | BD33: =+'38-C4'!CC$6 -> 0 | BE33: =+'38-C4'!CD$6 -> 0 | BF33: =+'38-C4'!CE$6 -> 0 | BG33: =+'38-C4'!CF$6 -> 0 | BH33: =+'38-C4'!CG$6 -> 0 | BI33: =+'38-C4'!CH$6 -> 0
A34: =+'38-C5'!Z$6 -> 38-C5 | B34: =+'38-C5'!AA$6 -> Family Justice Center Site - Bldg 3 | C34: =+'38-C5'!AB$6 -> 375 Woodside Avenue | D34: =+'38-C5'!AC$6 -> San Francisco | E34: =+'38-C5'!AD$6 -> 94127 | F34: =+'38-C5'!AE$6 -> San Francisco | G34: =+'38-C5'!AF$6 -> BANCRO | I34: =+'38-C5'!AH$6 -> 0 | J34: =+'38-C5'!AI$6 -> 0 | K34: =+'38-C5'!AJ$6 -> 0 | L34: =+'38-C5'!AK$6 -> 0 | M34: =+'38-C5'!AL$6 -> 0 | N34: =+'38-C5'!AM$6 -> 0 | O34: =+'38-C5'!AN$6 -> 0 | P34: =+'38-C5'!AO$6 -> 0 | Q34: =+'38-C5'!AP$6 -> 0 | R34: =+'38-C5'!AQ$6 -> 0 | S34: =+'38-C5'!AR$6 -> 0 | T34: =+'38-C5'!AS$6 -> 0 | U34: =+'38-C5'!AT$6 -> 0 | V34: =+'38-C5'!AU$6 -> 0 | W34: =+'38-C5'!AV$6 -> 0 | X34: =+'38-C5'!AW$6 -> 0 | Y34: =+'38-C5'!AX$6 -> 0 | Z34: =+'38-C5'!AY$6 -> 0 | AA34: =+'38-C5'!AZ$6 -> 0 | AB34: =+'38-C5'!BA$6 -> 0 | AC34: =+'38-C5'!BB$6 -> 0 | AD34: =+'38-C5'!BC$6 -> 0 | AE34: =+'38-C5'!BD$6 -> 0 | AF34: =+'38-C5'!BE$6 -> 0 | AG34: =+'38-C5'!BF$6 -> 0 | AH34: =+'38-C5'!BG$6 -> 0 | AI34: =+'38-C5'!BH$6 -> 0 | AJ34: =+'38-C5'!BI$6 -> 0 | AK34: =+'38-C5'!BJ$6 -> 0 | AL34: =+'38-C5'!BK$6 -> 0 | AM34: =+'38-C5'!BL$6 -> 0 | AN34: =+'38-C5'!BM$6 -> 0 | AO34: =+'38-C5'!BN$6 -> 0 | AP34: =+'38-C5'!BO$6 -> 0 | AQ34: =+'38-C5'!BP$6 -> 0 | AR34: =+'38-C5'!BQ$6 -> 0 | AS34: =+'38-C5'!BR$6 -> 0 | AT34: =+'38-C5'!BS$6 -> 0 | AU34: =+'38-C5'!BT$6 -> 0 | AV34: =+'38-C5'!BU$6 -> 0 | AW34: =+'38-C5'!BV$6 -> 0 | AX34: =+'38-C5'!BW$6 -> 0 | AZ34: =+'38-C5'!BY$6 -> 0 | BB34: =+'38-C5'!CA$6 -> 0 | BC34: =+'38-C5'!CB$6 -> 0 | BD34: =+'38-C5'!CC$6 -> 0 | BE34: =+'38-C5'!CD$6 -> 0 | BF34: =+'38-C5'!CE$6 -> 0 | BG34: =+'38-C5'!CF$6 -> 0 | BH34: =+'38-C5'!CG$6 -> 0 | BI34: =+'38-C5'!CH$6 -> 0
A35: =+'40-C1'!Z$6 -> 40-C1 | B35: =+'40-C1'!AA$6 -> Juvenile Services Center | C35: =+'40-C1'!AB$6 -> 1065 Kansas Ave. | D35: =+'40-C1'!AC$6 -> San Luis Obispo | E35: =+'40-C1'!AD$6 -> 93408 | F35: =+'40-C1'!AE$6 -> San Luis Obispo | G35: =+'40-C1'!AF$6 -> BANCRO | I35: =+'40-C1'!AH$6 -> 0 | J35: =+'40-C1'!AI$6 -> 0 | K35: =+'40-C1'!AJ$6 -> 0 | L35: =+'40-C1'!AK$6 -> 0 | M35: =+'40-C1'!AL$6 -> 0 | N35: =+'40-C1'!AM$6 -> 0 | O35: =+'40-C1'!AN$6 -> 0 | P35: =+'40-C1'!AO$6 -> 0 | Q35: =+'40-C1'!AP$6 -> 0 | R35: =+'40-C1'!AQ$6 -> 0 | S35: =+'40-C1'!AR$6 -> 0 | T35: =+'40-C1'!AS$6 -> 0 | U35: =+'40-C1'!AT$6 -> 0 | V35: =+'40-C1'!AU$6 -> 0 | W35: =+'40-C1'!AV$6 -> 0 | X35: =+'40-C1'!AW$6 -> 0 | Y35: =+'40-C1'!AX$6 -> 0 | Z35: =+'40-C1'!AY$6 -> 0 | AA35: =+'40-C1'!AZ$6 -> 0 | AB35: =+'40-C1'!BA$6 -> 0 | AC35: =+'40-C1'!BB$6 -> 0 | AD35: =+'40-C1'!BC$6 -> 0 | AE35: =+'40-C1'!BD$6 -> 0 | AF35: =+'40-C1'!BE$6 -> 0 | AG35: =+'40-C1'!BF$6 -> 0 | AH35: =+'40-C1'!BG$6 -> 0 | AI35: =+'40-C1'!BH$6 -> 0 | AJ35: =+'40-C1'!BI$6 -> 0 | AK35: =+'40-C1'!BJ$6 -> 0 | AL35: =+'40-C1'!BK$6 -> 0 | AM35: =+'40-C1'!BL$6 -> 0 | AN35: =+'40-C1'!BM$6 -> 0 | AO35: =+'40-C1'!BN$6 -> 0 | AP35: =+'40-C1'!BO$6 -> 0 | AQ35: =+'40-C1'!BP$6 -> 0 | AR35: =+'40-C1'!BQ$6 -> 0 | AS35: =+'40-C1'!BR$6 -> 0 | AT35: =+'40-C1'!BS$6 -> 0 | AU35: =+'40-C1'!BT$6 -> 0 | AV35: =+'40-C1'!BU$6 -> 0 | AW35: =+'40-C1'!BV$6 -> 0 | AX35: =+'40-C1'!BW$6 -> 0 | AZ35: =+'40-C1'!BY$6 -> 0 | BB35: =+'40-C1'!CA$6 -> 0 | BC35: =+'40-C1'!CB$6 -> 0 | BD35: =+'40-C1'!CC$6 -> 0 | BE35: =+'40-C1'!CD$6 -> 0 | BF35: =+'40-C1'!CE$6 -> 0 | BG35: =+'40-C1'!CF$6 -> 0 | BH35: =+'40-C1'!CG$6 -> 0 | BI35: =+'40-C1'!CH$6 -> 0
A36: =+'40-E1'!Z$6 -> 40-E1 | B36: =+'40-E1'!AA$6 -> Grover Beach Branch | C36: =+'40-E1'!AB$6 -> 214 S 16th St. | D36: =+'40-E1'!AC$6 -> Grover Beach | E36: =+'40-E1'!AD$6 -> 93433 | F36: =+'40-E1'!AE$6 -> San Luis Obispo | G36: =+'40-E1'!AF$6 -> BANCRO | I36: =+'40-E1'!AH$6 -> 0 | J36: =+'40-E1'!AI$6 -> 0 | K36: =+'40-E1'!AJ$6 -> 0 | L36: =+'40-E1'!AK$6 -> 0 | M36: =+'40-E1'!AL$6 -> 0 | N36: =+'40-E1'!AM$6 -> 0 | O36: =+'40-E1'!AN$6 -> 0 | P36: =+'40-E1'!AO$6 -> 0 | Q36: =+'40-E1'!AP$6 -> 0 | R36: =+'40-E1'!AQ$6 -> 0 | S36: =+'40-E1'!AR$6 -> 0 | T36: =+'40-E1'!AS$6 -> 0 | U36: =+'40-E1'!AT$6 -> 0 | V36: =+'40-E1'!AU$6 -> 0 | W36: =+'40-E1'!AV$6 -> 0 | X36: =+'40-E1'!AW$6 -> 0 | Y36: =+'40-E1'!AX$6 -> 0 | Z36: =+'40-E1'!AY$6 -> 0 | AA36: =+'40-E1'!AZ$6 -> 0 | AB36: =+'40-E1'!BA$6 -> 0 | AC36: =+'40-E1'!BB$6 -> 0 | AD36: =+'40-E1'!BC$6 -> 0 | AE36: =+'40-E1'!BD$6 -> 0 | AF36: =+'40-E1'!BE$6 -> 0 | AG36: =+'40-E1'!BF$6 -> 0 | AH36: =+'40-E1'!BG$6 -> 0 | AI36: =+'40-E1'!BH$6 -> 0 | AJ36: =+'40-E1'!BI$6 -> 0 | AK36: =+'40-E1'!BJ$6 -> 0 | AL36: =+'40-E1'!BK$6 -> 0 | AM36: =+'40-E1'!BL$6 -> 0 | AN36: =+'40-E1'!BM$6 -> 0 | AO36: =+'40-E1'!BN$6 -> 0 | AP36: =+'40-E1'!BO$6 -> 0 | AQ36: =+'40-E1'!BP$6 -> 0 | AR36: =+'40-E1'!BQ$6 -> 0 | AS36: =+'40-E1'!BR$6 -> 0 | AT36: =+'40-E1'!BS$6 -> 0 | AU36: =+'40-E1'!BT$6 -> 0 | AV36: =+'40-E1'!BU$6 -> 0 | AW36: =+'40-E1'!BV$6 -> 0 | AX36: =+'40-E1'!BW$6 -> 0 | AZ36: =+'40-E1'!BY$6 -> 0 | BB36: =+'40-E1'!CA$6 -> 0 | BC36: =+'40-E1'!CB$6 -> 0 | BD36: =+'40-E1'!CC$6 -> 0 | BE36: =+'40-E1'!CD$6 -> 0 | BF36: =+'40-E1'!CE$6 -> 0 | BG36: =+'40-E1'!CF$6 -> 0 | BH36: =+'40-E1'!CG$6 -> 0 | BI36: =+'40-E1'!CH$6 -> 0
A37: =+'40-H1'!Z$6 -> 40-H1 | B37: =+'40-H1'!AA$6 -> 1070 Palm St. | C37: =+'40-H1'!AB$6 -> 1070 Palm Street | D37: =+'40-H1'!AC$6 -> San Luis Obispo | E37: =+'40-H1'!AD$6 -> 93408 | F37: =+'40-H1'!AE$6 -> San Luis Obispo | G37: =+'40-H1'!AF$6 -> BANCRO | I37: =+'40-H1'!AH$6 -> 0 | J37: =+'40-H1'!AI$6 -> 0 | K37: =+'40-H1'!AJ$6 -> 0 | L37: =+'40-H1'!AK$6 -> 0 | M37: =+'40-H1'!AL$6 -> 0 | N37: =+'40-H1'!AM$6 -> 0 | O37: =+'40-H1'!AN$6 -> 0 | P37: =+'40-H1'!AO$6 -> 0 | Q37: =+'40-H1'!AP$6 -> 0 | R37: =+'40-H1'!AQ$6 -> 0 | S37: =+'40-H1'!AR$6 -> 0 | T37: =+'40-H1'!AS$6 -> 0 | U37: =+'40-H1'!AT$6 -> 0 | V37: =+'40-H1'!AU$6 -> 0 | W37: =+'40-H1'!AV$6 -> 0 | X37: =+'40-H1'!AW$6 -> 0 | Y37: =+'40-H1'!AX$6 -> 0 | Z37: =+'40-H1'!AY$6 -> 0 | AA37: =+'40-H1'!AZ$6 -> 0 | AB37: =+'40-H1'!BA$6 -> 0 | AC37: =+'40-H1'!BB$6 -> 0 | AD37: =+'40-H1'!BC$6 -> 0 | AE37: =+'40-H1'!BD$6 -> 0 | AF37: =+'40-H1'!BE$6 -> 0 | AG37: =+'40-H1'!BF$6 -> 0 | AH37: =+'40-H1'!BG$6 -> 0 | AI37: =+'40-H1'!BH$6 -> 0 | AJ37: =+'40-H1'!BI$6 -> 0 | AK37: =+'40-H1'!BJ$6 -> 0 | AL37: =+'40-H1'!BK$6 -> 0 | AM37: =+'40-H1'!BL$6 -> 0 | AN37: =+'40-H1'!BM$6 -> 0 | AO37: =+'40-H1'!BN$6 -> 0 | AP37: =+'40-H1'!BO$6 -> 0 | AQ37: =+'40-H1'!BP$6 -> 0 | AR37: =+'40-H1'!BQ$6 -> 0 | AS37: =+'40-H1'!BR$6 -> 0 | AT37: =+'40-H1'!BS$6 -> 0 | AU37: =+'40-H1'!BT$6 -> 0 | AV37: =+'40-H1'!BU$6 -> 0 | AW37: =+'40-H1'!BV$6 -> 0 | AX37: =+'40-H1'!BW$6 -> 0 | AZ37: =+'40-H1'!BY$6 -> 0 | BB37: =+'40-H1'!CA$6 -> 0 | BC37: =+'40-H1'!CB$6 -> 0 | BD37: =+'40-H1'!CC$6 -> 0 | BE37: =+'40-H1'!CD$6 -> 0 | BF37: =+'40-H1'!CE$6 -> 0 | BG37: =+'40-H1'!CF$6 -> 0 | BH37: =+'40-H1'!CG$6 -> 0 | BI37: =+'40-H1'!CH$6 -> 0
A38: =+'40-J1'!Z$6 -> 40-J1 | B38: =+'40-J1'!AA$6 -> Paso Robles Courthouse | C38: =+'40-J1'!AB$6 -> 901 Park Street | D38: =+'40-J1'!AC$6 -> Paso Robles | E38: =+'40-J1'!AD$6 -> 93446 | F38: =+'40-J1'!AE$6 -> San Luis Obispo | G38: =+'40-J1'!AF$6 -> BANCRO | I38: =+'40-J1'!AH$6 -> 0 | J38: =+'40-J1'!AI$6 -> 0 | K38: =+'40-J1'!AJ$6 -> 0 | L38: =+'40-J1'!AK$6 -> 0 | M38: =+'40-J1'!AL$6 -> 0 | N38: =+'40-J1'!AM$6 -> 0 | O38: =+'40-J1'!AN$6 -> 0 | P38: =+'40-J1'!AO$6 -> 0 | Q38: =+'40-J1'!AP$6 -> 0 | R38: =+'40-J1'!AQ$6 -> 0 | S38: =+'40-J1'!AR$6 -> 0 | T38: =+'40-J1'!AS$6 -> 0 | U38: =+'40-J1'!AT$6 -> 0 | V38: =+'40-J1'!AU$6 -> 0 | W38: =+'40-J1'!AV$6 -> 0 | X38: =+'40-J1'!AW$6 -> 0 | Y38: =+'40-J1'!AX$6 -> 0 | Z38: =+'40-J1'!AY$6 -> 0 | AA38: =+'40-J1'!AZ$6 -> 0 | AB38: =+'40-J1'!BA$6 -> 0 | AC38: =+'40-J1'!BB$6 -> 0 | AD38: =+'40-J1'!BC$6 -> 0 | AE38: =+'40-J1'!BD$6 -> 0 | AF38: =+'40-J1'!BE$6 -> 0 | AG38: =+'40-J1'!BF$6 -> 0 | AH38: =+'40-J1'!BG$6 -> 0 | AI38: =+'40-J1'!BH$6 -> 0 | AJ38: =+'40-J1'!BI$6 -> 0 | AK38: =+'40-J1'!BJ$6 -> 0 | AL38: =+'40-J1'!BK$6 -> 0 | AM38: =+'40-J1'!BL$6 -> 0 | AN38: =+'40-J1'!BM$6 -> 0 | AO38: =+'40-J1'!BN$6 -> 0 | AP38: =+'40-J1'!BO$6 -> 0 | AQ38: =+'40-J1'!BP$6 -> 0 | AR38: =+'40-J1'!BQ$6 -> 0 | AS38: =+'40-J1'!BR$6 -> 0 | AT38: =+'40-J1'!BS$6 -> 0 | AU38: =+'40-J1'!BT$6 -> 0 | AV38: =+'40-J1'!BU$6 -> 0 | AW38: =+'40-J1'!BV$6 -> 0 | AX38: =+'40-J1'!BW$6 -> 0 | AZ38: =+'40-J1'!BY$6 -> 0 | BB38: =+'40-J1'!CA$6 -> 0 | BC38: =+'40-J1'!CB$6 -> 0 | BD38: =+'40-J1'!CC$6 -> 0 | BE38: =+'40-J1'!CD$6 -> 0 | BF38: =+'40-J1'!CE$6 -> 0 | BG38: =+'40-J1'!CF$6 -> 0 | BH38: =+'40-J1'!CG$6 -> 0 | BI38: =+'40-J1'!CH$6 -> 0
A39: =+'41-B1'!Z$6 -> 41-B1 | B39: =+'41-B1'!AA$6 -> Central Branch | C39: =+'41-B1'!AB$6 -> 800 North Humboldt St. | D39: =+'41-B1'!AC$6 -> San Mateo | E39: =+'41-B1'!AD$6 -> 94401 | F39: =+'41-B1'!AE$6 -> San Mateo | G39: =+'41-B1'!AF$6 -> BANCRO | I39: =+'41-B1'!AH$6 -> 0 | J39: =+'41-B1'!AI$6 -> 0 | K39: =+'41-B1'!AJ$6 -> 0 | L39: =+'41-B1'!AK$6 -> 0 | M39: =+'41-B1'!AL$6 -> 0 | N39: =+'41-B1'!AM$6 -> 0 | O39: =+'41-B1'!AN$6 -> 0 | P39: =+'41-B1'!AO$6 -> 0 | Q39: =+'41-B1'!AP$6 -> 0 | R39: =+'41-B1'!AQ$6 -> 0 | S39: =+'41-B1'!AR$6 -> 0 | T39: =+'41-B1'!AS$6 -> 0 | U39: =+'41-B1'!AT$6 -> 0 | V39: =+'41-B1'!AU$6 -> 0 | W39: =+'41-B1'!AV$6 -> 0 | X39: =+'41-B1'!AW$6 -> 0 | Y39: =+'41-B1'!AX$6 -> 0 | Z39: =+'41-B1'!AY$6 -> 0 | AA39: =+'41-B1'!AZ$6 -> 0 | AB39: =+'41-B1'!BA$6 -> 0 | AC39: =+'41-B1'!BB$6 -> 0 | AD39: =+'41-B1'!BC$6 -> 0 | AE39: =+'41-B1'!BD$6 -> 0 | AF39: =+'41-B1'!BE$6 -> 0 | AG39: =+'41-B1'!BF$6 -> 0 | AH39: =+'41-B1'!BG$6 -> 0 | AI39: =+'41-B1'!BH$6 -> 0 | AJ39: =+'41-B1'!BI$6 -> 0 | AK39: =+'41-B1'!BJ$6 -> 0 | AL39: =+'41-B1'!BK$6 -> 0 | AM39: =+'41-B1'!BL$6 -> 0 | AN39: =+'41-B1'!BM$6 -> 0 | AO39: =+'41-B1'!BN$6 -> 0 | AP39: =+'41-B1'!BO$6 -> 0 | AQ39: =+'41-B1'!BP$6 -> 0 | AR39: =+'41-B1'!BQ$6 -> 0 | AS39: =+'41-B1'!BR$6 -> 0 | AT39: =+'41-B1'!BS$6 -> 0 | AU39: =+'41-B1'!BT$6 -> 0 | AV39: =+'41-B1'!BU$6 -> 0 | AW39: =+'41-B1'!BV$6 -> 0 | AX39: =+'41-B1'!BW$6 -> 0 | AZ39: =+'41-B1'!BY$6 -> 0 | BB39: =+'41-B1'!CA$6 -> 0 | BC39: =+'41-B1'!CB$6 -> 0 | BD39: =+'41-B1'!CC$6 -> 0 | BE39: =+'41-B1'!CD$6 -> 0 | BF39: =+'41-B1'!CE$6 -> 0 | BG39: =+'41-B1'!CF$6 -> 0 | BH39: =+'41-B1'!CG$6 -> 0 | BI39: =+'41-B1'!CH$6 -> 0
A40: =+'41-C1'!Z$6 -> 41-C1 | B40: =+'41-C1'!AA$6 -> Northern Branch Courthouse | C40: =+'41-C1'!AB$6 -> 1050 Mission Rd. | D40: =+'41-C1'!AC$6 -> South San Francisco | E40: =+'41-C1'!AD$6 -> 94080 | F40: =+'41-C1'!AE$6 -> San Mateo | G40: =+'41-C1'!AF$6 -> BANCRO | I40: =+'41-C1'!AH$6 -> 0 | J40: =+'41-C1'!AI$6 -> 0 | K40: =+'41-C1'!AJ$6 -> 0 | L40: =+'41-C1'!AK$6 -> 0 | M40: =+'41-C1'!AL$6 -> 0 | N40: =+'41-C1'!AM$6 -> 0 | O40: =+'41-C1'!AN$6 -> 0 | P40: =+'41-C1'!AO$6 -> 0 | Q40: =+'41-C1'!AP$6 -> 0 | R40: =+'41-C1'!AQ$6 -> 0 | S40: =+'41-C1'!AR$6 -> 0 | T40: =+'41-C1'!AS$6 -> 0 | U40: =+'41-C1'!AT$6 -> 0 | V40: =+'41-C1'!AU$6 -> 0 | W40: =+'41-C1'!AV$6 -> 0 | X40: =+'41-C1'!AW$6 -> 0 | Y40: =+'41-C1'!AX$6 -> 0 | Z40: =+'41-C1'!AY$6 -> 0 | AA40: =+'41-C1'!AZ$6 -> 0 | AB40: =+'41-C1'!BA$6 -> 0 | AC40: =+'41-C1'!BB$6 -> 0 | AD40: =+'41-C1'!BC$6 -> 0 | AE40: =+'41-C1'!BD$6 -> 0 | AF40: =+'41-C1'!BE$6 -> 0 | AG40: =+'41-C1'!BF$6 -> 0 | AH40: =+'41-C1'!BG$6 -> 0 | AI40: =+'41-C1'!BH$6 -> 0 | AJ40: =+'41-C1'!BI$6 -> 0 | AK40: =+'41-C1'!BJ$6 -> 0 | AL40: =+'41-C1'!BK$6 -> 0 | AM40: =+'41-C1'!BL$6 -> 0 | AN40: =+'41-C1'!BM$6 -> 0 | AO40: =+'41-C1'!BN$6 -> 0 | AP40: =+'41-C1'!BO$6 -> 0 | AQ40: =+'41-C1'!BP$6 -> 0 | AR40: =+'41-C1'!BQ$6 -> 0 | AS40: =+'41-C1'!BR$6 -> 0 | AT40: =+'41-C1'!BS$6 -> 0 | AU40: =+'41-C1'!BT$6 -> 0 | AV40: =+'41-C1'!BU$6 -> 0 | AW40: =+'41-C1'!BV$6 -> 0 | AX40: =+'41-C1'!BW$6 -> 0 | AZ40: =+'41-C1'!BY$6 -> 0 | BB40: =+'41-C1'!CA$6 -> 0 | BC40: =+'41-C1'!CB$6 -> 0 | BD40: =+'41-C1'!CC$6 -> 0 | BE40: =+'41-C1'!CD$6 -> 0 | BF40: =+'41-C1'!CE$6 -> 0 | BG40: =+'41-C1'!CF$6 -> 0 | BH40: =+'41-C1'!CG$6 -> 0 | BI40: =+'41-C1'!CH$6 -> 0
A41: =+'43-A1'!Z$6 -> 43-A1 | B41: =+'43-A1'!AA$6 -> Hall of Justice (East) | C41: =+'43-A1'!AB$6 -> 190 W. Hedding | D41: =+'43-A1'!AC$6 -> San Jose | E41: =+'43-A1'!AD$6 -> 95110 | F41: =+'43-A1'!AE$6 -> Santa Clara | G41: =+'43-A1'!AF$6 -> BANCRO | I41: =+'43-A1'!AH$6 -> 0 | J41: =+'43-A1'!AI$6 -> 0 | K41: =+'43-A1'!AJ$6 -> 0 | L41: =+'43-A1'!AK$6 -> 0 | M41: =+'43-A1'!AL$6 -> 0 | N41: =+'43-A1'!AM$6 -> 0 | O41: =+'43-A1'!AN$6 -> 0 | P41: =+'43-A1'!AO$6 -> 0 | Q41: =+'43-A1'!AP$6 -> 0 | R41: =+'43-A1'!AQ$6 -> 0 | S41: =+'43-A1'!AR$6 -> 0 | T41: =+'43-A1'!AS$6 -> 0 | U41: =+'43-A1'!AT$6 -> 0 | V41: =+'43-A1'!AU$6 -> 0 | W41: =+'43-A1'!AV$6 -> 0 | X41: =+'43-A1'!AW$6 -> 0 | Y41: =+'43-A1'!AX$6 -> 0 | Z41: =+'43-A1'!AY$6 -> 0 | AA41: =+'43-A1'!AZ$6 -> 0 | AB41: =+'43-A1'!BA$6 -> 0 | AC41: =+'43-A1'!BB$6 -> 0 | AD41: =+'43-A1'!BC$6 -> 0 | AE41: =+'43-A1'!BD$6 -> 0 | AF41: =+'43-A1'!BE$6 -> 0 | AG41: =+'43-A1'!BF$6 -> 0 | AH41: =+'43-A1'!BG$6 -> 0 | AI41: =+'43-A1'!BH$6 -> 0 | AJ41: =+'43-A1'!BI$6 -> 0 | AK41: =+'43-A1'!BJ$6 -> 0 | AL41: =+'43-A1'!BK$6 -> 0 | AM41: =+'43-A1'!BL$6 -> 0 | AN41: =+'43-A1'!BM$6 -> 0 | AO41: =+'43-A1'!BN$6 -> 0 | AP41: =+'43-A1'!BO$6 -> 0 | AQ41: =+'43-A1'!BP$6 -> 0 | AR41: =+'43-A1'!BQ$6 -> 0 | AS41: =+'43-A1'!BR$6 -> 0 | AT41: =+'43-A1'!BS$6 -> 0 | AU41: =+'43-A1'!BT$6 -> 0 | AV41: =+'43-A1'!BU$6 -> 0 | AW41: =+'43-A1'!BV$6 -> 0 | AX41: =+'43-A1'!BW$6 -> 0 | AZ41: =+'43-A1'!BY$6 -> 0 | BB41: =+'43-A1'!CA$6 -> 0 | BC41: =+'43-A1'!CB$6 -> 0 | BD41: =+'43-A1'!CC$6 -> 0 | BE41: =+'43-A1'!CD$6 -> 0 | BF41: =+'43-A1'!CE$6 -> 0 | BG41: =+'43-A1'!CF$6 -> 0 | BH41: =+'43-A1'!CG$6 -> 0 | BI41: =+'43-A1'!CH$6 -> 0
A42: =+'43-A2'!Z$6 -> 43-A2 | B42: =+'43-A2'!AA$6 -> Hall of Justice (West) | C42: =+'43-A2'!AB$6 -> 200 W. Hedding | D42: =+'43-A2'!AC$6 -> San Jose | E42: =+'43-A2'!AD$6 -> 95110 | F42: =+'43-A2'!AE$6 -> Santa Clara | G42: =+'43-A2'!AF$6 -> BANCRO | I42: =+'43-A2'!AH$6 -> 0 | J42: =+'43-A2'!AI$6 -> 0 | K42: =+'43-A2'!AJ$6 -> 0 | L42: =+'43-A2'!AK$6 -> 0 | M42: =+'43-A2'!AL$6 -> 0 | N42: =+'43-A2'!AM$6 -> 0 | O42: =+'43-A2'!AN$6 -> 0 | P42: =+'43-A2'!AO$6 -> 0 | Q42: =+'43-A2'!AP$6 -> 0 | R42: =+'43-A2'!AQ$6 -> 0 | S42: =+'43-A2'!AR$6 -> 0 | T42: =+'43-A2'!AS$6 -> 0 | U42: =+'43-A2'!AT$6 -> 0 | V42: =+'43-A2'!AU$6 -> 0 | W42: =+'43-A2'!AV$6 -> 0 | X42: =+'43-A2'!AW$6 -> 0 | Y42: =+'43-A2'!AX$6 -> 0 | Z42: =+'43-A2'!AY$6 -> 0 | AA42: =+'43-A2'!AZ$6 -> 0 | AB42: =+'43-A2'!BA$6 -> 0 | AC42: =+'43-A2'!BB$6 -> 0 | AD42: =+'43-A2'!BC$6 -> 0 | AE42: =+'43-A2'!BD$6 -> 0 | AF42: =+'43-A2'!BE$6 -> 0 | AG42: =+'43-A2'!BF$6 -> 0 | AH42: =+'43-A2'!BG$6 -> 0 | AI42: =+'43-A2'!BH$6 -> 0 | AJ42: =+'43-A2'!BI$6 -> 0 | AK42: =+'43-A2'!BJ$6 -> 0 | AL42: =+'43-A2'!BK$6 -> 0 | AM42: =+'43-A2'!BL$6 -> 0 | AN42: =+'43-A2'!BM$6 -> 0 | AO42: =+'43-A2'!BN$6 -> 0 | AP42: =+'43-A2'!BO$6 -> 0 | AQ42: =+'43-A2'!BP$6 -> 0 | AR42: =+'43-A2'!BQ$6 -> 0 | AS42: =+'43-A2'!BR$6 -> 0 | AT42: =+'43-A2'!BS$6 -> 0 | AU42: =+'43-A2'!BT$6 -> 0 | AV42: =+'43-A2'!BU$6 -> 0 | AW42: =+'43-A2'!BV$6 -> 0 | AX42: =+'43-A2'!BW$6 -> 0 | AZ42: =+'43-A2'!BY$6 -> 0 | BB42: =+'43-A2'!CA$6 -> 0 | BC42: =+'43-A2'!CB$6 -> 0 | BD42: =+'43-A2'!CC$6 -> 0 | BE42: =+'43-A2'!CD$6 -> 0 | BF42: =+'43-A2'!CE$6 -> 0 | BG42: =+'43-A2'!CF$6 -> 0 | BH42: =+'43-A2'!CG$6 -> 0 | BI42: =+'43-A2'!CH$6 -> 0
A43: =+'43-B1'!Z$6 -> 43-B1 | B43: =+'43-B1'!AA$6 -> Downtown Superior Court | C43: =+'43-B1'!AB$6 -> 191 N. First St. | D43: =+'43-B1'!AC$6 -> San Jose | E43: =+'43-B1'!AD$6 -> 95113 | F43: =+'43-B1'!AE$6 -> Santa Clara | G43: =+'43-B1'!AF$6 -> BANCRO | I43: =+'43-B1'!AH$6 -> 0 | J43: =+'43-B1'!AI$6 -> 0 | K43: =+'43-B1'!AJ$6 -> 0 | L43: =+'43-B1'!AK$6 -> 0 | M43: =+'43-B1'!AL$6 -> 0 | N43: =+'43-B1'!AM$6 -> 0 | O43: =+'43-B1'!AN$6 -> 0 | P43: =+'43-B1'!AO$6 -> 0 | Q43: =+'43-B1'!AP$6 -> 0 | R43: =+'43-B1'!AQ$6 -> 0 | S43: =+'43-B1'!AR$6 -> 0 | T43: =+'43-B1'!AS$6 -> 0 | U43: =+'43-B1'!AT$6 -> 0 | V43: =+'43-B1'!AU$6 -> 0 | W43: =+'43-B1'!AV$6 -> 0 | X43: =+'43-B1'!AW$6 -> 0 | Y43: =+'43-B1'!AX$6 -> 0 | Z43: =+'43-B1'!AY$6 -> 0 | AA43: =+'43-B1'!AZ$6 -> 0 | AB43: =+'43-B1'!BA$6 -> 0 | AC43: =+'43-B1'!BB$6 -> 0 | AD43: =+'43-B1'!BC$6 -> 0 | AE43: =+'43-B1'!BD$6 -> 0 | AF43: =+'43-B1'!BE$6 -> 0 | AG43: =+'43-B1'!BF$6 -> 0 | AH43: =+'43-B1'!BG$6 -> 0 | AI43: =+'43-B1'!BH$6 -> 0 | AJ43: =+'43-B1'!BI$6 -> 0 | AK43: =+'43-B1'!BJ$6 -> 0 | AL43: =+'43-B1'!BK$6 -> 0 | AM43: =+'43-B1'!BL$6 -> 0 | AN43: =+'43-B1'!BM$6 -> 0 | AO43: =+'43-B1'!BN$6 -> 0 | AP43: =+'43-B1'!BO$6 -> 0 | AQ43: =+'43-B1'!BP$6 -> 0 | AR43: =+'43-B1'!BQ$6 -> 0 | AS43: =+'43-B1'!BR$6 -> 0 | AT43: =+'43-B1'!BS$6 -> 0 | AU43: =+'43-B1'!BT$6 -> 0 | AV43: =+'43-B1'!BU$6 -> 0 | AW43: =+'43-B1'!BV$6 -> 0 | AX43: =+'43-B1'!BW$6 -> 0 | AZ43: =+'43-B1'!BY$6 -> 0 | BB43: =+'43-B1'!CA$6 -> 0 | BC43: =+'43-B1'!CB$6 -> 0 | BD43: =+'43-B1'!CC$6 -> 0 | BE43: =+'43-B1'!CD$6 -> 0 | BF43: =+'43-B1'!CE$6 -> 0 | BG43: =+'43-B1'!CF$6 -> 0 | BH43: =+'43-B1'!CG$6 -> 0 | BI43: =+'43-B1'!CH$6 -> 0
A44: =+'43-B2'!Z$6 -> 43-B2 | B44: =+'43-B2'!AA$6 -> Historic Courthouse | C44: =+'43-B2'!AB$6 -> 161 N. First St. | D44: =+'43-B2'!AC$6 -> San Jose | E44: =+'43-B2'!AD$6 -> 95113 | F44: =+'43-B2'!AE$6 -> Santa Clara | G44: =+'43-B2'!AF$6 -> BANCRO | I44: =+'43-B2'!AH$6 -> 0 | J44: =+'43-B2'!AI$6 -> 0 | K44: =+'43-B2'!AJ$6 -> 0 | L44: =+'43-B2'!AK$6 -> 0 | M44: =+'43-B2'!AL$6 -> 0 | N44: =+'43-B2'!AM$6 -> 0 | O44: =+'43-B2'!AN$6 -> 0 | P44: =+'43-B2'!AO$6 -> 0 | Q44: =+'43-B2'!AP$6 -> 0 | R44: =+'43-B2'!AQ$6 -> 0 | S44: =+'43-B2'!AR$6 -> 0 | T44: =+'43-B2'!AS$6 -> 0 | U44: =+'43-B2'!AT$6 -> 0 | V44: =+'43-B2'!AU$6 -> 0 | W44: =+'43-B2'!AV$6 -> 0 | X44: =+'43-B2'!AW$6 -> 0 | Y44: =+'43-B2'!AX$6 -> 0 | Z44: =+'43-B2'!AY$6 -> 0 | AA44: =+'43-B2'!AZ$6 -> 0 | AB44: =+'43-B2'!BA$6 -> 0 | AC44: =+'43-B2'!BB$6 -> 0 | AD44: =+'43-B2'!BC$6 -> 0 | AE44: =+'43-B2'!BD$6 -> 0 | AF44: =+'43-B2'!BE$6 -> 0 | AG44: =+'43-B2'!BF$6 -> 0 | AH44: =+'43-B2'!BG$6 -> 0 | AI44: =+'43-B2'!BH$6 -> 0 | AJ44: =+'43-B2'!BI$6 -> 0 | AK44: =+'43-B2'!BJ$6 -> 0 | AL44: =+'43-B2'!BK$6 -> 0 | AM44: =+'43-B2'!BL$6 -> 0 | AN44: =+'43-B2'!BM$6 -> 0 | AO44: =+'43-B2'!BN$6 -> 0 | AP44: =+'43-B2'!BO$6 -> 0 | AQ44: =+'43-B2'!BP$6 -> 0 | AR44: =+'43-B2'!BQ$6 -> 0 | AS44: =+'43-B2'!BR$6 -> 0 | AT44: =+'43-B2'!BS$6 -> 0 | AU44: =+'43-B2'!BT$6 -> 0 | AV44: =+'43-B2'!BU$6 -> 0 | AW44: =+'43-B2'!BV$6 -> 0 | AX44: =+'43-B2'!BW$6 -> 0 | AZ44: =+'43-B2'!BY$6 -> 0 | BB44: =+'43-B2'!CA$6 -> 0 | BC44: =+'43-B2'!CB$6 -> 0 | BD44: =+'43-B2'!CC$6 -> 0 | BE44: =+'43-B2'!CD$6 -> 0 | BF44: =+'43-B2'!CE$6 -> 0 | BG44: =+'43-B2'!CF$6 -> 0 | BH44: =+'43-B2'!CG$6 -> 0 | BI44: =+'43-B2'!CH$6 -> 0
A45: =+'43-B5'!Z$6 -> 43-B5 | B45: =+'43-B5'!AA$6 -> New Santa Clara Family Justice Center | C45: =+'43-B5'!AB$6 -> 201 N. First Street | D45: =+'43-B5'!AC$6 -> San Jose | E45: =+'43-B5'!AD$6 -> 95113 | F45: =+'43-B5'!AE$6 -> Santa Clara | G45: =+'43-B5'!AF$6 -> BANCRO | I45: =+'43-B5'!AH$6 -> 0 | J45: =+'43-B5'!AI$6 -> 0 | K45: =+'43-B5'!AJ$6 -> 0 | L45: =+'43-B5'!AK$6 -> 0 | M45: =+'43-B5'!AL$6 -> 0 | N45: =+'43-B5'!AM$6 -> 0 | O45: =+'43-B5'!AN$6 -> 0 | P45: =+'43-B5'!AO$6 -> 0 | Q45: =+'43-B5'!AP$6 -> 0 | R45: =+'43-B5'!AQ$6 -> 0 | S45: =+'43-B5'!AR$6 -> 0 | T45: =+'43-B5'!AS$6 -> 0 | U45: =+'43-B5'!AT$6 -> 0 | V45: =+'43-B5'!AU$6 -> 0 | W45: =+'43-B5'!AV$6 -> 0 | X45: =+'43-B5'!AW$6 -> 0 | Y45: =+'43-B5'!AX$6 -> 0 | Z45: =+'43-B5'!AY$6 -> 0 | AA45: =+'43-B5'!AZ$6 -> 0 | AB45: =+'43-B5'!BA$6 -> 0 | AC45: =+'43-B5'!BB$6 -> 0 | AD45: =+'43-B5'!BC$6 -> 0 | AE45: =+'43-B5'!BD$6 -> 0 | AF45: =+'43-B5'!BE$6 -> 0 | AG45: =+'43-B5'!BF$6 -> 0 | AH45: =+'43-B5'!BG$6 -> 0 | AI45: =+'43-B5'!BH$6 -> 0 | AJ45: =+'43-B5'!BI$6 -> 0 | AK45: =+'43-B5'!BJ$6 -> 0 | AL45: =+'43-B5'!BK$6 -> 0 | AM45: =+'43-B5'!BL$6 -> 0 | AN45: =+'43-B5'!BM$6 -> 0 | AO45: =+'43-B5'!BN$6 -> 0 | AP45: =+'43-B5'!BO$6 -> 0 | AQ45: =+'43-B5'!BP$6 -> 0 | AR45: =+'43-B5'!BQ$6 -> 0 | AS45: =+'43-B5'!BR$6 -> 0 | AT45: =+'43-B5'!BS$6 -> 0 | AU45: =+'43-B5'!BT$6 -> 0 | AV45: =+'43-B5'!BU$6 -> 0 | AW45: =+'43-B5'!BV$6 -> 0 | AX45: =+'43-B5'!BW$6 -> 0 | AZ45: =+'43-B5'!BY$6 -> 0 | BB45: =+'43-B5'!CA$6 -> 0 | BC45: =+'43-B5'!CB$6 -> 0 | BD45: =+'43-B5'!CC$6 -> 0 | BE45: =+'43-B5'!CD$6 -> 0 | BF45: =+'43-B5'!CE$6 -> 0 | BG45: =+'43-B5'!CF$6 -> 0 | BH45: =+'43-B5'!CG$6 -> 0 | BI45: =+'43-B5'!CH$6 -> 0
A46: =+'43-D1'!Z$6 -> 43-D1 | B46: =+'43-D1'!AA$6 -> Palo Alto Courthouse | C46: =+'43-D1'!AB$6 -> 270 Grant St. | D46: =+'43-D1'!AC$6 -> Palo Alto | E46: =+'43-D1'!AD$6 -> 94306 | F46: =+'43-D1'!AE$6 -> Santa Clara | G46: =+'43-D1'!AF$6 -> BANCRO | I46: =+'43-D1'!AH$6 -> 0 | J46: =+'43-D1'!AI$6 -> 0 | K46: =+'43-D1'!AJ$6 -> 0 | L46: =+'43-D1'!AK$6 -> 0 | M46: =+'43-D1'!AL$6 -> 0 | N46: =+'43-D1'!AM$6 -> 0 | O46: =+'43-D1'!AN$6 -> 0 | P46: =+'43-D1'!AO$6 -> 0 | Q46: =+'43-D1'!AP$6 -> 0 | R46: =+'43-D1'!AQ$6 -> 0 | S46: =+'43-D1'!AR$6 -> 0 | T46: =+'43-D1'!AS$6 -> 0 | U46: =+'43-D1'!AT$6 -> 0 | V46: =+'43-D1'!AU$6 -> 0 | W46: =+'43-D1'!AV$6 -> 0 | X46: =+'43-D1'!AW$6 -> 0 | Y46: =+'43-D1'!AX$6 -> 0 | Z46: =+'43-D1'!AY$6 -> 0 | AA46: =+'43-D1'!AZ$6 -> 0 | AB46: =+'43-D1'!BA$6 -> 0 | AC46: =+'43-D1'!BB$6 -> 0 | AD46: =+'43-D1'!BC$6 -> 0 | AE46: =+'43-D1'!BD$6 -> 0 | AF46: =+'43-D1'!BE$6 -> 0 | AG46: =+'43-D1'!BF$6 -> 0 | AH46: =+'43-D1'!BG$6 -> 0 | AI46: =+'43-D1'!BH$6 -> 0 | AJ46: =+'43-D1'!BI$6 -> 0 | AK46: =+'43-D1'!BJ$6 -> 0 | AL46: =+'43-D1'!BK$6 -> 0 | AM46: =+'43-D1'!BL$6 -> 0 | AN46: =+'43-D1'!BM$6 -> 0 | AO46: =+'43-D1'!BN$6 -> 0 | AP46: =+'43-D1'!BO$6 -> 0 | AQ46: =+'43-D1'!BP$6 -> 0 | AR46: =+'43-D1'!BQ$6 -> 0 | AS46: =+'43-D1'!BR$6 -> 0 | AT46: =+'43-D1'!BS$6 -> 0 | AU46: =+'43-D1'!BT$6 -> 0 | AV46: =+'43-D1'!BU$6 -> 0 | AW46: =+'43-D1'!BV$6 -> 0 | AX46: =+'43-D1'!BW$6 -> 0 | AZ46: =+'43-D1'!BY$6 -> 0 | BB46: =+'43-D1'!CA$6 -> 0 | BC46: =+'43-D1'!CB$6 -> 0 | BD46: =+'43-D1'!CC$6 -> 0 | BE46: =+'43-D1'!CD$6 -> 0 | BF46: =+'43-D1'!CE$6 -> 0 | BG46: =+'43-D1'!CF$6 -> 0 | BH46: =+'43-D1'!CG$6 -> 0 | BI46: =+'43-D1'!CH$6 -> 0
A47: =+'43-F1'!Z$6 -> 43-F1 | B47: =+'43-F1'!AA$6 -> Sunnyvale Courthouse | C47: =+'43-F1'!AB$6 -> 605 W. El Camino Real | D47: =+'43-F1'!AC$6 -> Sunnyvale | E47: =+'43-F1'!AD$6 -> 94087 | F47: =+'43-F1'!AE$6 -> Santa Clara | G47: =+'43-F1'!AF$6 -> BANCRO | I47: =+'43-F1'!AH$6 -> 0 | J47: =+'43-F1'!AI$6 -> 0 | K47: =+'43-F1'!AJ$6 -> 0 | L47: =+'43-F1'!AK$6 -> 0 | M47: =+'43-F1'!AL$6 -> 0 | N47: =+'43-F1'!AM$6 -> 0 | O47: =+'43-F1'!AN$6 -> 0 | P47: =+'43-F1'!AO$6 -> 0 | Q47: =+'43-F1'!AP$6 -> 0 | R47: =+'43-F1'!AQ$6 -> 0 | S47: =+'43-F1'!AR$6 -> 0 | T47: =+'43-F1'!AS$6 -> 0 | U47: =+'43-F1'!AT$6 -> 0 | V47: =+'43-F1'!AU$6 -> 0 | W47: =+'43-F1'!AV$6 -> 0 | X47: =+'43-F1'!AW$6 -> 0 | Y47: =+'43-F1'!AX$6 -> 0 | Z47: =+'43-F1'!AY$6 -> 0 | AA47: =+'43-F1'!AZ$6 -> 0 | AB47: =+'43-F1'!BA$6 -> 0 | AC47: =+'43-F1'!BB$6 -> 0 | AD47: =+'43-F1'!BC$6 -> 0 | AE47: =+'43-F1'!BD$6 -> 0 | AF47: =+'43-F1'!BE$6 -> 0 | AG47: =+'43-F1'!BF$6 -> 0 | AH47: =+'43-F1'!BG$6 -> 0 | AI47: =+'43-F1'!BH$6 -> 0 | AJ47: =+'43-F1'!BI$6 -> 0 | AK47: =+'43-F1'!BJ$6 -> 0 | AL47: =+'43-F1'!BK$6 -> 0 | AM47: =+'43-F1'!BL$6 -> 0 | AN47: =+'43-F1'!BM$6 -> 0 | AO47: =+'43-F1'!BN$6 -> 0 | AP47: =+'43-F1'!BO$6 -> 0 | AQ47: =+'43-F1'!BP$6 -> 0 | AR47: =+'43-F1'!BQ$6 -> 0 | AS47: =+'43-F1'!BR$6 -> 0 | AT47: =+'43-F1'!BS$6 -> 0 | AU47: =+'43-F1'!BT$6 -> 0 | AV47: =+'43-F1'!BU$6 -> 0 | AW47: =+'43-F1'!BV$6 -> 0 | AX47: =+'43-F1'!BW$6 -> 0 | AZ47: =+'43-F1'!BY$6 -> 0 | BB47: =+'43-F1'!CA$6 -> 0 | BC47: =+'43-F1'!CB$6 -> 0 | BD47: =+'43-F1'!CC$6 -> 0 | BE47: =+'43-F1'!CD$6 -> 0 | BF47: =+'43-F1'!CE$6 -> 0 | BG47: =+'43-F1'!CF$6 -> 0 | BH47: =+'43-F1'!CG$6 -> 0 | BI47: =+'43-F1'!CH$6 -> 0
A48: =+'43-G1'!Z$6 -> 43-G1 | B48: =+'43-G1'!AA$6 -> Santa Clara Courthouse | C48: =+'43-G1'!AB$6 -> 1095 Homestead Rd. | D48: =+'43-G1'!AC$6 -> Santa Clara | E48: =+'43-G1'!AD$6 -> 95050 | F48: =+'43-G1'!AE$6 -> Santa Clara | G48: =+'43-G1'!AF$6 -> BANCRO | I48: =+'43-G1'!AH$6 -> 0 | J48: =+'43-G1'!AI$6 -> 0 | K48: =+'43-G1'!AJ$6 -> 0 | L48: =+'43-G1'!AK$6 -> 0 | M48: =+'43-G1'!AL$6 -> 0 | N48: =+'43-G1'!AM$6 -> 0 | O48: =+'43-G1'!AN$6 -> 0 | P48: =+'43-G1'!AO$6 -> 0 | Q48: =+'43-G1'!AP$6 -> 0 | R48: =+'43-G1'!AQ$6 -> 0 | S48: =+'43-G1'!AR$6 -> 0 | T48: =+'43-G1'!AS$6 -> 0 | U48: =+'43-G1'!AT$6 -> 0 | V48: =+'43-G1'!AU$6 -> 0 | W48: =+'43-G1'!AV$6 -> 0 | X48: =+'43-G1'!AW$6 -> 0 | Y48: =+'43-G1'!AX$6 -> 0 | Z48: =+'43-G1'!AY$6 -> 0 | AA48: =+'43-G1'!AZ$6 -> 0 | AB48: =+'43-G1'!BA$6 -> 0 | AC48: =+'43-G1'!BB$6 -> 0 | AD48: =+'43-G1'!BC$6 -> 0 | AE48: =+'43-G1'!BD$6 -> 0 | AF48: =+'43-G1'!BE$6 -> 0 | AG48: =+'43-G1'!BF$6 -> 0 | AH48: =+'43-G1'!BG$6 -> 0 | AI48: =+'43-G1'!BH$6 -> 0 | AJ48: =+'43-G1'!BI$6 -> 0 | AK48: =+'43-G1'!BJ$6 -> 0 | AL48: =+'43-G1'!BK$6 -> 0 | AM48: =+'43-G1'!BL$6 -> 0 | AN48: =+'43-G1'!BM$6 -> 0 | AO48: =+'43-G1'!BN$6 -> 0 | AP48: =+'43-G1'!BO$6 -> 0 | AQ48: =+'43-G1'!BP$6 -> 0 | AR48: =+'43-G1'!BQ$6 -> 0 | AS48: =+'43-G1'!BR$6 -> 0 | AT48: =+'43-G1'!BS$6 -> 0 | AU48: =+'43-G1'!BT$6 -> 0 | AV48: =+'43-G1'!BU$6 -> 0 | AW48: =+'43-G1'!BV$6 -> 0 | AX48: =+'43-G1'!BW$6 -> 0 | AZ48: =+'43-G1'!BY$6 -> 0 | BB48: =+'43-G1'!CA$6 -> 0 | BC48: =+'43-G1'!CB$6 -> 0 | BD48: =+'43-G1'!CC$6 -> 0 | BE48: =+'43-G1'!CD$6 -> 0 | BF48: =+'43-G1'!CE$6 -> 0 | BG48: =+'43-G1'!CF$6 -> 0 | BH48: =+'43-G1'!CG$6 -> 0 | BI48: =+'43-G1'!CH$6 -> 0
A49: =+'43-N1'!Z$6 -> 43-N1 | B49: =+'43-N1'!AA$6 -> Morgan Hill Courthouse | C49: =+'43-N1'!AB$6 -> 301 Diana Avenue | D49: =+'43-N1'!AC$6 -> Morgan Hill | E49: =+'43-N1'!AD$6 -> 95037 | F49: =+'43-N1'!AE$6 -> Santa Clara | G49: =+'43-N1'!AF$6 -> BANCRO | I49: =+'43-N1'!AH$6 -> 0 | J49: =+'43-N1'!AI$6 -> 0 | K49: =+'43-N1'!AJ$6 -> 0 | L49: =+'43-N1'!AK$6 -> 0 | M49: =+'43-N1'!AL$6 -> 0 | N49: =+'43-N1'!AM$6 -> 0 | O49: =+'43-N1'!AN$6 -> 0 | P49: =+'43-N1'!AO$6 -> 0 | Q49: =+'43-N1'!AP$6 -> 0 | R49: =+'43-N1'!AQ$6 -> 0 | S49: =+'43-N1'!AR$6 -> 0 | T49: =+'43-N1'!AS$6 -> 0 | U49: =+'43-N1'!AT$6 -> 0 | V49: =+'43-N1'!AU$6 -> 0 | W49: =+'43-N1'!AV$6 -> 0 | X49: =+'43-N1'!AW$6 -> 0 | Y49: =+'43-N1'!AX$6 -> 0 | Z49: =+'43-N1'!AY$6 -> 0 | AA49: =+'43-N1'!AZ$6 -> 0 | AB49: =+'43-N1'!BA$6 -> 0 | AC49: =+'43-N1'!BB$6 -> 0 | AD49: =+'43-N1'!BC$6 -> 0 | AE49: =+'43-N1'!BD$6 -> 0 | AF49: =+'43-N1'!BE$6 -> 0 | AG49: =+'43-N1'!BF$6 -> 0 | AH49: =+'43-N1'!BG$6 -> 0 | AI49: =+'43-N1'!BH$6 -> 0 | AJ49: =+'43-N1'!BI$6 -> 0 | AK49: =+'43-N1'!BJ$6 -> 0 | AL49: =+'43-N1'!BK$6 -> 0 | AM49: =+'43-N1'!BL$6 -> 0 | AN49: =+'43-N1'!BM$6 -> 0 | AO49: =+'43-N1'!BN$6 -> 0 | AP49: =+'43-N1'!BO$6 -> 0 | AQ49: =+'43-N1'!BP$6 -> 0 | AR49: =+'43-N1'!BQ$6 -> 0 | AS49: =+'43-N1'!BR$6 -> 0 | AT49: =+'43-N1'!BS$6 -> 0 | AU49: =+'43-N1'!BT$6 -> 0 | AV49: =+'43-N1'!BU$6 -> 0 | AW49: =+'43-N1'!BV$6 -> 0 | AX49: =+'43-N1'!BW$6 -> 0 | AZ49: =+'43-N1'!BY$6 -> 0 | BB49: =+'43-N1'!CA$6 -> 0 | BC49: =+'43-N1'!CB$6 -> 0 | BD49: =+'43-N1'!CC$6 -> 0 | BE49: =+'43-N1'!CD$6 -> 0 | BF49: =+'43-N1'!CE$6 -> 0 | BG49: =+'43-N1'!CF$6 -> 0 | BH49: =+'43-N1'!CG$6 -> 0 | BI49: =+'43-N1'!CH$6 -> 0
A50: =+'44-A1'!Z$6 -> 44-A1 | B50: =+'44-A1'!AA$6 -> Main Courthouse | C50: =+'44-A1'!AB$6 -> 701 Ocean St. | D50: =+'44-A1'!AC$6 -> Santa Cruz | E50: =+'44-A1'!AD$6 -> 95060 | F50: =+'44-A1'!AE$6 -> Santa Cruz | G50: =+'44-A1'!AF$6 -> BANCRO | I50: =+'44-A1'!AH$6 -> 0 | J50: =+'44-A1'!AI$6 -> 0 | K50: =+'44-A1'!AJ$6 -> 0 | L50: =+'44-A1'!AK$6 -> 0 | M50: =+'44-A1'!AL$6 -> 0 | N50: =+'44-A1'!AM$6 -> 0 | O50: =+'44-A1'!AN$6 -> 0 | P50: =+'44-A1'!AO$6 -> 0 | Q50: =+'44-A1'!AP$6 -> 0 | R50: =+'44-A1'!AQ$6 -> 0 | S50: =+'44-A1'!AR$6 -> 0 | T50: =+'44-A1'!AS$6 -> 0 | U50: =+'44-A1'!AT$6 -> 0 | V50: =+'44-A1'!AU$6 -> 0 | W50: =+'44-A1'!AV$6 -> 0 | X50: =+'44-A1'!AW$6 -> 0 | Y50: =+'44-A1'!AX$6 -> 0 | Z50: =+'44-A1'!AY$6 -> 0 | AA50: =+'44-A1'!AZ$6 -> 0 | AB50: =+'44-A1'!BA$6 -> 0 | AC50: =+'44-A1'!BB$6 -> 0 | AD50: =+'44-A1'!BC$6 -> 0 | AE50: =+'44-A1'!BD$6 -> 0 | AF50: =+'44-A1'!BE$6 -> 0 | AG50: =+'44-A1'!BF$6 -> 0 | AH50: =+'44-A1'!BG$6 -> 0 | AI50: =+'44-A1'!BH$6 -> 0 | AJ50: =+'44-A1'!BI$6 -> 0 | AK50: =+'44-A1'!BJ$6 -> 0 | AL50: =+'44-A1'!BK$6 -> 0 | AM50: =+'44-A1'!BL$6 -> 0 | AN50: =+'44-A1'!BM$6 -> 0 | AO50: =+'44-A1'!BN$6 -> 0 | AP50: =+'44-A1'!BO$6 -> 0 | AQ50: =+'44-A1'!BP$6 -> 0 | AR50: =+'44-A1'!BQ$6 -> 0 | AS50: =+'44-A1'!BR$6 -> 0 | AT50: =+'44-A1'!BS$6 -> 0 | AU50: =+'44-A1'!BT$6 -> 0 | AV50: =+'44-A1'!BU$6 -> 0 | AW50: =+'44-A1'!BV$6 -> 0 | AX50: =+'44-A1'!BW$6 -> 0 | AZ50: =+'44-A1'!BY$6 -> 0 | BB50: =+'44-A1'!CA$6 -> 0 | BC50: =+'44-A1'!CB$6 -> 0 | BD50: =+'44-A1'!CC$6 -> 0 | BE50: =+'44-A1'!CD$6 -> 0 | BF50: =+'44-A1'!CE$6 -> 0 | BG50: =+'44-A1'!CF$6 -> 0 | BH50: =+'44-A1'!CG$6 -> 0 | BI50: =+'44-A1'!CH$6 -> 0
A51: =+'44-A3'!Z$6 -> 44-A3 | B51: =+'44-A3'!AA$6 -> Jury Assembly Room | C51: =+'44-A3'!AB$6 -> 701 Ocean Street | D51: =+'44-A3'!AC$6 -> Santa Cruz | E51: =+'44-A3'!AD$6 -> 95060 | F51: =+'44-A3'!AE$6 -> Santa Cruz | G51: =+'44-A3'!AF$6 -> BANCRO | I51: =+'44-A3'!AH$6 -> 0 | J51: =+'44-A3'!AI$6 -> 0 | K51: =+'44-A3'!AJ$6 -> 0 | L51: =+'44-A3'!AK$6 -> 0 | M51: =+'44-A3'!AL$6 -> 0 | N51: =+'44-A3'!AM$6 -> 0 | O51: =+'44-A3'!AN$6 -> 0 | P51: =+'44-A3'!AO$6 -> 0 | Q51: =+'44-A3'!AP$6 -> 0 | R51: =+'44-A3'!AQ$6 -> 0 | S51: =+'44-A3'!AR$6 -> 0 | T51: =+'44-A3'!AS$6 -> 0 | U51: =+'44-A3'!AT$6 -> 0 | V51: =+'44-A3'!AU$6 -> 0 | W51: =+'44-A3'!AV$6 -> 0 | X51: =+'44-A3'!AW$6 -> 0 | Y51: =+'44-A3'!AX$6 -> 0 | Z51: =+'44-A3'!AY$6 -> 0 | AA51: =+'44-A3'!AZ$6 -> 0 | AB51: =+'44-A3'!BA$6 -> 0 | AC51: =+'44-A3'!BB$6 -> 0 | AD51: =+'44-A3'!BC$6 -> 0 | AE51: =+'44-A3'!BD$6 -> 0 | AF51: =+'44-A3'!BE$6 -> 0 | AG51: =+'44-A3'!BF$6 -> 0 | AH51: =+'44-A3'!BG$6 -> 0 | AI51: =+'44-A3'!BH$6 -> 0 | AJ51: =+'44-A3'!BI$6 -> 0 | AK51: =+'44-A3'!BJ$6 -> 0 | AL51: =+'44-A3'!BK$6 -> 0 | AM51: =+'44-A3'!BL$6 -> 0 | AN51: =+'44-A3'!BM$6 -> 0 | AO51: =+'44-A3'!BN$6 -> 0 | AP51: =+'44-A3'!BO$6 -> 0 | AQ51: =+'44-A3'!BP$6 -> 0 | AR51: =+'44-A3'!BQ$6 -> 0 | AS51: =+'44-A3'!BR$6 -> 0 | AT51: =+'44-A3'!BS$6 -> 0 | AU51: =+'44-A3'!BT$6 -> 0 | AV51: =+'44-A3'!BU$6 -> 0 | AW51: =+'44-A3'!BV$6 -> 0 | AX51: =+'44-A3'!BW$6 -> 0 | AZ51: =+'44-A3'!BY$6 -> 0 | BB51: =+'44-A3'!CA$6 -> 0 | BC51: =+'44-A3'!CB$6 -> 0 | BD51: =+'44-A3'!CC$6 -> 0 | BE51: =+'44-A3'!CD$6 -> 0 | BF51: =+'44-A3'!CE$6 -> 0 | BG51: =+'44-A3'!CF$6 -> 0 | BH51: =+'44-A3'!CG$6 -> 0 | BI51: =+'44-A3'!CH$6 -> 0
A52: =+'44-B2'!Z$6 -> 44-B2 | B52: =+'44-B2'!AA$6 -> Watsonville Courthouse | C52: =+'44-B2'!AB$6 -> 1 Second Street | D52: =+'44-B2'!AC$6 -> Watsonville | E52: =+'44-B2'!AD$6 -> 95076 | F52: =+'44-B2'!AE$6 -> Santa Cruz | G52: =+'44-B2'!AF$6 -> BANCRO | I52: =+'44-B2'!AH$6 -> 0 | J52: =+'44-B2'!AI$6 -> 0 | K52: =+'44-B2'!AJ$6 -> 0 | L52: =+'44-B2'!AK$6 -> 0 | M52: =+'44-B2'!AL$6 -> 0 | N52: =+'44-B2'!AM$6 -> 0 | O52: =+'44-B2'!AN$6 -> 0 | P52: =+'44-B2'!AO$6 -> 0 | Q52: =+'44-B2'!AP$6 -> 0 | R52: =+'44-B2'!AQ$6 -> 0 | S52: =+'44-B2'!AR$6 -> 0 | T52: =+'44-B2'!AS$6 -> 0 | U52: =+'44-B2'!AT$6 -> 0 | V52: =+'44-B2'!AU$6 -> 0 | W52: =+'44-B2'!AV$6 -> 0 | X52: =+'44-B2'!AW$6 -> 0 | Y52: =+'44-B2'!AX$6 -> 0 | Z52: =+'44-B2'!AY$6 -> 0 | AA52: =+'44-B2'!AZ$6 -> 0 | AB52: =+'44-B2'!BA$6 -> 0 | AC52: =+'44-B2'!BB$6 -> 0 | AD52: =+'44-B2'!BC$6 -> 0 | AE52: =+'44-B2'!BD$6 -> 0 | AF52: =+'44-B2'!BE$6 -> 0 | AG52: =+'44-B2'!BF$6 -> 0 | AH52: =+'44-B2'!BG$6 -> 0 | AI52: =+'44-B2'!BH$6 -> 0 | AJ52: =+'44-B2'!BI$6 -> 0 | AK52: =+'44-B2'!BJ$6 -> 0 | AL52: =+'44-B2'!BK$6 -> 0 | AM52: =+'44-B2'!BL$6 -> 0 | AN52: =+'44-B2'!BM$6 -> 0 | AO52: =+'44-B2'!BN$6 -> 0 | AP52: =+'44-B2'!BO$6 -> 0 | AQ52: =+'44-B2'!BP$6 -> 0 | AR52: =+'44-B2'!BQ$6 -> 0 | AS52: =+'44-B2'!BR$6 -> 0 | AT52: =+'44-B2'!BS$6 -> 0 | AU52: =+'44-B2'!BT$6 -> 0 | AV52: =+'44-B2'!BU$6 -> 0 | AW52: =+'44-B2'!BV$6 -> 0 | AX52: =+'44-B2'!BW$6 -> 0 | AZ52: =+'44-B2'!BY$6 -> 0 | BB52: =+'44-B2'!CA$6 -> 0 | BC52: =+'44-B2'!CB$6 -> 0 | BD52: =+'44-B2'!CC$6 -> 0 | BE52: =+'44-B2'!CD$6 -> 0 | BF52: =+'44-B2'!CE$6 -> 0 | BG52: =+'44-B2'!CF$6 -> 0 | BH52: =+'44-B2'!CG$6 -> 0 | BI52: =+'44-B2'!CH$6 -> 0
A53: =+'48-A1'!Z$6 -> 48-A1 | B53: =+'48-A1'!AA$6 -> Hall of Justice | C53: =+'48-A1'!AB$6 -> 600 Union Ave. | D53: =+'48-A1'!AC$6 -> Fairfield | E53: =+'48-A1'!AD$6 -> 94533 | F53: =+'48-A1'!AE$6 -> Solano | G53: =+'48-A1'!AF$6 -> BANCRO | I53: =+'48-A1'!AH$6 -> 0 | J53: =+'48-A1'!AI$6 -> 0 | K53: =+'48-A1'!AJ$6 -> 0 | L53: =+'48-A1'!AK$6 -> 0 | M53: =+'48-A1'!AL$6 -> 0 | N53: =+'48-A1'!AM$6 -> 0 | O53: =+'48-A1'!AN$6 -> 0 | P53: =+'48-A1'!AO$6 -> 0 | Q53: =+'48-A1'!AP$6 -> 0 | R53: =+'48-A1'!AQ$6 -> 0 | S53: =+'48-A1'!AR$6 -> 0 | T53: =+'48-A1'!AS$6 -> 0 | U53: =+'48-A1'!AT$6 -> 0 | V53: =+'48-A1'!AU$6 -> 0 | W53: =+'48-A1'!AV$6 -> 0 | X53: =+'48-A1'!AW$6 -> 0 | Y53: =+'48-A1'!AX$6 -> 0 | Z53: =+'48-A1'!AY$6 -> 0 | AA53: =+'48-A1'!AZ$6 -> 0 | AB53: =+'48-A1'!BA$6 -> 0 | AC53: =+'48-A1'!BB$6 -> 0 | AD53: =+'48-A1'!BC$6 -> 0 | AE53: =+'48-A1'!BD$6 -> 0 | AF53: =+'48-A1'!BE$6 -> 0 | AG53: =+'48-A1'!BF$6 -> 0 | AH53: =+'48-A1'!BG$6 -> 0 | AI53: =+'48-A1'!BH$6 -> 0 | AJ53: =+'48-A1'!BI$6 -> 0 | AK53: =+'48-A1'!BJ$6 -> 0 | AL53: =+'48-A1'!BK$6 -> 0 | AM53: =+'48-A1'!BL$6 -> 0 | AN53: =+'48-A1'!BM$6 -> 0 | AO53: =+'48-A1'!BN$6 -> 0 | AP53: =+'48-A1'!BO$6 -> 0 | AQ53: =+'48-A1'!BP$6 -> 0 | AR53: =+'48-A1'!BQ$6 -> 0 | AS53: =+'48-A1'!BR$6 -> 0 | AT53: =+'48-A1'!BS$6 -> 0 | AU53: =+'48-A1'!BT$6 -> 0 | AV53: =+'48-A1'!BU$6 -> 0 | AW53: =+'48-A1'!BV$6 -> 0 | AX53: =+'48-A1'!BW$6 -> 0 | AZ53: =+'48-A1'!BY$6 -> 0 | BB53: =+'48-A1'!CA$6 -> 0 | BC53: =+'48-A1'!CB$6 -> 0 | BD53: =+'48-A1'!CC$6 -> 0 | BE53: =+'48-A1'!CD$6 -> 0 | BF53: =+'48-A1'!CE$6 -> 0 | BG53: =+'48-A1'!CF$6 -> 0 | BH53: =+'48-A1'!CG$6 -> 0 | BI53: =+'48-A1'!CH$6 -> 0
A54: =+'44-A3'!Z$6 -> 44-A3 | B54: =+'44-A3'!AA$6 -> Jury Assembly Room | C54: =+'44-A3'!AB$6 -> 701 Ocean Street | D54: =+'44-A3'!AC$6 -> Santa Cruz | E54: =+'44-A3'!AD$6 -> 95060 | F54: =+'44-A3'!AE$6 -> Santa Cruz | G54: =+'44-A3'!AF$6 -> BANCRO | I54: =+'44-A3'!AH$6 -> 0 | J54: =+'44-A3'!AI$6 -> 0 | K54: =+'44-A3'!AJ$6 -> 0 | L54: =+'44-A3'!AK$6 -> 0 | M54: =+'44-A3'!AL$6 -> 0 | N54: =+'44-A3'!AM$6 -> 0 | O54: =+'44-A3'!AN$6 -> 0 | P54: =+'44-A3'!AO$6 -> 0 | Q54: =+'44-A3'!AP$6 -> 0 | R54: =+'44-A3'!AQ$6 -> 0 | S54: =+'44-A3'!AR$6 -> 0 | T54: =+'44-A3'!AS$6 -> 0 | U54: =+'44-A3'!AT$6 -> 0 | V54: =+'44-A3'!AU$6 -> 0 | W54: =+'44-A3'!AV$6 -> 0 | X54: =+'44-A3'!AW$6 -> 0 | Y54: =+'44-A3'!AX$6 -> 0 | Z54: =+'44-A3'!AY$6 -> 0 | AA54: =+'44-A3'!AZ$6 -> 0 | AB54: =+'44-A3'!BA$6 -> 0 | AC54: =+'44-A3'!BB$6 -> 0 | AD54: =+'44-A3'!BC$6 -> 0 | AE54: =+'44-A3'!BD$6 -> 0 | AF54: =+'44-A3'!BE$6 -> 0 | AG54: =+'44-A3'!BF$6 -> 0 | AH54: =+'44-A3'!BG$6 -> 0 | AI54: =+'44-A3'!BH$6 -> 0 | AJ54: =+'44-A3'!BI$6 -> 0 | AK54: =+'44-A3'!BJ$6 -> 0 | AL54: =+'44-A3'!BK$6 -> 0 | AM54: =+'44-A3'!BL$6 -> 0 | AN54: =+'44-A3'!BM$6 -> 0 | AO54: =+'44-A3'!BN$6 -> 0 | AP54: =+'44-A3'!BO$6 -> 0 | AQ54: =+'44-A3'!BP$6 -> 0 | AR54: =+'44-A3'!BQ$6 -> 0 | AS54: =+'44-A3'!BR$6 -> 0 | AT54: =+'44-A3'!BS$6 -> 0 | AU54: =+'44-A3'!BT$6 -> 0 | AV54: =+'44-A3'!BU$6 -> 0 | AW54: =+'44-A3'!BV$6 -> 0 | AX54: =+'44-A3'!BW$6 -> 0 | AZ54: =+'44-A3'!BY$6 -> 0 | BB54: =+'44-A3'!CA$6 -> 0 | BC54: =+'44-A3'!CB$6 -> 0 | BD54: =+'44-A3'!CC$6 -> 0 | BE54: =+'44-A3'!CD$6 -> 0 | BF54: =+'44-A3'!CE$6 -> 0 | BG54: =+'44-A3'!CF$6 -> 0 | BH54: =+'44-A3'!CG$6 -> 0 | BI54: =+'44-A3'!CH$6 -> 0
AZ55: =SUM(AZ7:AZ54) -> 0 | BB55: =SUM(BB7:BB54)/C56 -> 0 | BC55: =SUM(BC7:BC54)/C56 -> 0 | BD55: =SUM(BD7:BD54)/C56 -> 0 | BE55: =SUM(BE7:BE54)/C56 -> 0 | BF55: =SUM(BF7:BF54)/C56 -> 0 | BG55: =SUM(BG7:BG54)/C56 -> 0 | BH55: =SUM(BH7:BH54)/C56 -> 0 | BI55: =SUM(BI7:BI54)/C56 -> 0
B56: Number of Facilities in Region | C56: =COUNTIF(A7:A54,"*") -> 48
A57: 1 | B57: Year One Firm Fixed Price | C57: =+AZ55 -> 0 | D57: 1. Sum of Fixed Price - Facility Total Annual Cost Year 1 in Region = Year One Firm Fixed Price value
A58: 2 | B58: Evaluated Hourly Cost | C58: =+(BG55*C56)*1000 -> 0 | D58: 2. Average Hourly Rate for all facilities in region: Total of Hourly Rates proposed in cost proposal, divided by the Number of Facilities in Region (to establish Average Hourly Rate),multiplied by the Number of Facilities in Region, multiplied by 1,000 hours = Evaluated Hourly Cost evaluation value.
A59: 3 | B59: Mark-up On Materials Value | C59: =+C58*0.3*BH55 -> 0 | D59: 3. Markup on Materials: Evaluated Hourly Cost value for Region, multiplied by 0.3 (to establish the Materials value), multiplied by the average proposed Mark Up on Materials percentage = Markup on Materials evaluation value.
A60: 4 | B60: Mark-up On Subcontractor/Third-Parties Value | C60: =+C58*0.25*BI55 -> 0 | D60: 4. Markup on Subcontractor/Third-Parties: Evaluated Hourly Cost value, multiplied by 0.25 (to establish the Materials value), multiplied by the average proposed Mark Up on Subcontractor/Third-Parties percentage = Markup on Subcontractor/Third-Parties evaluation value.
A61: 5 | B61: Snow Removal | C61: =+BB55*4*C56 -> 0 | D61: 5. Snow Removal (crew hourly rate); Average Snow Removal (crew hourly rate) in Region, multiplied by the Number of Facilities in Region, multiplied by four (4) events per facility = Snow Removal evaluation value.
A62: 6 | B62: Unclogging Blocked Toilet – In-custody holding cell | C62: =+BC55*26*C56 -> 0 | D62: 6. Unclogging Blocked Toilet – In-custody holding cell (labor only); Average Unclogging Blocked Toilet – In-custody holding cell costs in Region, multiplied by the Number of Facilities in Region, multiplied by twenty-six (26) events per facility = Unclogging Blocked Toilet – In-custody holding cell evaluation value.
A63: 7 | B63: Unclogging Blocked Toilet – Public / Court Staff | C63: =+BD55*104*C56 -> 0 | D63: 7. Unclogging Blocked Toilet – Public / Court Staff (labor only); Average Unclogging Blocked Toilet – Public / Court Staff costs in Region, multiplied by the Number of Facilities in Region, multiplied by one hundred and four (104) events per facility = Unclogging Blocked Toilet – Public / Court Staff evaluation value.
A64: 8 | B64: Clean up & Disposal of Biological Waste Per Event | C64: =+BE55*C56*12 -> 0 | D64: 8. Cleanup and Disposal of Biological Waste; Average Cleanup and Disposal of Biological Waste cost in region, multiplied by the number of facilities in the region, multiplied by twelve (12) events per facility = Cleanup and Disposal of Biological Waste evaluation value.
A65: 9 | B65: Clean up & Disposal of Biological Waste Labor Rate | C65: =+BF55*C56*20 -> 0 | D65: 9. Clean-up & Disposal of Biological Waste Labor Rate (for hours over four (4) per Clean-up & Disposal of Biological Waste Event) Average costs throughout the Region, multiplied by the Number of Facilities per Region, multiplied by twenty (20) hours per facility = Clean-up & Disposal of Biological Waste Labor Rate evaluation value.
A66: 10 | B66: Phase-In Costs | C66: 0 | D66: 10. Phase-In Costs - Lump Sum Amount
A67: 11 | B67: Phase-Out Costs | C67: 0 | D67: 11. Phase-Out Costs - Lump Sum Amount at end of Contract Term
A68: 12 | B68: Total Evaluated Price | C68: =SUM(C57:C67) -> 0 | D68: 12. Each of the values for items 1 through 10 above will be calculated and added together to establish the Total Evaluated Price value.

Sheet Equipment List Template (hidden)
H1: =COUNTIF($A$3:$A$803,"*") -> 48 | I1: Subsystem | J1: Access Doors, Gates, Sally Port | K1: Air Cooled DX (Split System) | L1: Air Handling Unit (Air Cooled DX / Package) | M1: Air-Cooled Chiller | N1: Centrifugal Chiller | O1: Cooling Tower (Induced Draft) | P1: Ice Chiller Tank | Q1: Geothermal System | R1: Water Source Heat Pump | S1: Fan Coil System | T1: Supply / Return Fan and Exhaust | U1: Evaporative and Spot Coolers (swamp coolers; spot cooler) | V1: Unique HVAC System | W1: Electrical Panels | X1: Emergency Generator | Y1: Motor Control Center | Z1: Automatic Transfer Switch | AA1: Building Automated Systems (BAS) | AB1: Transformer (Dry-Type) | AC1: Uninterruptible Power Supply (UPS) | AD1: Lighting and Controls (Interior and Exterior) | AE1: Unique Electrical System | AF1: Life Safety Systems | AG1: Reduced Pressure Backflow Preventer(s) | AH1: Boiler (Condensing) | AI1: Domestic Water Heater (Gas-Fired, Condensing) | AJ1: Domestic Water Heater (Electric, Non- Condensing) | AK1: Boiler (Steam, low pressure) | AL1: Steam System | AM1: Pneumatic Compressor System | AN1: Unique Plumbing System | AO1: Rounds and Readings | AP1: Vertical Transportation | AQ1: Water Treatment | AR1: Building Exterior / Hardscape (Monthly) | AS1: Fountain Maintenance (Monthly) | AT1: Above-Ground/Underground Fuel Storage Tanks (Quarterly) If applicable | AU1: Landscape Maintenance * | AV1: Pest Control (Monthly) | AW1: Photovoltaic (PV) System | AX1: Account Management and Supervision (Monthly) | AY1: Fee (Monthly)
A2: JCC ID | B2: Facility Name | C2: Address | D2: City / Town | E2: Zip Code | F2: County | G2: Region | H2: Notes | I2: System ID | J2: A1 | K2: H1 | L2: H2 | M2: H3 | N2: H4 | O2: H5 | P2: H6 | Q2: H7 | R2: H8 | S2: H9 | T2: H10 | U2: H11 | V2: H12 | W2: E1 | X2: E2 | Y2: E3 | Z2: E4 | AA2: E5 | AB2: E6 | AC2: E7 | AD2: E8 | AE2: E9 | AF2: L1 | AG2: L2 | AH2: P1 | AI2: P2 | AJ2: P3 | AK2: P4 | AL2: P5 | AM2: P6 | AN2: P7 | AO2: R1 | AP2: V1 | AQ2: W1 | AR2: B1 | AS2: F1 | AT2: F2 | AU2: G1 | AV2: PC1 | AW2: PV1 | AX2: C1 | AY2: C2
A3: 01-B3 | B3: Wiley W. Manuel Courthouse | C3: 661 Washington St. | D3: Oakland | E3: 94607 | F3: Alameda | G3: BANCRO | H3: County Plant maintains the Chiller and Boiler | J3: 6 | K3: 1 | L3: 2 | M3: 0 | N3: 0 | O3: 0 | P3: 0 | Q3: 0 | R3: 0 | S3: 4 | T3: 3 | U3: 0 | V3: 0 | W3: 0 | X3: 0 | Y3: 0 | Z3: 0 | AA3: 1 | AB3: 8 | AC3: 0 | AD3: 2 | AE3: 0 | AF3: 6 | AG3: 6 | AH3: 0 | AI3: 0 | AJ3: 0 | AK3: 0 | AL3: 0 | AM3: 0 | AN3: 0 | AO3: 40 | AP3: 6 | AQ3: 40 | AR3: 1 | AS3: 0 | AT3: 0 | AU3: 1
A4: 01-D1 | B4: Hayward Hall of Justice | C4: 24405 Amador St. | D4: Hayward | E4: 94544 | F4: Alameda | G4: BANCRO | J4: 5 | K4: 4 | L4: 2 | M4: 0 | N4: 1 | O4: 1 | P4: 0 | Q4: 0 | R4: 0 | S4: 0 | T4: 0 | U4: 0 | V4: 0 | W4: 1 | X4: 1 | Y4: 0 | Z4: 1 | AA4: 2 | AB4: 0 | AC4: 0 | AD4: 2 | AE4: 0 | AF4: 3 | AG4: 4 | AH4: 2 | AI4: 1 | AJ4: 0 | AK4: 0 | AL4: 0 | AM4: 0 | AN4: 0 | AO4: 248 | AP4: 6 | AQ4: 248 | AR4: 1 | AS4: 0 | AT4: 1 | AU4: 1
A5: 01-F1 | B5: George E. McDonald Hall of Justice | C5: 2233 Shoreline Drive | D5: Alameda | E5: 94501 | F5: Alameda | G5: BANCRO | J5: 5 | K5: 0 | L5: 1 | M5: 0 | N5: 1 | O5: 0 | P5: 0 | Q5: 0 | R5: 0 | S5: 0 | T5: 0 | U5: 0 | V5: 0 | W5: 1 | X5: 1 | Y5: 0 | Z5: 1 | AA5: 1 | AB5: 0 | AC5: 0 | AD5: 1 | AE5: 0 | AF5: 3 | AG5: 4 | AH5: 1 | AI5: 1 | AJ5: 0 | AK5: 0 | AL5: 0 | AM5: 0 | AN5: 0 | AO5: 248 | AP5: 3 | AQ5: 248 | AR5: 1 | AS5: 0 | AT5: 0 | AU5: 1
A6: 01-G1 | B6: Berkeley Courthouse | C6: 2120 Martin Luther King, Jr. Way | D6: Berkeley | E6: 94704 | F6: Alameda | G6: BANCRO | J6: 0 | K6: 4 | L6: 0 | M6: 0 | N6: 0 | O6: 0 | P6: 0 | Q6: 0 | R6: 0 | S6: 0 | T6: 0 | U6: 0 | V6: 0 | W6: 1 | X6: 0 | Y6: 0 | Z6: 0 | AA6: 1 | AB6: 0 | AC6: 0 | AD6: 2 | AE6: 0 | AF6: 3 | AG6: 4 | AH6: 1 | AI6: 1 | AJ6: 0 | AK6: 0 | AL6: 0 | AM6: 0 | AN6: 0 | AO6: 40 | AP6: 3 | AQ6: 40 | AR6: 1 | AS6: 0 | AT6: 0 | AU6: 1
A7: 01-H1 | B7: Fremont Hall of Justice | C7: 39439 Paseo Padre Pkwy. | D7: Fremont | E7: 94538 | F7: Alameda | G7: BANCRO | J7: 10 | K7: 2 | L7: 13 | M7: 0 | N7: 2 | O7: 0 | P7: 0 | Q7: 0 | R7: 0 | S7: 0 | T7: 0 | U7: 0 | V7: 0 | W7: 1 | X7: 1 | Y7: 0 | Z7: 1 | AA7: 1 | AB7: 0 | AC7: 0 | AD7: 2 | AE7: 0 | AF7: 3 | AG7: 1 | AH7: 2 | AI7: 0 | AJ7: 0 | AK7: 0 | AL7: 0 | AM7: 0 | AN7: 0 | AO7: 248 | AP7: 4 | AQ7: 248 | AR7: 1 | AS7: 0 | AT7: 1 | AU7: 1
A8: 01-J1 | B8: New East County Hall of Justice | C8: 5151 Gleason Drive | D8: Dublin | E8: 94568 | F8: Alameda | G8: BANCRO | J8: 4 | K8: 0 | L8: 2 | M8: 0 | N8: 4 | O8: 1 | P8: 0 | Q8: 0 | R8: 0 | S8: 20 | T8: 9 | U8: 0 | V8: 0 | W8: 1 | X8: 1 | Y8: 0 | Z8: 4 | AA8: 1 | AB8: 0 | AC8: 0 | AD8: 0 | AE8: 0 | AF8: 5 | AG8: 3 | AH8: 3 | AI8: 2 | AJ8: 0 | AK8: 0 | AL8: 0 | AM8: 0 | AN8: 0 | AO8: 248 | AP8: 9 | AQ8: 248 | AR8: 1 | AS8: 0 | AT8: 0 | AU8: 1
A9: 07-A14 | B9: Family Law Center | C9: 751 Pine Street | D9: Martinez | E9: 94553 | F9: Contra Costa | G9: BANCRO | J9: 1 | K9: 4 | L9: 1 | M9: 0 | N9: 0 | O9: 0 | P9: 0 | Q9: 0 | R9: 0 | S9: 0 | T9: 0 | U9: 0 | V9: 0 | W9: 1 | X9: 0 | Y9: 0 | Z9: 0 | AA9: 1 | AB9: 0 | AC9: 0 | AD9: 2 | AE9: 0 | AF9: 3 | AG9: 2 | AH9: 1 | AI9: 1 | AJ9: 0 | AK9: 0 | AL9: 0 | AM9: 0 | AN9: 0 | AO9: 40 | AP9: 1 | AQ9: 40 | AR9: 1 | AS9: 0 | AT9: 0 | AU9: 1
A10: 07-A2 | B10: Wakefield Taylor Courthouse | C10: 725 Court St. | D10: Martinez | E10: 94553 | F10: Contra Costa | G10: BANCRO | J10: 1 | K10: 3 | L10: 2 | M10: 0 | N10: 1 | O10: 1 | P10: 0 | Q10: 0 | R10: 0 | S10: 0 | T10: 0 | U10: 0 | V10: 0 | W10: 1 | X10: 1 | Y10: 0 | Z10: 1 | AA10: 1 | AB10: 0 | AC10: 0 | AD10: 1 | AE10: 0 | AF10: 3 | AG10: 4 | AH10: 0 | AI10: 1 | AJ10: 0 | AK10: 3 | AL10: 0 | AM10: 0 | AN10: 0 | AO10: 248 | AP10: 2 | AQ10: 248 | AR10: 1 | AS10: 0 | AT10: 0 | AU10: 1
A11: 07-A3 | B11: Bray Courts | C11: 1020 Ward St. | D11: Martinez | E11: 94553 | F11: Contra Costa | G11: BANCRO | J11: 1 | K11: 6 | L11: 0 | M11: 0 | N11: 0 | O11: 0 | P11: 0 | Q11: 0 | R11: 0 | S11: 0 | T11: 0 | U11: 0 | V11: 0 | W11: 1 | X11: 1 | Y11: 0 | Z11: 1 | AA11: 1 | AB11: 0 | AC11: 0 | AD11: 2 | AE11: 0 | AF11: 3 | AG11: 3 | AH11: 1 | AI11: 1 | AJ11: 0 | AK11: 0 | AL11: 0 | AM11: 0 | AN11: 0 | AO11: 40 | AP11: 3 | AQ11: 40 | AR11: 1 | AS11: 0 | AT11: 0 | AU11: 1
A12: 07-C1 | B12: Walnut Creek Courthouse | C12: 640 Ygnacio Valley Rd. | D12: Walnut Creek | E12: 94596 | F12: Contra Costa | G12: BANCRO | J12: 7 | K12: 11 | L12: 0 | M12: 0 | N12: 0 | O12: 0 | P12: 0 | Q12: 0 | R12: 0 | S12: 0 | T12: 0 | U12: 0 | V12: 0 | W12: 1 | X12: 1 | Y12: 0 | Z12: 1 | AA12: 0 | AB12: 0 | AC12: 0 | AD12: 2 | AE12: 0 | AF12: 4 | AG12: 0 | AH12: 0 | AI12: 0 | AJ12: 5 | AK12: 0 | AL12: 0 | AM12: 0 | AN12: 0 | AO12: 40 | AP12: 1 | AQ12: 40 | AR12: 1 | AS12: 0 | AT12: 0 | AU12: 1
A13: 07-D1 | B13: Concord Courthouse | C13: 2970 Willow Pass Rd. | D13: Concord | E13: 94519 | F13: Contra Costa | G13: BANCRO | H13: Not in RFP, No Costing Sheet | J13: 0 | K13: 8 | L13: 0 | M13: 0 | N13: 0 | O13: 0 | P13: 0 | Q13: 0 | R13: 0 | S13: 0 | T13: 0 | U13: 0 | V13: 0 | W13: 1 | X13: 0 | Y13: 0 | Z13: 0 | AA13: 0 | AB13: 0 | AC13: 0 | AD13: 2 | AE13: 0 | AF13: 1 | AG13: 1 | AH13: 0 | AI13: 0 | AJ13: 0 | AK13: 0 | AL13: 0 | AM13: 0 | AN13: 0 | AO13: 40 | AP13: 0 | AQ13: 40 | AR13: 1 | AS13: 0 | AT13: 0 | AU13: 1
A14: 07-E3 | B14: Richard E. Arnason Justice Center | C14: 1000 Center Drive | D14: Pittsburg | E14: 94565 | F14: Contra Costa | G14: BANCRO | J14: 12 | K14: 14 | L14: 1 | M14: 0 | N14: 2 | O14: 1 | P14: 0 | Q14: 0 | R14: 0 | S14: 1 | T14: 2 | U14: 0 | V14: 0 | W14: 1 | X14: 1 | Y14: 1 | Z14: 2 | AA14: 1 | AB14: 0 | AC14: 0 | AD14: 2 | AE14: 0 | AF14: 3 | AG14: 10 | AH14: 2 | AI14: 0 | AJ14: 0 | AK14: 0 | AL14: 0 | AM14: 0 | AN14: 0 | AO14: 248 | AP14: 5 | AQ14: 248 | AR14: 1 | AS14: 0 | AT14: 0 | AU14: 1
A15: 07-F1 | B15: George D. Carroll Courthouse | C15: 100 37th St. | D15: Richmond | E15: 94805 | F15: Contra Costa | G15: BANCRO | H15: window shakers? | J15: 1 | K15: 3 | L15: 12 | M15: 0 | N15: 0 | O15: 0 | P15: 0 | Q15: 0 | R15: 2 | S15: 0 | T15: 0 | U15: 0 | V15: 0 | W15: 1 | X15: 0 | Y15: 0 | Z15: 0 | AA15: 1 | AB15: 0 | AC15: 0 | AD15: 2 | AE15: 0 | AF15: 4 | AG15: 1 | AH15: 2 | AI15: 1 | AJ15: 0 | AK15: 0 | AL15: 0 | AM15: 0 | AN15: 0 | AO15: 40 | AP15: 1 | AQ15: 40 | AR15: 1 | AS15: 0 | AT15: 0 | AU15: 1
A16: 08-A1 | B16: Del Norte County Superior Court | C16: 450 'H' St. | D16: Crescent City | E16: 95531 | F16: Del Norte | G16: BANCRO | H16: forced heat combi? | J16: 0 | K16: 6 | L16: 0 | M16: 0 | N16: 0 | O16: 0 | P16: 0 | Q16: 0 | R16: 0 | S16: 0 | T16: 0 | U16: 0 | V16: 0 | W16: 1 | X16: 1 | Y16: 0 | Z16: 1 | AA16: 0 | AB16: 0 | AC16: 0 | AD16: 2 | AE16: 0 | AF16: 3 | AG16: 2 | AH16: 0 | AI16: 0 | AJ16: 12 | AK16: 0 | AL16: 0 | AM16: 0 | AN16: 0 | AO16: 40 | AP16: 0 | AQ16: 40 | AR16: 1 | AS16: 0 | AT16: 0 | AU16: 1
A17: 17-B1 | B17: South Civic Center | C17: 7000A S. Center Dr. | D17: Clearlake | E17: 95422 | F17: Lake | G17: BANCRO | J17: 1 | K17: 7 | L17: 0 | M17: 0 | N17: 0 | O17: 0 | P17: 0 | Q17: 0 | R17: 0 | S17: 0 | T17: 0 | U17: 0 | V17: 0 | W17: 1 | X17: 0 | Y17: 0 | Z17: 0 | AA17: 0 | AB17: 0 | AC17: 0 | AD17: 2 | AE17: 0 | AF17: 2 | AG17: 1 | AH17: 0 | AI17: 1 | AJ17: 0 | AK17: 0 | AL17: 0 | AM17: 0 | AN17: 0 | AO17: 40 | AP17: 0 | AQ17: 40 | AR17: 1 | AS17: 0 | AT17: 0 | AU17: 1
A18: 23-A1 | B18: County Courthouse | C18: 100 N. State St. | D18: Ukiah | E18: 95482 | F18: Mendocino | G18: BANCRO | J18: 0 | K18: 7 | L18: 3 | M18: 0 | N18: 2 | O18: 2 | P18: 0 | Q18: 0 | R18: 0 | S18: 0 | T18: 0 | U18: 0 | V18: 0 | W18: 1 | X18: 0 | Y18: 0 | Z18: 0 | AA18: 0 | AB18: 0 | AC18: 0 | AD18: 1 | AE18: 0 | AF18: 3 | AG18: 5 | AH18: 0 | AI18: 1 | AJ18: 0 | AK18: 2 | AL18: 0 | AM18: 0 | AN18: 0 | AO18: 248 | AP18: 1 | AQ18: 248 | AR18: 1 | AS18: 0 | AT18: 0 | AU18: 1
A19: 27-A1 | B19: Salinas Courthouse- North Wing | C19: 240 Church St. | D19: Salinas | E19: 93901 | F19: Monterey | G19: BANCRO | J19: 7 | K19: 17 | L19: 2 | M19: 0 | N19: 2 | O19: 1 | P19: 1 | Q19: 0 | R19: 1 | S19: 1 | T19: 2 | U19: 0 | V19: 0 | W19: 2 | X19: 0 | Y19: 2 | Z19: 3 | AA19: 1 | AB19: 2 | AC19: 0 | AD19: 2 | AE19: 0 | AF19: 5 | AG19: 9 | AH19: 1 | AI19: 0 | AJ19: 0 | AK19: 0 | AL19: 1 | AM19: 0 | AN19: 0 | AO19: 248 | AP19: 8 | AQ19: 248 | AR19: 1 | AS19: 0 | AT19: 0 | AU19: 1
A20: 27-B1 | B20: Marina Courthouse | C20: 3180 Del Monte Blvd. | D20: Marina | E20: 93933 | F20: Monterey | G20: BANCRO | J20: 1 | K20: 8 | L20: 0 | M20: 0 | N20: 0 | O20: 0 | P20: 0 | Q20: 0 | R20: 0 | S20: 0 | T20: 0 | U20: 0 | V20: 0 | W20: 1 | X20: 1 | Y20: 0 | Z20: 1 | AA20: 0 | AB20: 0 | AC20: 0 | AD20: 2 | AE20: 0 | AF20: 3 | AG20: 3 | AH20: 0 | AI20: 0 | AJ20: 1 | AK20: 0 | AL20: 0 | AM20: 0 | AN20: 0 | AO20: 40 | AP20: 0 | AQ20: 40 | AR20: 1 | AS20: 0 | AT20: 0 | AU20: 1
A21: 27-C1 | B21: Monterey Courthouse | C21: 1200 Aguajito Rd. | D21: Monterey | E21: 93940 | F21: Monterey | G21: BANCRO | J21: 0 | K21: 1 | L21: 0 | M21: 0 | N21: 0 | O21: 0 | P21: 0 | Q21: 0 | R21: 0 | S21: 0 | T21: 0 | U21: 0 | V21: 0 | W21: 0 | X21: 0 | Y21: 0 | Z21: 0 | AA21: 0 | AB21: 0 | AC21: 0 | AD21: 0 | AE21: 0 | AF21: 1 | AG21: 0 | AH21: 0 | AI21: 0 | AJ21: 0 | AK21: 0 | AL21: 0 | AM21: 0 | AN21: 0 | AO21: 40 | AP21: 2 | AQ21: 40 | AR21: 1 | AS21: 0 | AT21: 0 | AU21: 1
A22: 28-A1 | B22: Criminal Court Building | C22: 1111 Third St. | D22: Napa | E22: 94559 | F22: Napa | G22: BANCRO | J22: 2 | K22: 4 | L22: 0 | M22: 0 | N22: 0 | O22: 0 | P22: 0 | Q22: 0 | R22: 0 | S22: 0 | T22: 0 | U22: 0 | V22: 0 | W22: 1 | X22: 1 | Y22: 0 | Z22: 1 | AA22: 1 | AB22: 2 | AC22: 0 | AD22: 2 | AE22: 0 | AF22: 3 | AG22: 3 | AH22: 1 | AI22: 1 | AJ22: 0 | AK22: 0 | AL22: 0 | AM22: 0 | AN22: 0 | AO22: 40 | AP22: 12 | AQ22: 40 | AR22: 1 | AS22: 0 | AT22: 0 | AU22: 1
A23: 28-B1 | B23: Historic Courthouse | C23: 825 Brown St. | D23: Napa | E23: 94559 | F23: Napa | G23: BANCRO | J23: 0 | K23: 5 | L23: 2 | M23: 0 | N23: 0 | O23: 0 | P23: 0 | Q23: 0 | R23: 0 | S23: 0 | T23: 0 | U23: 0 | V23: 0 | W23: 1 | X23: 0 | Y23: 0 | Z23: 0 | AA23: 0 | AB23: 2 | AC23: 0 | AD23: 1 | AE23: 0 | AF23: 4 | AG23: 1 | AH23: 1 | AI23: 1 | AJ23: 0 | AK23: 0 | AL23: 0 | AM23: 0 | AN23: 0 | AO23: 40 | AP23: 1 | AQ23: 40 | AR23: 1 | AS23: 0 | AT23: 0 | AU23: 1
A24: 28-C1 | B24: Napa Juvenile Court | C24: 2350 Old Sonoma Rd. | D24: Napa | E24: 94559 | F24: Napa | G24: BANCRO | J24: 3 | K24: 8 | L24: 0 | M24: 0 | N24: 0 | O24: 0 | P24: 0 | Q24: 0 | R24: 0 | S24: 0 | T24: 0 | U24: 0 | V24: 0 | W24: 1 | X24: 0 | Y24: 0 | Z24: 0 | AA24: 0 | AB24: 0 | AC24: 0 | AD24: 2 | AE24: 0 | AF24: 3 | AG24: 4 | AH24: 0 | AI24: 1 | AJ24: 0 | AK24: 0 | AL24: 0 | AM24: 0 | AN24: 0 | AO24: 40 | AP24: 0 | AQ24: 40 | AR24: 1 | AS24: 0 | AT24: 0 | AU24: 1
A25: 35-C1 | B25: New Hollister Courthouse | C25: 450 Fourth Street | D25: Hollister | E25: 95023 | F25: San Benito | G25: BANCRO | J25: 7 | K25: 6 | L25: 2 | M25: 0 | N25: 0 | O25: 0 | P25: 0 | Q25: 0 | R25: 0 | S25: 0 | T25: 0 | U25: 0 | V25: 0 | W25: 1 | X25: 0 | Y25: 0 | Z25: 0 | AA25: 1 | AB25: 1 | AC25: 1 | AD25: 2 | AE25: 0 | AF25: 3 | AG25: 8 | AH25: 2 | AI25: 1 | AJ25: 6 | AK25: 0 | AL25: 0 | AM25: 0 | AN25: 0 | AO25: 40 | AP25: 4 | AQ25: 40 | AR25: 1 | AS25: 0 | AT25: 0 | AU25: 1
A26: 38-A1 | B26: Civic Center Courthouse | C26: 400 McAllister St. | D26: San Francisco | E26: 94102 | F26: San Francisco | G26: BANCRO | J26: 3 | K26: 0 | L26: 5 | M26: 0 | N26: 3 | O26: 2 | P26: 0 | Q26: 0 | R26: 0 | S26: 15 | T26: 6 | U26: 0 | V26: 0 | W26: 1 | X26: 1 | Y26: 0 | Z26: 1 | AA26: 1 | AB26: 0 | AC26: 0 | AD26: 1 | AE26: 0 | AF26: 5 | AG26: 5 | AH26: 0 | AI26: 0 | AJ26: 0 | AK26: 0 | AL26: 0 | AM26: 0 | AN26: 0 | AO26: 248 | AP26: 41 | AQ26: 248 | AR26: 1 | AS26: 0 | AT26: 1 | AU26: 1
A27: 38-C2 | B27: Family Justice Center | C27: Woodside Ave. and Portola | D27: San Francisco | E27: 94127 | F27: San Francisco | G27: BANCRO | H27: Cost Plus List | J27: 0 | K27: 0 | L27: 0 | M27: 0 | N27: 0 | O27: 0 | P27: 0 | Q27: 0 | R27: 0 | S27: 0 | T27: 0 | U27: 0 | V27: 0 | W27: 0 | X27: 0 | Y27: 0 | Z27: 0 | AA27: 0 | AB27: 0 | AC27: 0 | AD27: 0 | AE27: 0 | AF27: 0 | AG27: 0 | AH27: 0 | AI27: 0 | AJ27: 0 | AK27: 0 | AL27: 0 | AM27: 0 | AN27: 0 | AO27: 40 | AP27: 0 | AQ27: 40 | AR27: 0 | AS27: 0 | AT27: 0 | AU27: 0
A28: 38-C3 | B28: Family Justice Center Site - Bldg 1 | C28: 375 Woodside Avenue | D28: San Francisco | E28: 94127 | F28: San Francisco | G28: BANCRO | H28: Cost Plus List missing from list | J28: 0 | K28: 0 | L28: 0 | M28: 0 | N28: 0 | O28: 0 | P28: 0 | Q28: 0 | R28: 0 | S28: 0 | T28: 0 | U28: 0 | V28: 0 | W28: 0 | X28: 0 | Y28: 0 | Z28: 0 | AA28: 0 | AB28: 0 | AC28: 0 | AD28: 0 | AE28: 0 | AF28: 0 | AG28: 0 | AH28: 0 | AI28: 0 | AJ28: 0 | AK28: 0 | AL28: 0 | AM28: 0 | AN28: 0 | AO28: 40 | AP28: 0 | AQ28: 40 | AR28: 0 | AS28: 0 | AT28: 0 | AU28: 0
A29: 38-C4 | B29: Family Justice Center Site - Bldg 2 | C29: 375 Woodside Avenue | D29: San Francisco | E29: 94127 | F29: San Francisco | G29: BANCRO | H29: Cost Plus List missing from list | J29: 0 | K29: 0 | L29: 0 | M29: 0 | N29: 0 | O29: 0 | P29: 0 | Q29: 0 | R29: 0 | S29: 0 | T29: 0 | U29: 0 | V29: 0 | W29: 0 | X29: 0 | Y29: 0 | Z29: 0 | AA29: 0 | AB29: 0 | AC29: 0 | AD29: 0 | AE29: 0 | AF29: 0 | AG29: 0 | AH29: 0 | AI29: 0 | AJ29: 0 | AK29: 0 | AL29: 0 | AM29: 0 | AN29: 0 | AO29: 40 | AP29: 0 | AQ29: 40 | AR29: 0 | AS29: 0 | AT29: 0 | AU29: 0
A30: 38-C5 | B30: Family Justice Center Site - Bldg 3 | C30: 375 Woodside Avenue | D30: San Francisco | E30: 94127 | F30: San Francisco | G30: BANCRO | H30: missing from list | J30: 0 | K30: 0 | L30: 0 | M30: 0 | N30: 0 | O30: 0 | P30: 0 | Q30: 0 | R30: 0 | S30: 0 | T30: 0 | U30: 0 | V30: 0 | W30: 0 | X30: 0 | Y30: 0 | Z30: 0 | AA30: 0 | AB30: 0 | AC30: 0 | AD30: 0 | AE30: 0 | AF30: 0 | AG30: 0 | AH30: 0 | AI30: 0 | AJ30: 0 | AK30: 0 | AL30: 0 | AM30: 0 | AN30: 0 | AO30: 40 | AP30: 0 | AQ30: 40 | AR30: 0 | AS30: 0 | AT30: 0 | AU30: 0
A31: 40-C1 | B31: Juvenile Services Center | C31: 1065 Kansas Ave. | D31: San Luis Obispo | E31: 93408 | F31: San Luis Obispo | G31: BANCRO | J31: 0 | K31: 0 | L31: 0 | M31: 0 | N31: 0 | O31: 0 | P31: 0 | Q31: 0 | R31: 0 | S31: 0 | T31: 0 | U31: 0 | V31: 0 | W31: 0 | X31: 0 | Y31: 0 | Z31: 0 | AA31: 0 | AB31: 0 | AC31: 0 | AD31: 0 | AE31: 0 | AF31: 0 | AG31: 0 | AH31: 0 | AI31: 0 | AJ31: 0 | AK31: 0 | AL31: 0 | AM31: 0 | AN31: 0 | AO31: 40 | AP31: 0 | AQ31: 40 | AR31: 0 | AS31: 0 | AT31: 0 | AU31: 0
A32: 40-E1 | B32: Grover Beach Branch | C32: 214 S 16th St. | D32: Grover Beach | E32: 93433 | F32: San Luis Obispo | G32: BANCRO | J32: 1 | K32: 2 | L32: 0 | M32: 0 | N32: 0 | O32: 0 | P32: 0 | Q32: 0 | R32: 3 | S32: 2 | T32: 0 | U32: 0 | V32: 0 | W32: 2 | X32: 0 | Y32: 0 | Z32: 0 | AA32: 0 | AB32: 0 | AC32: 0 | AD32: 2 | AE32: 0 | AF32: 1 | AG32: 1 | AH32: 0 | AI32: 1 | AJ32: 0 | AK32: 0 | AL32: 0 | AM32: 0 | AN32: 0 | AO32: 40 | AP32: 0 | AQ32: 40 | AR32: 0 | AS32: 0 | AT32: 0 | AU32: 1
A33: 40-H1 | B33: 1070 Palm St. | C33: 1070 Palm Street | D33: San Luis Obispo | E33: 93408 | F33: San Luis Obispo | G33: BANCRO | H33: Not in RFP, No Costing Sheet | J33: 0 | K33: 3 | L33: 0 | M33: 0 | N33: 0 | O33: 0 | P33: 0 | Q33: 0 | R33: 0 | S33: 0 | T33: 0 | U33: 0 | V33: 0 | W33: 1 | X33: 0 | Y33: 0 | Z33: 0 | AA33: 0 | AB33: 0 | AC33: 0 | AD33: 0 | AE33: 0 | AF33: 1 | AG33: 0 | AH33: 0 | AI33: 1 | AJ33: 0 | AK33: 0 | AL33: 0 | AM33: 0 | AN33: 0 | AO33: 40 | AP33: 0 | AQ33: 40 | AR33: 0 | AS33: 0 | AT33: 0 | AU33: 1
A34: 40-J1 | B34: Paso Robles Courthouse | C34: 901 Park Street | D34: Paso Robles | E34: 93446 | F34: San Luis Obispo | G34: BANCRO | J34: 1 | K34: 15 | L34: 0 | M34: 0 | N34: 0 | O34: 0 | P34: 0 | Q34: 0 | R34: 0 | S34: 0 | T34: 4 | U34: 0 | V34: 0 | W34: 1 | X34: 1 | Y34: 0 | Z34: 1 | AA34: 1 | AB34: 1 | AC34: 0 | AD34: 3 | AE34: 0 | AF34: 3 | AG34: 4 | AH34: 0 | AI34: 1 | AJ34: 0 | AK34: 0 | AL34: 0 | AM34: 0 | AN34: 0 | AO34: 40 | AP34: 3 | AQ34: 40 | AR34: 0 | AS34: 0 | AT34: 0 | AU34: 1
A35: 41-B1 | B35: Central Branch | C35: 800 North Humboldt St. | D35: San Mateo | E35: 94401 | F35: San Mateo | G35: BANCRO | J35: 2 | K35: 3 | L35: 2 | M35: 0 | N35: 1 | O35: 0 | P35: 0 | Q35: 0 | R35: 0 | S35: 0 | T35: 1 | U35: 0 | V35: 0 | W35: 1 | X35: 0 | Y35: 0 | Z35: 0 | AA35: 0 | AB35: 0 | AC35: 0 | AD35: 2 | AE35: 0 | AF35: 2 | AG35: 2 | AH35: 1 | AI35: 1 | AJ35: 0 | AK35: 0 | AL35: 0 | AM35: 0 | AN35: 0 | AO35: 248 | AP35: 0 | AQ35: 248 | AR35: 1 | AS35: 0 | AT35: 0 | AU35: 1
A36: 41-C1 | B36: Northern Branch Courthouse | C36: 1050 Mission Rd. | D36: South San Francisco | E36: 94080 | F36: San Mateo | G36: BANCRO | J36: 6 | K36: 9 | L36: 3 | M36: 0 | N36: 2 | O36: 1 | P36: 0 | Q36: 0 | R36: 0 | S36: 0 | T36: 0 | U36: 0 | V36: 0 | W36: 1 | X36: 0 | Y36: 0 | Z36: 0 | AA36: 1 | AB36: 0 | AC36: 0 | AD36: 2 | AE36: 0 | AF36: 3 | AG36: 4 | AH36: 2 | AI36: 2 | AJ36: 0 | AK36: 0 | AL36: 0 | AM36: 0 | AN36: 0 | AO36: 248 | AP36: 1 | AQ36: 248 | AR36: 1 | AS36: 0 | AT36: 0 | AU36: 1
A37: 43-A1 | B37: Hall of Justice (East) | C37: 190 W. Hedding | D37: San Jose | E37: 95110 | F37: Santa Clara | G37: BANCRO | J37: 1 | K37: 0 | L37: 2 | M37: 0 | N37: 2 | O37: 2 | P37: 0 | Q37: 0 | R37: 7 | S37: 0 | T37: 2 | U37: 0 | V37: 0 | W37: 1 | X37: 1 | Y37: 0 | Z37: 1 | AA37: 0 | AB37: 1 | AC37: 0 | AD37: 2 | AE37: 0 | AF37: 5 | AG37: 5 | AH37: 2 | AI37: 2 | AJ37: 0 | AK37: 0 | AL37: 0 | AM37: 0 | AN37: 0 | AO37: 248 | AP37: 25 | AQ37: 248 | AR37: 1 | AS37: 0 | AT37: 1 | AU37: 1
A38: 43-A2 | B38: Hall of Justice (West) | C38: 200 W. Hedding | D38: San Jose | E38: 95110 | F38: Santa Clara | G38: BANCRO | J38: 0 | K38: 3 | L38: 4 | M38: 0 | N38: 1 | O38: 1 | P38: 0 | Q38: 0 | R38: 1 | S38: 0 | T38: 1 | U38: 0 | V38: 0 | W38: 1 | X38: 0 | Y38: 0 | Z38: 1 | AA38: 1 | AB38: 4 | AC38: 0 | AD38: 2 | AE38: 0 | AF38: 4 | AG38: 3 | AH38: 1 | AI38: 3 | AJ38: 0 | AK38: 0 | AL38: 0 | AM38: 0 | AN38: 0 | AO38: 248 | AP38: 3 | AQ38: 248 | AR38: 1 | AS38: 0 | AT38: 0 | AU38: 1
A39: 43-B1 | B39: Downtown Superior Court | C39: 191 N. First St. | D39: San Jose | E39: 95113 | F39: Santa Clara | G39: BANCRO | J39: 1 | K39: 8 | L39: 35 | M39: 0 | N39: 1 | O39: 1 | P39: 0 | Q39: 0 | R39: 0 | S39: 0 | T39: 2 | U39: 0 | V39: 0 | W39: 2 | X39: 0 | Y39: 0 | Z39: 1 | AA39: 1 | AB39: 13 | AC39: 0 | AD39: 2 | AE39: 0 | AF39: 3 | AG39: 5 | AH39: 3 | AI39: 0 | AJ39: 1 | AK39: 0 | AL39: 0 | AM39: 0 | AN39: 0 | AO39: 248 | AP39: 5 | AQ39: 248 | AR39: 1 | AS39: 0 | AT39: 0 | AU39: 1
A40: 43-B2 | B40: Historic Courthouse | C40: 161 N. First St. | D40: San Jose | E40: 95113 | F40: Santa Clara | G40: BANCRO | J40: 0 | K40: 0 | L40: 3 | M40: 0 | N40: 1 | O40: 2 | P40: 0 | Q40: 0 | R40: 0 | S40: 0 | T40: 0 | U40: 0 | V40: 0 | W40: 1 | X40: 1 | Y40: 0 | Z40: 1 | AA40: 0 | AB40: 1 | AC40: 0 | AD40: 2 | AE40: 0 | AF40: 3 | AG40: 7 | AH40: 1 | AI40: 0 | AJ40: 0 | AK40: 0 | AL40: 0 | AM40: 0 | AN40: 0 | AO40: 248 | AP40: 1 | AQ40: 248 | AR40: 1 | AS40: 0 | AT40: 0 | AU40: 1
A41: 43-B5 | B41: New Santa Clara Family Justice Center | C41: 201 N. First Street | D41: San Jose | E41: 95113 | F41: Santa Clara | G41: BANCRO | J41: 6 | K41: 15 | L41: 4 | M41: 0 | N41: 3 | O41: 2 | P41: 0 | Q41: 0 | R41: 0 | S41: 0 | T41: 6 | U41: 0 | V41: 0 | W41: 0 | X41: 1 | Y41: 1 | Z41: 4 | AA41: 1 | AB41: 0 | AC41: 0 | AD41: 1 | AE41: 0 | AF41: 6 | AG41: 12 | AH41: 2 | AI41: 1 | AJ41: 0 | AK41: 0 | AL41: 3 | AM41: 0 | AN41: 0 | AO41: 248 | AP41: 8 | AQ41: 248 | AR41: 1 | AS41: 0 | AT41: 2 | AU41: 1
A42: 43-D1 | B42: Palo Alto Courthouse | C42: 270 Grant St. | D42: Palo Alto | E42: 94306 | F42: Santa Clara | G42: BANCRO | J42: 4 | K42: 1 | L42: 3 | M42: 0 | N42: 2 | O42: 3 | P42: 0 | Q42: 0 | R42: 0 | S42: 0 | T42: 2 | U42: 0 | V42: 0 | W42: 1 | X42: 1 | Y42: 3 | Z42: 1 | AA42: 1 | AB42: 0 | AC42: 0 | AD42: 2 | AE42: 0 | AF42: 4 | AG42: 4 | AH42: 2 | AI42: 1 | AJ42: 0 | AK42: 0 | AL42: 0 | AM42: 0 | AN42: 0 | AO42: 248 | AP42: 3 | AQ42: 248 | AR42: 1 | AS42: 0 | AT42: 1 | AU42: 1
A43: 43-F1 | B43: Sunnyvale Courthouse | C43: 605 W. El Camino Real | D43: Sunnyvale | E43: 94087 | F43: Santa Clara | G43: BANCRO | H43: Not in RFP, No Costing Sheet | J43: 0 | K43: 5 | L43: 7 | M43: 0 | N43: 1 | O43: 1 | P43: 0 | Q43: 0 | R43: 1 | S43: 0 | T43: 0 | U43: 0 | V43: 0 | W43: 1 | X43: 0 | Y43: 0 | Z43: 0 | AA43: 1 | AB43: 0 | AC43: 0 | AD43: 2 | AE43: 0 | AF43: 2 | AG43: 4 | AH43: 1 | AI43: 1 | AJ43: 0 | AK43: 0 | AL43: 0 | AM43: 0 | AN43: 0 | AO43: 248 | AP43: 1 | AQ43: 248 | AR43: 1 | AS43: 0 | AT43: 0 | AU43: 1
A44: 43-G1 | B44: Santa Clara Courthouse | C44: 1095 Homestead Rd. | D44: Santa Clara | E44: 95050 | F44: Santa Clara | G44: BANCRO | J44: 0 | K44: 3 | L44: 3 | M44: 0 | N44: 1 | O44: 1 | P44: 0 | Q44: 0 | R44: 0 | S44: 4 | T44: 2 | U44: 0 | V44: 0 | W44: 1 | X44: 0 | Y44: 0 | Z44: 0 | AA44: 1 | AB44: 0 | AC44: 0 | AD44: 2 | AE44: 0 | AF44: 2 | AG44: 3 | AH44: 1 | AI44: 1 | AJ44: 0 | AK44: 0 | AL44: 0 | AM44: 0 | AN44: 0 | AO44: 248 | AP44: 1 | AQ44: 248 | AR44: 1 | AS44: 0 | AT44: 0 | AU44: 1
A45: 43-N1 | B45: Morgan Hill Courthouse | C45: 301 Diana Avenue | D45: Morgan Hill | E45: 95037 | F45: Santa Clara | G45: BANCRO | H45: missing from list | J45: 7 | K45: 1 | L45: 6 | M45: 0 | N45: 2 | O45: 2 | P45: 0 | Q45: 0 | R45: 0 | S45: 1 | T45: 2 | U45: 0 | V45: 0 | W45: 1 | X45: 1 | Y45: 0 | Z45: 1 | AA45: 1 | AB45: 4 | AC45: 0 | AD45: 1 | AE45: 0 | AF45: 3 | AG45: 5 | AH45: 3 | AI45: 2 | AJ45: 0 | AK45: 0 | AL45: 0 | AM45: 0 | AN45: 0 | AO45: 248 | AP45: 4 | AQ45: 248 | AR45: 1 | AS45: 0 | AT45: 0 | AU45: 1
A46: 44-A1 | B46: Main Courthouse | C46: 701 Ocean St. | D46: Santa Cruz | E46: 95060 | F46: Santa Cruz | G46: BANCRO | J46: 4 | K46: 0 | L46: 2 | M46: 0 | N46: 0 | O46: 0 | P46: 0 | Q46: 0 | R46: 1 | S46: 0 | T46: 0 | U46: 0 | V46: 0 | W46: 0 | X46: 0 | Y46: 0 | Z46: 0 | AA46: 0 | AB46: 0 | AC46: 0 | AD46: 1 | AE46: 0 | AF46: 1 | AG46: 0 | AH46: 0 | AI46: 0 | AJ46: 0 | AK46: 0 | AL46: 0 | AM46: 0 | AN46: 0 | AO46: 40 | AP46: 0 | AQ46: 40 | AR46: 1 | AS46: 0 | AT46: 0 | AU46: 1
A47: 44-A3 | B47: Jury Assembly Room | C47: 701 Ocean Street | D47: Santa Cruz | E47: 95060 | F47: Santa Cruz | G47: BANCRO | J47: 0 | K47: 3 | L47: 0 | M47: 0 | N47: 0 | O47: 0 | P47: 0 | Q47: 0 | R47: 0 | S47: 0 | T47: 0 | U47: 0 | V47: 0 | W47: 0 | X47: 0 | Y47: 0 | Z47: 0 | AA47: 0 | AB47: 1 | AC47: 0 | AD47: 1 | AE47: 0 | AF47: 1 | AG47: 0 | AH47: 0 | AI47: 0 | AJ47: 1 | AK47: 0 | AL47: 0 | AM47: 0 | AN47: 0 | AO47: 40 | AP47: 0 | AQ47: 40 | AR47: 1 | AS47: 0 | AT47: 0 | AU47: 1
A48: 44-B2 | B48: Watsonville Courthouse | C48: 1 Second Street | D48: Watsonville | E48: 95076 | F48: Santa Cruz | G48: BANCRO | H48: County maintained mechanicals. Leased space. | J48: 5 | K48: 3 | L48: 0 | M48: 0 | N48: 0 | O48: 0 | P48: 0 | Q48: 0 | R48: 0 | S48: 0 | T48: 0 | U48: 0 | V48: 0 | W48: 0 | X48: 0 | Y48: 0 | Z48: 0 | AA48: 0 | AB48: 0 | AC48: 0 | AD48: 1 | AE48: 0 | AF48: 1 | AG48: 0 | AH48: 0 | AI48: 0 | AJ48: 4 | AK48: 0 | AL48: 0 | AM48: 0 | AN48: 0 | AO48: 40 | AP48: 5 | AQ48: 40 | AR48: 1 | AS48: 0 | AT48: 0 | AU48: 1
A49: 48-A1 | B49: Hall of Justice | C49: 600 Union Ave. | D49: Fairfield | E49: 94533 | F49: Solano | G49: BANCRO | J49: 7 | K49: 3 | L49: 6 | M49: 0 | N49: 0 | O49: 0 | P49: 0 | Q49: 0 | R49: 0 | S49: 0 | T49: 0 | U49: 0 | V49: 0 | W49: 1 | X49: 1 | Y49: 0 | Z49: 1 | AA49: 1 | AB49: 1 | AC49: 0 | AD49: 2 | AE49: 0 | AF49: 4 | AG49: 2 | AH49: 0 | AI49: 0 | AJ49: 2 | AK49: 0 | AL49: 0 | AM49: 0 | AN49: 0 | AO49: 40 | AP49: 7 | AQ49: 40 | AR49: 1 | AS49: 0 | AT49: 0 | AU49: 1
A50: 48-A3 | B50: Old Solano Courthouse | C50: 580 Texas Street | D50: Fairfield | E50: 94533 | F50: Solano | G50: BANCRO | J50: 6 | K50: 3 | L50: 1 | M50: 0 | N50: 0 | O50: 0 | P50: 0 | Q50: 0 | R50: 0 | S50: 6 | T50: 4 | U50: 0 | V50: 0 | W50: 3 | X50: 1 | Y50: 0 | Z50: 2 | AA50: 1 | AB50: 2 | AC50: 0 | AD50: 1 | AE50: 0 | AF50: 3 | AG50: 1 | AH50: 2 | AI50: 1 | AJ50: 0 | AK50: 0 | AL50: 0 | AM50: 0 | AN50: 0 | AO50: 40 | AP50: 4 | AQ50: 40 | AR50: 1 | AS50: 0 | AT50: 0 | AU50: 1

Sheet Master Template (hidden)
B1: JCC ID | C1: Facility Name | D1: Address | F1: City / Town | H1: Zip Code | J1: County | L1: Region | N1: RFP | P1: Proposer
C2: =IFERROR(VLOOKUP($B$2,'Equipment List Template'!$1:$1048576,2,FALSE),"") ->  | D2: =IFERROR(VLOOKUP($B$2,'Equipment List Template'!$1:$1048576,3,FALSE),"") ->  | F2: =IFERROR(VLOOKUP($B$2,'Equipment List Template'!$1:$1048576,4,FALSE),"") ->  | H2: =IFERROR(VLOOKUP($B$2,'Equipment List Template'!$1:$1048576,5,FALSE),"") ->  | J2: =IFERROR(VLOOKUP($B$2,'Equipment List Template'!$1:$1048576,6,FALSE),"") ->  | L2: =IFERROR(VLOOKUP($B$2,'Equipment List Template'!$1:$1048576,7,FALSE),"") ->  | N2: ='Summary Pricing Sheet'!B2 -> RFP-FS-SP-2019-03-JP | P2: ='Summary Pricing Sheet'!B3 -> Firm Name TBD
D3: Daily Activity | G3: Weekly Activity | J3: Monthly Activity | M3: Quarterly Activity | P3: Annual Activity | U3: Summary | AG3: System | AH3: HVAC | AS3: Electrical | BA3: Plumbing | BE3: Building Systems | BP3: Corporate | BU3: Fixed Price - Facility Total Annual Cost Year 1
B4: System ID | C4: Subsystem | D4: Quantity | E4: Cost | F4: Daily Total | G4: Quantity | H4: Cost | I4: Weekly Total | J4: Monthly Quantity | K4: Cost | L4: Monthly Total | M4: Quarterly Quantity | N4: Cost | O4: Quarterly Total | P4: Annual Quantity | Q4: Cost | R4: Annual PM Total | T4: Number of PM's | U4: Annual Cost | V4: Quantity | W4: Total Annual Cost | AG4: Subsystem | AH4: Air Cooled DX (Package / Split System) | AI4: Air Handling Unit (Air-cooled DX) | AJ4: Air-Cooled Chiller | AK4: Centrifugal Chiller | AL4: Cooling Tower (Induced Draft) | AM4: Ice Chiller | AN4: Multitask (Geothermal) | AO4: Water Source Heat Pump | AP4: Fan Coil System | AQ4: Exhaust Fan | AR4: HVAC Unique System | AS4: Electrical Panels | AT4: Emergency Generator | AU4: Motor Control Center | AV4: Primary Switch (High) | AW4: Primary Switch (Low) | AX4: Transformer (Dry-Type) | AY4: Uninterruptible Power Supply (UPS) | AZ4: Electrical Unique System | BA4: Hot Water Boiler | BB4: Condensing Water Heater | BC4: Electric Water Heater | BD4: Plumbing Unique System | BE4: Steam System | BF4: Pneumatic Compressor | BG4: Vertical Transportation | BH4: Life Safety | BI4: Backflow Preventor | BJ4: Rounds and Readings | BK4: Access Doors, Gates, Sally Port | BL4: Water Treatment | BM4: Building Exterior / Hardscape (Monthly) | BN4: Fountain Maintenance (Monthly) | BO4: Fuel Storage Tanks (Quarterly) If applicable | BP4: Landscape Maintenance * | BQ4: Pest Control (Monthly) | BR4: Account Management and Supervision (Monthly) | BS4: Fee (Monthly) | BW4: Snow Removal - (crew hourly rate) | BX4: Unclogging Blocked Toilet - In-custody holding cell (labor) | BY4: Unclogging Blocked Toilet - Public/Court Staff (labor) | BZ4: Clean up & Disposal of Biological Waste Event | CA4: Clean up & Disposal of Biological Waste Labor Rate | CB4: Hourly Rate | CC4: Markup on Materials | CD4: Markup on Subcontractors/Third-Parties
A5: =$B$2 -> 0 | B5: A1 | C5: Access Doors, Gates, Sally Port | J5: 11 | K5: 0 | L5: =+K5*J5 -> 0 | M5: 0 | N5: 0 | O5: =+N5*M5 -> 0 | P5: 1 | Q5: 0 | R5: =+Q5*P5 -> 0 | S5: =+$J5+$M5+$P5 -> 12 | T5: =IF($V5>0,$S5,0) -> 12 | U5: =+R5+O5+L5+I5+F5 -> 0 | V5: =IFERROR(VLOOKUP($A$5,'Equipment List Template'!$1:$1048576,10,FALSE),"0") -> 0 | W5: =+U5*V5 -> 0 | Z5: JCC ID | AA5: Facility Name | AB5: Address | AC5: City / Town | AD5: County | AE5: Region | AF5: Region | AG5: System ID | AH5: H1 | AI5: H2 | AJ5: H3 | AK5: H4 | AL5: H5 | AM5: H6 | AN5: H7 | AO5: H8 | AP5: H9 | AQ5: H10 | AR5: H11 | AS5: E1 | AT5: E2 | AU5: E3 | AV5: E4 | AW5: E5 | AX5: E6 | AY5: E7 | AZ5: E8 | BA5: P1 | BB5: P2 | BC5: P3 | BD5: P4 | BE5: P5 | BF5: P6 | BG5: V1 | BH5: L1 | BI5: L2 | BJ5: R1 | BK5: A1 | BL5: W1 | BM5: B1 | BN5: F1 | BO5: F2 | BP5: G1 | BQ5: PC1 | BR5: C1 | BS5: C2 | BW5: S1 | BX5: I1 | BY5: I2 | BZ5: I3 | CA5: I4 | CB5: Hr 1 | CC5: M1 | CD5: Sub1
A6: =$B$2 -> 0 | B6: H1 | C6: Air Cooled DX (Package / Split System) | J6: 0 | K6: 0 | L6: =+K6*J6 -> 0 | M6: 3 | N6: 0 | O6: =+N6*M6 -> 0 | P6: 1 | Q6: 0 | R6: =+Q6*P6 -> 0 | S6: =+$J6+$M6+$P6 -> 4 | T6: =IF($V6>0,$S6,0) -> 4 | U6: =+R6+O6+L6+I6+F6 -> 0 | V6: =IFERROR(VLOOKUP($A$5,'Equipment List Template'!$1:$1048576,11,FALSE),"0") -> 0 | W6: =+U6*V6 -> 0 | Z6: =B2 -> 0 | AA6: =IFERROR(VLOOKUP($Z$6,'Equipment List Template'!$1:$1048576,2,FALSE),"") ->  | AB6: =IFERROR(VLOOKUP($Z$6,'Equipment List Template'!$1:$1048576,3,FALSE),"") ->  | AC6: =IFERROR(VLOOKUP($Z$6,'Equipment List Template'!$1:$1048576,4,FALSE),"") ->  | AD6: =IFERROR(VLOOKUP($Z$6,'Equipment List Template'!$1:$1048576,5,FALSE),"") ->  | AE6: =IFERROR(VLOOKUP($Z$6,'Equipment List Template'!$1:$1048576,6,FALSE),"") ->  | AF6: =IFERROR(VLOOKUP($Z$6,'Equipment List Template'!$1:$1048576,7,FALSE),"") ->  | AH6: =+$W5 -> 0 | AI6: =+$W6 -> 0 | AJ6: =+$W7 -> 0 | AK6: =+$W8 -> 0 | AL6: =+$W9 -> 0 | AM6: =+$W10 -> 0 | AN6: =+$W11 -> 0 | AO6: =+$W12 -> 0 | AP6: =+$W13 -> 0 | AQ6: =+$W14 -> 0 | AR6: =+$W15 -> 0 | AS6: =+$W16 -> 0 | AT6: =+$W17 -> 0 | AU6: =+$W18 -> 0 | AV6: =+$W19 -> 0 | AW6: =+$W20 -> 0 | AX6: =+$W21 -> 0 | AY6: =+$W22 -> 0 | AZ6: =+$W23 -> 0 | BA6: =+$W24 -> 0 | BB6: =+$W25 -> 0 | BC6: =+$W26 -> 0 | BD6: =+$W27 -> 0 | BE6: =+$W28 -> 0 | BF6: =+$W29 -> 0 | BG6: =+$W30 -> 0 | BH6: =+$W31 -> 0 | BI6: =+$W32 -> 0 | BJ6: =+$W33 -> 0 | BK6: =+$W34 -> 0 | BL6: =+$W35 -> 0 | BM6: =+$W36 -> 0 | BN6: =+$W37 -> 0 | BO6: =+$W38 -> 0 | BP6: =+$W39 -> 0 | BQ6: =+$W40 -> 0 | BR6: =+$W41 -> 0 | BS6: =+$W42 -> 0 | BU6: =+W43 -> 0 | BW6: =+D44 -> 0 | BX6: =+D45 -> 0 | BY6: =+D46 -> 0 | BZ6: =+D47 -> 0 | CA6: =+D48 -> 0 | CB6: =+D49 -> 0 | CC6: =+D50 -> 0 | CD6: =+D51 -> 0
A7: 0 | B7: H2 | C7: Air Handling Unit (Air-cooled DX) | J7: 0 | K7: 0 | L7: 0 | M7: 3 | N7: 0 | O7: 0 | P7: 1 | Q7: 0 | R7: 0 | S7: 4 | T7: 4 | U7: 0 | V7: =IFERROR(VLOOKUP($A$5,'Equipment List Template'!$1:$1048576,12,FALSE),"0") -> 0 | W7: =+U7*V7 -> 0
A8: 0 | B8: H3 | C8: Air-Cooled Chiller | G8: 40 | H8: 0 | I8: =+H8*G8 -> 0 | J8: 8 | K8: 0 | L8: 0 | M8: 3 | N8: 0 | O8: 0 | P8: 1 | Q8: 0 | R8: 0 | S8: 12 | T8: 12 | U8: 0 | V8: =IFERROR(VLOOKUP($A$5,'Equipment List Template'!$1:$1048576,13,FALSE),"0") -> 0 | W8: 0
A9: 0 | B9: H4 | C9: Centrifugal Chiller | J9: 11 | K9: 0 | L9: 0 | M9: 0 | N9: 0 | O9: 0 | P9: 1 | Q9: 0 | R9: 0 | S9: 12 | T9: 12 | U9: 0 | V9: =IFERROR(VLOOKUP($A$5,'Equipment List Template'!$1:$1048576,14,FALSE),"0") -> 0 | W9: 0
A10: 0 | B10: H5 | C10: Cooling Tower (Induced Draft) | J10: 8 | K10: 0 | L10: 0 | M10: 3 | N10: 0 | O10: 0 | P10: 1 | Q10: 0 | R10: 0 | S10: 12 | T10: 12 | U10: 0 | V10: =IFERROR(VLOOKUP($A$5,'Equipment List Template'!$1:$1048576,15,FALSE),"0") -> 0 | W10: 0
A11: 0 | B11: H6 | C11: Ice Chiller | J11: 8 | K11: 0 | L11: 0 | M11: 3 | N11: 0 | O11: 0 | P11: 1 | Q11: 0 | R11: 0 | S11: 12 | T11: 12 | U11: 0 | V11: =IFERROR(VLOOKUP($A$5,'Equipment List Template'!$1:$1048576,16,FALSE),"0") -> 0 | W11: 0
A12: 0 | B12: H7 | C12: MultiStack (Geothermal) | J12: 0 | K12: 0 | L12: 0 | M12: 0 | N12: 0 | O12: 0 | P12: 1 | Q12: 0 | R12: 0 | S12: 1 | T12: 1 | U12: 0 | V12: =IFERROR(VLOOKUP($A$5,'Equipment List Template'!$1:$1048576,17,FALSE),"0") -> 0 | W12: 0
A13: 0 | B13: H8 | C13: Water Source Heat Pump | J13: 8 | K13: 0 | L13: 0 | M13: 3 | N13: 0 | O13: 0 | P13: 1 | Q13: 0 | R13: 0 | S13: 12 | T13: 12 | U13: 0 | V13: =IFERROR(VLOOKUP($A$5,'Equipment List Template'!$1:$1048576,18,FALSE),"0") -> 0 | W13: 0
A14: 0 | B14: H9 | C14: Fan Coil System | J14: 0 | K14: 0 | L14: 0 | M14: 3 | N14: 0 | O14: 0 | P14: 1 | Q14: 0 | R14: 0 | S14: 4 | T14: 4 | U14: 0 | V14: =IFERROR(VLOOKUP($A$5,'Equipment List Template'!$1:$1048576,19,FALSE),"0") -> 0 | W14: 0
A15: 0 | B15: H10 | C15: Exhaust Fan | J15: 0 | K15: 0 | L15: 0 | M15: 3 | N15: 0 | O15: 0 | P15: 1 | Q15: 0 | R15: 0 | S15: 4 | T15: 4 | U15: 0 | V15: =IFERROR(VLOOKUP($A$5,'Equipment List Template'!$1:$1048576,20,FALSE),"0") -> 0 | W15: 0
A16: 0 | B16: H11 | C16: HVAC Unique System | J16: 8 | K16: 0 | L16: 0 | M16: 3 | N16: 0 | O16: 0 | P16: 1 | Q16: 0 | R16: 0 | S16: 12 | T16: 12 | U16: 0 | V16: =IFERROR(VLOOKUP($A$5,'Equipment List Template'!$1:$1048576,21,FALSE),"0") -> 0 | W16: 0
A17: 0 | B17: E1 | C17: Electrical Panels | J17: 0 | K17: 0 | L17: 0 | M17: 3 | N17: 0 | O17: 0 | P17: 1 | Q17: 0 | R17: 0 | S17: 4 | T17: 4 | U17: 0 | V17: =IFERROR(VLOOKUP($A$5,'Equipment List Template'!$1:$1048576,22,FALSE),"0") -> 0 | W17: 0
A18: 0 | B18: E2 | C18: Emergency Generator | J18: 8 | K18: 0 | L18: 0 | M18: 3 | N18: 0 | O18: 0 | P18: 1 | Q18: 0 | R18: 0 | S18: 12 | T18: 12 | U18: 0 | V18: =IFERROR(VLOOKUP($A$5,'Equipment List Template'!$1:$1048576,23,FALSE),"0") -> 0 | W18: 0
A19: 0 | B19: E3 | C19: Motor Control Center | J19: 0 | K19: 0 | L19: 0 | M19: 4 | N19: 0 | O19: 0 | P19: 0 | Q19: 0 | R19: 0 | S19: 4 | T19: 4 | U19: 0 | V19: =IFERROR(VLOOKUP($A$5,'Equipment List Template'!$1:$1048576,24,FALSE),"0") -> 0 | W19: 0
A20: 0 | B20: E4 | C20: Automatic Switch Gear | J20: 8 | K20: 0 | L20: 0 | M20: 3 | N20: 0 | O20: 0 | P20: 1 | Q20: 0 | R20: 0 | S20: 12 | T20: 12 | U20: 0 | V20: =IFERROR(VLOOKUP($A$5,'Equipment List Template'!$1:$1048576,25,FALSE),"0") -> 0 | W20: 0
A21: 0 | B21: E5 | C21: Not Used | J21: 8 | K21: 0 | L21: 0 | M21: 3 | N21: 0 | O21: 0 | P21: 1 | Q21: 0 | R21: 0 | S21: 12 | T21: 12 | U21: 0 | V21: =IFERROR(VLOOKUP($A$5,'Equipment List Template'!$1:$1048576,26,FALSE),"0") -> 0 | W21: 0
A22: 0 | B22: E6 | C22: Transformer (Dry-Type) | J22: 0 | K22: 0 | L22: 0 | M22: 3 | N22: 0 | O22: 0 | P22: 1 | Q22: 0 | R22: 0 | S22: 4 | T22: 4 | U22: 0 | V22: =IFERROR(VLOOKUP($A$5,'Equipment List Template'!$1:$1048576,27,FALSE),"0") -> 0 | W22: 0
A23: 0 | B23: E7 | C23: Uninterruptible Power Supply (UPS) | J23: 0 | K23: 0 | L23: 0 | M23: 0 | N23: 0 | O23: 0 | P23: 1 | Q23: 0 | R23: 0 | S23: 1 | T23: 1 | U23: 0 | V23: =IFERROR(VLOOKUP($A$5,'Equipment List Template'!$1:$1048576,28,FALSE),"0") -> 0 | W23: 0
A24: 0 | B24: E8 | C24: Electrical Unique System | J24: 8 | K24: 0 | L24: 0 | M24: 3 | N24: 0 | O24: 0 | P24: 1 | Q24: 0 | R24: 0 | S24: 12 | T24: 12 | U24: 0 | V24: =IFERROR(VLOOKUP($A$5,'Equipment List Template'!$1:$1048576,29,FALSE),"0") -> 0 | W24: 0
A25: 0 | B25: L1 | C25: Life Safety | J25: 0 | K25: 0 | L25: 0 | M25: 3 | N25: 0 | O25: 0 | P25: 1 | Q25: 0 | R25: 0 | S25: 4 | T25: 4 | U25: 0 | V25: =IFERROR(VLOOKUP($A$5,'Equipment List Template'!$1:$1048576,30,FALSE),"0") -> 0 | W25: =+U25*V25 -> 0
A26: 0 | B26: L2 | C26: Backflow Preventer(s) | J26: 0 | K26: 0 | L26: 0 | M26: 0 | N26: 0 | O26: 0 | P26: 1 | Q26: 0 | R26: 0 | S26: 1 | T26: 1 | U26: 0 | V26: =IFERROR(VLOOKUP($A$5,'Equipment List Template'!$1:$1048576,31,FALSE),"0") -> 0 | W26: =+U26*V26 -> 0
A27: 0 | B27: P1 | C27: Hot Water Boiler | J27: 8 | K27: 0 | L27: 0 | M27: 3 | N27: 0 | O27: 0 | P27: 1 | Q27: 0 | R27: 0 | S27: 12 | T27: 12 | U27: 0 | V27: =IFERROR(VLOOKUP($A$5,'Equipment List Template'!$1:$1048576,32,FALSE),"0") -> 0 | W27: 0
A28: 0 | B28: P2 | C28: Gas Water Heater | J28: 0 | K28: 0 | L28: 0 | M28: 0 | N28: 0 | O28: 0 | P28: 1 | Q28: 0 | R28: 0 | S28: 1 | T28: 1 | U28: 0 | V28: =IFERROR(VLOOKUP($A$5,'Equipment List Template'!$1:$1048576,33,FALSE),"0") -> 0 | W28: 0
A29: 0 | B29: P3 | C29: Electric Water Heater | J29: 0 | K29: 0 | L29: 0 | M29: 0 | N29: 0 | O29: 0 | P29: 1 | Q29: 0 | R29: 0 | S29: 1 | T29: 1 | U29: 0 | V29: =IFERROR(VLOOKUP($A$5,'Equipment List Template'!$1:$1048576,34,FALSE),"0") -> 0 | W29: 0
A30: 0 | B30: P4 | C30: Plumbing Unique System | J30: 0 | K30: 0 | L30: 0 | M30: 3 | N30: 0 | O30: 0 | P30: 1 | Q30: 0 | R30: 0 | S30: 4 | T30: 4 | U30: 0 | V30: =IFERROR(VLOOKUP($A$5,'Equipment List Template'!$1:$1048576,35,FALSE),"0") -> 0 | W30: 0
A31: 0 | B31: P5 | C31: Steam System | J31: 0 | K31: 0 | L31: 0 | M31: 3 | N31: 0 | O31: 0 | P31: 1 | Q31: 0 | R31: 0 | S31: 4 | T31: 4 | U31: 0 | V31: =IFERROR(VLOOKUP($A$5,'Equipment List Template'!$1:$1048576,36,FALSE),"0") -> 0 | W31: 0
A32: 0 | B32: P6 | C32: Pneumatic Compressor | J32: 11 | K32: 0 | L32: 0 | M32: 0 | N32: 0 | O32: 0 | P32: 1 | Q32: 0 | R32: 0 | S32: 12 | T32: 12 | U32: 0 | V32: =IFERROR(VLOOKUP($A$5,'Equipment List Template'!$1:$1048576,37,FALSE),"0") -> 0 | W32: 0
A33: 0 | B33: R1 | C33: Rounds and Readings | D33: =IFERROR(IF(VLOOKUP($A33,'Equipment List Template'!$1:$1048576,38,FALSE)=248,248,0),0) -> 0 | E33: 0 | F33: =+E33*D33 -> 0 | G33: =IFERROR(IF(VLOOKUP($A33,'Equipment List Template'!$1:$1048576,38,FALSE)=40,40,0),0) -> 0 | H33: 0 | I33: =+H33*G33 -> 0 | J33: 12 | K33: 0 | L33: 0 | S33: 12 | T33: 12 | U33: =+R33+O33+L33+I33+F33 -> 0 | V33: 1 | W33: =+U33*V33 -> 0
A34: 0 | B34: V1 | C34: Vertical Transportation | J34: 8 | K34: 0 | L34: =+K34*J34 -> 0 | M34: 3 | N34: 0 | O34: =+N34*M34 -> 0 | P34: 1 | Q34: 0 | R34: =+Q34*P34 -> 0 | S34: 12 | T34: 12 | U34: =+R34+O34+L34 -> 0 | V34: =IFERROR(VLOOKUP($A$5,'Equipment List Template'!$1:$1048576,39,FALSE),"0") -> 0 | W34: =+U34*V34 -> 0
A35: 0 | B35: W1 | C35: Water Treatment | D35: =IFERROR(IF(VLOOKUP($A35,'Equipment List Template'!$1:$1048576,40,FALSE)=248,260,0),0) -> 0 | E35: 0 | F35: =+E35*D35 -> 0 | S35: 0 | T35: 0 | U35: =+R35+O35+L35+I35+F35 -> 0 | V35: 1 | W35: 0
A36: 0 | B36: B1 | C36: Building Exterior / Hardscape (Monthly) | J36: 12 | K36: 0 | L36: =+K36*J36 -> 0 | S36: 12 | T36: 12 | U36: 0 | V36: =IFERROR(VLOOKUP($A$5,'Equipment List Template'!$1:$1048576,41,FALSE),"0") -> 0 | W36: 0
A37: 0 | B37: F1 | C37: Fountain Maintenance (Monthly) | J37: 12 | K37: 0 | L37: =+K37*J37 -> 0 | S37: 12 | T37: 12 | U37: 0 | V37: =IFERROR(VLOOKUP($A$5,'Equipment List Template'!$1:$1048576,42,FALSE),"0") -> 0 | W37: 0
A38: 0 | B38: F2 | C38: Fuel Storage Tanks (Quarterly) If applicable | M38: 4 | N38: 0 | O38: =+N38*M38 -> 0 | S38: 4 | T38: 4 | U38: 0 | V38: =IFERROR(VLOOKUP($A$5,'Equipment List Template'!$1:$1048576,43,FALSE),"0") -> 0 | W38: 0
A39: 0 | B39: G1 | C39: Landscape Maintenance * | G39: 40 | H39: 0 | I39: =+H39*G39 -> 0 | S39: 0 | T39: 0 | U39: 0 | V39: =IFERROR(VLOOKUP($A$5,'Equipment List Template'!$1:$1048576,44,FALSE),"0") -> 0 | W39: 0
B40: PC1 | C40: Pest Control (Monthly) | J40: 12 | K40: 0 | S40: 12 | T40: 12 | U40: 0 | V40: 1 | W40: 0
A41: 0 | B41: C1 | C41: Account Management and Supervision (Monthly) | J41: 12 | K41: 0 | L41: =+K41*J41 -> 0 | S41: 12 | T41: 12 | U41: 0 | V41: 1 | W41: 0
A42: 0 | B42: C2 | C42: Fee (Monthly) | J42: 12 | K42: 0 | L42: =+K42*J42 -> 0 | S42: 12 | T42: 12 | U42: 0 | V42: 1 | W42: 0
Q43: JCC ID | R43: =B2 -> 0 | U43: Total | W43: =SUM(W6:W42) -> 0
B44: S1 | C44: Snow Removal - (crew hourly rate) | D44: 0 | U44: Total # of PM's | W44: =SUM(T5:T42) -> 289
B45: I1 | C45: Unclogging Blocked Toilet - In-custody cell (labor-only) | D45: 0
B46: I2 | C46: Unclogging Blocked Toilet - Public/Court Staff (labor-only) | D46: 0
B47: I3 | C47: Clean up & Disposal of Biological Waste Event | D47: 0
B48: I4 | C48: Clean up & Disposal of Biological Waste Labor Rate | D48: 0
B49: Hr 1 | C49: Hourly Rate (All Labor categories) | D49: 0
B50: M1 | C50: Markup on Materials (Percentage) | D50: 0
B51: Sub1 | C51: Markup on Subcontractors/Third-Parties (Percentage) | D51: 0
B53: * Landscape Maintenance varies by location on the number of weeks per year it can be preformed. For the purpose of the RFP, all facilities are pre-established at 40 weeks of service. The actual amount paid by facility will be based upon the actual weeks that service has been performed, validated and invoiced.

Sheet 01-B3
B1: JCC ID | C1: Facility Name | D1: Address | F1: City / Town | H1: Zip Code | J1: County | L1: Region | N1: RFP | P1: Proposer
B2: 01-B3 | C2: =IFERROR(VLOOKUP($B$2,'Equipment List Template'!$1:$1048576,2,FALSE),"") -> Wiley W. Manuel Courthouse | D2: =IFERROR(VLOOKUP($B$2,'Equipment List Template'!$1:$1048576,3,FALSE),"") -> 661 Washington St. | F2: =IFERROR(VLOOKUP($B$2,'Equipment List Template'!$1:$1048576,4,FALSE),"") -> Oakland | H2: =IFERROR(VLOOKUP($B$2,'Equipment List Template'!$1:$1048576,5,FALSE),"") -> 94607 | J2: =IFERROR(VLOOKUP($B$2,'Equipment List Template'!$1:$1048576,6,FALSE),"") -> Alameda | L2: =IFERROR(VLOOKUP($B$2,'Equipment List Template'!$1:$1048576,7,FALSE),"") -> BANCRO | N2: ='Summary Pricing Sheet'!B2 -> RFP-FS-SP-2019-03-JP | P2: ='Summary Pricing Sheet'!B3 -> Firm Name TBD
D3: Daily Activity | G3: Weekly Activity | J3: Monthly Activity | M3: Quarterly Activity | P3: Annual Activity | U3: Summary | AG3: System | AH3: Access | AI3: HVAC | AU3: Electrical | BD3: Life Safety | BF3: Plumbing | BM3: Building Systems | BV3: Corporate | BY3: Fixed Price - Facility Total Annual Cost Year 1 | CA3: Unit Pricing
B4: System ID | C4: Subsystem | D4: Quantity | E4: Cost | F4: Daily Total | G4: Quantity | H4: Cost | I4: Weekly Total | J4: Monthly Quantity | K4: Cost | L4: Monthly Total | M4: Quarterly Quantity | N4: Cost | O4: Quarterly Total | P4: Annual Quantity | Q4: Cost | R4: Annual PM Total | T4: Number of PM's | U4: Annual Cost | V4: Quantity | W4: Total Annual Cost | AG4: Subsystem | AH4: Access Doors, Gates, Sally Port | AI4: Air Cooled DX (Split System) | AJ4: Air Handling Unit (Air Cooled DX / Package) | AK4: Air-Cooled Chiller | AL4: Centrifugal Chiller | AM4: Cooling Tower (Induced Draft) | AN4: Ice Chiller Tank | AO4: Geothermal System | AP4: Water Source Heat Pump | AQ4: Fan Coil System | AR4: Supply / Return Fan and Exhaust | AS4: Evaporative and Spot Coolers (swamp coolers; spot cooler) | AT4: Unique HVAC System | AU4: Electrical Panels | AV4: Emergency Generator | AW4: Motor Control Center | AX4: Automatic Transfer Switch | AY4: Building Automated Systems (BAS) | AZ4: Transformer (Dry-Type) | BA4: Uninterruptible Power Supply (UPS) | BB4: Lighting and Controls (Interior and Exterior) | BC4: Unique Electrical System | BD4: Life Safety Systems | BE4: Reduced Pressure Backflow Preventer(s) | BF4: Boiler (Condensing) | BG4: Domestic Water Heater (Gas-Fired, Condensing) | BH4: Domestic Water Heater (Electric, Non- Condensing) | BI4: Boiler (Steam, low pressure) | BJ4: Steam System | BK4: Pneumatic Compressor System | BL4: Unique Plumbing System | BM4: Rounds and Readings | BN4: Vertical Transportation | BO4: Water Treatment | BP4: Building Exterior / Hardscape (Monthly) | BQ4: Fountain Maintenance (Monthly) | BR4: Above-Ground/Underground Fuel Storage Tanks (Quarterly) If applicable | BS4: Landscape Maintenance * | BT4: Pest Control (Monthly) | BU4: Photovoltaic (PV) System | BV4: Account Management and Supervision (Monthly) | BW4: Fee (Monthly) | CA4: Snow Removal - (crew hourly rate) | CB4: Unclogging Blocked Toilet - In-custody holding cell (labor) | CC4: Unclogging Blocked Toilet - Public/Court Staff (labor) | CD4: Clean up & Disposal of Biological Waste Event | CE4: Clean up & Disposal of Biological Waste Labor Rate | CF4: Hourly Rate | CG4: Markup on Materials | CH4: Markup on Subcontractors/Third-Parties
A5: =$B$2 -> 01-B3 | B5: A1 | C5: Access Doors, Gates, Sally Port | J5: 11 | K5: 0 | L5: =+K5*J5 -> 0 | M5: 0 | N5: 0 | O5: =+N5*M5 -> 0 | P5: 1 | Q5: 0 | R5: =+Q5*P5 -> 0 | S5: =+$J5+$M5+$P5 -> 12 | T5: =IF($V5>0,$S5,0) -> 12 | U5: =+R5+O5+L5+I5+F5 -> 0 | V5: =IFERROR(VLOOKUP($A$5,'Equipment List Template'!$1:$1048576,10,FALSE),"0") -> 6 | W5: =+U5*V5 -> 0 | X5: =$T5*$V5 -> 72 | Z5: JCC ID | AA5: Facility Name | AB5: Address | AC5: City / Town | AD5: County | AE5: Region | AF5: Region | AG5: System ID | AH5: A1 | AI5: H1 | AJ5: H2 | AK5: H3 | AL5: H4 | AM5: H5 | AN5: H6 | AO5: H7 | AP5: H8 | AQ5: H9 | AR5: H10 | AS5: H11 | AT5: H12 | AU5: E1 | AV5: E2 | AW5: E3 | AX5: E4 | AY5: E5 | AZ5: E6 | BA5: E7 | BB5: E8 | BC5: E9 | BD5: L1 | BE5: L2 | BF5: P1 | BG5: P2 | BH5: P3 | BI5: P4 | BJ5: P5 | BK5: P6 | BL5: P7 | BM5: R1 | BN5: V1 | BO5: W1 | BP5: B1 | BQ5: F1 | BR5: F2 | BS5: G1 | BT5: PC1 | BU5: PV1 | BV5: C1 | BW5: C2 | CA5: S1 | CB5: I1 | CC5: I2 | CD5: I3 | CE5: I4 | CF5: Hr 1 | CG5: M1 | CH5: Sub1
A6: =$B$2 -> 01-B3 | B6: H1 | C6: Air Cooled DX (Split System) | J6: 0 | K6: 0 | L6: =+K6*J6 -> 0 | M6: 3 | N6: 0 | O6: =+N6*M6 -> 0 | P6: 1 | Q6: 0 | R6: =+Q6*P6 -> 0 | S6: =+$J6+$M6+$P6 -> 4 | T6: =IF($V6>0,$S6,0) -> 4 | U6: =+R6+O6+L6+I6+F6 -> 0 | V6: =IFERROR(VLOOKUP($A$5,'Equipment List Template'!$1:$1048576,11,FALSE),"0") -> 1 | W6: =+U6*V6 -> 0 | X6: =$T6*$V6 -> 4 | Z6: =B2 -> 01-B3 | AA6: =IFERROR(VLOOKUP($Z$6,'Equipment List Template'!$1:$1048576,2,FALSE),"") -> Wiley W. Manuel Courthouse | AB6: =IFERROR(VLOOKUP($Z$6,'Equipment List Template'!$1:$1048576,3,FALSE),"") -> 661 Washington St. | AC6: =IFERROR(VLOOKUP($Z$6,'Equipment List Template'!$1:$1048576,4,FALSE),"") -> Oakland | AD6: =IFERROR(VLOOKUP($Z$6,'Equipment List Template'!$1:$1048576,5,FALSE),"") -> 94607 | AE6: =IFERROR(VLOOKUP($Z$6,'Equipment List Template'!$1:$1048576,6,FALSE),"") -> Alameda | AF6: =IFERROR(VLOOKUP($Z$6,'Equipment List Template'!$1:$1048576,7,FALSE),"") -> BANCRO | AH6: =+$W5 -> 0 | AI6: =+$W6 -> 0 | AJ6: =+$W7 -> 0 | AK6: =+$W8 -> 0 | AL6: =+$W9 -> 0 | AM6: =+$W10 -> 0 | AN6: =+$W11 -> 0 | AO6: =+$W12 -> 0 | AP6: =+$W13 -> 0 | AQ6: =+$W14 -> 0 | AR6: =+$W15 -> 0 | AS6: =+$W16 -> 0 | AT6: =+$W17 -> 0 | AU6: =+$W18 -> 0 | AV6: =+$W19 -> 0 | AW6: =+$W20 -> 0 | AX6: =+$W21 -> 0 | AY6: =+$W22 -> 0 | AZ6: =+$W23 -> 0 | BA6: =+$W24 -> 0 | BB6: =+$W25 -> 0 | BC6: =+$W26 -> 0 | BD6: =+$W27 -> 0 | BE6: =+$W28 -> 0 | BF6: =+$W29 -> 0 | BG6: =+$W30 -> 0 | BH6: =+$W31 -> 0 | BI6: =+$W32 -> 0 | BJ6: =+$W33 -> 0 | BK6: =+$W34 -> 0 | BL6: =+$W35 -> 0 | BM6: =+$W36 -> 0 | BN6: =+$W37 -> 0 | BO6: =+$W38 -> 0 | BP6: =+$W39 -> 0 | BQ6: =+$W40 -> 0 | BR6: =+$W41 -> 0 | BS6: =+$W42 -> 0 | BT6: =+$W43 -> 0 | BU6: =+$W44 -> 0 | BV6: =+$W45 -> 0 | BW6: =+$W46 -> 0 | BY6: =+$W47 -> 0 | CA6: =+$D48 -> 0 | CB6: =+$D49 -> 0 | CC6: =+$D50 -> 0 | CD6: =+$D51 -> 0 | CE6: =+$D52 -> 0 | CF6: =+$D53 -> 0 | CG6: =+$D54 -> 0 | CH6: =+$D55 -> 0
A7: 01-B3 | B7: H2 | C7: Air Handling Unit (Air Cooled DX / Package) | J7: 0 | K7: 0 | L7: 0 | M7: 3 | N7: 0 | O7: 0 | P7: 1 | Q7: 0 | R7: 0 | S7: 4 | T7: 4 | U7: 0 | V7: =IFERROR(VLOOKUP($A$5,'Equipment List Template'!$1:$1048576,12,FALSE),"0") -> 2 | W7: =+U7*V7 -> 0 | X7: 8
A8: 01-B3 | B8: H3 | C8: Air-Cooled Chiller | J8: 11 | K8: 0 | L8: 0 | M8: 0 | N8: 0 | O8: 0 | P8: 1 | Q8: 0 | R8: 0 | S8: 12 | T8: 0 | U8: 0 | V8: =IFERROR(VLOOKUP($A$5,'Equipment List Template'!$1:$1048576,13,FALSE),"0") -> 0 | W8: 0 | X8: 0
A9: 01-B3 | B9: H4 | C9: Centrifugal Chiller | J9: 11 | K9: 0 | L9: 0 | M9: 0 | N9: 0 | O9: 0 | P9: 1 | Q9: 0 | R9: 0 | S9: 12 | T9: 0 | U9: 0 | V9: =IFERROR(VLOOKUP($A$5,'Equipment List Template'!$1:$1048576,14,FALSE),"0") -> 0 | W9: 0 | X9: 0
A10: 01-B3 | B10: H5 | C10: Cooling Tower (Induced Draft) | J10: 8 | K10: 0 | L10: 0 | M10: 3 | N10: 0 | O10: 0 | P10: 1 | Q10: 0 | R10: 0 | S10: 12 | T10: 0 | U10: 0 | V10: =IFERROR(VLOOKUP($A$5,'Equipment List Template'!$1:$1048576,15,FALSE),"0") -> 0 | W10: 0 | X10: 0
A11: 01-B3 | B11: H6 | C11: Ice Chiller Tank | J11: 8 | K11: 0 | L11: 0 | M11: 3 | N11: 0 | O11: 0 | P11: 1 | Q11: 0 | R11: 0 | S11: 12 | T11: 0 | U11: 0 | V11: =IFERROR(VLOOKUP($A$5,'Equipment List Template'!$1:$1048576,16,FALSE),"0") -> 0 | W11: 0 | X11: 0
A12: 01-B3 | B12: H7 | C12: Geothermal System | J12: 11 | K12: 0 | L12: 0 | M12: 0 | N12: 0 | O12: 0 | P12: 1 | Q12: 0 | R12: 0 | S12: 12 | T12: 0 | U12: 0 | V12: =IFERROR(VLOOKUP($A$5,'Equipment List Template'!$1:$1048576,17,FALSE),"0") -> 0 | W12: 0 | X12: 0
A13: 01-B3 | B13: H8 | C13: Water Source Heat Pump | J13: 8 | K13: 0 | L13: 0 | M13: 3 | N13: 0 | O13: 0 | P13: 1 | Q13: 0 | R13: 0 | S13: 12 | T13: 0 | U13: 0 | V13: =IFERROR(VLOOKUP($A$5,'Equipment List Template'!$1:$1048576,18,FALSE),"0") -> 0 | W13: 0 | X13: 0
A14: 01-B3 | B14: H9 | C14: Fan Coil System | J14: 0 | K14: 0 | L14: 0 | M14: 3 | N14: 0 | O14: 0 | P14: 1 | Q14: 0 | R14: 0 | S14: 4 | T14: 4 | U14: 0 | V14: =IFERROR(VLOOKUP($A$5,'Equipment List Template'!$1:$1048576,19,FALSE),"0") -> 4 | W14: 0 | X14: 16
A15: 01-B3 | B15: H10 | C15: Supply / Return Fan and Exhaust | J15: 0 | K15: 0 | L15: 0 | M15: 3 | N15: 0 | O15: 0 | P15: 1 | Q15: 0 | R15: 0 | S15: 4 | T15: 4 | U15: 0 | V15: =IFERROR(VLOOKUP($A$5,'Equipment List Template'!$1:$1048576,20,FALSE),"0") -> 3 | W15: 0 | X15: 12
A16: 01-B3 | B16: H11 | C16: Evaporative and Spot Coolers (swamp coolers; spot cooler) | J16: 8 | K16: 0 | L16: 0 | M16: 3 | N16: 0 | O16: 0 | P16: 1 | Q16: 0 | R16: 0 | S16: 12 | T16: 0 | U16: 0 | V16: =IFERROR(VLOOKUP($A$5,'Equipment List Template'!$1:$1048576,21,FALSE),"0") -> 0 | W16: 0 | X16: 0
B17: H12 | C17: Unique HVAC System | J17: 0 | K17: 0 | L17: =+K17*J17 -> 0 | M17: 0 | N17: 0 | O17: =+N17*M17 -> 0 | P17: 0 | Q17: 0 | R17: =+Q17*P17 -> 0 | S17: 0 | T17: 0 | V17: 0 | W17: 0 | X17: 0
A18: 01-B3 | B18: E1 | C18: Electrical Panels | J18: 0 | K18: 0 | L18: 0 | M18: 3 | N18: 0 | O18: 0 | P18: 1 | Q18: 0 | R18: 0 | S18: 4 | T18: 0 | U18: 0 | V18: =IFERROR(VLOOKUP($A$5,'Equipment List Template'!$1:$1048576,23,FALSE),"0") -> 0 | W18: 0 | X18: 0
A19: 01-B3 | B19: E2 | C19: Emergency Generator | J19: 8 | K19: 0 | L19: 0 | M19: 3 | N19: 0 | O19: 0 | P19: 1 | Q19: 0 | R19: 0 | S19: 12 | T19: 0 | U19: 0 | V19: =IFERROR(VLOOKUP($A$5,'Equipment List Template'!$1:$1048576,24,FALSE),"0") -> 0 | W19: 0 | X19: 0
A20: 01-B3 | B20: E3 | C20: Motor Control Center | J20: 0 | K20: 0 | L20: 0 | M20: 3 | N20: 0 | O20: 0 | P20: 1 | Q20: 0 | R20: 0 | S20: 4 | T20: 0 | U20: 0 | V20: =IFERROR(VLOOKUP($A$5,'Equipment List Template'!$1:$1048576,25,FALSE),"0") -> 0 | W20: 0 | X20: 0
A21: 01-B3 | B21: E4 | C21: Automatic Transfer Switch | J21: 8 | K21: 0 | L21: 0 | M21: 3 | N21: 0 | O21: 0 | P21: 1 | Q21: 0 | R21: 0 | S21: 12 | T21: 0 | U21: 0 | V21: =IFERROR(VLOOKUP($A$5,'Equipment List Template'!$1:$1048576,26,FALSE),"0") -> 0 | W21: 0 | X21: 0
A22: 01-B3 | B22: E5 | C22: Building Automated Systems (BAS) | J22: 0 | K22: 0 | L22: 0 | M22: 0 | N22: 0 | O22: 0 | P22: 1 | Q22: 0 | R22: 0 | S22: 1 | T22: 1 | U22: 0 | V22: =IFERROR(VLOOKUP($A$5,'Equipment List Template'!$1:$1048576,27,FALSE),"0") -> 1 | W22: 0 | X22: 1
A23: 01-B3 | B23: E6 | C23: Transformer (Dry-Type) | J23: 0 | K23: 0 | L23: 0 | M23: 3 | N23: 0 | O23: 0 | P23: 1 | Q23: 0 | R23: 0 | S23: 4 | T23: 4 | U23: 0 | V23: =IFERROR(VLOOKUP($A$5,'Equipment List Template'!$1:$1048576,28,FALSE),"0") -> 8 | W23: 0 | X23: 32
A24: 01-B3 | B24: E7 | C24: Uninterruptible Power Supply (UPS) | J24: 0 | K24: 0 | L24: 0 | M24: 0 | N24: 0 | O24: 0 | P24: 1 | Q24: 0 | R24: 0 | S24: 1 | T24: 0 | U24: 0 | V24: =IFERROR(VLOOKUP($A$5,'Equipment List Template'!$1:$1048576,29,FALSE),"0") -> 0 | W24: 0 | X24: 0
A25: 01-B3 | B25: E8 | C25: Lighting and Controls (Interior and Exterior) | J25: 12 | K25: 0 | L25: 0 | M25: 0 | N25: 0 | O25: 0 | P25: 0 | Q25: 0 | R25: 0 | S25: 12 | T25: 12 | U25: 0 | V25: =IFERROR(VLOOKUP($A$5,'Equipment List Template'!$1:$1048576,30,FALSE),"0") -> 2 | W25: 0 | X25: 24
B26: E9 | C26: Unique Electrical System | J26: 0 | K26: 0 | L26: 0 | M26: 0 | N26: 0 | O26: 0 | P26: 0 | Q26: 0 | R26: 0 | S26: 0 | T26: 0 | V26: 0 | W26: 0 | X26: 0
A27: 01-B3 | B27: L1 | C27: Life Safety Systems | J27: 0 | K27: 0 | L27: 0 | M27: 3 | N27: 0 | O27: 0 | P27: 1 | Q27: 0 | R27: 0 | S27: 4 | T27: 4 | U27: 0 | V27: =IFERROR(VLOOKUP($A$5,'Equipment List Template'!$1:$1048576,32,FALSE),"0") -> 6 | W27: 0 | X27: 24
A28: 01-B3 | B28: L2 | C28: Reduced Pressure Backflow Preventer(s) | J28: 0 | K28: 0 | L28: 0 | M28: 0 | N28: 0 | O28: 0 | P28: 1 | Q28: 0 | R28: 0 | S28: 1 | T28: 1 | U28: 0 | V28: =IFERROR(VLOOKUP($A$5,'Equipment List Template'!$1:$1048576,33,FALSE),"0") -> 6 | W28: 0 | X28: 6
A29: 01-B3 | B29: P1 | C29: Boiler (Condensing) | J29: 8 | K29: 0 | L29: 0 | M29: 3 | N29: 0 | O29: 0 | P29: 1 | Q29: 0 | R29: 0 | S29: 12 | T29: 0 | U29: 0 | V29: =IFERROR(VLOOKUP($A$5,'Equipment List Template'!$1:$1048576,34,FALSE),"0") -> 0 | W29: 0 | X29: 0
A30: 01-B3 | B30: P2 | C30: Domestic Water Heater (Gas-Fired, Condensing) | J30: 0 | K30: 0 | L30: 0 | M30: 0 | N30: 0 | O30: 0 | P30: 1 | Q30: 0 | R30: 0 | S30: 1 | T30: 0 | U30: 0 | V30: =IFERROR(VLOOKUP($A$5,'Equipment List Template'!$1:$1048576,35,FALSE),"0") -> 0 | W30: 0 | X30: 0
A31: 01-B3 | B31: P3 | C31: Domestic Water Heater (Electric, Non- Condensing) | J31: 0 | K31: 0 | L31: 0 | M31: 0 | N31: 0 | O31: 0 | P31: 1 | Q31: 0 | R31: 0 | S31: 1 | T31: 0 | U31: 0 | V31: =IFERROR(VLOOKUP($A$5,'Equipment List Template'!$1:$1048576,36,FALSE),"0") -> 0 | W31: 0 | X31: 0
A32: 01-B3 | B32: P4 | C32: Boiler (Steam, low pressure) | J32: 0 | K32: 0 | L32: 0 | M32: 3 | N32: 0 | O32: 0 | P32: 1 | Q32: 0 | R32: 0 | S32: 4 | T32: 0 | U32: 0 | V32: =IFERROR(VLOOKUP($A$5,'Equipment List Template'!$1:$1048576,37,FALSE),"0") -> 0 | W32: 0 | X32: 0
A33: 01-B3 | B33: P5 | C33: Steam System | J33: 8 | K33: 0 | L33: 0 | M33: 3 | N33: 0 | O33: 0 | P33: 1 | Q33: 0 | R33: 0 | S33: 12 | T33: 0 | U33: 0 | V33: =IFERROR(VLOOKUP($A$5,'Equipment List Template'!$1:$1048576,38,FALSE),"0") -> 0 | W33: 0 | X33: 0
A34: 01-B3 | B34: P6 | C34: Pneumatic Compressor System | J34: 11 | K34: 0 | L34: 0 | M34: 0 | N34: 0 | O34: 0 | P34: 1 | Q34: 0 | R34: 0 | S34: 12 | T34: 0 | U34: 0 | V34: =IFERROR(VLOOKUP($A$5,'Equipment List Template'!$1:$1048576,39,FALSE),"0") -> 0 | W34: 0 | X34: 0
B35: P7 | C35: Unique Plumbing System | J35: 0 | K35: 0 | L35: =+K35*J35 -> 0 | M35: 0 | N35: 0 | O35: =+N35*M35 -> 0 | P35: 0 | Q35: 0 | R35: =+Q35*P35 -> 0 | S35: 0 | T35: 0 | U35: =+R35+O35+L35+I35+F35 -> 0 | V35: 0 | W35: 0 | X35: 0
A36: 01-B3 | B36: R1 | C36: Rounds and Readings | D36: =IFERROR(IF(VLOOKUP($A36,'Equipment List Template'!$1:$1048576,38,FALSE)=248,248,0),0) -> 0 | E36: 0 | F36: =+E36*D36 -> 0 | G36: =IFERROR(IF(VLOOKUP($A36,'Equipment List Template'!$1:$1048576,38,FALSE)=40,40,0),0) -> 0 | H36: 0 | I36: =+H36*G36 -> 0 | J36: 12 | K36: 0 | L36: 0 | S36: =+$J36+$M36+$P36+D36+G36 -> 12 | T36: 12 | U36: =+R36+O36+L36+I36+F36 -> 0 | V36: 1 | W36: =+U36*V36 -> 0 | X36: 12
A37: 01-B3 | B37: V1 | C37: Vertical Transportation | J37: 8 | K37: 0 | L37: =+K37*J37 -> 0 | M37: 3 | N37: 0 | O37: =+N37*M37 -> 0 | P37: 1 | Q37: 0 | R37: =+Q37*P37 -> 0 | S37: =+$J37+$M37+$P37+D37+G37 -> 12 | T37: 12 | U37: =+R37+O37+L37 -> 0 | V37: =IFERROR(VLOOKUP($A$5,'Equipment List Template'!$1:$1048576,42,FALSE),"0") -> 6 | W37: =+U37*V37 -> 0 | X37: 72
A38: 01-B3 | B38: W1 | C38: Water Treatment | D38: =IFERROR(IF(VLOOKUP($A38,'Equipment List Template'!$1:$1048576,40,FALSE)=248,260,0),0) -> 0 | E38: 0 | F38: =+E38*D38 -> 0 | S38: 0 | T38: 0 | U38: =+R38+O38+L38+I38+F38 -> 0 | V38: 1 | W38: 0 | X38: 0
A39: 01-B3 | B39: B1 | C39: Building Exterior / Hardscape (Monthly) | J39: 12 | K39: 0 | L39: =+K39*J39 -> 0 | S39: 12 | T39: 12 | U39: 0 | V39: =IFERROR(VLOOKUP($A$5,'Equipment List Template'!$1:$1048576,44,FALSE),"0") -> 1 | W39: 0 | X39: 12
A40: 01-B3 | B40: F1 | C40: Fountain Maintenance (Monthly) | J40: 12 | K40: 0 | L40: =+K40*J40 -> 0 | S40: 12 | T40: 0 | U40: 0 | V40: =IFERROR(VLOOKUP($A$5,'Equipment List Template'!$1:$1048576,45,FALSE),"0") -> 0 | W40: 0 | X40: 0
A41: 01-B3 | B41: F2 | C41: Above-Ground/Underground Fuel Storage Tanks (Quarterly) If applicable | M41: 4 | N41: 0 | O41: =+N41*M41 -> 0 | S41: 4 | T41: 0 | U41: 0 | V41: =IFERROR(VLOOKUP($A$5,'Equipment List Template'!$1:$1048576,46,FALSE),"0") -> 0 | W41: 0 | X41: 0
A42: 01-B3 | B42: G1 | C42: Landscape Maintenance * | S42: 0 | T42: 0 | U42: 0 | V42: =IFERROR(VLOOKUP($A$5,'Equipment List Template'!$1:$1048576,47,FALSE),"0") -> 1 | W42: 0 | X42: 0
B43: PC1 | C43: Pest Control (Monthly) | J43: 12 | K43: 0 | L43: =+K43*J43 -> 0 | S43: 12 | T43: 12 | U43: 0 | V43: 1 | W43: 0 | X43: 12
B44: PV1 | C44: Photovoltaic (PV) System | P44: 1 | Q44: 0 | R44: =+Q44*P44 -> 0 | S44: 1 | T44: 0 | U44: 0 | V44: 0 | W44: =+U44*V44 -> 0 | X44: 0
A45: 01-B3 | B45: C1 | C45: Account Management and Supervision (Monthly) | J45: 12 | K45: 0 | L45: =+K45*J45 -> 0 | S45: 12 | T45: 12 | U45: 0 | V45: 1 | W45: 0 | X45: 12
A46: 01-B3 | B46: C2 | C46: Fee (Monthly) | J46: 12 | K46: 0 | L46: =+K46*J46 -> 0 | S46: 12 | T46: 12 | U46: 0 | V46: 1 | W46: 0 | X46: 12
Q47: JCC ID | R47: =B2 -> 01-B3 | U47: Total | W47: =SUM(W5:W46) -> 0
B48: S1 | C48: Snow Removal - (crew hourly rate) | D48: 0 | U48: Total # of PM's | W48: =SUM($X$5:$X$46) -> 331
B49: I1 | C49: Unclogging Blocked Toilet - In-custody cell (labor-only) | D49: 0
B50: I2 | C50: Unclogging Blocked Toilet - Public/Court Staff (labor-only) | D50: 0
B51: I3 | C51: Clean up & Disposal of Biological Waste Event | D51: 0
B52: I4 | C52: Clean up & Disposal of Biological Waste Labor Rate | D52: 0
B53: Hr 1 | C53: Hourly Rate (All Labor categories) | D53: 0
B54: M1 | C54: Markup on Materials (Percentage) | D54: 0
B55: Sub1 | C55: Markup on Subcontractors/Third-Parties (Percentage) | D55: 0
B57: * Landscape Maintenance varies by location on the number of weeks per year it can be preformed. For the purpose of the RFP, all facilities are pre-established at 40 weeks of service. The actual amount paid by facility will be based upon the actual weeks that service has been performed, validated and invoiced.

Sheet 01-D1
B1: JCC ID | C1: Facility Name | D1: Address | F1: City / Town | H1: Zip Code | J1: County | L1: Region | N1: RFP | P1: Proposer
B2: 01-D1 | C2: =IFERROR(VLOOKUP($B$2,'Equipment List Template'!$1:$1048576,2,FALSE),"") -> Hayward Hall of Justice | D2: =IFERROR(VLOOKUP($B$2,'Equipment List Template'!$1:$1048576,3,FALSE),"") -> 24405 Amador St. | F2: =IFERROR(VLOOKUP($B$2,'Equipment List Template'!$1:$1048576,4,FALSE),"") -> Hayward | H2: =IFERROR(VLOOKUP($B$2,'Equipment List Template'!$1:$1048576,5,FALSE),"") -> 94544 | J2: =IFERROR(VLOOKUP($B$2,'Equipment List Template'!$1:$1048576,6,FALSE),"") -> Alameda | L2: =IFERROR(VLOOKUP($B$2,'Equipment List Template'!$1:$1048576,7,FALSE),"") -> BANCRO | N2: ='Summary Pricing Sheet'!B2 -> RFP-FS-SP-2019-03-JP | P2: ='Summary Pricing Sheet'!B3 -> Firm Name TBD
D3: Daily Activity | G3: Weekly Activity | J3: Monthly Activity | M3: Quarterly Activity | P3: Annual Activity | U3: Summary | AG3: System | AH3: Access | AI3: HVAC | AU3: Electrical | BD3: Life Safety | BF3: Plumbing | BM3: Building Systems | BV3: Corporate | BY3: Fixed Price - Facility Total Annual Cost Year 1 | CA3: Unit Pricing
B4: System ID | C4: Subsystem | D4: Quantity | E4: Cost | F4: Daily Total | G4: Quantity | H4: Cost | I4: Weekly Total | J4: Monthly Quantity | K4: Cost | L4: Monthly Total | M4: Quarterly Quantity | N4: Cost | O4: Quarterly Total | P4: Annual Quantity | Q4: Cost | R4: Annual PM Total | T4: Number of PM's | U4: Annual Cost | V4: Quantity | W4: Total Annual Cost | AG4: Subsystem | AH4: Access Doors, Gates, Sally Port | AI4: Air Cooled DX (Split System) | AJ4: Air Handling Unit (Air Cooled DX / Package) | AK4: Air-Cooled Chiller | AL4: Centrifugal Chiller | AM4: Cooling Tower (Induced Draft) | AN4: Ice Chiller Tank | AO4: Geothermal System | AP4: Water Source Heat Pump | AQ4: Fan Coil System | AR4: Supply / Return Fan and Exhaust | AS4: Evaporative and Spot Coolers (swamp coolers; spot cooler) | AT4: Unique HVAC System | AU4: Electrical Panels | AV4: Emergency Generator | AW4: Motor Control Center | AX4: Automatic Transfer Switch | AY4: Building Automated Systems (BAS) | AZ4: Transformer (Dry-Type) | BA4: Uninterruptible Power Supply (UPS) | BB4: Lighting and Controls (Interior and Exterior) | BC4: Unique Electrical System | BD4: Life Safety Systems | BE4: Reduced Pressure Backflow Preventer(s) | BF4: Boiler (Condensing) | BG4: Domestic Water Heater (Gas-Fired, Condensing) | BH4: Domestic Water Heater (Electric, Non- Condensing) | BI4: Boiler (Steam, low pressure) | BJ4: Steam System | BK4: Pneumatic Compressor System | BL4: Unique Plumbing System | BM4: Rounds and Readings | BN4: Vertical Transportation | BO4: Water Treatment | BP4: Building Exterior / Hardscape (Monthly) | BQ4: Fountain Maintenance (Monthly) | BR4: Above-Ground/Underground Fuel Storage Tanks (Quarterly) If applicable | BS4: Landscape Maintenance * | BT4: Pest Control (Monthly) | BU4: Photovoltaic (PV) System | BV4: Account Management and Supervision (Monthly) | BW4: Fee (Monthly) | CA4: Snow Removal - (crew hourly rate) | CB4: Unclogging Blocked Toilet - In-custody holding cell (labor) | CC4: Unclogging Blocked Toilet - Public/Court Staff (labor) | CD4: Clean up & Disposal of Biological Waste Event | CE4: Clean up & Disposal of Biological Waste Labor Rate | CF4: Hourly Rate | CG4: Markup on Materials | CH4: Markup on Subcontractors/Third-Parties
A5: =$B$2 -> 01-D1 | B5: A1 | C5: Access Doors, Gates, Sally Port | J5: 11 | K5: 0 | L5: =+K5*J5 -> 0 | M5: 0 | N5: 0 | O5: =+N5*M5 -> 0 | P5: 1 | Q5: 0 | R5: =+Q5*P5 -> 0 | S5: =+$J5+$M5+$P5 -> 12 | T5: =IF($V5>0,$S5,0) -> 12 | U5: =+R5+O5+L5+I5+F5 -> 0 | V5: =IFERROR(VLOOKUP($A$5,'Equipment List Template'!$1:$1048576,10,FALSE),"0") -> 5 | W5: =+U5*V5 -> 0 | X5: =$T5*$V5 -> 60 | Z5: JCC ID | AA5: Facility Name | AB5: Address | AC5: City / Town | AD5: County | AE5: Region | AF5: Region | AG5: System ID | AH5: A1 | AI5: H1 | AJ5: H2 | AK5: H3 | AL5: H4 | AM5: H5 | AN5: H6 | AO5: H7 | AP5: H8 | AQ5: H9 | AR5: H10 | AS5: H11 | AT5: H12 | AU5: E1 | AV5: E2 | AW5: E3 | AX5: E4 | AY5: E5 | AZ5: E6 | BA5: E7 | BB5: E8 | BC5: E9 | BD5: L1 | BE5: L2 | BF5: P1 | BG5: P2 | BH5: P3 | BI5: P4 | BJ5: P5 | BK5: P6 | BL5: P7 | BM5: R1 | BN5: V1 | BO5: W1 | BP5: B1 | BQ5: F1 | BR5: F2 | BS5: G1 | BT5: PC1 | BU5: PV1 | BV5: C1 | BW5: C2 | CA5: S1 | CB5: I1 | CC5: I2 | CD5: I3 | CE5: I4 | CF5: Hr 1 | CG5: M1 | CH5: Sub1
A6: =$B$2 -> 01-D1 | B6: H1 | C6: Air Cooled DX (Split System) | J6: 0 | K6: 0 | L6: =+K6*J6 -> 0 | M6: 3 | N6: 0 | O6: =+N6*M6 -> 0 | P6: 1 | Q6: 0 | R6: =+Q6*P6 -> 0 | S6: =+$J6+$M6+$P6 -> 4 | T6: =IF($V6>0,$S6,0) -> 4 | U6: =+R6+O6+L6+I6+F6 -> 0 | V6: =IFERROR(VLOOKUP($A$5,'Equipment List Template'!$1:$1048576,11,FALSE),"0") -> 4 | W6: =+U6*V6 -> 0 | X6: =$T6*$V6 -> 16 | Z6: =B2 -> 01-D1 | AA6: =IFERROR(VLOOKUP($Z$6,'Equipment List Template'!$1:$1048576,2,FALSE),"") -> Hayward Hall of Justice | AB6: =IFERROR(VLOOKUP($Z$6,'Equipment List Template'!$1:$1048576,3,FALSE),"") -> 24405 Amador St. | AC6: =IFERROR(VLOOKUP($Z$6,'Equipment List Template'!$1:$1048576,4,FALSE),"") -> Hayward | AD6: =IFERROR(VLOOKUP($Z$6,'Equipment List Template'!$1:$1048576,5,FALSE),"") -> 94544 | AE6: =IFERROR(VLOOKUP($Z$6,'Equipment List Template'!$1:$1048576,6,FALSE),"") -> Alameda | AF6: =IFERROR(VLOOKUP($Z$6,'Equipment List Template'!$1:$1048576,7,FALSE),"") -> BANCRO | AH6: =+$W5 -> 0 | AI6: =+$W6 -> 0 | AJ6: =+$W7 -> 0 | AK6: =+$W8 -> 0 | AL6: =+$W9 -> 0 | AM6: =+$W10 -> 0 | AN6: =+$W11 -> 0 | AO6: =+$W12 -> 0 | AP6: =+$W13 -> 0 | AQ6: =+$W14 -> 0 | AR6: =+$W15 -> 0 | AS6: =+$W16 -> 0 | AT6: =+$W17 -> 0 | AU6: =+$W18 -> 0 | AV6: =+$W19 -> 0 | AW6: =+$W20 -> 0 | AX6: =+$W21 -> 0 | AY6: =+$W22 -> 0 | AZ6: =+$W23 -> 0 | BA6: =+$W24 -> 0 | BB6: =+$W25 -> 0 | BC6: =+$W26 -> 0 | BD6: =+$W27 -> 0 | BE6: =+$W28 -> 0 | BF6: =+$W29 -> 0 | BG6: =+$W30 -> 0 | BH6: =+$W31 -> 0 | BI6: =+$W32 -> 0 | BJ6: =+$W33 -> 0 | BK6: =+$W34 -> 0 | BL6: =+$W35 -> 0 | BM6: =+$W36 -> 0 | BN6: =+$W37 -> 0 | BO6: =+$W38 -> 0 | BP6: =+$W39 -> 0 | BQ6: =+$W40 -> 0 | BR6: =+$W41 -> 0 | BS6: =+$W42 -> 0 | BT6: =+$W43 -> 0 | BU6: =+$W44 -> 0 | BV6: =+$W45 -> 0 | BW6: =+$W46 -> 0 | BY6: =+$W47 -> 0 | CA6: =+$D48 -> 0 | CB6: =+$D49 -> 0 | CC6: =+$D50 -> 0 | CD6: =+$D51 -> 0 | CE6: =+$D52 -> 0 | CF6: =+$D53 -> 0 | CG6: =+$D54 -> 0 | CH6: =+$D55 -> 0
A7: =$B$2 -> 01-D1 | B7: H2 | C7: Air Handling Unit (Air Cooled DX / Package) | J7: 0 | K7: 0 | L7: =+K7*J7 -> 0 | M7: 3 | N7: 0 | O7: =+N7*M7 -> 0 | P7: 1 | Q7: 0 | R7: =+Q7*P7 -> 0 | S7: =+$J7+$M7+$P7 -> 4 | T7: =IF($V7>0,$S7,0) -> 4 | U7: =+R7+O7+L7+I7+F7 -> 0 | V7: =IFERROR(VLOOKUP($A$5,'Equipment List Template'!$1:$1048576,12,FALSE),"0") -> 2 | W7: =+U7*V7 -> 0 | X7: =$T7*$V7 -> 8
A8: 01-D1 | B8: H3 | C8: Air-Cooled Chiller | J8: 11 | K8: 0 | L8: 0 | M8: 0 | N8: 0 | O8: 0 | P8: 1 | Q8: 0 | R8: 0 | S8: 12 | T8: 0 | U8: 0 | V8: =IFERROR(VLOOKUP($A$5,'Equipment List Template'!$1:$1048576,13,FALSE),"0") -> 0 | W8: 0 | X8: 0
A9: 01-D1 | B9: H4 | C9: Centrifugal Chiller | J9: 11 | K9: 0 | L9: 0 | M9: 0 | N9: 0 | O9: 0 | P9: 1 | Q9: 0 | R9: 0 | S9: 12 | T9: 12 | U9: 0 | V9: =IFERROR(VLOOKUP($A$5,'Equipment List Template'!$1:$1048576,14,FALSE),"0") -> 1 | W9: 0 | X9: 12
A10: 01-D1 | B10: H5 | C10: Cooling Tower (Induced Draft) | J10: 8 | K10: 0 | L10: 0 | M10: 3 | N10: 0 | O10: 0 | P10: 1 | Q10: 0 | R10: 0 | S10: 12 | T10: 12 | U10: 0 | V10: =IFERROR(VLOOKUP($A$5,'Equipment List Template'!$1:$1048576,15,FALSE),"0") -> 1 | W10: 0 | X10: 12
A11: 01-D1 | B11: H6 | C11: Ice Chiller Tank | J11: 8 | K11: 0 | L11: 0 | M11: 3 | N11: 0 | O11: 0 | P11: 1 | Q11: 0 | R11: 0 | S11: 12 | T11: 0 | U11: 0 | V11: =IFERROR(VLOOKUP($A$5,'Equipment List Template'!$1:$1048576,16,FALSE),"0") -> 0 | W11: 0 | X11: 0
A12: 01-D1 | B12: H7 | C12: Geothermal System | J12: 11 | K12: 0 | L12: 0 | M12: 0 | N12: 0 | O12: 0 | P12: 1 | Q12: 0 | R12: 0 | S12: 12 | T12: 0 | U12: 0 | V12: =IFERROR(VLOOKUP($A$5,'Equipment List Template'!$1:$1048576,17,FALSE),"0") -> 0 | W12: 0 | X12: 0
A13: 01-D1 | B13: H8 | C13: Water Source Heat Pump | J13: 8 | K13: 0 | L13: 0 | M13: 3 | N13: 0 | O13: 0 | P13: 1 | Q13: 0 | R13: 0 | S13: 12 | T13: 0 | U13: 0 | V13: =IFERROR(VLOOKUP($A$5,'Equipment List Template'!$1:$1048576,18,FALSE),"0") -> 0 | W13: 0 | X13: 0
A14: 01-D1 | B14: H9 | C14: Fan Coil System | J14: 0 | K14: 0 | L14: 0 | M14: 3 | N14: 0 | O14: 0 | P14: 1 | Q14: 0 | R14: 0 | S14: 4 | T14: 0 | U14: 0 | V14: =IFERROR(VLOOKUP($A$5,'Equipment List Template'!$1:$1048576,19,FALSE),"0") -> 0 | W14: 0 | X14: 0
A15: 01-D1 | B15: H10 | C15: Supply / Return Fan and Exhaust | J15: 0 | K15: 0 | L15: 0 | M15: 3 | N15: 0 | O15: 0 | P15: 1 | Q15: 0 | R15: 0 | S15: 4 | T15: 0 | U15: 0 | V15: =IFERROR(VLOOKUP($A$5,'Equipment List Template'!$1:$1048576,20,FALSE),"0") -> 0 | W15: 0 | X15: 0
A16: 01-D1 | B16: H11 | C16: Evaporative and Spot Coolers (swamp coolers; spot cooler) | J16: 8 | K16: 0 | L16: 0 | M16: 3 | N16: 0 | O16: 0 | P16: 1 | Q16: 0 | R16: 0 | S16: 12 | T16: 0 | U16: 0 | V16: =IFERROR(VLOOKUP($A$5,'Equipment List Template'!$1:$1048576,21,FALSE),"0") -> 0 | W16: 0 | X16: 0
B17: H12 | C17: Unique HVAC System | J17: 0 | K17: 0 | L17: 0 | M17: 0 | N17: 0 | O17: 0 | P17: 0 | Q17: 0 | R17: 0 | S17: 0 | T17: 0 | V17: 0 | W17: 0
A18: 01-D1 | B18: E1 | C18: Electrical Panels | J18: 0 | K18: 0 | L18: 0 | M18: 3 | N18: 0 | O18: 0 | P18: 1 | Q18: 0 | R18: 0 | S18: 4 | T18: 4 | U18: 0 | V18: =IFERROR(VLOOKUP($A$5,'Equipment List Template'!$1:$1048576,23,FALSE),"0") -> 1 | W18: 0 | X18: 4
A19: 01-D1 | B19: E2 | C19: Emergency Generator | J19: 8 | K19: 0 | L19: 0 | M19: 3 | N19: 0 | O19: 0 | P19: 1 | Q19: 0 | R19: 0 | S19: 12 | T19: 12 | U19: 0 | V19: =IFERROR(VLOOKUP($A$5,'Equipment List Template'!$1:$1048576,24,FALSE),"0") -> 1 | W19: 0 | X19: 12
A20: 01-D1 | B20: E3 | C20: Motor Control Center | J20: 0 | K20: 0 | L20: 0 | M20: 3 | N20: 0 | O20: 0 | P20: 1 | Q20: 0 | R20: 0 | S20: 4 | T20: 0 | U20: 0 | V20: =IFERROR(VLOOKUP($A$5,'Equipment List Template'!$1:$1048576,25,FALSE),"0") -> 0 | W20: 0 | X20: 0
A21: 01-D1 | B21: E4 | C21: Automatic Transfer Switch | J21: 8 | K21: 0 | L21: 0 | M21: 3 | N21: 0 | O21: 0 | P21: 1 | Q21: 0 | R21: 0 | S21: 12 | T21: 12 | U21: 0 | V21: =IFERROR(VLOOKUP($A$5,'Equipment List Template'!$1:$1048576,26,FALSE),"0") -> 1 | W21: 0 | X21: 12
A22: 01-D1 | B22: E5 | C22: Building Automated Systems (BAS) | J22: 0 | K22: 0 | L22: 0 | M22: 0 | N22: 0 | O22: 0 | P22: 1 | Q22: 0 | R22: 0 | S22: 1 | T22: 1 | U22: 0 | V22: =IFERROR(VLOOKUP($A$5,'Equipment List Template'!$1:$1048576,27,FALSE),"0") -> 2 | W22: 0 | X22: 2
A23: 01-D1 | B23: E6 | C23: Transformer (Dry-Type) | J23: 0 | K23: 0 | L23: 0 | M23: 3 | N23: 0 | O23: 0 | P23: 1 | Q23: 0 | R23: 0 | S23: 4 | T23: 0 | U23: 0 | V23: =IFERROR(VLOOKUP($A$5,'Equipment List Template'!$1:$1048576,28,FALSE),"0") -> 0 | W23: 0 | X23: 0
A24: 01-D1 | B24: E7 | C24: Uninterruptible Power Supply (UPS) | J24: 0 | K24: 0 | L24: 0 | M24: 0 | N24: 0 | O24: 0 | P24: 1 | Q24: 0 | R24: 0 | S24: 1 | T24: 0 | U24: 0 | V24: =IFERROR(VLOOKUP($A$5,'Equipment List Template'!$1:$1048576,29,FALSE),"0") -> 0 | W24: 0 | X24: 0
A25: 01-D1 | B25: E8 | C25: Lighting and Controls (Interior and Exterior) | J25: 12 | K25: 0 | L25: 0 | M25: 0 | N25: 0 | O25: 0 | P25: 0 | Q25: 0 | R25: 0 | S25: 12 | T25: 12 | U25: 0 | V25: =IFERROR(VLOOKUP($A$5,'Equipment List Template'!$1:$1048576,30,FALSE),"0") -> 2 | W25: 0 | X25: 24
B26: E9 | C26: Unique Electrical System | J26: 0 | K26: 0 | L26: 0 | M26: 0 | N26: 0 | O26: 0 | P26: 0 | Q26: 0 | R26: 0 | S26: 0 | T26: 0 | V26: 0 | W26: 0
A27: 01-D1 | B27: L1 | C27: Life Safety Systems | J27: 0 | K27: 0 | L27: 0 | M27: 3 | N27: 0 | O27: 0 | P27: 1 | Q27: 0 | R27: 0 | S27: 4 | T27: 4 | U27: 0 | V27: =IFERROR(VLOOKUP($A$5,'Equipment List Template'!$1:$1048576,32,FALSE),"0") -> 3 | W27: 0 | X27: 12
A28: 01-D1 | B28: L2 | C28: Reduced Pressure Backflow Preventer(s) | J28: 0 | K28: 0 | L28: 0 | M28: 0 | N28: 0 | O28: 0 | P28: 1 | Q28: 0 | R28: 0 | S28: 1 | T28: 1 | U28: 0 | V28: =IFERROR(VLOOKUP($A$5,'Equipment List Template'!$1:$1048576,33,FALSE),"0") -> 4 | W28: 0 | X28: 4
A29: 01-D1 | B29: P1 | C29: Boiler (Condensing) | J29: 8 | K29: 0 | L29: 0 | M29: 3 | N29: 0 | O29: 0 | P29: 1 | Q29: 0 | R29: 0 | S29: 12 | T29: 12 | U29: 0 | V29: =IFERROR(VLOOKUP($A$5,'Equipment List Template'!$1:$1048576,34,FALSE),"0") -> 2 | W29: 0 | X29: 24
A30: 01-D1 | B30: P2 | C30: Domestic Water Heater (Gas-Fired, Condensing) | J30: 0 | K30: 0 | L30: 0 | M30: 0 | N30: 0 | O30: 0 | P30: 1 | Q30: 0 | R30: 0 | S30: 1 | T30: 1 | U30: 0 | V30: =IFERROR(VLOOKUP($A$5,'Equipment List Template'!$1:$1048576,35,FALSE),"0") -> 1 | W30: 0 | X30: 1
A31: 01-D1 | B31: P3 | C31: Domestic Water Heater (Electric, Non- Condensing) | J31: 0 | K31: 0 | L31: 0 | M31: 0 | N31: 0 | O31: 0 | P31: 1 | Q31: 0 | R31: 0 | S31: 1 | T31: 0 | U31: 0 | V31: =IFERROR(VLOOKUP($A$5,'Equipment List Template'!$1:$1048576,36,FALSE),"0") -> 0 | W31: 0 | X31: 0
A32: 01-D1 | B32: P4 | C32: Boiler (Steam, low pressure) | J32: 0 | K32: 0 | L32: 0 | M32: 3 | N32: 0 | O32: 0 | P32: 1 | Q32: 0 | R32: 0 | S32: 4 | T32: 0 | U32: 0 | V32: =IFERROR(VLOOKUP($A$5,'Equipment List Template'!$1:$1048576,37,FALSE),"0") -> 0 | W32: 0 | X32: 0
A33: 01-D1 | B33: P5 | C33: Steam System | J33: 8 | K33: 0 | L33: 0 | M33: 3 | N33: 0 | O33: 0 | P33: 1 | Q33: 0 | R33: 0 | S33: 12 | T33: 0 | U33: 0 | V33: =IFERROR(VLOOKUP($A$5,'Equipment List Template'!$1:$1048576,38,FALSE),"0") -> 0 | W33: 0 | X33: 0
A34: 01-D1 | B34: P6 | C34: Pneumatic Compressor System | J34: 11 | K34: 0 | L34: 0 | M34: 0 | N34: 0 | O34: 0 | P34: 1 | Q34: 0 | R34: 0 | S34: 12 | T34: 0 | U34: 0 | V34: =IFERROR(VLOOKUP($A$5,'Equipment List Template'!$1:$1048576,39,FALSE),"0") -> 0 | W34: 0 | X34: 0
B35: P7 | C35: Unique Plumbing System | J35: 0 | K35: 0 | L35: 0 | M35: 0 | N35: 0 | O35: 0 | P35: 0 | Q35: 0 | R35: 0 | S35: 0 | T35: 0 | U35: 0 | V35: 0 | W35: 0
A36: 01-D1 | B36: R1 | C36: Rounds and Readings | D36: =IFERROR(IF(VLOOKUP($A36,'Equipment List Template'!$1:$1048576,38,FALSE)=248,248,0),0) -> 0 | E36: 0 | F36: =+E36*D36 -> 0 | G36: =IFERROR(IF(VLOOKUP($A36,'Equipment List Template'!$1:$1048576,38,FALSE)=40,40,0),0) -> 0 | H36: 0 | I36: =+H36*G36 -> 0 | J36: 12 | K36: 0 | L36: 0 | S36: =+$J36+$M36+$P36+D36+G36 -> 12 | T36: 12 | U36: =+R36+O36+L36+I36+F36 -> 0 | V36: 1 | W36: =+U36*V36 -> 0 | X36: 12
A37: 01-D1 | B37: V1 | C37: Vertical Transportation | J37: 8 | K37: 0 | L37: =+K37*J37 -> 0 | M37: 3 | N37: 0 | O37: =+N37*M37 -> 0 | P37: 1 | Q37: 0 | R37: =+Q37*P37 -> 0 | S37: =+$J37+$M37+$P37+D37+G37 -> 12 | T37: 12 | U37: =+R37+O37+L37 -> 0 | V37: =IFERROR(VLOOKUP($A$5,'Equipment List Template'!$1:$1048576,42,FALSE),"0") -> 6 | W37: =+U37*V37 -> 0 | X37: 72
A38: 01-D1 | B38: W1 | C38: Water Treatment | D38: =IFERROR(IF(VLOOKUP($A38,'Equipment List Template'!$1:$1048576,40,FALSE)=248,260,0),0) -> 0 | E38: 0 | F38: =+E38*D38 -> 0 | S38: 0 | T38: 0 | U38: =+R38+O38+L38+I38+F38 -> 0 | V38: 1 | W38: 0 | X38: 0
A39: 01-D1 | B39: B1 | C39: Building Exterior / Hardscape (Monthly) | J39: 12 | K39: 0 | L39: =+K39*J39 -> 0 | S39: 12 | T39: 12 | U39: 0 | V39: =IFERROR(VLOOKUP($A$5,'Equipment List Template'!$1:$1048576,44,FALSE),"0") -> 1 | W39: 0 | X39: 12
A40: 01-D1 | B40: F1 | C40: Fountain Maintenance (Monthly) | J40: 12 | K40: 0 | L40: =+K40*J40 -> 0 | S40: 12 | T40: 0 | U40: 0 | V40: =IFERROR(VLOOKUP($A$5,'Equipment List Template'!$1:$1048576,45,FALSE),"0") -> 0 | W40: 0 | X40: 0
A41: 01-D1 | B41: F2 | C41: Above-Ground/Underground Fuel Storage Tanks (Quarterly) If applicable | M41: 4 | N41: 0 | O41: =+N41*M41 -> 0 | S41: 4 | T41: 4 | U41: 0 | V41: =IFERROR(VLOOKUP($A$5,'Equipment List Template'!$1:$1048576,46,FALSE),"0") -> 1 | W41: 0 | X41: 4
A42: 01-D1 | B42: G1 | C42: Landscape Maintenance * | S42: 0 | T42: 0 | U42: 0 | V42: =IFERROR(VLOOKUP($A$5,'Equipment List Template'!$1:$1048576,47,FALSE),"0") -> 1 | W42: 0 | X42: 0
B43: PC1 | C43: Pest Control (Monthly) | J43: 12 | K43: 0 | L43: =+K43*J43 -> 0 | S43: 12 | T43: 12 | U43: 0 | V43: 1 | W43: 0 | X43: 12
B44: PV1 | C44: Photovoltaic (PV) System | P44: 1 | Q44: 0 | R44: =+Q44*P44 -> 0 | S44: 1 | T44: 0 | U44: 0 | V44: 0 | W44: 0
A45: 01-D1 | B45: C1 | C45: Account Management and Supervision (Monthly) | J45: 12 | K45: 0 | L45: =+K45*J45 -> 0 | S45: 12 | T45: 12 | U45: 0 | V45: 1 | W45: 0 | X45: 12
A46: 01-D1 | B46: C2 | C46: Fee (Monthly) | J46: 12 | K46: 0 | L46: =+K46*J46 -> 0 | S46: 12 | T46: 12 | U46: 0 | V46: 1 | W46: 0 | X46: 12
Q47: JCC ID | R47: =B2 -> 01-D1 | U47: Total | W47: =SUM(W5:W46) -> 0
B48: S1 | C48: Snow Removal - (crew hourly rate) | D48: 0 | U48: Total # of PM's | W48: =SUM($X$5:$X$46) -> 339
B49: I1 | C49: Unclogging Blocked Toilet - In-custody cell (labor-only) | D49: 0
B50: I2 | C50: Unclogging Blocked Toilet - Public/Court Staff (labor-only) | D50: 0
B51: I3 | C51: Clean up & Disposal of Biological Waste Event | D51: 0
B52: I4 | C52: Clean up & Disposal of Biological Waste Labor Rate | D52: 0
B53: Hr 1 | C53: Hourly Rate (All Labor categories) | D53: 0
B54: M1 | C54: Markup on Materials (Percentage) | D54: 0
B55: Sub1 | C55: Markup on Subcontractors/Third-Parties (Percentage) | D55: 0
B57: * Landscape Maintenance varies by location on the number of weeks per year it can be preformed. For the purpose of the RFP, all facilities are pre-established at 40 weeks of service. The actual amount paid by facility will be based upon the actual weeks that service has been performed, validated and invoiced.

Sheet 01-F1
B1: JCC ID | C1: Facility Name | D1: Address | F1: City / Town | H1: Zip Code | J1: County | L1: Region | N1: RFP | P1: Proposer
B2: 01-F1 | C2: =IFERROR(VLOOKUP($B$2,'Equipment List Template'!$1:$1048576,2,FALSE),"") -> George E. McDonald Hall of Justice | D2: =IFERROR(VLOOKUP($B$2,'Equipment List Template'!$1:$1048576,3,FALSE),"") -> 2233 Shoreline Drive | F2: =IFERROR(VLOOKUP($B$2,'Equipment List Template'!$1:$1048576,4,FALSE),"") -> Alameda | H2: =IFERROR(VLOOKUP($B$2,'Equipment List Template'!$1:$1048576,5,FALSE),"") -> 94501 | J2: =IFERROR(VLOOKUP($B$2,'Equipment List Template'!$1:$1048576,6,FALSE),"") -> Alameda | L2: =IFERROR(VLOOKUP($B$2,'Equipment List Template'!$1:$1048576,7,FALSE),"") -> BANCRO | N2: ='Summary Pricing Sheet'!B2 -> RFP-FS-SP-2019-03-JP | P2: ='Summary Pricing Sheet'!B3 -> Firm Name TBD
D3: Daily Activity | G3: Weekly Activity | J3: Monthly Activity | M3: Quarterly Activity | P3: Annual Activity | U3: Summary | AG3: System | AH3: Access | AI3: HVAC | AU3: Electrical | BD3: Life Safety | BF3: Plumbing | BM3: Building Systems | BV3: Corporate | BY3: Fixed Price - Facility Total Annual Cost Year 1 | CA3: Unit Pricing
B4: System ID | C4: Subsystem | D4: Quantity | E4: Cost | F4: Daily Total | G4: Quantity | H4: Cost | I4: Weekly Total | J4: Monthly Quantity | K4: Cost | L4: Monthly Total | M4: Quarterly Quantity | N4: Cost | O4: Quarterly Total | P4: Annual Quantity | Q4: Cost | R4: Annual PM Total | T4: Number of PM's | U4: Annual Cost | V4: Quantity | W4: Total Annual Cost | AG4: Subsystem | AH4: Access Doors, Gates, Sally Port | AI4: Air Cooled DX (Split System) | AJ4: Air Handling Unit (Air Cooled DX / Package) | AK4: Air-Cooled Chiller | AL4: Centrifugal Chiller | AM4: Cooling Tower (Induced Draft) | AN4: Ice Chiller Tank | AO4: Geothermal System | AP4: Water Source Heat Pump | AQ4: Fan Coil System | AR4: Supply / Return Fan and Exhaust | AS4: Evaporative and Spot Coolers (swamp coolers; spot cooler) | AT4: Unique HVAC System | AU4: Electrical Panels | AV4: Emergency Generator | AW4: Motor Control Center | AX4: Automatic Transfer Switch | AY4: Building Automated Systems (BAS) | AZ4: Transformer (Dry-Type) | BA4: Uninterruptible Power Supply (UPS) | BB4: Lighting and Controls (Interior and Exterior) | BC4: Unique Electrical System | BD4: Life Safety Systems | BE4: Reduced Pressure Backflow Preventer(s) | BF4: Boiler (Condensing) | BG4: Domestic Water Heater (Gas-Fired, Condensing) | BH4: Domestic Water Heater (Electric, Non- Condensing) | BI4: Boiler (Steam, low pressure) | BJ4: Steam System | BK4: Pneumatic Compressor System | BL4: Unique Plumbing System | BM4: Rounds and Readings | BN4: Vertical Transportation | BO4: Water Treatment | BP4: Building Exterior / Hardscape (Monthly) | BQ4: Fountain Maintenance (Monthly) | BR4: Above-Ground/Underground Fuel Storage Tanks (Quarterly) If applicable | BS4: Landscape Maintenance * | BT4: Pest Control (Monthly) | BU4: Photovoltaic (PV) System | BV4: Account Management and Supervision (Monthly) | BW4: Fee (Monthly) | CA4: Snow Removal - (crew hourly rate) | CB4: Unclogging Blocked Toilet - In-custody holding cell (labor) | CC4: Unclogging Blocked Toilet - Public/Court Staff (labor) | CD4: Clean up & Disposal of Biological Waste Event | CE4: Clean up & Disposal of Biological Waste Labor Rate | CF4: Hourly Rate | CG4: Markup on Materials | CH4: Markup on Subcontractors/Third-Parties
A5: =$B$2 -> 01-F1 | B5: A1 | C5: Access Doors, Gates, Sally Port | J5: 11 | K5: 0 | L5: =+K5*J5 -> 0 | M5: 0 | N5: 0 | O5: =+N5*M5 -> 0 | P5: 1 | Q5: 0 | R5: =+Q5*P5 -> 0 | S5: =+$J5+$M5+$P5 -> 12 | T5: =IF($V5>0,$S5,0) -> 12 | U5: =+R5+O5+L5+I5+F5 -> 0 | V5: =IFERROR(VLOOKUP($A$5,'Equipment List Template'!$1:$1048576,10,FALSE),"0") -> 5 | W5: =+U5*V5 -> 0 | X5: =$T5*$V5 -> 60 | Z5: JCC ID | AA5: Facility Name | AB5: Address | AC5: City / Town | AD5: County | AE5: Region | AF5: Region | AG5: System ID | AH5: A1 | AI5: H1 | AJ5: H2 | AK5: H3 | AL5: H4 | AM5: H5 | AN5: H6 | AO5: H7 | AP5: H8 | AQ5: H9 | AR5: H10 | AS5: H11 | AT5: H12 | AU5: E1 | AV5: E2 | AW5: E3 | AX5: E4 | AY5: E5 | AZ5: E6 | BA5: E7 | BB5: E8 | BC5: E9 | BD5: L1 | BE5: L2 | BF5: P1 | BG5: P2 | BH5: P3 | BI5: P4 | BJ5: P5 | BK5: P6 | BL5: P7 | BM5: R1 | BN5: V1 | BO5: W1 | BP5: B1 | BQ5: F1 | BR5: F2 | BS5: G1 | BT5: PC1 | BU5: PV1 | BV5: C1 | BW5: C2 | CA5: S1 | CB5: I1 | CC5: I2 | CD5: I3 | CE5: I4 | CF5: Hr 1 | CG5: M1 | CH5: Sub1
A6: =$B$2 -> 01-F1 | B6: H1 | C6: Air Cooled DX (Split System) | J6: 0 | K6: 0 | L6: =+K6*J6 -> 0 | M6: 3 | N6: 0 | O6: =+N6*M6 -> 0 | P6: 1 | Q6: 0 | R6: =+Q6*P6 -> 0 | S6: =+$J6+$M6+$P6 -> 4 | T6: =IF($V6>0,$S6,0) -> 0 | U6: =+R6+O6+L6+I6+F6 -> 0 | V6: =IFERROR(VLOOKUP($A$5,'Equipment List Template'!$1:$1048576,11,FALSE),"0") -> 0 | W6: =+U6*V6 -> 0 | X6: =$T6*$V6 -> 0 | Z6: =B2 -> 01-F1 | AA6: =IFERROR(VLOOKUP($Z$6,'Equipment List Template'!$1:$1048576,2,FALSE),"") -> George E. McDonald Hall of Justice | AB6: =IFERROR(VLOOKUP($Z$6,'Equipment List Template'!$1:$1048576,3,FALSE),"") -> 2233 Shoreline Drive | AC6: =IFERROR(VLOOKUP($Z$6,'Equipment List Template'!$1:$1048576,4,FALSE),"") -> Alameda | AD6: =IFERROR(VLOOKUP($Z$6,'Equipment List Template'!$1:$1048576,5,FALSE),"") -> 94501 | AE6: =IFERROR(VLOOKUP($Z$6,'Equipment List Template'!$1:$1048576,6,FALSE),"") -> Alameda | AF6: =IFERROR(VLOOKUP($Z$6,'Equipment List Template'!$1:$1048576,7,FALSE),"") -> BANCRO | AH6: =+$W5 -> 0 | AI6: =+$W6 -> 0 | AJ6: =+$W7 -> 0 | AK6: =+$W8 -> 0 | AL6: =+$W9 -> 0 | AM6: =+$W10 -> 0 | AN6: =+$W11 -> 0 | AO6: =+$W12 -> 0 | AP6: =+$W13 -> 0 | AQ6: =+$W14 -> 0 | AR6: =+$W15 -> 0 | AS6: =+$W16 -> 0 | AT6: =+$W17 -> 0 | AU6: =+$W18 -> 0 | AV6: =+$W19 -> 0 | AW6: =+$W20 -> 0 | AX6: =+$W21 -> 0 | AY6: =+$W22 -> 0 | AZ6: =+$W23 -> 0 | BA6: =+$W24 -> 0 | BB6: =+$W25 -> 0 | BC6: =+$W26 -> 0 | BD6: =+$W27 -> 0 | BE6: =+$W28 -> 0 | BF6: =+$W29 -> 0 | BG6: =+$W30 -> 0 | BH6: =+$W31 -> 0 | BI6: =+$W32 -> 0 | BJ6: =+$W33 -> 0 | BK6: =+$W34 -> 0 | BL6: =+$W35 -> 0 | BM6: =+$W36 -> 0 | BN6: =+$W37 -> 0 | BO6: =+$W38 -> 0 | BP6: =+$W39 -> 0 | BQ6: =+$W40 -> 0 | BR6: =+$W41 -> 0 | BS6: =+$W42 -> 0 | BT6: =+$W43 -> 0 | BU6: =+$W44 -> 0 | BV6: =+$W45 -> 0 | BW6: =+$W46 -> 0 | BY6: =+$W47 -> 0 | CA6: =+$D48 -> 0 | CB6: =+$D49 -> 0 | CC6: =+$D50 -> 0 | CD6: =+$D51 -> 0 | CE6: =+$D52 -> 0 | CF6: =+$D53 -> 0 | CG6: =+$D54 -> 0 | CH6: =+$D55 -> 0
A7: =$B$2 -> 01-F1 | B7: H2 | C7: Air Handling Unit (Air Cooled DX / Package) | J7: 0 | K7: 0 | L7: =+K7*J7 -> 0 | M7: 3 | N7: 0 | O7: =+N7*M7 -> 0 | P7: 1 | Q7: 0 | R7: =+Q7*P7 -> 0 | S7: =+$J7+$M7+$P7 -> 4 | T7: =IF($V7>0,$S7,0) -> 4 | U7: =+R7+O7+L7+I7+F7 -> 0 | V7: =IFERROR(VLOOKUP($A$5,'Equipment List Template'!$1:$1048576,12,FALSE),"0") -> 1 | W7: =+U7*V7 -> 0 | X7: =$T7*$V7 -> 4
A8: 01-F1 | B8: H3 | C8: Air-Cooled Chiller | J8: 11 | K8: 0 | L8: 0 | M8: 0 | N8: 0 | O8: 0 | P8: 1 | Q8: 0 | R8: 0 | S8: 12 | T8: 0 | U8: 0 | V8: =IFERROR(VLOOKUP($A$5,'Equipment List Template'!$1:$1048576,13,FALSE),"0") -> 0 | W8: 0 | X8: 0
A9: 01-F1 | B9: H4 | C9: Centrifugal Chiller | J9: 11 | K9: 0 | L9: 0 | M9: 0 | N9: 0 | O9: 0 | P9: 1 | Q9: 0 | R9: 0 | S9: 12 | T9: 12 | U9: 0 | V9: =IFERROR(VLOOKUP($A$5,'Equipment List Template'!$1:$1048576,14,FALSE),"0") -> 1 | W9: 0 | X9: 12
A10: 01-F1 | B10: H5 | C10: Cooling Tower (Induced Draft) | J10: 8 | K10: 0 | L10: 0 | M10: 3 | N10: 0 | O10: 0 | P10: 1 | Q10: 0 | R10: 0 | S10: 12 | T10: 0 | U10: 0 | V10: =IFERROR(VLOOKUP($A$5,'Equipment List Template'!$1:$1048576,15,FALSE),"0") -> 0 | W10: 0 | X10: 0
A11: 01-F1 | B11: H6 | C11: Ice Chiller Tank | J11: 8 | K11: 0 | L11: 0 | M11: 3 | N11: 0 | O11: 0 | P11: 1 | Q11: 0 | R11: 0 | S11: 12 | T11: 0 | U11: 0 | V11: =IFERROR(VLOOKUP($A$5,'Equipment List Template'!$1:$1048576,16,FALSE),"0") -> 0 | W11: 0 | X11: 0
A12: 01-F1 | B12: H7 | C12: Geothermal System | J12: 11 | K12: 0 | L12: 0 | M12: 0 | N12: 0 | O12: 0 | P12: 1 | Q12: 0 | R12: 0 | S12: 12 | T12: 0 | U12: 0 | V12: =IFERROR(VLOOKUP($A$5,'Equipment List Template'!$1:$1048576,17,FALSE),"0") -> 0 | W12: 0 | X12: 0
A13: 01-F1 | B13: H8 | C13: Water Source Heat Pump | J13: 8 | K13: 0 | L13: 0 | M13: 3 | N13: 0 | O13: 0 | P13: 1 | Q13: 0 | R13: 0 | S13: 12 | T13: 0 | U13: 0 | V13: =IFERROR(VLOOKUP($A$5,'Equipment List Template'!$1:$1048576,18,FALSE),"0") -> 0 | W13: 0 | X13: 0
A14: 01-F1 | B14: H9 | C14: Fan Coil System | J14: 0 | K14: 0 | L14: 0 | M14: 3 | N14: 0 | O14: 0 | P14: 1 | Q14: 0 | R14: 0 | S14: 4 | T14: 0 | U14: 0 | V14: =IFERROR(VLOOKUP($A$5,'Equipment List Template'!$1:$1048576,19,FALSE),"0") -> 0 | W14: 0 | X14: 0
A15: 01-F1 | B15: H10 | C15: Supply / Return Fan and Exhaust | J15: 0 | K15: 0 | L15: 0 | M15: 3 | N15: 0 | O15: 0 | P15: 1 | Q15: 0 | R15: 0 | S15: 4 | T15: 0 | U15: 0 | V15: =IFERROR(VLOOKUP($A$5,'Equipment List Template'!$1:$1048576,20,FALSE),"0") -> 0 | W15: 0 | X15: 0
A16: 01-F1 | B16: H11 | C16: Evaporative and Spot Coolers (swamp coolers; spot cooler) | J16: 8 | K16: 0 | L16: 0 | M16: 3 | N16: 0 | O16: 0 | P16: 1 | Q16: 0 | R16: 0 | S16: 12 | T16: 0 | U16: 0 | V16: =IFERROR(VLOOKUP($A$5,'Equipment List Template'!$1:$1048576,21,FALSE),"0") -> 0 | W16: 0 | X16: 0
B17: H12 | C17: Unique HVAC System | J17: 0 | K17: 0 | L17: 0 | M17: 0 | N17: 0 | O17: 0 | P17: 0 | Q17: 0 | R17: 0 | S17: 0 | T17: 0 | V17: 0 | W17: 0
A18: 01-F1 | B18: E1 | C18: Electrical Panels | J18: 0 | K18: 0 | L18: 0 | M18: 3 | N18: 0 | O18: 0 | P18: 1 | Q18: 0 | R18: 0 | S18: 4 | T18: 4 | U18: 0 | V18: =IFERROR(VLOOKUP($A$5,'Equipment List Template'!$1:$1048576,23,FALSE),"0") -> 1 | W18: 0 | X18: 4
A19: 01-F1 | B19: E2 | C19: Emergency Generator | J19: 8 | K19: 0 | L19: 0 | M19: 3 | N19: 0 | O19: 0 | P19: 1 | Q19: 0 | R19: 0 | S19: 12 | T19: 12 | U19: 0 | V19: =IFERROR(VLOOKUP($A$5,'Equipment List Template'!$1:$1048576,24,FALSE),"0") -> 1 | W19: 0 | X19: 12
A20: 01-F1 | B20: E3 | C20: Motor Control Center | J20: 0 | K20: 0 | L20: 0 | M20: 3 | N20: 0 | O20: 0 | P20: 1 | Q20: 0 | R20: 0 | S20: 4 | T20: 0 | U20: 0 | V20: =IFERROR(VLOOKUP($A$5,'Equipment List Template'!$1:$1048576,25,FALSE),"0") -> 0 | W20: 0 | X20: 0
A21: 01-F1 | B21: E4 | C21: Automatic Transfer Switch | J21: 8 | K21: 0 | L21: 0 | M21: 3 | N21: 0 | O21: 0 | P21: 1 | Q21: 0 | R21: 0 | S21: 12 | T21: 12 | U21: 0 | V21: =IFERROR(VLOOKUP($A$5,'Equipment List Template'!$1:$1048576,26,FALSE),"0") -> 1 | W21: 0 | X21: 12
A22: 01-F1 | B22: E5 | C22: Building Automated Systems (BAS) | J22: 0 | K22: 0 | L22: 0 | M22: 0 | N22: 0 | O22: 0 | P22: 1 | Q22: 0 | R22: 0 | S22: 1 | T22: 1 | U22: 0 | V22: =IFERROR(VLOOKUP($A$5,'Equipment List Template'!$1:$1048576,27,FALSE),"0") -> 1 | W22: 0 | X22: 1
A23: 01-F1 | B23: E6 | C23: Transformer (Dry-Type) | J23: 0 | K23: 0 | L23: 0 | M23: 3 | N23: 0 | O23: 0 | P23: 1 | Q23: 0 | R23: 0 | S23: 4 | T23: 0 | U23: 0 | V23: =IFERROR(VLOOKUP($A$5,'Equipment List Template'!$1:$1048576,28,FALSE),"0") -> 0 | W23: 0 | X23: 0
A24: 01-F1 | B24: E7 | C24: Uninterruptible Power Supply (UPS) | J24: 0 | K24: 0 | L24: 0 | M24: 0 | N24: 0 | O24: 0 | P24: 1 | Q24: 0 | R24: 0 | S24: 1 | T24: 0 | U24: 0 | V24: =IFERROR(VLOOKUP($A$5,'Equipment List Template'!$1:$1048576,29,FALSE),"0") -> 0 | W24: 0 | X24: 0
A25: 01-F1 | B25: E8 | C25: Lighting and Controls (Interior and Exterior) | J25: 12 | K25: 0 | L25: 0 | M25: 0 | N25: 0 | O25: 0 | P25: 0 | Q25: 0 | R25: 0 | S25: 12 | T25: 12 | U25: 0 | V25: =IFERROR(VLOOKUP($A$5,'Equipment List Template'!$1:$1048576,30,FALSE),"0") -> 1 | W25: 0 | X25: 12
B26: E9 | C26: Unique Electrical System | J26: 0 | K26: 0 | L26: 0 | M26: 0 | N26: 0 | O26: 0 | P26: 0 | Q26: 0 | R26: 0 | S26: 0 | T26: 0 | V26: 0 | W26: 0
A27: 01-F1 | B27: L1 | C27: Life Safety Systems | J27: 0 | K27: 0 | L27: 0 | M27: 3 | N27: 0 | O27: 0 | P27: 1 | Q27: 0 | R27: 0 | S27: 4 | T27: 4 | U27: 0 | V27: =IFERROR(VLOOKUP($A$5,'Equipment List Template'!$1:$1048576,32,FALSE),"0") -> 3 | W27: 0 | X27: 12
A28: 01-F1 | B28: L2 | C28: Reduced Pressure Backflow Preventer(s) | J28: 0 | K28: 0 | L28: 0 | M28: 0 | N28: 0 | O28: 0 | P28: 1 | Q28: 0 | R28: 0 | S28: 1 | T28: 1 | U28: 0 | V28: =IFERROR(VLOOKUP($A$5,'Equipment List Template'!$1:$1048576,33,FALSE),"0") -> 4 | W28: 0 | X28: 4
A29: 01-F1 | B29: P1 | C29: Boiler (Condensing) | J29: 8 | K29: 0 | L29: 0 | M29: 3 | N29: 0 | O29: 0 | P29: 1 | Q29: 0 | R29: 0 | S29: 12 | T29: 12 | U29: 0 | V29: =IFERROR(VLOOKUP($A$5,'Equipment List Template'!$1:$1048576,34,FALSE),"0") -> 1 | W29: 0 | X29: 12
A30: 01-F1 | B30: P2 | C30: Domestic Water Heater (Gas-Fired, Condensing) | J30: 0 | K30: 0 | L30: 0 | M30: 0 | N30: 0 | O30: 0 | P30: 1 | Q30: 0 | R30: 0 | S30: 1 | T30: 1 | U30: 0 | V30: =IFERROR(VLOOKUP($A$5,'Equipment List Template'!$1:$1048576,35,FALSE),"0") -> 1 | W30: 0 | X30: 1
A31: 01-F1 | B31: P3 | C31: Domestic Water Heater (Electric, Non- Condensing) | J31: 0 | K31: 0 | L31: 0 | M31: 0 | N31: 0 | O31: 0 | P31: 1 | Q31: 0 | R31: 0 | S31: 1 | T31: 0 | U31: 0 | V31: =IFERROR(VLOOKUP($A$5,'Equipment List Template'!$1:$1048576,36,FALSE),"0") -> 0 | W31: 0 | X31: 0
A32: 01-F1 | B32: P4 | C32: Boiler (Steam, low pressure) | J32: 0 | K32: 0 | L32: 0 | M32: 3 | N32: 0 | O32: 0 | P32: 1 | Q32: 0 | R32: 0 | S32: 4 | T32: 0 | U32: 0 | V32: =IFERROR(VLOOKUP($A$5,'Equipment List Template'!$1:$1048576,37,FALSE),"0") -> 0 | W32: 0 | X32: 0
A33: 01-F1 | B33: P5 | C33: Steam System | J33: 8 | K33: 0 | L33: 0 | M33: 3 | N33: 0 | O33: 0 | P33: 1 | Q33: 0 | R33: 0 | S33: 12 | T33: 0 | U33: 0 | V33: =IFERROR(VLOOKUP($A$5,'Equipment List Template'!$1:$1048576,38,FALSE),"0") -> 0 | W33: 0 | X33: 0
A34: 01-F1 | B34: P6 | C34: Pneumatic Compressor System | J34: 11 | K34: 0 | L34: 0 | M34: 0 | N34: 0 | O34: 0 | P34: 1 | Q34: 0 | R34: 0 | S34: 12 | T34: 0 | U34: 0 | V34: =IFERROR(VLOOKUP($A$5,'Equipment List Template'!$1:$1048576,39,FALSE),"0") -> 0 | W34: 0 | X34: 0
B35: P7 | C35: Unique Plumbing System | J35: 0 | K35: 0 | L35: 0 | M35: 0 | N35: 0 | O35: 0 | P35: 0 | Q35: 0 | R35: 0 | S35: 0 | T35: 0 | U35: 0 | V35: 0 | W35: 0
A36: 01-F1 | B36: R1 | C36: Rounds and Readings | D36: =IFERROR(IF(VLOOKUP($A36,'Equipment List Template'!$1:$1048576,38,FALSE)=248,248,0),0) -> 0 | E36: 0 | F36: =+E36*D36 -> 0 | G36: =IFERROR(IF(VLOOKUP($A36,'Equipment List Template'!$1:$1048576,38,FALSE)=40,40,0),0) -> 0 | H36: 0 | I36: =+H36*G36 -> 0 | J36: 12 | K36: 0 | L36: 0 | S36: =+$J36+$M36+$P36+D36+G36 -> 12 | T36: 12 | U36: =+R36+O36+L36+I36+F36 -> 0 | V36: 1 | W36: =+U36*V36 -> 0 | X36: 12
A37: 01-F1 | B37: V1 | C37: Vertical Transportation | J37: 8 | K37: 0 | L37: =+K37*J37 -> 0 | M37: 3 | N37: 0 | O37: =+N37*M37 -> 0 | P37: 1 | Q37: 0 | R37: =+Q37*P37 -> 0 | S37: =+$J37+$M37+$P37+D37+G37 -> 12 | T37: 12 | U37: =+R37+O37+L37 -> 0 | V37: =IFERROR(VLOOKUP($A$5,'Equipment List Template'!$1:$1048576,42,FALSE),"0") -> 3 | W37: =+U37*V37 -> 0 | X37: 36
A38: 01-F1 | B38: W1 | C38: Water Treatment | D38: =IFERROR(IF(VLOOKUP($A38,'Equipment List Template'!$1:$1048576,40,FALSE)=248,260,0),0) -> 0 | E38: 0 | F38: =+E38*D38 -> 0 | S38: 0 | T38: 0 | U38: =+R38+O38+L38+I38+F38 -> 0 | V38: 1 | W38: 0 | X38: 0
A39: 01-F1 | B39: B1 | C39: Building Exterior / Hardscape (Monthly) | J39: 12 | K39: 0 | L39: =+K39*J39 -> 0 | S39: 12 | T39: 12 | U39: 0 | V39: =IFERROR(VLOOKUP($A$5,'Equipment List Template'!$1:$1048576,44,FALSE),"0") -> 1 | W39: 0 | X39: 12
A40: 01-F1 | B40: F1 | C40: Fountain Maintenance (Monthly) | J40: 12 | K40: 0 | L40: =+K40*J40 -> 0 | S40: 12 | T40: 0 | U40: 0 | V40: =IFERROR(VLOOKUP($A$5,'Equipment List Template'!$1:$1048576,45,FALSE),"0") -> 0 | W40: 0 | X40: 0
A41: 01-F1 | B41: F2 | C41: Above-Ground/Underground Fuel Storage Tanks (Quarterly) If applicable | M41: 4 | N41: 0 | O41: =+N41*M41 -> 0 | S41: 4 | T41: 0 | U41: 0 | V41: =IFERROR(VLOOKUP($A$5,'Equipment List Template'!$1:$1048576,46,FALSE),"0") -> 0 | W41: 0 | X41: 0
A42: 01-F1 | B42: G1 | C42: Landscape Maintenance * | S42: 0 | T42: 0 | U42: 0 | V42: =IFERROR(VLOOKUP($A$5,'Equipment List Template'!$1:$1048576,47,FALSE),"0") -> 1 | W42: 0 | X42: 0
B43: PC1 | C43: Pest Control (Monthly) | J43: 12 | K43: 0 | L43: =+K43*J43 -> 0 | S43: 12 | T43: 12 | U43: 0 | V43: 1 | W43: 0 | X43: 12
B44: PV1 | C44: Photovoltaic (PV) System | P44: 1 | Q44: 0 | R44: =+Q44*P44 -> 0 | S44: 1 | T44: 0 | U44: 0 | V44: 0 | W44: 0
A45: 01-F1 | B45: C1 | C45: Account Management and Supervision (Monthly) | J45: 12 | K45: 0 | L45: =+K45*J45 -> 0 | S45: 12 | T45: 12 | U45: 0 | V45: 1 | W45: 0 | X45: 12
A46: 01-F1 | B46: C2 | C46: Fee (Monthly) | J46: 12 | K46: 0 | L46: =+K46*J46 -> 0 | S46: 12 | T46: 12 | U46: 0 | V46: 1 | W46: 0 | X46: 12
Q47: JCC ID | R47: =B2 -> 01-F1 | U47: Total | W47: =SUM(W5:W46) -> 0
B48: S1 | C48: Snow Removal - (crew hourly rate) | D48: 0 | U48: Total # of PM's | W48: =SUM($X$5:$X$46) -> 242
B49: I1 | C49: Unclogging Blocked Toilet - In-custody cell (labor-only) | D49: 0
B50: I2 | C50: Unclogging Blocked Toilet - Public/Court Staff (labor-only) | D50: 0
B51: I3 | C51: Clean up & Disposal of Biological Waste Event | D51: 0
B52: I4 | C52: Clean up & Disposal of Biological Waste Labor Rate | D52: 0
B53: Hr 1 | C53: Hourly Rate (All Labor categories) | D53: 0
B54: M1 | C54: Markup on Materials (Percentage) | D54: 0
B55: Sub1 | C55: Markup on Subcontractors/Third-Parties (Percentage) | D55: 0
B57: * Landscape Maintenance varies by location on the number of weeks per year it can be preformed. For the purpose of the RFP, all facilities are pre-established at 40 weeks of service. The actual amount paid by facility will be based upon the actual weeks that service has been performed, validated and invoiced.

Sheet 01-G1
B1: JCC ID | C1: Facility Name | D1: Address | F1: City / Town | H1: Zip Code | J1: County | L1: Region | N1: RFP | P1: Proposer
B2: 01-G1 | C2: =IFERROR(VLOOKUP($B$2,'Equipment List Template'!$1:$1048576,2,FALSE),"") -> Berkeley Courthouse | D2: =IFERROR(VLOOKUP($B$2,'Equipment List Template'!$1:$1048576,3,FALSE),"") -> 2120 Martin Luther King, Jr. Way | F2: =IFERROR(VLOOKUP($B$2,'Equipment List Template'!$1:$1048576,4,FALSE),"") -> Berkeley | H2: =IFERROR(VLOOKUP($B$2,'Equipment List Template'!$1:$1048576,5,FALSE),"") -> 94704 | J2: =IFERROR(VLOOKUP($B$2,'Equipment List Template'!$1:$1048576,6,FALSE),"") -> Alameda | L2: =IFERROR(VLOOKUP($B$2,'Equipment List Template'!$1:$1048576,7,FALSE),"") -> BANCRO | N2: ='Summary Pricing Sheet'!B2 -> RFP-FS-SP-2019-03-JP | P2: ='Summary Pricing Sheet'!B3 -> Firm Name TBD
D3: Daily Activity | G3: Weekly Activity | J3: Monthly Activity | M3: Quarterly Activity | P3: Annual Activity | U3: Summary | AG3: System | AH3: Access | AI3: HVAC | AU3: Electrical | BD3: Life Safety | BF3: Plumbing | BM3: Building Systems | BV3: Corporate | BY3: Fixed Price - Facility Total Annual Cost Year 1 | CA3: Unit Pricing
B4: System ID | C4: Subsystem | D4: Quantity | E4: Cost | F4: Daily Total | G4: Quantity | H4: Cost | I4: Weekly Total | J4: Monthly Quantity | K4: Cost | L4: Monthly Total | M4: Quarterly Quantity | N4: Cost | O4: Quarterly Total | P4: Annual Quantity | Q4: Cost | R4: Annual PM Total | T4: Number of PM's | U4: Annual Cost | V4: Quantity | W4: Total Annual Cost | AG4: Subsystem | AH4: Access Doors, Gates, Sally Port | AI4: Air Cooled DX (Split System) | AJ4: Air Handling Unit (Air Cooled DX / Package) | AK4: Air-Cooled Chiller | AL4: Centrifugal Chiller | AM4: Cooling Tower (Induced Draft) | AN4: Ice Chiller Tank | AO4: Geothermal System | AP4: Water Source Heat Pump | AQ4: Fan Coil System | AR4: Supply / Return Fan and Exhaust | AS4: Evaporative and Spot Coolers (swamp coolers; spot cooler) | AT4: Unique HVAC System | AU4: Electrical Panels | AV4: Emergency Generator | AW4: Motor Control Center | AX4: Automatic Transfer Switch | AY4: Building Automated Systems (BAS) | AZ4: Transformer (Dry-Type) | BA4: Uninterruptible Power Supply (UPS) | BB4: Lighting and Controls (Interior and Exterior) | BC4: Unique Electrical System | BD4: Life Safety Systems | BE4: Reduced Pressure Backflow Preventer(s) | BF4: Boiler (Condensing) | BG4: Domestic Water Heater (Gas-Fired, Condensing) | BH4: Domestic Water Heater (Electric, Non- Condensing) | BI4: Boiler (Steam, low pressure) | BJ4: Steam System | BK4: Pneumatic Compressor System | BL4: Unique Plumbing System | BM4: Rounds and Readings | BN4: Vertical Transportation | BO4: Water Treatment | BP4: Building Exterior / Hardscape (Monthly) | BQ4: Fountain Maintenance (Monthly) | BR4: Above-Ground/Underground Fuel Storage Tanks (Quarterly) If applicable | BS4: Landscape Maintenance * | BT4: Pest Control (Monthly) | BU4: Photovoltaic (PV) System | BV4: Account Management and Supervision (Monthly) | BW4: Fee (Monthly) | CA4: Snow Removal - (crew hourly rate) | CB4: Unclogging Blocked Toilet - In-custody holding cell (labor) | CC4: Unclogging Blocked Toilet - Public/Court Staff (labor) | CD4: Clean up & Disposal of Biological Waste Event | CE4: Clean up & Disposal of Biological Waste Labor Rate | CF4: Hourly Rate | CG4: Markup on Materials | CH4: Markup on Subcontractors/Third-Parties
A5: =$B$2 -> 01-G1 | B5: A1 | C5: Access Doors, Gates, Sally Port | J5: 11 | K5: 0 | L5: =+K5*J5 -> 0 | M5: 0 | N5: 0 | O5: =+N5*M5 -> 0 | P5: 1 | Q5: 0 | R5: =+Q5*P5 -> 0 | S5: =+$J5+$M5+$P5 -> 12 | T5: =IF($V5>0,$S5,0) -> 0 | U5: =+R5+O5+L5+I5+F5 -> 0 | V5: =IFERROR(VLOOKUP($A$5,'Equipment List Template'!$1:$1048576,10,FALSE),"0") -> 0 | W5: =+U5*V5 -> 0 | X5: =$T5*$V5 -> 0 | Z5: JCC ID | AA5: Facility Name | AB5: Address | AC5: City / Town | AD5: County | AE5: Region | AF5: Region | AG5: System ID | AH5: A1 | AI5: H1 | AJ5: H2 | AK5: H3 | AL5: H4 | AM5: H5 | AN5: H6 | AO5: H7 | AP5: H8 | AQ5: H9 | AR5: H10 | AS5: H11 | AT5: H12 | AU5: E1 | AV5: E2 | AW5: E3 | AX5: E4 | AY5: E5 | AZ5: E6 | BA5: E7 | BB5: E8 | BC5: E9 | BD5: L1 | BE5: L2 | BF5: P1 | BG5: P2 | BH5: P3 | BI5: P4 | BJ5: P5 | BK5: P6 | BL5: P7 | BM5: R1 | BN5: V1 | BO5: W1 | BP5: B1 | BQ5: F1 | BR5: F2 | BS5: G1 | BT5: PC1 | BU5: PV1 | BV5: C1 | BW5: C2 | CA5: S1 | CB5: I1 | CC5: I2 | CD5: I3 | CE5: I4 | CF5: Hr 1 | CG5: M1 | CH5: Sub1
A6: =$B$2 -> 01-G1 | B6: H1 | C6: Air Cooled DX (Split System) | J6: 0 | K6: 0 | L6: =+K6*J6 -> 0 | M6: 3 | N6: 0 | O6: =+N6*M6 -> 0 | P6: 1 | Q6: 0 | R6: =+Q6*P6 -> 0 | S6: =+$J6+$M6+$P6 -> 4 | T6: =IF($V6>0,$S6,0) -> 4 | U6: =+R6+O6+L6+I6+F6 -> 0 | V6: =IFERROR(VLOOKUP($A$5,'Equipment List Template'!$1:$1048576,11,FALSE),"0") -> 4 | W6: =+U6*V6 -> 0 | X6: =$T6*$V6 -> 16 | Z6: =B2 -> 01-G1 | AA6: =IFERROR(VLOOKUP($Z$6,'Equipment List Template'!$1:$1048576,2,FALSE),"") -> Berkeley Courthouse | AB6: =IFERROR(VLOOKUP($Z$6,'Equipment List Template'!$1:$1048576,3,FALSE),"") -> 2120 Martin Luther King, Jr. Way | AC6: =IFERROR(VLOOKUP($Z$6,'Equipment List Template'!$1:$1048576,4,FALSE),"") -> Berkeley | AD6: =IFERROR(VLOOKUP($Z$6,'Equipment List Template'!$1:$1048576,5,FALSE),"") -> 94704 | AE6: =IFERROR(VLOOKUP($Z$6,'Equipment List Template'!$1:$1048576,6,FALSE),"") -> Alameda | AF6: =IFERROR(VLOOKUP($Z$6,'Equipment List Template'!$1:$1048576,7,FALSE),"") -> BANCRO | AH6: =+$W5 -> 0 | AI6: =+$W6 -> 0 | AJ6: =+$W7 -> 0 | AK6: =+$W8 -> 0 | AL6: =+$W9 -> 0 | AM6: =+$W10 -> 0 | AN6: =+$W11 -> 0 | AO6: =+$W12 -> 0 | AP6: =+$W13 -> 0 | AQ6: =+$W14 -> 0 | AR6: =+$W15 -> 0 | AS6: =+$W16 -> 0 | AT6: =+$W17 -> 0 | AU6: =+$W18 -> 0 | AV6: =+$W19 -> 0 | AW6: =+$W20 -> 0 | AX6: =+$W21 -> 0 | AY6: =+$W22 -> 0 | AZ6: =+$W23 -> 0 | BA6: =+$W24 -> 0 | BB6: =+$W25 -> 0 | BC6: =+$W26 -> 0 | BD6: =+$W27 -> 0 | BE6: =+$W28 -> 0 | BF6: =+$W29 -> 0 | BG6: =+$W30 -> 0 | BH6: =+$W31 -> 0 | BI6: =+$W32 -> 0 | BJ6: =+$W33 -> 0 | BK6: =+$W34 -> 0 | BL6: =+$W35 -> 0 | BM6: =+$W36 -> 0 | BN6: =+$W37 -> 0 | BO6: =+$W38 -> 0 | BP6: =+$W39 -> 0 | BQ6: =+$W40 -> 0 | BR6: =+$W41 -> 0 | BS6: =+$W42 -> 0 | BT6: =+$W43 -> 0 | BU6: =+$W44 -> 0 | BV6: =+$W45 -> 0 | BW6: =+$W46 -> 0 | BY6: =+$W47 -> 0 | CA6: =+$D48 -> 0 | CB6: =+$D49 -> 0 | CC6: =+$D50 -> 0 | CD6: =+$D51 -> 0 | CE6: =+$D52 -> 0 | CF6: =+$D53 -> 0 | CG6: =+$D54 -> 0 | CH6: =+$D55 -> 0
A7: =$B$2 -> 01-G1 | B7: H2 | C7: Air Handling Unit (Air Cooled DX / Package) | J7: 0 | K7: 0 | L7: =+K7*J7 -> 0 | M7: 3 | N7: 0 | O7: =+N7*M7 -> 0 | P7: 1 | Q7: 0 | R7: =+Q7*P7 -> 0 | S7: =+$J7+$M7+$P7 -> 4 | T7: =IF($V7>0,$S7,0) -> 0 | U7: =+R7+O7+L7+I7+F7 -> 0 | V7: =IFERROR(VLOOKUP($A$5,'Equipment List Template'!$1:$1048576,12,FALSE),"0") -> 0 | W7: =+U7*V7 -> 0 | X7: =$T7*$V7 -> 0
A8: 01-G1 | B8: H3 | C8: Air-Cooled Chiller | J8: 11 | K8: 0 | L8: 0 | M8: 0 | N8: 0 | O8: 0 | P8: 1 | Q8: 0 | R8: 0 | S8: 12 | T8: 0 | U8: 0 | V8: =IFERROR(VLOOKUP($A$5,'Equipment List Template'!$1:$1048576,13,FALSE),"0") -> 0 | W8: 0 | X8: 0
A9: 01-G1 | B9: H4 | C9: Centrifugal Chiller | J9: 11 | K9: 0 | L9: 0 | M9: 0 | N9: 0 | O9: 0 | P9: 1 | Q9: 0 | R9: 0 | S9: 12 | T9: 0 | U9: 0 | V9: =IFERROR(VLOOKUP($A$5,'Equipment List Template'!$1:$1048576,14,FALSE),"0") -> 0 | W9: 0 | X9: 0
A10: 01-G1 | B10: H5 | C10: Cooling Tower (Induced Draft) | J10: 8 | K10: 0 | L10: 0 | M10: 3 | N10: 0 | O10: 0 | P10: 1 | Q10: 0 | R10: 0 | S10: 12 | T10: 0 | U10: 0 | V10: =IFERROR(VLOOKUP($A$5,'Equipment List Template'!$1:$1048576,15,FALSE),"0") -> 0 | W10: 0 | X10: 0
A11: 01-G1 | B11: H6 | C11: Ice Chiller Tank | J11: 8 | K11: 0 | L11: 0 | M11: 3 | N11: 0 | O11: 0 | P11: 1 | Q11: 0 | R11: 0 | S11: 12 | T11: 0 | U11: 0 | V11: =IFERROR(VLOOKUP($A$5,'Equipment List Template'!$1:$1048576,16,FALSE),"0") -> 0 | W11: 0 | X11: 0
A12: 01-G1 | B12: H7 | C12: Geothermal System | J12: 11 | K12: 0 | L12: 0 | M12: 0 | N12: 0 | O12: 0 | P12: 1 | Q12: 0 | R12: 0 | S12: 12 | T12: 0 | U12: 0 | V12: =IFERROR(VLOOKUP($A$5,'Equipment List Template'!$1:$1048576,17,FALSE),"0") -> 0 | W12: 0 | X12: 0
A13: 01-G1 | B13: H8 | C13: Water Source Heat Pump | J13: 8 | K13: 0 | L13: 0 | M13: 3 | N13: 0 | O13: 0 | P13: 1 | Q13: 0 | R13: 0 | S13: 12 | T13: 0 | U13: 0 | V13: =IFERROR(VLOOKUP($A$5,'Equipment List Template'!$1:$1048576,18,FALSE),"0") -> 0 | W13: 0 | X13: 0
A14: 01-G1 | B14: H9 | C14: Fan Coil System | J14: 0 | K14: 0 | L14: 0 | M14: 3 | N14: 0 | O14: 0 | P14: 1 | Q14: 0 | R14: 0 | S14: 4 | T14: 0 | U14: 0 | V14: =IFERROR(VLOOKUP($A$5,'Equipment List Template'!$1:$1048576,19,FALSE),"0") -> 0 | W14: 0 | X14: 0
A15: 01-G1 | B15: H10 | C15: Supply / Return Fan and Exhaust | J15: 0 | K15: 0 | L15: 0 | M15: 3 | N15: 0 | O15: 0 | P15: 1 | Q15: 0 | R15: 0 | S15: 4 | T15: 0 | U15: 0 | V15: =IFERROR(VLOOKUP($A$5,'Equipment List Template'!$1:$1048576,20,FALSE),"0") -> 0 | W15: 0 | X15: 0
A16: 01-G1 | B16: H11 | C16: Evaporative and Spot Coolers (swamp coolers; spot cooler) | J16: 8 | K16: 0 | L16: 0 | M16: 3 | N16: 0 | O16: 0 | P16: 1 | Q16: 0 | R16: 0 | S16: 12 | T16: 0 | U16: 0 | V16: =IFERROR(VLOOKUP($A$5,'Equipment List Template'!$1:$1048576,21,FALSE),"0") -> 0 | W16: 0 | X16: 0
B17: H12 | C17: Unique HVAC System | J17: 0 | K17: 0 | L17: 0 | M17: 0 | N17: 0 | O17: 0 | P17: 0 | Q17: 0 | R17: 0 | S17: 0 | T17: 0 | V17: 0 | W17: 0
A18: 01-G1 | B18: E1 | C18: Electrical Panels | J18: 0 | K18: 0 | L18: 0 | M18: 3 | N18: 0 | O18: 0 | P18: 1 | Q18: 0 | R18: 0 | S18: 4 | T18: 4 | U18: 0 | V18: =IFERROR(VLOOKUP($A$5,'Equipment List Template'!$1:$1048576,23,FALSE),"0") -> 1 | W18: 0 | X18: 4
A19: 01-G1 | B19: E2 | C19: Emergency Generator | J19: 8 | K19: 0 | L19: 0 | M19: 3 | N19: 0 | O19: 0 | P19: 1 | Q19: 0 | R19: 0 | S19: 12 | T19: 0 | U19: 0 | V19: =IFERROR(VLOOKUP($A$5,'Equipment List Template'!$1:$1048576,24,FALSE),"0") -> 0 | W19: 0 | X19: 0
A20: 01-G1 | B20: E3 | C20: Motor Control Center | J20: 0 | K20: 0 | L20: 0 | M20: 3 | N20: 0 | O20: 0 | P20: 1 | Q20: 0 | R20: 0 | S20: 4 | T20: 0 | U20: 0 | V20: =IFERROR(VLOOKUP($A$5,'Equipment List Template'!$1:$1048576,25,FALSE),"0") -> 0 | W20: 0 | X20: 0
A21: 01-G1 | B21: E4 | C21: Automatic Transfer Switch | J21: 8 | K21: 0 | L21: 0 | M21: 3 | N21: 0 | O21: 0 | P21: 1 | Q21: 0 | R21: 0 | S21: 12 | T21: 0 | U21: 0 | V21: =IFERROR(VLOOKUP($A$5,'Equipment List Template'!$1:$1048576,26,FALSE),"0") -> 0 | W21: 0 | X21: 0
A22: 01-G1 | B22: E5 | C22: Building Automated Systems (BAS) | J22: 0 | K22: 0 | L22: 0 | M22: 0 | N22: 0 | O22: 0 | P22: 1 | Q22: 0 | R22: 0 | S22: 1 | T22: 1 | U22: 0 | V22: =IFERROR(VLOOKUP($A$5,'Equipment List Template'!$1:$1048576,27,FALSE),"0") -> 1 | W22: 0 | X22: 1
A23: 01-G1 | B23: E6 | C23: Transformer (Dry-Type) | J23: 0 | K23: 0 | L23: 0 | M23: 3 | N23: 0 | O23: 0 | P23: 1 | Q23: 0 | R23: 0 | S23: 4 | T23: 0 | U23: 0 | V23: =IFERROR(VLOOKUP($A$5,'Equipment List Template'!$1:$1048576,28,FALSE),"0") -> 0 | W23: 0 | X23: 0
A24: 01-G1 | B24: E7 | C24: Uninterruptible Power Supply (UPS) | J24: 0 | K24: 0 | L24: 0 | M24: 0 | N24: 0 | O24: 0 | P24: 1 | Q24: 0 | R24: 0 | S24: 1 | T24: 0 | U24: 0 | V24: =IFERROR(VLOOKUP($A$5,'Equipment List Template'!$1:$1048576,29,FALSE),"0") -> 0 | W24: 0 | X24: 0
A25: 01-G1 | B25: E8 | C25: Lighting and Controls (Interior and Exterior) | J25: 12 | K25: 0 | L25: 0 | M25: 0 | N25: 0 | O25: 0 | P25: 0 | Q25: 0 | R25: 0 | S25: 12 | T25: 12 | U25: 0 | V25: =IFERROR(VLOOKUP($A$5,'Equipment List Template'!$1:$1048576,30,FALSE),"0") -> 2 | W25: 0 | X25: 24
B26: E9 | C26: Unique Electrical System | J26: 0 | K26: 0 | L26: 0 | M26: 0 | N26: 0 | O26: 0 | P26: 0 | Q26: 0 | R26: 0 | S26: 0 | T26: 0 | V26: 0 | W26: 0
A27: 01-G1 | B27: L1 | C27: Life Safety Systems | J27: 0 | K27: 0 | L27: 0 | M27: 3 | N27: 0 | O27: 0 | P27: 1 | Q27: 0 | R27: 0 | S27: 4 | T27: 4 | U27: 0 | V27: =IFERROR(VLOOKUP($A$5,'Equipment List Template'!$1:$1048576,32,FALSE),"0") -> 3 | W27: 0 | X27: 12
A28: 01-G1 | B28: L2 | C28: Reduced Pressure Backflow Preventer(s) | J28: 0 | K28: 0 | L28: 0 | M28: 0 | N28: 0 | O28: 0 | P28: 1 | Q28: 0 | R28: 0 | S28: 1 | T28: 1 | U28: 0 | V28: =IFERROR(VLOOKUP($A$5,'Equipment List Template'!$1:$1048576,33,FALSE),"0") -> 4 | W28: 0 | X28: 4
A29: 01-G1 | B29: P1 | C29: Boiler (Condensing) | J29: 8 | K29: 0 | L29: 0 | M29: 3 | N29: 0 | O29: 0 | P29: 1 | Q29: 0 | R29: 0 | S29: 12 | T29: 12 | U29: 0 | V29: =IFERROR(VLOOKUP($A$5,'Equipment List Template'!$1:$1048576,34,FALSE),"0") -> 1 | W29: 0 | X29: 12
A30: 01-G1 | B30: P2 | C30: Domestic Water Heater (Gas-Fired, Condensing) | J30: 0 | K30: 0 | L30: 0 | M30: 0 | N30: 0 | O30: 0 | P30: 1 | Q30: 0 | R30: 0 | S30: 1 | T30: 1 | U30: 0 | V30: =IFERROR(VLOOKUP($A$5,'Equipment List Template'!$1:$1048576,35,FALSE),"0") -> 1 | W30: 0 | X30: 1
A31: 01-G1 | B31: P3 | C31: Domestic Water Heater (Electric, Non- Condensing) | J31: 0 | K31: 0 | L31: 0 | M31: 0 | N31: 0 | O31: 0 | P31: 1 | Q31: 0 | R31: 0 | S31: 1 | T31: 0 | U31: 0 | V31: =IFERROR(VLOOKUP($A$5,'Equipment List Template'!$1:$1048576,36,FALSE),"0") -> 0 | W31: 0 | X31: 0
A32: 01-G1 | B32: P4 | C32: Boiler (Steam, low pressure) | J32: 0 | K32: 0 | L32: 0 | M32: 3 | N32: 0 | O32: 0 | P32: 1 | Q32: 0 | R32: 0 | S32: 4 | T32: 0 | U32: 0 | V32: =IFERROR(VLOOKUP($A$5,'Equipment List Template'!$1:$1048576,37,FALSE),"0") -> 0 | W32: 0 | X32: 0
A33: 01-G1 | B33: P5 | C33: Steam System | J33: 8 | K33: 0 | L33: 0 | M33: 3 | N33: 0 | O33: 0 | P33: 1 | Q33: 0 | R33: 0 | S33: 12 | T33: 0 | U33: 0 | V33: =IFERROR(VLOOKUP($A$5,'Equipment List Template'!$1:$1048576,38,FALSE),"0") -> 0 | W33: 0 | X33: 0
A34: 01-G1 | B34: P6 | C34: Pneumatic Compressor System | J34: 11 | K34: 0 | L34: 0 | M34: 0 | N34: 0 | O34: 0 | P34: 1 | Q34: 0 | R34: 0 | S34: 12 | T34: 0 | U34: 0 | V34: =IFERROR(VLOOKUP($A$5,'Equipment List Template'!$1:$1048576,39,FALSE),"0") -> 0 | W34: 0 | X34: 0
B35: P7 | C35: Unique Plumbing System | J35: 0 | K35: 0 | L35: 0 | M35: 0 | N35: 0 | O35: 0 | P35: 0 | Q35: 0 | R35: 0 | S35: 0 | T35: 0 | U35: 0 | V35: 0 | W35: 0
A36: 01-G1 | B36: R1 | C36: Rounds and Readings | D36: =IFERROR(IF(VLOOKUP($A36,'Equipment List Template'!$1:$1048576,38,FALSE)=248,248,0),0) -> 0 | E36: 0 | F36: =+E36*D36 -> 0 | G36: =IFERROR(IF(VLOOKUP($A36,'Equipment List Template'!$1:$1048576,38,FALSE)=40,40,0),0) -> 0 | H36: 0 | I36: =+H36*G36 -> 0 | J36: 12 | K36: 0 | L36: 0 | S36: =+$J36+$M36+$P36+D36+G36 -> 12 | T36: 12 | U36: =+R36+O36+L36+I36+F36 -> 0 | V36: 1 | W36: =+U36*V36 -> 0 | X36: 12
A37: 01-G1 | B37: V1 | C37: Vertical Transportation | J37: 8 | K37: 0 | L37: =+K37*J37 -> 0 | M37: 3 | N37: 0 | O37: =+N37*M37 -> 0 | P37: 1 | Q37: 0 | R37: =+Q37*P37 -> 0 | S37: =+$J37+$M37+$P37+D37+G37 -> 12 | T37: 12 | U37: =+R37+O37+L37 -> 0 | V37: =IFERROR(VLOOKUP($A$5,'Equipment List Template'!$1:$1048576,42,FALSE),"0") -> 3 | W37: =+U37*V37 -> 0 | X37: 36
A38: 01-G1 | B38: W1 | C38: Water Treatment | D38: =IFERROR(IF(VLOOKUP($A38,'Equipment List Template'!$1:$1048576,40,FALSE)=248,260,0),0) -> 0 | E38: 0 | F38: =+E38*D38 -> 0 | S38: 0 | T38: 0 | U38: =+R38+O38+L38+I38+F38 -> 0 | V38: 1 | W38: 0 | X38: 0
A39: 01-G1 | B39: B1 | C39: Building Exterior / Hardscape (Monthly) | J39: 12 | K39: 0 | L39: =+K39*J39 -> 0 | S39: 12 | T39: 12 | U39: 0 | V39: =IFERROR(VLOOKUP($A$5,'Equipment List Template'!$1:$1048576,44,FALSE),"0") -> 1 | W39: 0 | X39: 12
A40: 01-G1 | B40: F1 | C40: Fountain Maintenance (Monthly) | J40: 12 | K40: 0 | L40: =+K40*J40 -> 0 | S40: 12 | T40: 0 | U40: 0 | V40: =IFERROR(VLOOKUP($A$5,'Equipment List Template'!$1:$1048576,45,FALSE),"0") -> 0 | W40: 0 | X40: 0
A41: 01-G1 | B41: F2 | C41: Above-Ground/Underground Fuel Storage Tanks (Quarterly) If applicable | M41: 4 | N41: 0 | O41: =+N41*M41 -> 0 | S41: 4 | T41: 0 | U41: 0 | V41: =IFERROR(VLOOKUP($A$5,'Equipment List Template'!$1:$1048576,46,FALSE),"0") -> 0 | W41: 0 | X41: 0
A42: 01-G1 | B42: G1 | C42: Landscape Maintenance * | S42: 0 | T42: 0 | U42: 0 | V42: =IFERROR(VLOOKUP($A$5,'Equipment List Template'!$1:$1048576,47,FALSE),"0") -> 1 | W42: 0 | X42: 0
B43: PC1 | C43: Pest Control (Monthly) | J43: 12 | K43: 0 | L43: =+K43*J43 -> 0 | S43: 12 | T43: 12 | U43: 0 | V43: 1 | W43: 0 | X43: 12
B44: PV1 | C44: Photovoltaic (PV) System | P44: 1 | Q44: 0 | R44: =+Q44*P44 -> 0 | S44: 1 | T44: 0 | U44: 0 | V44: 0 | W44: 0
A45: 01-G1 | B45: C1 | C45: Account Management and Supervision (Monthly) | J45: 12 | K45: 0 | L45: =+K45*J45 -> 0 | S45: 12 | T45: 12 | U45: 0 | V45: 1 | W45: 0 | X45: 12
A46: 01-G1 | B46: C2 | C46: Fee (Monthly) | J46: 12 | K46: 0 | L46: =+K46*J46 -> 0 | S46: 12 | T46: 12 | U46: 0 | V46: 1 | W46: 0 | X46: 12
Q47: JCC ID | R47: =B2 -> 01-G1 | U47: Total | W47: =SUM(W5:W46) -> 0
B48: S1 | C48: Snow Removal - (crew hourly rate) | D48: 0 | U48: Total # of PM's | W48: =SUM($X$5:$X$46) -> 170
B49: I1 | C49: Unclogging Blocked Toilet - In-custody cell (labor-only) | D49: 0
B50: I2 | C50: Unclogging Blocked Toilet - Public/Court Staff (labor-only) | D50: 0
B51: I3 | C51: Clean up & Disposal of Biological Waste Event | D51: 0
B52: I4 | C52: Clean up & Disposal of Biological Waste Labor Rate | D52: 0
B53: Hr 1 | C53: Hourly Rate (All Labor categories) | D53: 0
B54: M1 | C54: Markup on Materials (Percentage) | D54: 0
B55: Sub1 | C55: Markup on Subcontractors/Third-Parties (Percentage) | D55: 0
B57: * Landscape Maintenance varies by location on the number of weeks per year it can be preformed. For the purpose of the RFP, all facilities are pre-established at 40 weeks of service. The actual amount paid by facility will be based upon the actual weeks that service has been performed, validated and invoiced.

Sheet 01-H1
B1: JCC ID | C1: Facility Name | D1: Address | F1: City / Town | H1: Zip Code | J1: County | L1: Region | N1: RFP | P1: Proposer
B2: 01-H1 | C2: =IFERROR(VLOOKUP($B$2,'Equipment List Template'!$1:$1048576,2,FALSE),"") -> Fremont Hall of Justice | D2: =IFERROR(VLOOKUP($B$2,'Equipment List Template'!$1:$1048576,3,FALSE),"") -> 39439 Paseo Padre Pkwy. | F2: =IFERROR(VLOOKUP($B$2,'Equipment List Template'!$1:$1048576,4,FALSE),"") -> Fremont | H2: =IFERROR(VLOOKUP($B$2,'Equipment List Template'!$1:$1048576,5,FALSE),"") -> 94538 | J2: =IFERROR(VLOOKUP($B$2,'Equipment List Template'!$1:$1048576,6,FALSE),"") -> Alameda | L2: =IFERROR(VLOOKUP($B$2,'Equipment List Template'!$1:$1048576,7,FALSE),"") -> BANCRO | N2: ='Summary Pricing Sheet'!B2 -> RFP-FS-SP-2019-03-JP | P2: ='Summary Pricing Sheet'!B3 -> Firm Name TBD
D3: Daily Activity | G3: Weekly Activity | J3: Monthly Activity | M3: Quarterly Activity | P3: Annual Activity | U3: Summary | AG3: System | AH3: Access | AI3: HVAC | AU3: Electrical | BD3: Life Safety | BF3: Plumbing | BM3: Building Systems | BV3: Corporate | BY3: Fixed Price - Facility Total Annual Cost Year 1 | CA3: Unit Pricing
B4: System ID | C4: Subsystem | D4: Quantity | E4: Cost | F4: Daily Total | G4: Quantity | H4: Cost | I4: Weekly Total | J4: Monthly Quantity | K4: Cost | L4: Monthly Total | M4: Quarterly Quantity | N4: Cost | O4: Quarterly Total | P4: Annual Quantity | Q4: Cost | R4: Annual PM Total | T4: Number of PM's | U4: Annual Cost | V4: Quantity | W4: Total Annual Cost | AG4: Subsystem | AH4: Access Doors, Gates, Sally Port | AI4: Air Cooled DX (Split System) | AJ4: Air Handling Unit (Air Cooled DX / Package) | AK4: Air-Cooled Chiller | AL4: Centrifugal Chiller | AM4: Cooling Tower (Induced Draft) | AN4: Ice Chiller Tank | AO4: Geothermal System | AP4: Water Source Heat Pump | AQ4: Fan Coil System | AR4: Supply / Return Fan and Exhaust | AS4: Evaporative and Spot Coolers (swamp coolers; spot cooler) | AT4: Unique HVAC System | AU4: Electrical Panels | AV4: Emergency Generator | AW4: Motor Control Center | AX4: Automatic Transfer Switch | AY4: Building Automated Systems (BAS) | AZ4: Transformer (Dry-Type) | BA4: Uninterruptible Power Supply (UPS) | BB4: Lighting and Controls (Interior and Exterior) | BC4: Unique Electrical System | BD4: Life Safety Systems | BE4: Reduced Pressure Backflow Preventer(s) | BF4: Boiler (Condensing) | BG4: Domestic Water Heater (Gas-Fired, Condensing) | BH4: Domestic Water Heater (Electric, Non- Condensing) | BI4: Boiler (Steam, low pressure) | BJ4: Steam System | BK4: Pneumatic Compressor System | BL4: Unique Plumbing System | BM4: Rounds and Readings | BN4: Vertical Transportation | BO4: Water Treatment | BP4: Building Exterior / Hardscape (Monthly) | BQ4: Fountain Maintenance (Monthly) | BR4: Above-Ground/Underground Fuel Storage Tanks (Quarterly) If applicable | BS4: Landscape Maintenance * | BT4: Pest Control (Monthly) | BU4: Photovoltaic (PV) System | BV4: Account Management and Supervision (Monthly) | BW4: Fee (Monthly) | CA4: Snow Removal - (crew hourly rate) | CB4: Unclogging Blocked Toilet - In-custody holding cell (labor) | CC4: Unclogging Blocked Toilet - Public/Court Staff (labor) | CD4: Clean up & Disposal of Biological Waste Event | CE4: Clean up & Disposal of Biological Waste Labor Rate | CF4: Hourly Rate | CG4: Markup on Materials | CH4: Markup on Subcontractors/Third-Parties
A5: =$B$2 -> 01-H1 | B5: A1 | C5: Access Doors, Gates, Sally Port | J5: 11 | K5: 0 | L5: =+K5*J5 -> 0 | M5: 0 | N5: 0 | O5: =+N5*M5 -> 0 | P5: 1 | Q5: 0 | R5: =+Q5*P5 -> 0 | S5: =+$J5+$M5+$P5 -> 12 | T5: =IF($V5>0,$S5,0) -> 12 | U5: =+R5+O5+L5+I5+F5 -> 0 | V5: =IFERROR(VLOOKUP($A$5,'Equipment List Template'!$1:$1048576,10,FALSE),"0") -> 10 | W5: =+U5*V5 -> 0 | X5: =$T5*$V5 -> 120 | Z5: JCC ID | AA5: Facility Name | AB5: Address | AC5: City / Town | AD5: County | AE5: Region | AF5: Region | AG5: System ID | AH5: A1 | AI5: H1 | AJ5: H2 | AK5: H3 | AL5: H4 | AM5: H5 | AN5: H6 | AO5: H7 | AP5: H8 | AQ5: H9 | AR5: H10 | AS5: H11 | AT5: H12 | AU5: E1 | AV5: E2 | AW5: E3 | AX5: E4 | AY5: E5 | AZ5: E6 | BA5: E7 | BB5: E8 | BC5: E9 | BD5: L1 | BE5: L2 | BF5: P1 | BG5: P2 | BH5: P3 | BI5: P4 | BJ5: P5 | BK5: P6 | BL5: P7 | BM5: R1 | BN5: V1 | BO5: W1 | BP5: B1 | BQ5: F1 | BR5: F2 | BS5: G1 | BT5: PC1 | BU5: PV1 | BV5: C1 | BW5: C2 | CA5: S1 | CB5: I1 | CC5: I2 | CD5: I3 | CE5: I4 | CF5: Hr 1 | CG5: M1 | CH5: Sub1
A6: =$B$2 -> 01-H1 | B6: H1 | C6: Air Cooled DX (Split System) | J6: 0 | K6: 0 | L6: =+K6*J6 -> 0 | M6: 3 | N6: 0 | O6: =+N6*M6 -> 0 | P6: 1 | Q6: 0 | R6: =+Q6*P6 -> 0 | S6: =+$J6+$M6+$P6 -> 4 | T6: =IF($V6>0,$S6,0) -> 4 | U6: =+R6+O6+L6+I6+F6 -> 0 | V6: =IFERROR(VLOOKUP($A$5,'Equipment List Template'!$1:$1048576,11,FALSE),"0") -> 2 | W6: =+U6*V6 -> 0 | X6: =$T6*$V6 -> 8 | Z6: =B2 -> 01-H1 | AA6: =IFERROR(VLOOKUP($Z$6,'Equipment List Template'!$1:$1048576,2,FALSE),"") -> Fremont Hall of Justice | AB6: =IFERROR(VLOOKUP($Z$6,'Equipment List Template'!$1:$1048576,3,FALSE),"") -> 39439 Paseo Padre Pkwy. | AC6: =IFERROR(VLOOKUP($Z$6,'Equipment List Template'!$1:$1048576,4,FALSE),"") -> Fremont | AD6: =IFERROR(VLOOKUP($Z$6,'Equipment List Template'!$1:$1048576,5,FALSE),"") -> 94538 | AE6: =IFERROR(VLOOKUP($Z$6,'Equipment List Template'!$1:$1048576,6,FALSE),"") -> Alameda | AF6: =IFERROR(VLOOKUP($Z$6,'Equipment List Template'!$1:$1048576,7,FALSE),"") -> BANCRO | AH6: =+$W5 -> 0 | AI6: =+$W6 -> 0 | AJ6: =+$W7 -> 0 | AK6: =+$W8 -> 0 | AL6: =+$W9 -> 0 | AM6: =+$W10 -> 0 | AN6: =+$W11 -> 0 | AO6: =+$W12 -> 0 | AP6: =+$W13 -> 0 | AQ6: =+$W14 -> 0 | AR6: =+$W15 -> 0 | AS6: =+$W16 -> 0 | AT6: =+$W17 -> 0 | AU6: =+$W18 -> 0 | AV6: =+$W19 -> 0 | AW6: =+$W20 -> 0 | AX6: =+$W21 -> 0 | AY6: =+$W22 -> 0 | AZ6: =+$W23 -> 0 | BA6: =+$W24 -> 0 | BB6: =+$W25 -> 0 | BC6: =+$W26 -> 0 | BD6: =+$W27 -> 0 | BE6: =+$W28 -> 0 | BF6: =+$W29 -> 0 | BG6: =+$W30 -> 0 | BH6: =+$W31 -> 0 | BI6: =+$W32 -> 0 | BJ6: =+$W33 -> 0 | BK6: =+$W34 -> 0 | BL6: =+$W35 -> 0 | BM6: =+$W36 -> 0 | BN6: =+$W37 -> 0 | BO6: =+$W38 -> 0 | BP6: =+$W39 -> 0 | BQ6: =+$W40 -> 0 | BR6: =+$W41 -> 0 | BS6: =+$W42 -> 0 | BT6: =+$W43 -> 0 | BU6: =+$W44 -> 0 | BV6: =+$W45 -> 0 | BW6: =+$W46 -> 0 | BY6: =+$W47 -> 0 | CA6: =+$D48 -> 0 | CB6: =+$D49 -> 0 | CC6: =+$D50 -> 0 | CD6: =+$D51 -> 0 | CE6: =+$D52 -> 0 | CF6: =+$D53 -> 0 | CG6: =+$D54 -> 0 | CH6: =+$D55 -> 0
A7: =$B$2 -> 01-H1 | B7: H2 | C7: Air Handling Unit (Air Cooled DX / Package) | J7: 0 | K7: 0 | L7: =+K7*J7 -> 0 | M7: 3 | N7: 0 | O7: =+N7*M7 -> 0 | P7: 1 | Q7: 0 | R7: =+Q7*P7 -> 0 | S7: =+$J7+$M7+$P7 -> 4 | T7: =IF($V7>0,$S7,0) -> 4 | U7: =+R7+O7+L7+I7+F7 -> 0 | V7: =IFERROR(VLOOKUP($A$5,'Equipment List Template'!$1:$1048576,12,FALSE),"0") -> 13 | W7: =+U7*V7 -> 0 | X7: =$T7*$V7 -> 52
A8: 01-H1 | B8: H3 | C8: Air-Cooled Chiller | J8: 11 | K8: 0 | L8: 0 | M8: 0 | N8: 0 | O8: 0 | P8: 1 | Q8: 0 | R8: 0 | S8: 12 | T8: 0 | U8: 0 | V8: =IFERROR(VLOOKUP($A$5,'Equipment List Template'!$1:$1048576,13,FALSE),"0") -> 0 | W8: 0 | X8: 0
A9: 01-H1 | B9: H4 | C9: Centrifugal Chiller | J9: 11 | K9: 0 | L9: 0 | M9: 0 | N9: 0 | O9: 0 | P9: 1 | Q9: 0 | R9: 0 | S9: 12 | T9: 12 | U9: 0 | V9: =IFERROR(VLOOKUP($A$5,'Equipment List Template'!$1:$1048576,14,FALSE),"0") -> 2 | W9: 0 | X9: 24
A10: 01-H1 | B10: H5 | C10: Cooling Tower (Induced Draft) | J10: 8 | K10: 0 | L10: 0 | M10: 3 | N10: 0 | O10: 0 | P10: 1 | Q10: 0 | R10: 0 | S10: 12 | T10: 0 | U10: 0 | V10: =IFERROR(VLOOKUP($A$5,'Equipment List Template'!$1:$1048576,15,FALSE),"0") -> 0 | W10: 0 | X10: 0
A11: 01-H1 | B11: H6 | C11: Ice Chiller Tank | J11: 8 | K11: 0 | L11: 0 | M11: 3 | N11: 0 | O11: 0 | P11: 1 | Q11: 0 | R11: 0 | S11: 12 | T11: 0 | U11: 0 | V11: =IFERROR(VLOOKUP($A$5,'Equipment List Template'!$1:$1048576,16,FALSE),"0") -> 0 | W11: 0 | X11: 0
A12: 01-H1 | B12: H7 | C12: Geothermal System | J12: 11 | K12: 0 | L12: 0 | M12: 0 | N12: 0 | O12: 0 | P12: 1 | Q12: 0 | R12: 0 | S12: 12 | T12: 0 | U12: 0 | V12: =IFERROR(VLOOKUP($A$5,'Equipment List Template'!$1:$1048576,17,FALSE),"0") -> 0 | W12: 0 | X12: 0
A13: 01-H1 | B13: H8 | C13: Water Source Heat Pump | J13: 8 | K13: 0 | L13: 0 | M13: 3 | N13: 0 | O13: 0 | P13: 1 | Q13: 0 | R13: 0 | S13: 12 | T13: 0 | U13: 0 | V13: =IFERROR(VLOOKUP($A$5,'Equipment List Template'!$1:$1048576,18,FALSE),"0") -> 0 | W13: 0 | X13: 0
A14: 01-H1 | B14: H9 | C14: Fan Coil System | J14: 0 | K14: 0 | L14: 0 | M14: 3 | N14: 0 | O14: 0 | P14: 1 | Q14: 0 | R14: 0 | S14: 4 | T14: 0 | U14: 0 | V14: =IFERROR(VLOOKUP($A$5,'Equipment List Template'!$1:$1048576,19,FALSE),"0") -> 0 | W14: 0 | X14: 0
A15: 01-H1 | B15: H10 | C15: Supply / Return Fan and Exhaust | J15: 0 | K15: 0 | L15: 0 | M15: 3 | N15: 0 | O15: 0 | P15: 1 | Q15: 0 | R15: 0 | S15: 4 | T15: 0 | U15: 0 | V15: =IFERROR(VLOOKUP($A$5,'Equipment List Template'!$1:$1048576,20,FALSE),"0") -> 0 | W15: 0 | X15: 0
A16: 01-H1 | B16: H11 | C16: Evaporative and Spot Coolers (swamp coolers; spot cooler) | J16: 8 | K16: 0 | L16: 0 | M16: 3 | N16: 0 | O16: 0 | P16: 1 | Q16: 0 | R16: 0 | S16: 12 | T16: 0 | U16: 0 | V16: =IFERROR(VLOOKUP($A$5,'Equipment List Template'!$1:$1048576,21,FALSE),"0") -> 0 | W16: 0 | X16: 0
B17: H12 | C17: Unique HVAC System | J17: 0 | K17: 0 | L17: 0 | M17: 0 | N17: 0 | O17: 0 | P17: 0 | Q17: 0 | R17: 0 | S17: 0 | T17: 0 | V17: 0 | W17: 0
A18: 01-H1 | B18: E1 | C18: Electrical Panels | J18: 0 | K18: 0 | L18: 0 | M18: 3 | N18: 0 | O18: 0 | P18: 1 | Q18: 0 | R18: 0 | S18: 4 | T18: 4 | U18: 0 | V18: =IFERROR(VLOOKUP($A$5,'Equipment List Template'!$1:$1048576,23,FALSE),"0") -> 1 | W18: 0 | X18: 4
A19: 01-H1 | B19: E2 | C19: Emergency Generator | J19: 8 | K19: 0 | L19: 0 | M19: 3 | N19: 0 | O19: 0 | P19: 1 | Q19: 0 | R19: 0 | S19: 12 | T19: 12 | U19: 0 | V19: =IFERROR(VLOOKUP($A$5,'Equipment List Template'!$1:$1048576,24,FALSE),"0") -> 1 | W19: 0 | X19: 12
A20: 01-H1 | B20: E3 | C20: Motor Control Center | J20: 0 | K20: 0 | L20: 0 | M20: 3 | N20: 0 | O20: 0 | P20: 1 | Q20: 0 | R20: 0 | S20: 4 | T20: 0 | U20: 0 | V20: =IFERROR(VLOOKUP($A$5,'Equipment List Template'!$1:$1048576,25,FALSE),"0") -> 0 | W20: 0 | X20: 0
A21: 01-H1 | B21: E4 | C21: Automatic Transfer Switch | J21: 8 | K21: 0 | L21: 0 | M21: 3 | N21: 0 | O21: 0 | P21: 1 | Q21: 0 | R21: 0 | S21: 12 | T21: 12 | U21: 0 | V21: =IFERROR(VLOOKUP($A$5,'Equipment List Template'!$1:$1048576,26,FALSE),"0") -> 1 | W21: 0 | X21: 12
A22: 01-H1 | B22: E5 | C22: Building Automated Systems (BAS) | J22: 0 | K22: 0 | L22: 0 | M22: 0 | N22: 0 | O22: 0 | P22: 1 | Q22: 0 | R22: 0 | S22: 1 | T22: 1 | U22: 0 | V22: =IFERROR(VLOOKUP($A$5,'Equipment List Template'!$1:$1048576,27,FALSE),"0") -> 1 | W22: 0 | X22: 1
A23: 01-H1 | B23: E6 | C23: Transformer (Dry-Type) | J23: 0 | K23: 0 | L23: 0 | M23: 3 | N23: 0 | O23: 0 | P23: 1 | Q23: 0 | R23: 0 | S23: 4 | T23: 0 | U23: 0 | V23: =IFERROR(VLOOKUP($A$5,'Equipment List Template'!$1:$1048576,28,FALSE),"0") -> 0 | W23: 0 | X23: 0
A24: 01-H1 | B24: E7 | C24: Uninterruptible Power Supply (UPS) | J24: 0 | K24: 0 | L24: 0 | M24: 0 | N24: 0 | O24: 0 | P24: 1 | Q24: 0 | R24: 0 | S24: 1 | T24: 0 | U24: 0 | V24: =IFERROR(VLOOKUP($A$5,'Equipment List Template'!$1:$1048576,29,FALSE),"0") -> 0 | W24: 0 | X24: 0
A25: 01-H1 | B25: E8 | C25: Lighting and Controls (Interior and Exterior) | J25: 12 | K25: 0 | L25: 0 | M25: 0 | N25: 0 | O25: 0 | P25: 0 | Q25: 0 | R25: 0 | S25: 12 | T25: 12 | U25: 0 | V25: =IFERROR(VLOOKUP($A$5,'Equipment List Template'!$1:$1048576,30,FALSE),"0") -> 2 | W25: 0 | X25: 24
B26: E9 | C26: Unique Electrical System | J26: 0 | K26: 0 | L26: 0 | M26: 0 | N26: 0 | O26: 0 | P26: 0 | Q26: 0 | R26: 0 | S26: 0 | T26: 0 | V26: 0 | W26: 0
A27: 01-H1 | B27: L1 | C27: Life Safety Systems | J27: 0 | K27: 0 | L27: 0 | M27: 3 | N27: 0 | O27: 0 | P27: 1 | Q27: 0 | R27: 0 | S27: 4 | T27: 4 | U27: 0 | V27: =IFERROR(VLOOKUP($A$5,'Equipment List Template'!$1:$1048576,32,FALSE),"0") -> 3 | W27: 0 | X27: 12
A28: 01-H1 | B28: L2 | C28: Reduced Pressure Backflow Preventer(s) | J28: 0 | K28: 0 | L28: 0 | M28: 0 | N28: 0 | O28: 0 | P28: 1 | Q28: 0 | R28: 0 | S28: 1 | T28: 1 | U28: 0 | V28: =IFERROR(VLOOKUP($A$5,'Equipment List Template'!$1:$1048576,33,FALSE),"0") -> 1 | W28: 0 | X28: 1
A29: 01-H1 | B29: P1 | C29: Boiler (Condensing) | J29: 8 | K29: 0 | L29: 0 | M29: 3 | N29: 0 | O29: 0 | P29: 1 | Q29: 0 | R29: 0 | S29: 12 | T29: 12 | U29: 0 | V29: =IFERROR(VLOOKUP($A$5,'Equipment List Template'!$1:$1048576,34,FALSE),"0") -> 2 | W29: 0 | X29: 24
A30: 01-H1 | B30: P2 | C30: Domestic Water Heater (Gas-Fired, Condensing) | J30: 0 | K30: 0 | L30: 0 | M30: 0 | N30: 0 | O30: 0 | P30: 1 | Q30: 0 | R30: 0 | S30: 1 | T30: 0 | U30: 0 | V30: =IFERROR(VLOOKUP($A$5,'Equipment List Template'!$1:$1048576,35,FALSE),"0") -> 0 | W30: 0 | X30: 0
A31: 01-H1 | B31: P3 | C31: Domestic Water Heater (Electric, Non- Condensing) | J31: 0 | K31: 0 | L31: 0 | M31: 0 | N31: 0 | O31: 0 | P31: 1 | Q31: 0 | R31: 0 | S31: 1 | T31: 0 | U31: 0 | V31: =IFERROR(VLOOKUP($A$5,'Equipment List Template'!$1:$1048576,36,FALSE),"0") -> 0 | W31: 0 | X31: 0
A32: 01-H1 | B32: P4 | C32: Boiler (Steam, low pressure) | J32: 0 | K32: 0 | L32: 0 | M32: 3 | N32: 0 | O32: 0 | P32: 1 | Q32: 0 | R32: 0 | S32: 4 | T32: 0 | U32: 0 | V32: =IFERROR(VLOOKUP($A$5,'Equipment List Template'!$1:$1048576,37,FALSE),"0") -> 0 | W32: 0 | X32: 0
A33: 01-H1 | B33: P5 | C33: Steam System | J33: 8 | K33: 0 | L33: 0 | M33: 3 | N33: 0 | O33: 0 | P33: 1 | Q33: 0 | R33: 0 | S33: 12 | T33: 0 | U33: 0 | V33: =IFERROR(VLOOKUP($A$5,'Equipment List Template'!$1:$1048576,38,FALSE),"0") -> 0 | W33: 0 | X33: 0
A34: 01-H1 | B34: P6 | C34: Pneumatic Compressor System | J34: 11 | K34: 0 | L34: 0 | M34: 0 | N34: 0 | O34: 0 | P34: 1 | Q34: 0 | R34: 0 | S34: 12 | T34: 0 | U34: 0 | V34: =IFERROR(VLOOKUP($A$5,'Equipment List Template'!$1:$1048576,39,FALSE),"0") -> 0 | W34: 0 | X34: 0
B35: P7 | C35: Unique Plumbing System | J35: 0 | K35: 0 | L35: 0 | M35: 0 | N35: 0 | O35: 0 | P35: 0 | Q35: 0 | R35: 0 | S35: 0 | T35: 0 | U35: 0 | V35: 0 | W35: 0
A36: 01-H1 | B36: R1 | C36: Rounds and Readings | D36: =IFERROR(IF(VLOOKUP($A36,'Equipment List Template'!$1:$1048576,38,FALSE)=248,248,0),0) -> 0 | E36: 0 | F36: =+E36*D36 -> 0 | G36: =IFERROR(IF(VLOOKUP($A36,'Equipment List Template'!$1:$1048576,38,FALSE)=40,40,0),0) -> 0 | H36: 0 | I36: =+H36*G36 -> 0 | J36: 12 | K36: 0 | L36: 0 | S36: =+$J36+$M36+$P36+D36+G36 -> 12 | T36: 12 | U36: =+R36+O36+L36+I36+F36 -> 0 | V36: 1 | W36: =+U36*V36 -> 0 | X36: 12
A37: 01-H1 | B37: V1 | C37: Vertical Transportation | J37: 8 | K37: 0 | L37: =+K37*J37 -> 0 | M37: 3 | N37: 0 | O37: =+N37*M37 -> 0 | P37: 1 | Q37: 0 | R37: =+Q37*P37 -> 0 | S37: =+$J37+$M37+$P37+D37+G37 -> 12 | T37: 12 | U37: =+R37+O37+L37 -> 0 | V37: =IFERROR(VLOOKUP($A$5,'Equipment List Template'!$1:$1048576,42,FALSE),"0") -> 4 | W37: =+U37*V37 -> 0 | X37: 48
A38: 01-H1 | B38: W1 | C38: Water Treatment | D38: =IFERROR(IF(VLOOKUP($A38,'Equipment List Template'!$1:$1048576,40,FALSE)=248,260,0),0) -> 0 | E38: 0 | F38: =+E38*D38 -> 0 | S38: 0 | T38: 0 | U38: =+R38+O38+L38+I38+F38 -> 0 | V38: 1 | W38: 0 | X38: 0
A39: 01-H1 | B39: B1 | C39: Building Exterior / Hardscape (Monthly) | J39: 12 | K39: 0 | L39: =+K39*J39 -> 0 | S39: 12 | T39: 12 | U39: 0 | V39: =IFERROR(VLOOKUP($A$5,'Equipment List Template'!$1:$1048576,44,FALSE),"0") -> 1 | W39: 0 | X39: 12
A40: 01-H1 | B40: F1 | C40: Fountain Maintenance (Monthly) | J40: 12 | K40: 0 | L40: =+K40*J40 -> 0 | S40: 12 | T40: 0 | U40: 0 | V40: =IFERROR(VLOOKUP($A$5,'Equipment List Template'!$1:$1048576,45,FALSE),"0") -> 0 | W40: 0 | X40: 0
A41: 01-H1 | B41: F2 | C41: Above-Ground/Underground Fuel Storage Tanks (Quarterly) If applicable | M41: 4 | N41: 0 | O41: =+N41*M41 -> 0 | S41: 4 | T41: 4 | U41: 0 | V41: =IFERROR(VLOOKUP($A$5,'Equipment List Template'!$1:$1048576,46,FALSE),"0") -> 1 | W41: 0 | X41: 4
A42: 01-H1 | B42: G1 | C42: Landscape Maintenance * | S42: 0 | T42: 0 | U42: 0 | V42: =IFERROR(VLOOKUP($A$5,'Equipment List Template'!$1:$1048576,47,FALSE),"0") -> 1 | W42: 0 | X42: 0
B43: PC1 | C43: Pest Control (Monthly) | J43: 12 | K43: 0 | L43: =+K43*J43 -> 0 | S43: 12 | T43: 12 | U43: 0 | V43: 1 | W43: 0 | X43: 12
B44: PV1 | C44: Photovoltaic (PV) System | P44: 1 | Q44: 0 | R44: =+Q44*P44 -> 0 | S44: 1 | T44: 0 | U44: 0 | V44: 0 | W44: 0
A45: 01-H1 | B45: C1 | C45: Account Management and Supervision (Monthly) | J45: 12 | K45: 0 | L45: =+K45*J45 -> 0 | S45: 12 | T45: 12 | U45: 0 | V45: 1 | W45: 0 | X45: 12
A46: 01-H1 | B46: C2 | C46: Fee (Monthly) | J46: 12 | K46: 0 | L46: =+K46*J46 -> 0 | S46: 12 | T46: 12 | U46: 0 | V46: 1 | W46: 0 | X46: 12
Q47: JCC ID | R47: =B2 -> 01-H1 | U47: Total | W47: =SUM(W5:W46) -> 0
B48: S1 | C48: Snow Removal - (crew hourly rate) | D48: 0 | U48: Total # of PM's | W48: =SUM($X$5:$X$46) -> 406
B49: I1 | C49: Unclogging Blocked Toilet - In-custody cell (labor-only) | D49: 0
B50: I2 | C50: Unclogging Blocked Toilet - Public/Court Staff (labor-only) | D50: 0
B51: I3 | C51: Clean up & Disposal of Biological Waste Event | D51: 0
B52: I4 | C52: Clean up & Disposal of Biological Waste Labor Rate | D52: 0
B53: Hr 1 | C53: Hourly Rate (All Labor categories) | D53: 0
B54: M1 | C54: Markup on Materials (Percentage) | D54: 0
B55: Sub1 | C55: Markup on Subcontractors/Third-Parties (Percentage) | D55: 0
B57: * Landscape Maintenance varies by location on the number of weeks per year it can be preformed. For the purpose of the RFP, all facilities are pre-established at 40 weeks of service. The actual amount paid by facility will be based upon the actual weeks that service has been performed, validated and invoiced.

Sheet 01-J1
B1: JCC ID | C1: Facility Name | D1: Address | F1: City / Town | H1: Zip Code | J1: County | L1: Region | N1: RFP | P1: Proposer
B2: 01-J1 | C2: =IFERROR(VLOOKUP($B$2,'Equipment List Template'!$1:$1048576,2,FALSE),"") -> New East County Hall of Justice | D2: =IFERROR(VLOOKUP($B$2,'Equipment List Template'!$1:$1048576,3,FALSE),"") -> 5151 Gleason Drive | F2: =IFERROR(VLOOKUP($B$2,'Equipment List Template'!$1:$1048576,4,FALSE),"") -> Dublin | H2: =IFERROR(VLOOKUP($B$2,'Equipment List Template'!$1:$1048576,5,FALSE),"") -> 94568 | J2: =IFERROR(VLOOKUP($B$2,'Equipment List Template'!$1:$1048576,6,FALSE),"") -> Alameda | L2: =IFERROR(VLOOKUP($B$2,'Equipment List Template'!$1:$1048576,7,FALSE),"") -> BANCRO | N2: ='Summary Pricing Sheet'!B2 -> RFP-FS-SP-2019-03-JP | P2: ='Summary Pricing Sheet'!B3 -> Firm Name TBD
D3: Daily Activity | G3: Weekly Activity | J3: Monthly Activity | M3: Quarterly Activity | P3: Annual Activity | U3: Summary | AG3: System | AH3: Access | AI3: HVAC | AU3: Electrical | BD3: Life Safety | BF3: Plumbing | BM3: Building Systems | BV3: Corporate | BY3: Fixed Price - Facility Total Annual Cost Year 1 | CA3: Unit Pricing
B4: System ID | C4: Subsystem | D4: Quantity | E4: Cost | F4: Daily Total | G4: Quantity | H4: Cost | I4: Weekly Total | J4: Monthly Quantity | K4: Cost | L4: Monthly Total | M4: Quarterly Quantity | N4: Cost | O4: Quarterly Total | P4: Annual Quantity | Q4: Cost | R4: Annual PM Total | T4: Number of PM's | U4: Annual Cost | V4: Quantity | W4: Total Annual Cost | AG4: Subsystem | AH4: Access Doors, Gates, Sally Port | AI4: Air Cooled DX (Split System) | AJ4: Air Handling Unit (Air Cooled DX / Package) | AK4: Air-Cooled Chiller | AL4: Centrifugal Chiller | AM4: Cooling Tower (Induced Draft) | AN4: Ice Chiller Tank | AO4: Geothermal System | AP4: Water Source Heat Pump | AQ4: Fan Coil System | AR4: Supply / Return Fan and Exhaust | AS4: Evaporative and Spot Coolers (swamp coolers; spot cooler) | AT4: Unique HVAC System | AU4: Electrical Panels | AV4: Emergency Generator | AW4: Motor Control Center | AX4: Automatic Transfer Switch | AY4: Building Automated Systems (BAS) | AZ4: Transformer (Dry-Type) | BA4: Uninterruptible Power Supply (UPS) | BB4: Lighting and Controls (Interior and Exterior) | BC4: Unique Electrical System | BD4: Life Safety Systems | BE4: Reduced Pressure Backflow Preventer(s) | BF4: Boiler (Condensing) | BG4: Domestic Water Heater (Gas-Fired, Condensing) | BH4: Domestic Water Heater (Electric, Non- Condensing) | BI4: Boiler (Steam, low pressure) | BJ4: Steam System | BK4: Pneumatic Compressor System | BL4: Unique Plumbing System | BM4: Rounds and Readings | BN4: Vertical Transportation | BO4: Water Treatment | BP4: Building Exterior / Hardscape (Monthly) | BQ4: Fountain Maintenance (Monthly) | BR4: Above-Ground/Underground Fuel Storage Tanks (Quarterly) If applicable | BS4: Landscape Maintenance * | BT4: Pest Control (Monthly) | BU4: Photovoltaic (PV) System | BV4: Account Management and Supervision (Monthly) | BW4: Fee (Monthly) | CA4: Snow Removal - (crew hourly rate) | CB4: Unclogging Blocked Toilet - In-custody holding cell (labor) | CC4: Unclogging Blocked Toilet - Public/Court Staff (labor) | CD4: Clean up & Disposal of Biological Waste Event | CE4: Clean up & Disposal of Biological Waste Labor Rate | CF4: Hourly Rate | CG4: Markup on Materials | CH4: Markup on Subcontractors/Third-Parties
A5: =$B$2 -> 01-J1 | B5: A1 | C5: Access Doors, Gates, Sally Port | J5: 11 | K5: 0 | L5: =+K5*J5 -> 0 | M5: 0 | N5: 0 | O5: =+N5*M5 -> 0 | P5: 1 | Q5: 0 | R5: =+Q5*P5 -> 0 | S5: =+$J5+$M5+$P5 -> 12 | T5: =IF($V5>0,$S5,0) -> 12 | U5: =+R5+O5+L5+I5+F5 -> 0 | V5: =IFERROR(VLOOKUP($A$5,'Equipment List Template'!$1:$1048576,10,FALSE),"0") -> 4 | W5: =+U5*V5 -> 0 | X5: =$T5*$V5 -> 48 | Z5: JCC ID | AA5: Facility Name | AB5: Address | AC5: City / Town | AD5: County | AE5: Region | AF5: Region | AG5: System ID | AH5: A1 | AI5: H1 | AJ5: H2 | AK5: H3 | AL5: H4 | AM5: H5 | AN5: H6 | AO5: H7 | AP5: H8 | AQ5: H9 | AR5: H10 | AS5: H11 | AT5: H12 | AU5: E1 | AV5: E2 | AW5: E3 | AX5: E4 | AY5: E5 | AZ5: E6 | BA5: E7 | BB5: E8 | BC5: E9 | BD5: L1 | BE5: L2 | BF5: P1 | BG5: P2 | BH5: P3 | BI5: P4 | BJ5: P5 | BK5: P6 | BL5: P7 | BM5: R1 | BN5: V1 | BO5: W1 | BP5: B1 | BQ5: F1 | BR5: F2 | BS5: G1 | BT5: PC1 | BU5: PV1 | BV5: C1 | BW5: C2 | CA5: S1 | CB5: I1 | CC5: I2 | CD5: I3 | CE5: I4 | CF5: Hr 1 | CG5: M1 | CH5: Sub1
A6: =$B$2 -> 01-J1 | B6: H1 | C6: Air Cooled DX (Split System) | J6: 0 | K6: 0 | L6: =+K6*J6 -> 0 | M6: 3 | N6: 0 | O6: =+N6*M6 -> 0 | P6: 1 | Q6: 0 | R6: =+Q6*P6 -> 0 | S6: =+$J6+$M6+$P6 -> 4 | T6: =IF($V6>0,$S6,0) -> 0 | U6: =+R6+O6+L6+I6+F6 -> 0 | V6: =IFERROR(VLOOKUP($A$5,'Equipment List Template'!$1:$1048576,11,FALSE),"0") -> 0 | W6: =+U6*V6 -> 0 | X6: =$T6*$V6 -> 0 | Z6: =B2 -> 01-J1 | AA6: =IFERROR(VLOOKUP($Z$6,'Equipment List Template'!$1:$1048576,2,FALSE),"") -> New East County Hall of Justice | AB6: =IFERROR(VLOOKUP($Z$6,'Equipment List Template'!$1:$1048576,3,FALSE),"") -> 5151 Gleason Drive | AC6: =IFERROR(VLOOKUP($Z$6,'Equipment List Template'!$1:$1048576,4,FALSE),"") -> Dublin | AD6: =IFERROR(VLOOKUP($Z$6,'Equipment List Template'!$1:$1048576,5,FALSE),"") -> 94568 | AE6: =IFERROR(VLOOKUP($Z$6,'Equipment List Template'!$1:$1048576,6,FALSE),"") -> Alameda | AF6: =IFERROR(VLOOKUP($Z$6,'Equipment List Template'!$1:$1048576,7,FALSE),"") -> BANCRO | AH6: =+$W5 -> 0 | AI6: =+$W6 -> 0 | AJ6: =+$W7 -> 0 | AK6: =+$W8 -> 0 | AL6: =+$W9 -> 0 | AM6: =+$W10 -> 0 | AN6: =+$W11 -> 0 | AO6: =+$W12 -> 0 | AP6: =+$W13 -> 0 | AQ6: =+$W14 -> 0 | AR6: =+$W15 -> 0 | AS6: =+$W16 -> 0 | AT6: =+$W17 -> 0 | AU6: =+$W18 -> 0 | AV6: =+$W19 -> 0 | AW6: =+$W20 -> 0 | AX6: =+$W21 -> 0 | AY6: =+$W22 -> 0 | AZ6: =+$W23 -> 0 | BA6: =+$W24 -> 0 | BB6: =+$W25 -> 0 | BC6: =+$W26 -> 0 | BD6: =+$W27 -> 0 | BE6: =+$W28 -> 0 | BF6: =+$W29 -> 0 | BG6: =+$W30 -> 0 | BH6: =+$W31 -> 0 | BI6: =+$W32 -> 0 | BJ6: =+$W33 -> 0 | BK6: =+$W34 -> 0 | BL6: =+$W35 -> 0 | BM6: =+$W36 -> 0 | BN6: =+$W37 -> 0 | BO6: =+$W38 -> 0 | BP6: =+$W39 -> 0 | BQ6: =+$W40 -> 0 | BR6: =+$W41 -> 0 | BS6: =+$W42 -> 0 | BT6: =+$W43 -> 0 | BU6: =+$W44 -> 0 | BV6: =+$W45 -> 0 | BW6: =+$W46 -> 0 | BY6: =+$W47 -> 0 | CA6: =+$D48 -> 0 | CB6: =+$D49 -> 0 | CC6: =+$D50 -> 0 | CD6: =+$D51 -> 0 | CE6: =+$D52 -> 0 | CF6: =+$D53 -> 0 | CG6: =+$D54 -> 0 | CH6: =+$D55 -> 0
A7: =$B$2 -> 01-J1 | B7: H2 | C7: Air Handling Unit (Air Cooled DX / Package) | J7: 0 | K7: 0 | L7: =+K7*J7 -> 0 | M7: 3 | N7: 0 | O7: =+N7*M7 -> 0 | P7: 1 | Q7: 0 | R7: =+Q7*P7 -> 0 | S7: =+$J7+$M7+$P7 -> 4 | T7: =IF($V7>0,$S7,0) -> 4 | U7: =+R7+O7+L7+I7+F7 -> 0 | V7: =IFERROR(VLOOKUP($A$5,'Equipment List Template'!$1:$1048576,12,FALSE),"0") -> 2 | W7: =+U7*V7 -> 0 | X7: =$T7*$V7 -> 8
A8: 01-J1 | B8: H3 | C8: Air-Cooled Chiller | J8: 11 | K8: 0 | L8: 0 | M8: 0 | N8: 0 | O8: 0 | P8: 1 | Q8: 0 | R8: 0 | S8: 12 | T8: 0 | U8: 0 | V8: =IFERROR(VLOOKUP($A$5,'Equipment List Template'!$1:$1048576,13,FALSE),"0") -> 0 | W8: 0 | X8: 0
A9: 01-J1 | B9: H4 | C9: Centrifugal Chiller | J9: 11 | K9: 0 | L9: 0 | M9: 0 | N9: 0 | O9: 0 | P9: 1 | Q9: 0 | R9: 0 | S9: 12 | T9: 12 | U9: 0 | V9: =IFERROR(VLOOKUP($A$5,'Equipment List Template'!$1:$1048576,14,FALSE),"0") -> 4 | W9: 0 | X9: 48
A10: 01-J1 | B10: H5 | C10: Cooling Tower (Induced Draft) | J10: 8 | K10: 0 | L10: 0 | M10: 3 | N10: 0 | O10: 0 | P10: 1 | Q10: 0 | R10: 0 | S10: 12 | T10: 12 | U10: 0 | V10: =IFERROR(VLOOKUP($A$5,'Equipment List Template'!$1:$1048576,15,FALSE),"0") -> 1 | W10: 0 | X10: 12
A11: 01-J1 | B11: H6 | C11: Ice Chiller Tank | J11: 8 | K11: 0 | L11: 0 | M11: 3 | N11: 0 | O11: 0 | P11: 1 | Q11: 0 | R11: 0 | S11: 12 | T11: 0 | U11: 0 | V11: =IFERROR(VLOOKUP($A$5,'Equipment List Template'!$1:$1048576,16,FALSE),"0") -> 0 | W11: 0 | X11: 0
A12: 01-J1 | B12: H7 | C12: Geothermal System | J12: 11 | K12: 0 | L12: 0 | M12: 0 | N12: 0 | O12: 0 | P12: 1 | Q12: 0 | R12: 0 | S12: 12 | T12: 0 | U12: 0 | V12: =IFERROR(VLOOKUP($A$5,'Equipment List Template'!$1:$1048576,17,FALSE),"0") -> 0 | W12: 0 | X12: 0
A13: 01-J1 | B13: H8 | C13: Water Source Heat Pump | J13: 8 | K13: 0 | L13: 0 | M13: 3 | N13: 0 | O13: 0 | P13: 1 | Q13: 0 | R13: 0 | S13: 12 | T13: 0 | U13: 0 | V13: =IFERROR(VLOOKUP($A$5,'Equipment List Template'!$1:$1048576,18,FALSE),"0") -> 0 | W13: 0 | X13: 0
A14: 01-J1 | B14: H9 | C14: Fan Coil System | J14: 0 | K14: 0 | L14: 0 | M14: 3 | N14: 0 | O14: 0 | P14: 1 | Q14: 0 | R14: 0 | S14: 4 | T14: 4 | U14: 0 | V14: =IFERROR(VLOOKUP($A$5,'Equipment List Template'!$1:$1048576,19,FALSE),"0") -> 20 | W14: 0 | X14: 80
A15: 01-J1 | B15: H10 | C15: Supply / Return Fan and Exhaust | J15: 0 | K15: 0 | L15: 0 | M15: 3 | N15: 0 | O15: 0 | P15: 1 | Q15: 0 | R15: 0 | S15: 4 | T15: 4 | U15: 0 | V15: =IFERROR(VLOOKUP($A$5,'Equipment List Template'!$1:$1048576,20,FALSE),"0") -> 9 | W15: 0 | X15: 36
A16: 01-J1 | B16: H11 | C16: Evaporative and Spot Coolers (swamp coolers; spot cooler) | J16: 8 | K16: 0 | L16: 0 | M16: 3 | N16: 0 | O16: 0 | P16: 1 | Q16: 0 | R16: 0 | S16: 12 | T16: 0 | U16: 0 | V16: =IFERROR(VLOOKUP($A$5,'Equipment List Template'!$1:$1048576,21,FALSE),"0") -> 0 | W16: 0 | X16: 0
B17: H12 | C17: Unique HVAC System | J17: 0 | K17: 0 | L17: 0 | M17: 0 | N17: 0 | O17: 0 | P17: 0 | Q17: 0 | R17: 0 | S17: 0 | T17: 0 | V17: 0 | W17: 0
A18: 01-J1 | B18: E1 | C18: Electrical Panels | J18: 0 | K18: 0 | L18: 0 | M18: 3 | N18: 0 | O18: 0 | P18: 1 | Q18: 0 | R18: 0 | S18: 4 | T18: 4 | U18: 0 | V18: =IFERROR(VLOOKUP($A$5,'Equipment List Template'!$1:$1048576,23,FALSE),"0") -> 1 | W18: 0 | X18: 4
A19: 01-J1 | B19: E2 | C19: Emergency Generator | J19: 8 | K19: 0 | L19: 0 | M19: 3 | N19: 0 | O19: 0 | P19: 1 | Q19: 0 | R19: 0 | S19: 12 | T19: 12 | U19: 0 | V19: =IFERROR(VLOOKUP($A$5,'Equipment List Template'!$1:$1048576,24,FALSE),"0") -> 1 | W19: 0 | X19: 12
A20: 01-J1 | B20: E3 | C20: Motor Control Center | J20: 0 | K20: 0 | L20: 0 | M20: 3 | N20: 0 | O20: 0 | P20: 1 | Q20: 0 | R20: 0 | S20: 4 | T20: 0 | U20: 0 | V20: =IFERROR(VLOOKUP($A$5,'Equipment List Template'!$1:$1048576,25,FALSE),"0") -> 0 | W20: 0 | X20: 0
A21: 01-J1 | B21: E4 | C21: Automatic Transfer Switch | J21: 8 | K21: 0 | L21: 0 | M21: 3 | N21: 0 | O21: 0 | P21: 1 | Q21: 0 | R21: 0 | S21: 12 | T21: 12 | U21: 0 | V21: =IFERROR(VLOOKUP($A$5,'Equipment List Template'!$1:$1048576,26,FALSE),"0") -> 4 | W21: 0 | X21: 48
A22: 01-J1 | B22: E5 | C22: Building Automated Systems (BAS) | J22: 0 | K22: 0 | L22: 0 | M22: 0 | N22: 0 | O22: 0 | P22: 1 | Q22: 0 | R22: 0 | S22: 1 | T22: 1 | U22: 0 | V22: =IFERROR(VLOOKUP($A$5,'Equipment List Template'!$1:$1048576,27,FALSE),"0") -> 1 | W22: 0 | X22: 1
A23: 01-J1 | B23: E6 | C23: Transformer (Dry-Type) | J23: 0 | K23: 0 | L23: 0 | M23: 3 | N23: 0 | O23: 0 | P23: 1 | Q23: 0 | R23: 0 | S23: 4 | T23: 0 | U23: 0 | V23: =IFERROR(VLOOKUP($A$5,'Equipment List Template'!$1:$1048576,28,FALSE),"0") -> 0 | W23: 0 | X23: 0
A24: 01-J1 | B24: E7 | C24: Uninterruptible Power Supply (UPS) | J24: 0 | K24: 0 | L24: 0 | M24: 0 | N24: 0 | O24: 0 | P24: 1 | Q24: 0 | R24: 0 | S24: 1 | T24: 0 | U24: 0 | V24: =IFERROR(VLOOKUP($A$5,'Equipment List Template'!$1:$1048576,29,FALSE),"0") -> 0 | W24: 0 | X24: 0
A25: 01-J1 | B25: E8 | C25: Lighting and Controls (Interior and Exterior) | J25: 12 | K25: 0 | L25: 0 | M25: 0 | N25: 0 | O25: 0 | P25: 0 | Q25: 0 | R25: 0 | S25: 12 | T25: 0 | U25: 0 | V25: =IFERROR(VLOOKUP($A$5,'Equipment List Template'!$1:$1048576,30,FALSE),"0") -> 0 | W25: 0 | X25: 0
B26: E9 | C26: Unique Electrical System | J26: 0 | K26: 0 | L26: 0 | M26: 0 | N26: 0 | O26: 0 | P26: 0 | Q26: 0 | R26: 0 | S26: 0 | T26: 0 | V26: 0 | W26: 0
A27: 01-J1 | B27: L1 | C27: Life Safety Systems | J27: 0 | K27: 0 | L27: 0 | M27: 3 | N27: 0 | O27: 0 | P27: 1 | Q27: 0 | R27: 0 | S27: 4 | T27: 4 | U27: 0 | V27: =IFERROR(VLOOKUP($A$5,'Equipment List Template'!$1:$1048576,32,FALSE),"0") -> 5 | W27: 0 | X27: 20
A28: 01-J1 | B28: L2 | C28: Reduced Pressure Backflow Preventer(s) | J28: 0 | K28: 0 | L28: 0 | M28: 0 | N28: 0 | O28: 0 | P28: 1 | Q28: 0 | R28: 0 | S28: 1 | T28: 1 | U28: 0 | V28: =IFERROR(VLOOKUP($A$5,'Equipment List Template'!$1:$1048576,33,FALSE),"0") -> 3 | W28: 0 | X28: 3
A29: 01-J1 | B29: P1 | C29: Boiler (Condensing) | J29: 8 | K29: 0 | L29: 0 | M29: 3 | N29: 0 | O29: 0 | P29: 1 | Q29: 0 | R29: 0 | S29: 12 | T29: 12 | U29: 0 | V29: =IFERROR(VLOOKUP($A$5,'Equipment List Template'!$1:$1048576,34,FALSE),"0") -> 3 | W29: 0 | X29: 36
A30: 01-J1 | B30: P2 | C30: Domestic Water Heater (Gas-Fired, Condensing) | J30: 0 | K30: 0 | L30: 0 | M30: 0 | N30: 0 | O30: 0 | P30: 1 | Q30: 0 | R30: 0 | S30: 1 | T30: 1 | U30: 0 | V30: =IFERROR(VLOOKUP($A$5,'Equipment List Template'!$1:$1048576,35,FALSE),"0") -> 2 | W30: 0 | X30: 2
A31: 01-J1 | B31: P3 | C31: Domestic Water Heater (Electric, Non- Condensing) | J31: 0 | K31: 0 | L31: 0 | M31: 0 | N31: 0 | O31: 0 | P31: 1 | Q31: 0 | R31: 0 | S31: 1 | T31: 0 | U31: 0 | V31: =IFERROR(VLOOKUP($A$5,'Equipment List Template'!$1:$1048576,36,FALSE),"0") -> 0 | W31: 0 | X31: 0
A32: 01-J1 | B32: P4 | C32: Boiler (Steam, low pressure) | J32: 0 | K32: 0 | L32: 0 | M32: 3 | N32: 0 | O32: 0 | P32: 1 | Q32: 0 | R32: 0 | S32: 4 | T32: 0 | U32: 0 | V32: =IFERROR(VLOOKUP($A$5,'Equipment List Template'!$1:$1048576,37,FALSE),"0") -> 0 | W32: 0 | X32: 0
A33: 01-J1 | B33: P5 | C33: Steam System | J33: 8 | K33: 0 | L33: 0 | M33: 3 | N33: 0 | O33: 0 | P33: 1 | Q33: 0 | R33: 0 | S33: 12 | T33: 0 | U33: 0 | V33: =IFERROR(VLOOKUP($A$5,'Equipment List Template'!$1:$1048576,38,FALSE),"0") -> 0 | W33: 0 | X33: 0
A34: 01-J1 | B34: P6 | C34: Pneumatic Compressor System | J34: 11 | K34: 0 | L34: 0 | M34: 0 | N34: 0 | O34: 0 | P34: 1 | Q34: 0 | R34: 0 | S34: 12 | T34: 0 | U34: 0 | V34: =IFERROR(VLOOKUP($A$5,'Equipment List Template'!$1:$1048576,39,FALSE),"0") -> 0 | W34: 0 | X34: 0
B35: P7 | C35: Unique Plumbing System | J35: 0 | K35: 0 | L35: 0 | M35: 0 | N35: 0 | O35: 0 | P35: 0 | Q35: 0 | R35: 0 | S35: 0 | T35: 0 | U35: 0 | V35: 0 | W35: 0
A36: 01-J1 | B36: R1 | C36: Rounds and Readings | D36: =IFERROR(IF(VLOOKUP($A36,'Equipment List Template'!$1:$1048576,38,FALSE)=248,248,0),0) -> 0 | E36: 0 | F36: =+E36*D36 -> 0 | G36: =IFERROR(IF(VLOOKUP($A36,'Equipment List Template'!$1:$1048576,38,FALSE)=40,40,0),0) -> 0 | H36: 0 | I36: =+H36*G36 -> 0 | J36: 12 | K36: 0 | L36: 0 | S36: =+$J36+$M36+$P36+D36+G36 -> 12 | T36: 12 | U36: =+R36+O36+L36+I36+F36 -> 0 | V36: 1 | W36: =+U36*V36 -> 0 | X36: 12
A37: 01-J1 | B37: V1 | C37: Vertical Transportation | J37: 8 | K37: 0 | L37: =+K37*J37 -> 0 | M37: 3 | N37: 0 | O37: =+N37*M37 -> 0 | P37: 1 | Q37: 0 | R37: =+Q37*P37 -> 0 | S37: =+$J37+$M37+$P37+D37+G37 -> 12 | T37: 12 | U37: =+R37+O37+L37 -> 0 | V37: =IFERROR(VLOOKUP($A$5,'Equipment List Template'!$1:$1048576,42,FALSE),"0") -> 9 | W37: =+U37*V37 -> 0 | X37: 108
A38: 01-J1 | B38: W1 | C38: Water Treatment | D38: =IFERROR(IF(VLOOKUP($A38,'Equipment List Template'!$1:$1048576,40,FALSE)=248,260,0),0) -> 0 | E38: 0 | F38: =+E38*D38 -> 0 | S38: 0 | T38: 0 | U38: =+R38+O38+L38+I38+F38 -> 0 | V38: 1 | W38: 0 | X38: 0
A39: 01-J1 | B39: B1 | C39: Building Exterior / Hardscape (Monthly) | J39: 12 | K39: 0 | L39: =+K39*J39 -> 0 | S39: 12 | T39: 12 | U39: 0 | V39: =IFERROR(VLOOKUP($A$5,'Equipment List Template'!$1:$1048576,44,FALSE),"0") -> 1 | W39: 0 | X39: 12
A40: 01-J1 | B40: F1 | C40: Fountain Maintenance (Monthly) | J40: 12 | K40: 0 | L40: =+K40*J40 -> 0 | S40: 12 | T40: 0 | U40: 0 | V40: =IFERROR(VLOOKUP($A$5,'Equipment List Template'!$1:$1048576,45,FALSE),"0") -> 0 | W40: 0 | X40: 0
A41: 01-J1 | B41: F2 | C41: Above-Ground/Underground Fuel Storage Tanks (Quarterly) If applicable | M41: 4 | N41: 0 | O41: =+N41*M41 -> 0 | S41: 4 | T41: 0 | U41: 0 | V41: =IFERROR(VLOOKUP($A$5,'Equipment List Template'!$1:$1048576,46,FALSE),"0") -> 0 | W41: 0 | X41: 0
A42: 01-J1 | B42: G1 | C42: Landscape Maintenance * | S42: 0 | T42: 0 | U42: 0 | V42: =IFERROR(VLOOKUP($A$5,'Equipment List Template'!$1:$1048576,47,FALSE),"0") -> 1 | W42: 0 | X42: 0
B43: PC1 | C43: Pest Control (Monthly) | J43: 12 | K43: 0 | L43: =+K43*J43 -> 0 | S43: 12 | T43: 12 | U43: 0 | V43: 1 | W43: 0 | X43: 12
B44: PV1 | C44: Photovoltaic (PV) System | P44: 1 | Q44: 0 | R44: =+Q44*P44 -> 0 | S44: 1 | T44: 0 | U44: 0 | V44: 0 | W44: 0
A45: 01-J1 | B45: C1 | C45: Account Management and Supervision (Monthly) | J45: 12 | K45: 0 | L45: =+K45*J45 -> 0 | S45: 12 | T45: 12 | U45: 0 | V45: 1 | W45: 0 | X45: 12
A46: 01-J1 | B46: C2 | C46: Fee (Monthly) | J46: 12 | K46: 0 | L46: =+K46*J46 -> 0 | S46: 12 | T46: 12 | U46: 0 | V46: 1 | W46: 0 | X46: 12
Q47: JCC ID | R47: =B2 -> 01-J1 | U47: Total | W47: =SUM(W5:W46) -> 0
B48: S1 | C48: Snow Removal - (crew hourly rate) | D48: 0 | U48: Total # of PM's | W48: =SUM($X$5:$X$46) -> 526
B49: I1 | C49: Unclogging Blocked Toilet - In-custody cell (labor-only) | D49: 0
B50: I2 | C50: Unclogging Blocked Toilet - Public/Court Staff (labor-only) | D50: 0
B51: I3 | C51: Clean up & Disposal of Biological Waste Event | D51: 0
B52: I4 | C52: Clean up & Disposal of Biological Waste Labor Rate | D52: 0
B53: Hr 1 | C53: Hourly Rate (All Labor categories) | D53: 0
B54: M1 | C54: Markup on Materials (Percentage) | D54: 0
B55: Sub1 | C55: Markup on Subcontractors/Third-Parties (Percentage) | D55: 0
B57: * Landscape Maintenance varies by location on the number of weeks per year it can be preformed. For the purpose of the RFP, all facilities are pre-established at 40 weeks of service. The actual amount paid by facility will be based upon the actual weeks that service has been performed, validated and invoiced.

Sheet 07-A14
B1: JCC ID | C1: Facility Name | D1: Address | F1: City / Town | H1: Zip Code | J1: County | L1: Region | N1: RFP | P1: Proposer
B2: 07-A14 | C2: =IFERROR(VLOOKUP($B$2,'Equipment List Template'!$1:$1048576,2,FALSE),"") -> Family Law Center | D2: =IFERROR(VLOOKUP($B$2,'Equipment List Template'!$1:$1048576,3,FALSE),"") -> 751 Pine Street | F2: =IFERROR(VLOOKUP($B$2,'Equipment List Template'!$1:$1048576,4,FALSE),"") -> Martinez | H2: =IFERROR(VLOOKUP($B$2,'Equipment List Template'!$1:$1048576,5,FALSE),"") -> 94553 | J2: =IFERROR(VLOOKUP($B$2,'Equipment List Template'!$1:$1048576,6,FALSE),"") -> Contra Costa | L2: =IFERROR(VLOOKUP($B$2,'Equipment List Template'!$1:$1048576,7,FALSE),"") -> BANCRO | N2: ='Summary Pricing Sheet'!B2 -> RFP-FS-SP-2019-03-JP | P2: ='Summary Pricing Sheet'!B3 -> Firm Name TBD
D3: Daily Activity | G3: Weekly Activity | J3: Monthly Activity | M3: Quarterly Activity | P3: Annual Activity | U3: Summary | AG3: System | AH3: Access | AI3: HVAC | AU3: Electrical | BD3: Life Safety | BF3: Plumbing | BM3: Building Systems | BV3: Corporate | BY3: Fixed Price - Facility Total Annual Cost Year 1 | CA3: Unit Pricing
B4: System ID | C4: Subsystem | D4: Quantity | E4: Cost | F4: Daily Total | G4: Quantity | H4: Cost | I4: Weekly Total | J4: Monthly Quantity | K4: Cost | L4: Monthly Total | M4: Quarterly Quantity | N4: Cost | O4: Quarterly Total | P4: Annual Quantity | Q4: Cost | R4: Annual PM Total | T4: Number of PM's | U4: Annual Cost | V4: Quantity | W4: Total Annual Cost | AG4: Subsystem | AH4: Access Doors, Gates, Sally Port | AI4: Air Cooled DX (Split System) | AJ4: Air Handling Unit (Air Cooled DX / Package) | AK4: Air-Cooled Chiller | AL4: Centrifugal Chiller | AM4: Cooling Tower (Induced Draft) | AN4: Ice Chiller Tank | AO4: Geothermal System | AP4: Water Source Heat Pump | AQ4: Fan Coil System | AR4: Supply / Return Fan and Exhaust | AS4: Evaporative and Spot Coolers (swamp coolers; spot cooler) | AT4: Unique HVAC System | AU4: Electrical Panels | AV4: Emergency Generator | AW4: Motor Control Center | AX4: Automatic Transfer Switch | AY4: Building Automated Systems (BAS) | AZ4: Transformer (Dry-Type) | BA4: Uninterruptible Power Supply (UPS) | BB4: Lighting and Controls (Interior and Exterior) | BC4: Unique Electrical System | BD4: Life Safety Systems | BE4: Reduced Pressure Backflow Preventer(s) | BF4: Boiler (Condensing) | BG4: Domestic Water Heater (Gas-Fired, Condensing) | BH4: Domestic Water Heater (Electric, Non- Condensing) | BI4: Boiler (Steam, low pressure) | BJ4: Steam System | BK4: Pneumatic Compressor System | BL4: Unique Plumbing System | BM4: Rounds and Readings | BN4: Vertical Transportation | BO4: Water Treatment | BP4: Building Exterior / Hardscape (Monthly) | BQ4: Fountain Maintenance (Monthly) | BR4: Above-Ground/Underground Fuel Storage Tanks (Quarterly) If applicable | BS4: Landscape Maintenance * | BT4: Pest Control (Monthly) | BU4: Photovoltaic (PV) System | BV4: Account Management and Supervision (Monthly) | BW4: Fee (Monthly) | CA4: Snow Removal - (crew hourly rate) | CB4: Unclogging Blocked Toilet - In-custody holding cell (labor) | CC4: Unclogging Blocked Toilet - Public/Court Staff (labor) | CD4: Clean up & Disposal of Biological Waste Event | CE4: Clean up & Disposal of Biological Waste Labor Rate | CF4: Hourly Rate | CG4: Markup on Materials | CH4: Markup on Subcontractors/Third-Parties
A5: =$B$2 -> 07-A14 | B5: A1 | C5: Access Doors, Gates, Sally Port | J5: 11 | K5: 0 | L5: =+K5*J5 -> 0 | M5: 0 | N5: 0 | O5: =+N5*M5 -> 0 | P5: 1 | Q5: 0 | R5: =+Q5*P5 -> 0 | S5: =+$J5+$M5+$P5 -> 12 | T5: =IF($V5>0,$S5,0) -> 12 | U5: =+R5+O5+L5+I5+F5 -> 0 | V5: =IFERROR(VLOOKUP($A$5,'Equipment List Template'!$1:$1048576,10,FALSE),"0") -> 1 | W5: =+U5*V5 -> 0 | X5: =$T5*$V5 -> 12 | Z5: JCC ID | AA5: Facility Name | AB5: Address | AC5: City / Town | AD5: County | AE5: Region | AF5: Region | AG5: System ID | AH5: A1 | AI5: H1 | AJ5: H2 | AK5: H3 | AL5: H4 | AM5: H5 | AN5: H6 | AO5: H7 | AP5: H8 | AQ5: H9 | AR5: H10 | AS5: H11 | AT5: H12 | AU5: E1 | AV5: E2 | AW5: E3 | AX5: E4 | AY5: E5 | AZ5: E6 | BA5: E7 | BB5: E8 | BC5: E9 | BD5: L1 | BE5: L2 | BF5: P1 | BG5: P2 | BH5: P3 | BI5: P4 | BJ5: P5 | BK5: P6 | BL5: P7 | BM5: R1 | BN5: V1 | BO5: W1 | BP5: B1 | BQ5: F1 | BR5: F2 | BS5: G1 | BT5: PC1 | BU5: PV1 | BV5: C1 | BW5: C2 | CA5: S1 | CB5: I1 | CC5: I2 | CD5: I3 | CE5: I4 | CF5: Hr 1 | CG5: M1 | CH5: Sub1
A6: =$B$2 -> 07-A14 | B6: H1 | C6: Air Cooled DX (Split System) | J6: 0 | K6: 0 | L6: =+K6*J6 -> 0 | M6: 3 | N6: 0 | O6: =+N6*M6 -> 0 | P6: 1 | Q6: 0 | R6: =+Q6*P6 -> 0 | S6: =+$J6+$M6+$P6 -> 4 | T6: =IF($V6>0,$S6,0) -> 4 | U6: =+R6+O6+L6+I6+F6 -> 0 | V6: =IFERROR(VLOOKUP($A$5,'Equipment List Template'!$1:$1048576,11,FALSE),"0") -> 4 | W6: =+U6*V6 -> 0 | X6: =$T6*$V6 -> 16 | Z6: =B2 -> 07-A14 | AA6: =IFERROR(VLOOKUP($Z$6,'Equipment List Template'!$1:$1048576,2,FALSE),"") -> Family Law Center | AB6: =IFERROR(VLOOKUP($Z$6,'Equipment List Template'!$1:$1048576,3,FALSE),"") -> 751 Pine Street | AC6: =IFERROR(VLOOKUP($Z$6,'Equipment List Template'!$1:$1048576,4,FALSE),"") -> Martinez | AD6: =IFERROR(VLOOKUP($Z$6,'Equipment List Template'!$1:$1048576,5,FALSE),"") -> 94553 | AE6: =IFERROR(VLOOKUP($Z$6,'Equipment List Template'!$1:$1048576,6,FALSE),"") -> Contra Costa | AF6: =IFERROR(VLOOKUP($Z$6,'Equipment List Template'!$1:$1048576,7,FALSE),"") -> BANCRO | AH6: =+$W5 -> 0 | AI6: =+$W6 -> 0 | AJ6: =+$W7 -> 0 | AK6: =+$W8 -> 0 | AL6: =+$W9 -> 0 | AM6: =+$W10 -> 0 | AN6: =+$W11 -> 0 | AO6: =+$W12 -> 0 | AP6: =+$W13 -> 0 | AQ6: =+$W14 -> 0 | AR6: =+$W15 -> 0 | AS6: =+$W16 -> 0 | AT6: =+$W17 -> 0 | AU6: =+$W18 -> 0 | AV6: =+$W19 -> 0 | AW6: =+$W20 -> 0 | AX6: =+$W21 -> 0 | AY6: =+$W22 -> 0 | AZ6: =+$W23 -> 0 | BA6: =+$W24 -> 0 | BB6: =+$W25 -> 0 | BC6: =+$W26 -> 0 | BD6: =+$W27 -> 0 | BE6: =+$W28 -> 0 | BF6: =+$W29 -> 0 | BG6: =+$W30 -> 0 | BH6: =+$W31 -> 0 | BI6: =+$W32 -> 0 | BJ6: =+$W33 -> 0 | BK6: =+$W34 -> 0 | BL6: =+$W35 -> 0 | BM6: =+$W36 -> 0 | BN6: =+$W37 -> 0 | BO6: =+$W38 -> 0 | BP6: =+$W39 -> 0 | BQ6: =+$W40 -> 0 | BR6: =+$W41 -> 0 | BS6: =+$W42 -> 0 | BT6: =+$W43 -> 0 | BU6: =+$W44 -> 0 | BV6: =+$W45 -> 0 | BW6: =+$W46 -> 0 | BY6: =+$W47 -> 0 | CA6: =+$D48 -> 0 | CB6: =+$D49 -> 0 | CC6: =+$D50 -> 0 | CD6: =+$D51 -> 0 | CE6: =+$D52 -> 0 | CF6: =+$D53 -> 0 | CG6: =+$D54 -> 0 | CH6: =+$D55 -> 0
A7: =$B$2 -> 07-A14 | B7: H2 | C7: Air Handling Unit (Air Cooled DX / Package) | J7: 0 | K7: 0 | L7: =+K7*J7 -> 0 | M7: 3 | N7: 0 | O7: =+N7*M7 -> 0 | P7: 1 | Q7: 0 | R7: =+Q7*P7 -> 0 | S7: =+$J7+$M7+$P7 -> 4 | T7: =IF($V7>0,$S7,0) -> 4 | U7: =+R7+O7+L7+I7+F7 -> 0 | V7: =IFERROR(VLOOKUP($A$5,'Equipment List Template'!$1:$1048576,12,FALSE),"0") -> 1 | W7: =+U7*V7 -> 0 | X7: =$T7*$V7 -> 4
A8: 07-A14 | B8: H3 | C8: Air-Cooled Chiller | J8: 11 | K8: 0 | L8: 0 | M8: 0 | N8: 0 | O8: 0 | P8: 1 | Q8: 0 | R8: 0 | S8: 12 | T8: 0 | U8: 0 | V8: =IFERROR(VLOOKUP($A$5,'Equipment List Template'!$1:$1048576,13,FALSE),"0") -> 0 | W8: 0 | X8: 0
A9: 07-A14 | B9: H4 | C9: Centrifugal Chiller | J9: 11 | K9: 0 | L9: 0 | M9: 0 | N9: 0 | O9: 0 | P9: 1 | Q9: 0 | R9: 0 | S9: 12 | T9: 0 | U9: 0 | V9: =IFERROR(VLOOKUP($A$5,'Equipment List Template'!$1:$1048576,14,FALSE),"0") -> 0 | W9: 0 | X9: 0
A10: 07-A14 | B10: H5 | C10: Cooling Tower (Induced Draft) | J10: 8 | K10: 0 | L10: 0 | M10: 3 | N10: 0 | O10: 0 | P10: 1 | Q10: 0 | R10: 0 | S10: 12 | T10: 0 | U10: 0 | V10: =IFERROR(VLOOKUP($A$5,'Equipment List Template'!$1:$1048576,15,FALSE),"0") -> 0 | W10: 0 | X10: 0
A11: 07-A14 | B11: H6 | C11: Ice Chiller Tank | J11: 8 | K11: 0 | L11: 0 | M11: 3 | N11: 0 | O11: 0 | P11: 1 | Q11: 0 | R11: 0 | S11: 12 | T11: 0 | U11: 0 | V11: =IFERROR(VLOOKUP($A$5,'Equipment List Template'!$1:$1048576,16,FALSE),"0") -> 0 | W11: 0 | X11: 0
A12: 07-A14 | B12: H7 | C12: Geothermal System | J12: 11 | K12: 0 | L12: 0 | M12: 0 | N12: 0 | O12: 0 | P12: 1 | Q12: 0 | R12: 0 | S12: 12 | T12: 0 | U12: 0 | V12: =IFERROR(VLOOKUP($A$5,'Equipment List Template'!$1:$1048576,17,FALSE),"0") -> 0 | W12: 0 | X12: 0
A13: 07-A14 | B13: H8 | C13: Water Source Heat Pump | J13: 8 | K13: 0 | L13: 0 | M13: 3 | N13: 0 | O13: 0 | P13: 1 | Q13: 0 | R13: 0 | S13: 12 | T13: 0 | U13: 0 | V13: =IFERROR(VLOOKUP($A$5,'Equipment List Template'!$1:$1048576,18,FALSE),"0") -> 0 | W13: 0 | X13: 0
A14: 07-A14 | B14: H9 | C14: Fan Coil System | J14: 0 | K14: 0 | L14: 0 | M14: 3 | N14: 0 | O14: 0 | P14: 1 | Q14: 0 | R14: 0 | S14: 4 | T14: 0 | U14: 0 | V14: =IFERROR(VLOOKUP($A$5,'Equipment List Template'!$1:$1048576,19,FALSE),"0") -> 0 | W14: 0 | X14: 0
A15: 07-A14 | B15: H10 | C15: Supply / Return Fan and Exhaust | J15: 0 | K15: 0 | L15: 0 | M15: 3 | N15: 0 | O15: 0 | P15: 1 | Q15: 0 | R15: 0 | S15: 4 | T15: 0 | U15: 0 | V15: =IFERROR(VLOOKUP($A$5,'Equipment List Template'!$1:$1048576,20,FALSE),"0") -> 0 | W15: 0 | X15: 0
A16: 07-A14 | B16: H11 | C16: Evaporative and Spot Coolers (swamp coolers; spot cooler) | J16: 8 | K16: 0 | L16: 0 | M16: 3 | N16: 0 | O16: 0 | P16: 1 | Q16: 0 | R16: 0 | S16: 12 | T16: 0 | U16: 0 | V16: =IFERROR(VLOOKUP($A$5,'Equipment List Template'!$1:$1048576,21,FALSE),"0") -> 0 | W16: 0 | X16: 0
B17: H12 | C17: Unique HVAC System | J17: 0 | K17: 0 | L17: 0 | M17: 0 | N17: 0 | O17: 0 | P17: 0 | Q17: 0 | R17: 0 | S17: 0 | T17: 0 | V17: 0 | W17: 0
A18: 07-A14 | B18: E1 | C18: Electrical Panels | J18: 0 | K18: 0 | L18: 0 | M18: 3 | N18: 0 | O18: 0 | P18: 1 | Q18: 0 | R18: 0 | S18: 4 | T18: 4 | U18: 0 | V18: =IFERROR(VLOOKUP($A$5,'Equipment List Template'!$1:$1048576,23,FALSE),"0") -> 1 | W18: 0 | X18: 4
A19: 07-A14 | B19: E2 | C19: Emergency Generator | J19: 8 | K19: 0 | L19: 0 | M19: 3 | N19: 0 | O19: 0 | P19: 1 | Q19: 0 | R19: 0 | S19: 12 | T19: 0 | U19: 0 | V19: =IFERROR(VLOOKUP($A$5,'Equipment List Template'!$1:$1048576,24,FALSE),"0") -> 0 | W19: 0 | X19: 0
A20: 07-A14 | B20: E3 | C20: Motor Control Center | J20: 0 | K20: 0 | L20: 0 | M20: 3 | N20: 0 | O20: 0 | P20: 1 | Q20: 0 | R20: 0 | S20: 4 | T20: 0 | U20: 0 | V20: =IFERROR(VLOOKUP($A$5,'Equipment List Template'!$1:$1048576,25,FALSE),"0") -> 0 | W20: 0 | X20: 0
A21: 07-A14 | B21: E4 | C21: Automatic Transfer Switch | J21: 8 | K21: 0 | L21: 0 | M21: 3 | N21: 0 | O21: 0 | P21: 1 | Q21: 0 | R21: 0 | S21: 12 | T21: 0 | U21: 0 | V21: =IFERROR(VLOOKUP($A$5,'Equipment List Template'!$1:$1048576,26,FALSE),"0") -> 0 | W21: 0 | X21: 0
A22: 07-A14 | B22: E5 | C22: Building Automated Systems (BAS) | J22: 0 | K22: 0 | L22: 0 | M22: 0 | N22: 0 | O22: 0 | P22: 1 | Q22: 0 | R22: 0 | S22: 1 | T22: 1 | U22: 0 | V22: =IFERROR(VLOOKUP($A$5,'Equipment List Template'!$1:$1048576,27,FALSE),"0") -> 1 | W22: 0 | X22: 1
A23: 07-A14 | B23: E6 | C23: Transformer (Dry-Type) | J23: 0 | K23: 0 | L23: 0 | M23: 3 | N23: 0 | O23: 0 | P23: 1 | Q23: 0 | R23: 0 | S23: 4 | T23: 0 | U23: 0 | V23: =IFERROR(VLOOKUP($A$5,'Equipment List Template'!$1:$1048576,28,FALSE),"0") -> 0 | W23: 0 | X23: 0
A24: 07-A14 | B24: E7 | C24: Uninterruptible Power Supply (UPS) | J24: 0 | K24: 0 | L24: 0 | M24: 0 | N24: 0 | O24: 0 | P24: 1 | Q24: 0 | R24: 0 | S24: 1 | T24: 0 | U24: 0 | V24: =IFERROR(VLOOKUP($A$5,'Equipment List Template'!$1:$1048576,29,FALSE),"0") -> 0 | W24: 0 | X24: 0
A25: 07-A14 | B25: E8 | C25: Lighting and Controls (Interior and Exterior) | J25: 12 | K25: 0 | L25: 0 | M25: 0 | N25: 0 | O25: 0 | P25: 0 | Q25: 0 | R25: 0 | S25: 12 | T25: 12 | U25: 0 | V25: =IFERROR(VLOOKUP($A$5,'Equipment List Template'!$1:$1048576,30,FALSE),"0") -> 2 | W25: 0 | X25: 24
B26: E9 | C26: Unique Electrical System | J26: 0 | K26: 0 | L26: 0 | M26: 0 | N26: 0 | O26: 0 | P26: 0 | Q26: 0 | R26: 0 | S26: 0 | T26: 0 | V26: 0 | W26: 0
A27: 07-A14 | B27: L1 | C27: Life Safety Systems | J27: 0 | K27: 0 | L27: 0 | M27: 3 | N27: 0 | O27: 0 | P27: 1 | Q27: 0 | R27: 0 | S27: 4 | T27: 4 | U27: 0 | V27: =IFERROR(VLOOKUP($A$5,'Equipment List Template'!$1:$1048576,32,FALSE),"0") -> 3 | W27: 0 | X27: 12
A28: 07-A14 | B28: L2 | C28: Reduced Pressure Backflow Preventer(s) | J28: 0 | K28: 0 | L28: 0 | M28: 0 | N28: 0 | O28: 0 | P28: 1 | Q28: 0 | R28: 0 | S28: 1 | T28: 1 | U28: 0 | V28: =IFERROR(VLOOKUP($A$5,'Equipment List Template'!$1:$1048576,33,FALSE),"0") -> 2 | W28: 0 | X28: 2
A29: 07-A14 | B29: P1 | C29: Boiler (Condensing) | J29: 8 | K29: 0 | L29: 0 | M29: 3 | N29: 0 | O29: 0 | P29: 1 | Q29: 0 | R29: 0 | S29: 12 | T29: 12 | U29: 0 | V29: =IFERROR(VLOOKUP($A$5,'Equipment List Template'!$1:$1048576,34,FALSE),"0") -> 1 | W29: 0 | X29: 12
A30: 07-A14 | B30: P2 | C30: Domestic Water Heater (Gas-Fired, Condensing) | J30: 0 | K30: 0 | L30: 0 | M30: 0 | N30: 0 | O30: 0 | P30: 1 | Q30: 0 | R30: 0 | S30: 1 | T30: 1 | U30: 0 | V30: =IFERROR(VLOOKUP($A$5,'Equipment List Template'!$1:$1048576,35,FALSE),"0") -> 1 | W30: 0 | X30: 1
A31: 07-A14 | B31: P3 | C31: Domestic Water Heater (Electric, Non- Condensing) | J31: 0 | K31: 0 | L31: 0 | M31: 0 | N31: 0 | O31: 0 | P31: 1 | Q31: 0 | R31: 0 | S31: 1 | T31: 0 | U31: 0 | V31: =IFERROR(VLOOKUP($A$5,'Equipment List Template'!$1:$1048576,36,FALSE),"0") -> 0 | W31: 0 | X31: 0
A32: 07-A14 | B32: P4 | C32: Boiler (Steam, low pressure) | J32: 0 | K32: 0 | L32: 0 | M32: 3 | N32: 0 | O32: 0 | P32: 1 | Q32: 0 | R32: 0 | S32: 4 | T32: 0 | U32: 0 | V32: =IFERROR(VLOOKUP($A$5,'Equipment List Template'!$1:$1048576,37,FALSE),"0") -> 0 | W32: 0 | X32: 0
A33: 07-A14 | B33: P5 | C33: Steam System | J33: 8 | K33: 0 | L33: 0 | M33: 3 | N33: 0 | O33: 0 | P33: 1 | Q33: 0 | R33: 0 | S33: 12 | T33: 0 | U33: 0 | V33: =IFERROR(VLOOKUP($A$5,'Equipment List Template'!$1:$1048576,38,FALSE),"0") -> 0 | W33: 0 | X33: 0
A34: 07-A14 | B34: P6 | C34: Pneumatic Compressor System | J34: 11 | K34: 0 | L34: 0 | M34: 0 | N34: 0 | O34: 0 | P34: 1 | Q34: 0 | R34: 0 | S34: 12 | T34: 0 | U34: 0 | V34: =IFERROR(VLOOKUP($A$5,'Equipment List Template'!$1:$1048576,39,FALSE),"0") -> 0 | W34: 0 | X34: 0
B35: P7 | C35: Unique Plumbing System | J35: 0 | K35: 0 | L35: 0 | M35: 0 | N35: 0 | O35: 0 | P35: 0 | Q35: 0 | R35: 0 | S35: 0 | T35: 0 | U35: 0 | V35: 0 | W35: 0
A36: 07-A14 | B36: R1 | C36: Rounds and Readings | D36: =IFERROR(IF(VLOOKUP($A36,'Equipment List Template'!$1:$1048576,38,FALSE)=248,248,0),0) -> 0 | E36: 0 | F36: =+E36*D36 -> 0 | G36: =IFERROR(IF(VLOOKUP($A36,'Equipment List Template'!$1:$1048576,38,FALSE)=40,40,0),0) -> 0 | H36: 0 | I36: =+H36*G36 -> 0 | J36: 12 | K36: 0 | L36: 0 | S36: =+$J36+$M36+$P36+D36+G36 -> 12 | T36: 12 | U36: =+R36+O36+L36+I36+F36 -> 0 | V36: 1 | W36: =+U36*V36 -> 0 | X36: 12
A37: 07-A14 | B37: V1 | C37: Vertical Transportation | J37: 8 | K37: 0 | L37: =+K37*J37 -> 0 | M37: 3 | N37: 0 | O37: =+N37*M37 -> 0 | P37: 1 | Q37: 0 | R37: =+Q37*P37 -> 0 | S37: =+$J37+$M37+$P37+D37+G37 -> 12 | T37: 12 | U37: =+R37+O37+L37 -> 0 | V37: =IFERROR(VLOOKUP($A$5,'Equipment List Template'!$1:$1048576,42,FALSE),"0") -> 1 | W37: =+U37*V37 -> 0 | X37: 12
A38: 07-A14 | B38: W1 | C38: Water Treatment | D38: =IFERROR(IF(VLOOKUP($A38,'Equipment List Template'!$1:$1048576,40,FALSE)=248,260,0),0) -> 0 | E38: 0 | F38: =+E38*D38 -> 0 | S38: 0 | T38: 0 | U38: =+R38+O38+L38+I38+F38 -> 0 | V38: 1 | W38: 0 | X38: 0
A39: 07-A14 | B39: B1 | C39: Building Exterior / Hardscape (Monthly) | J39: 12 | K39: 0 | L39: =+K39*J39 -> 0 | S39: 12 | T39: 12 | U39: 0 | V39: =IFERROR(VLOOKUP($A$5,'Equipment List Template'!$1:$1048576,44,FALSE),"0") -> 1 | W39: 0 | X39: 12
A40: 07-A14 | B40: F1 | C40: Fountain Maintenance (Monthly) | J40: 12 | K40: 0 | L40: =+K40*J40 -> 0 | S40: 12 | T40: 0 | U40: 0 | V40: =IFERROR(VLOOKUP($A$5,'Equipment List Template'!$1:$1048576,45,FALSE),"0") -> 0 | W40: 0 | X40: 0
A41: 07-A14 | B41: F2 | C41: Above-Ground/Underground Fuel Storage Tanks (Quarterly) If applicable | M41: 4 | N41: 0 | O41: =+N41*M41 -> 0 | S41: 4 | T41: 0 | U41: 0 | V41: =IFERROR(VLOOKUP($A$5,'Equipment List Template'!$1:$1048576,46,FALSE),"0") -> 0 | W41: 0 | X41: 0
A42: 07-A14 | B42: G1 | C42: Landscape Maintenance * | S42: 0 | T42: 0 | U42: 0 | V42: =IFERROR(VLOOKUP($A$5,'Equipment List Template'!$1:$1048576,47,FALSE),"0") -> 1 | W42: 0 | X42: 0
B43: PC1 | C43: Pest Control (Monthly) | J43: 12 | K43: 0 | L43: =+K43*J43 -> 0 | S43: 12 | T43: 12 | U43: 0 | V43: 1 | W43: 0 | X43: 12
B44: PV1 | C44: Photovoltaic (PV) System | P44: 1 | Q44: 0 | R44: =+Q44*P44 -> 0 | S44: 1 | T44: 0 | U44: 0 | V44: 0 | W44: 0
A45: 07-A14 | B45: C1 | C45: Account Management and Supervision (Monthly) | J45: 12 | K45: 0 | L45: =+K45*J45 -> 0 | S45: 12 | T45: 12 | U45: 0 | V45: 1 | W45: 0 | X45: 12
A46: 07-A14 | B46: C2 | C46: Fee (Monthly) | J46: 12 | K46: 0 | L46: =+K46*J46 -> 0 | S46: 12 | T46: 12 | U46: 0 | V46: 1 | W46: 0 | X46: 12
Q47: JCC ID | R47: =B2 -> 07-A14 | U47: Total | W47: =SUM(W5:W46) -> 0
B48: S1 | C48: Snow Removal - (crew hourly rate) | D48: 0 | U48: Total # of PM's | W48: =SUM($X$5:$X$46) -> 160
B49: I1 | C49: Unclogging Blocked Toilet - In-custody cell (labor-only) | D49: 0
B50: I2 | C50: Unclogging Blocked Toilet - Public/Court Staff (labor-only) | D50: 0
B51: I3 | C51: Clean up & Disposal of Biological Waste Event | D51: 0
B52: I4 | C52: Clean up & Disposal of Biological Waste Labor Rate | D52: 0
B53: Hr 1 | C53: Hourly Rate (All Labor categories) | D53: 0
B54: M1 | C54: Markup on Materials (Percentage) | D54: 0
B55: Sub1 | C55: Markup on Subcontractors/Third-Parties (Percentage) | D55: 0
B57: * Landscape Maintenance varies by location on the number of weeks per year it can be preformed. For the purpose of the RFP, all facilities are pre-established at 40 weeks of service. The actual amount paid by facility will be based upon the actual weeks that service has been performed, validated and invoiced.

Sheet 07-A2
B1: JCC ID | C1: Facility Name | D1: Address | F1: City / Town | H1: Zip Code | J1: County | L1: Region | N1: RFP | P1: Proposer
B2: 07-A2 | C2: =IFERROR(VLOOKUP($B$2,'Equipment List Template'!$1:$1048576,2,FALSE),"") -> Wakefield Taylor Courthouse | D2: =IFERROR(VLOOKUP($B$2,'Equipment List Template'!$1:$1048576,3,FALSE),"") -> 725 Court St. | F2: =IFERROR(VLOOKUP($B$2,'Equipment List Template'!$1:$1048576,4,FALSE),"") -> Martinez | H2: =IFERROR(VLOOKUP($B$2,'Equipment List Template'!$1:$1048576,5,FALSE),"") -> 94553 | J2: =IFERROR(VLOOKUP($B$2,'Equipment List Template'!$1:$1048576,6,FALSE),"") -> Contra Costa | L2: =IFERROR(VLOOKUP($B$2,'Equipment List Template'!$1:$1048576,7,FALSE),"") -> BANCRO | N2: ='Summary Pricing Sheet'!B2 -> RFP-FS-SP-2019-03-JP | P2: ='Summary Pricing Sheet'!B3 -> Firm Name TBD
D3: Daily Activity | G3: Weekly Activity | J3: Monthly Activity | M3: Quarterly Activity | P3: Annual Activity | U3: Summary | AG3: System | AH3: Access | AI3: HVAC | AU3: Electrical | BD3: Life Safety | BF3: Plumbing | BM3: Building Systems | BV3: Corporate | BY3: Fixed Price - Facility Total Annual Cost Year 1 | CA3: Unit Pricing
B4: System ID | C4: Subsystem | D4: Quantity | E4: Cost | F4: Daily Total | G4: Quantity | H4: Cost | I4: Weekly Total | J4: Monthly Quantity | K4: Cost | L4: Monthly Total | M4: Quarterly Quantity | N4: Cost | O4: Quarterly Total | P4: Annual Quantity | Q4: Cost | R4: Annual PM Total | T4: Number of PM's | U4: Annual Cost | V4: Quantity | W4: Total Annual Cost | AG4: Subsystem | AH4: Access Doors, Gates, Sally Port | AI4: Air Cooled DX (Split System) | AJ4: Air Handling Unit (Air Cooled DX / Package) | AK4: Air-Cooled Chiller | AL4: Centrifugal Chiller | AM4: Cooling Tower (Induced Draft) | AN4: Ice Chiller Tank | AO4: Geothermal System | AP4: Water Source Heat Pump | AQ4: Fan Coil System | AR4: Supply / Return Fan and Exhaust | AS4: Evaporative and Spot Coolers (swamp coolers; spot cooler) | AT4: Unique HVAC System | AU4: Electrical Panels | AV4: Emergency Generator | AW4: Motor Control Center | AX4: Automatic Transfer Switch | AY4: Building Automated Systems (BAS) | AZ4: Transformer (Dry-Type) | BA4: Uninterruptible Power Supply (UPS) | BB4: Lighting and Controls (Interior and Exterior) | BC4: Unique Electrical System | BD4: Life Safety Systems | BE4: Reduced Pressure Backflow Preventer(s) | BF4: Boiler (Condensing) | BG4: Domestic Water Heater (Gas-Fired, Condensing) | BH4: Domestic Water Heater (Electric, Non- Condensing) | BI4: Boiler (Steam, low pressure) | BJ4: Steam System | BK4: Pneumatic Compressor System | BL4: Unique Plumbing System | BM4: Rounds and Readings | BN4: Vertical Transportation | BO4: Water Treatment | BP4: Building Exterior / Hardscape (Monthly) | BQ4: Fountain Maintenance (Monthly) | BR4: Above-Ground/Underground Fuel Storage Tanks (Quarterly) If applicable | BS4: Landscape Maintenance * | BT4: Pest Control (Monthly) | BU4: Photovoltaic (PV) System | BV4: Account Management and Supervision (Monthly) | BW4: Fee (Monthly) | CA4: Snow Removal - (crew hourly rate) | CB4: Unclogging Blocked Toilet - In-custody holding cell (labor) | CC4: Unclogging Blocked Toilet - Public/Court Staff (labor) | CD4: Clean up & Disposal of Biological Waste Event | CE4: Clean up & Disposal of Biological Waste Labor Rate | CF4: Hourly Rate | CG4: Markup on Materials | CH4: Markup on Subcontractors/Third-Parties
A5: =$B$2 -> 07-A2 | B5: A1 | C5: Access Doors, Gates, Sally Port | J5: 11 | K5: 0 | L5: =+K5*J5 -> 0 | M5: 0 | N5: 0 | O5: =+N5*M5 -> 0 | P5: 1 | Q5: 0 | R5: =+Q5*P5 -> 0 | S5: =+$J5+$M5+$P5 -> 12 | T5: =IF($V5>0,$S5,0) -> 12 | U5: =+R5+O5+L5+I5+F5 -> 0 | V5: =IFERROR(VLOOKUP($A$5,'Equipment List Template'!$1:$1048576,10,FALSE),"0") -> 1 | W5: =+U5*V5 -> 0 | X5: =$T5*$V5 -> 12 | Z5: JCC ID | AA5: Facility Name | AB5: Address | AC5: City / Town | AD5: County | AE5: Region | AF5: Region | AG5: System ID | AH5: A1 | AI5: H1 | AJ5: H2 | AK5: H3 | AL5: H4 | AM5: H5 | AN5: H6 | AO5: H7 | AP5: H8 | AQ5: H9 | AR5: H10 | AS5: H11 | AT5: H12 | AU5: E1 | AV5: E2 | AW5: E3 | AX5: E4 | AY5: E5 | AZ5: E6 | BA5: E7 | BB5: E8 | BC5: E9 | BD5: L1 | BE5: L2 | BF5: P1 | BG5: P2 | BH5: P3 | BI5: P4 | BJ5: P5 | BK5: P6 | BL5: P7 | BM5: R1 | BN5: V1 | BO5: W1 | BP5: B1 | BQ5: F1 | BR5: F2 | BS5: G1 | BT5: PC1 | BU5: PV1 | BV5: C1 | BW5: C2 | CA5: S1 | CB5: I1 | CC5: I2 | CD5: I3 | CE5: I4 | CF5: Hr 1 | CG5: M1 | CH5: Sub1
A6: =$B$2 -> 07-A2 | B6: H1 | C6: Air Cooled DX (Split System) | J6: 0 | K6: 0 | L6: =+K6*J6 -> 0 | M6: 3 | N6: 0 | O6: =+N6*M6 -> 0 | P6: 1 | Q6: 0 | R6: =+Q6*P6 -> 0 | S6: =+$J6+$M6+$P6 -> 4 | T6: =IF($V6>0,$S6,0) -> 4 | U6: =+R6+O6+L6+I6+F6 -> 0 | V6: =IFERROR(VLOOKUP($A$5,'Equipment List Template'!$1:$1048576,11,FALSE),"0") -> 3 | W6: =+U6*V6 -> 0 | X6: =$T6*$V6 -> 12 | Z6: =B2 -> 07-A2 | AA6: =IFERROR(VLOOKUP($Z$6,'Equipment List Template'!$1:$1048576,2,FALSE),"") -> Wakefield Taylor Courthouse | AB6: =IFERROR(VLOOKUP($Z$6,'Equipment List Template'!$1:$1048576,3,FALSE),"") -> 725 Court St. | AC6: =IFERROR(VLOOKUP($Z$6,'Equipment List Template'!$1:$1048576,4,FALSE),"") -> Martinez | AD6: =IFERROR(VLOOKUP($Z$6,'Equipment List Template'!$1:$1048576,5,FALSE),"") -> 94553 | AE6: =IFERROR(VLOOKUP($Z$6,'Equipment List Template'!$1:$1048576,6,FALSE),"") -> Contra Costa | AF6: =IFERROR(VLOOKUP($Z$6,'Equipment List Template'!$1:$1048576,7,FALSE),"") -> BANCRO | AH6: =+$W5 -> 0 | AI6: =+$W6 -> 0 | AJ6: =+$W7 -> 0 | AK6: =+$W8 -> 0 | AL6: =+$W9 -> 0 | AM6: =+$W10 -> 0 | AN6: =+$W11 -> 0 | AO6: =+$W12 -> 0 | AP6: =+$W13 -> 0 | AQ6: =+$W14 -> 0 | AR6: =+$W15 -> 0 | AS6: =+$W16 -> 0 | AT6: =+$W17 -> 0 | AU6: =+$W18 -> 0 | AV6: =+$W19 -> 0 | AW6: =+$W20 -> 0 | AX6: =+$W21 -> 0 | AY6: =+$W22 -> 0 | AZ6: =+$W23 -> 0 | BA6: =+$W24 -> 0 | BB6: =+$W25 -> 0 | BC6: =+$W26 -> 0 | BD6: =+$W27 -> 0 | BE6: =+$W28 -> 0 | BF6: =+$W29 -> 0 | BG6: =+$W30 -> 0 | BH6: =+$W31 -> 0 | BI6: =+$W32 -> 0 | BJ6: =+$W33 -> 0 | BK6: =+$W34 -> 0 | BL6: =+$W35 -> 0 | BM6: =+$W36 -> 0 | BN6: =+$W37 -> 0 | BO6: =+$W38 -> 0 | BP6: =+$W39 -> 0 | BQ6: =+$W40 -> 0 | BR6: =+$W41 -> 0 | BS6: =+$W42 -> 0 | BT6: =+$W43 -> 0 | BU6: =+$W44 -> 0 | BV6: =+$W45 -> 0 | BW6: =+$W46 -> 0 | BY6: =+$W47 -> 0 | CA6: =+$D48 -> 0 | CB6: =+$D49 -> 0 | CC6: =+$D50 -> 0 | CD6: =+$D51 -> 0 | CE6: =+$D52 -> 0 | CF6: =+$D53 -> 0 | CG6: =+$D54 -> 0 | CH6: =+$D55 -> 0
A7: =$B$2 -> 07-A2 | B7: H2 | C7: Air Handling Unit (Air Cooled DX / Package) | J7: 0 | K7: 0 | L7: =+K7*J7 -> 0 | M7: 3 | N7: 0 | O7: =+N7*M7 -> 0 | P7: 1 | Q7: 0 | R7: =+Q7*P7 -> 0 | S7: =+$J7+$M7+$P7 -> 4 | T7: =IF($V7>0,$S7,0) -> 4 | U7: =+R7+O7+L7+I7+F7 -> 0 | V7: =IFERROR(VLOOKUP($A$5,'Equipment List Template'!$1:$1048576,12,FALSE),"0") -> 2 | W7: =+U7*V7 -> 0 | X7: =$T7*$V7 -> 8
A8: 07-A2 | B8: H3 | C8: Air-Cooled Chiller | J8: 11 | K8: 0 | L8: 0 | M8: 0 | N8: 0 | O8: 0 | P8: 1 | Q8: 0 | R8: 0 | S8: 12 | T8: 0 | U8: 0 | V8: =IFERROR(VLOOKUP($A$5,'Equipment List Template'!$1:$1048576,13,FALSE),"0") -> 0 | W8: 0 | X8: 0
A9: 07-A2 | B9: H4 | C9: Centrifugal Chiller | J9: 11 | K9: 0 | L9: 0 | M9: 0 | N9: 0 | O9: 0 | P9: 1 | Q9: 0 | R9: 0 | S9: 12 | T9: 12 | U9: 0 | V9: =IFERROR(VLOOKUP($A$5,'Equipment List Template'!$1:$1048576,14,FALSE),"0") -> 1 | W9: 0 | X9: 12
A10: 07-A2 | B10: H5 | C10: Cooling Tower (Induced Draft) | J10: 8 | K10: 0 | L10: 0 | M10: 3 | N10: 0 | O10: 0 | P10: 1 | Q10: 0 | R10: 0 | S10: 12 | T10: 12 | U10: 0 | V10: =IFERROR(VLOOKUP($A$5,'Equipment List Template'!$1:$1048576,15,FALSE),"0") -> 1 | W10: 0 | X10: 12
A11: 07-A2 | B11: H6 | C11: Ice Chiller Tank | J11: 8 | K11: 0 | L11: 0 | M11: 3 | N11: 0 | O11: 0 | P11: 1 | Q11: 0 | R11: 0 | S11: 12 | T11: 0 | U11: 0 | V11: =IFERROR(VLOOKUP($A$5,'Equipment List Template'!$1:$1048576,16,FALSE),"0") -> 0 | W11: 0 | X11: 0
A12: 07-A2 | B12: H7 | C12: Geothermal System | J12: 11 | K12: 0 | L12: 0 | M12: 0 | N12: 0 | O12: 0 | P12: 1 | Q12: 0 | R12: 0 | S12: 12 | T12: 0 | U12: 0 | V12: =IFERROR(VLOOKUP($A$5,'Equipment List Template'!$1:$1048576,17,FALSE),"0") -> 0 | W12: 0 | X12: 0
A13: 07-A2 | B13: H8 | C13: Water Source Heat Pump | J13: 8 | K13: 0 | L13: 0 | M13: 3 | N13: 0 | O13: 0 | P13: 1 | Q13: 0 | R13: 0 | S13: 12 | T13: 0 | U13: 0 | V13: =IFERROR(VLOOKUP($A$5,'Equipment List Template'!$1:$1048576,18,FALSE),"0") -> 0 | W13: 0 | X13: 0
A14: 07-A2 | B14: H9 | C14: Fan Coil System | J14: 0 | K14: 0 | L14: 0 | M14: 3 | N14: 0 | O14: 0 | P14: 1 | Q14: 0 | R14: 0 | S14: 4 | T14: 0 | U14: 0 | V14: =IFERROR(VLOOKUP($A$5,'Equipment List Template'!$1:$1048576,19,FALSE),"0") -> 0 | W14: 0 | X14: 0
A15: 07-A2 | B15: H10 | C15: Supply / Return Fan and Exhaust | J15: 0 | K15: 0 | L15: 0 | M15: 3 | N15: 0 | O15: 0 | P15: 1 | Q15: 0 | R15: 0 | S15: 4 | T15: 0 | U15: 0 | V15: =IFERROR(VLOOKUP($A$5,'Equipment List Template'!$1:$1048576,20,FALSE),"0") -> 0 | W15: 0 | X15: 0
A16: 07-A2 | B16: H11 | C16: Evaporative and Spot Coolers (swamp coolers; spot cooler) | J16: 8 | K16: 0 | L16: 0 | M16: 3 | N16: 0 | O16: 0 | P16: 1 | Q16: 0 | R16: 0 | S16: 12 | T16: 0 | U16: 0 | V16: =IFERROR(VLOOKUP($A$5,'Equipment List Template'!$1:$1048576,21,FALSE),"0") -> 0 | W16: 0 | X16: 0
B17: H12 | C17: Unique HVAC System | J17: 0 | K17: 0 | L17: 0 | M17: 0 | N17: 0 | O17: 0 | P17: 0 | Q17: 0 | R17: 0 | S17: 0 | T17: 0 | V17: 0 | W17: 0
A18: 07-A2 | B18: E1 | C18: Electrical Panels | J18: 0 | K18: 0 | L18: 0 | M18: 3 | N18: 0 | O18: 0 | P18: 1 | Q18: 0 | R18: 0 | S18: 4 | T18: 4 | U18: 0 | V18: =IFERROR(VLOOKUP($A$5,'Equipment List Template'!$1:$1048576,23,FALSE),"0") -> 1 | W18: 0 | X18: 4
A19: 07-A2 | B19: E2 | C19: Emergency Generator | J19: 8 | K19: 0 | L19: 0 | M19: 3 | N19: 0 | O19: 0 | P19: 1 | Q19: 0 | R19: 0 | S19: 12 | T19: 12 | U19: 0 | V19: =IFERROR(VLOOKUP($A$5,'Equipment List Template'!$1:$1048576,24,FALSE),"0") -> 1 | W19: 0 | X19: 12
A20: 07-A2 | B20: E3 | C20: Motor Control Center | J20: 0 | K20: 0 | L20: 0 | M20: 3 | N20: 0 | O20: 0 | P20: 1 | Q20: 0 | R20: 0 | S20: 4 | T20: 0 | U20: 0 | V20: =IFERROR(VLOOKUP($A$5,'Equipment List Template'!$1:$1048576,25,FALSE),"0") -> 0 | W20: 0 | X20: 0
A21: 07-A2 | B21: E4 | C21: Automatic Transfer Switch | J21: 8 | K21: 0 | L21: 0 | M21: 3 | N21: 0 | O21: 0 | P21: 1 | Q21: 0 | R21: 0 | S21: 12 | T21: 12 | U21: 0 | V21: =IFERROR(VLOOKUP($A$5,'Equipment List Template'!$1:$1048576,26,FALSE),"0") -> 1 | W21: 0 | X21: 12
A22: 07-A2 | B22: E5 | C22: Building Automated Systems (BAS) | J22: 0 | K22: 0 | L22: 0 | M22: 0 | N22: 0 | O22: 0 | P22: 1 | Q22: 0 | R22: 0 | S22: 1 | T22: 1 | U22: 0 | V22: =IFERROR(VLOOKUP($A$5,'Equipment List Template'!$1:$1048576,27,FALSE),"0") -> 1 | W22: 0 | X22: 1
A23: 07-A2 | B23: E6 | C23: Transformer (Dry-Type) | J23: 0 | K23: 0 | L23: 0 | M23: 3 | N23: 0 | O23: 0 | P23: 1 | Q23: 0 | R23: 0 | S23: 4 | T23: 0 | U23: 0 | V23: =IFERROR(VLOOKUP($A$5,'Equipment List Template'!$1:$1048576,28,FALSE),"0") -> 0 | W23: 0 | X23: 0
A24: 07-A2 | B24: E7 | C24: Uninterruptible Power Supply (UPS) | J24: 0 | K24: 0 | L24: 0 | M24: 0 | N24: 0 | O24: 0 | P24: 1 | Q24: 0 | R24: 0 | S24: 1 | T24: 0 | U24: 0 | V24: =IFERROR(VLOOKUP($A$5,'Equipment List Template'!$1:$1048576,29,FALSE),"0") -> 0 | W24: 0 | X24: 0
A25: 07-A2 | B25: E8 | C25: Lighting and Controls (Interior and Exterior) | J25: 12 | K25: 0 | L25: 0 | M25: 0 | N25: 0 | O25: 0 | P25: 0 | Q25: 0 | R25: 0 | S25: 12 | T25: 12 | U25: 0 | V25: =IFERROR(VLOOKUP($A$5,'Equipment List Template'!$1:$1048576,30,FALSE),"0") -> 1 | W25: 0 | X25: 12
B26: E9 | C26: Unique Electrical System | J26: 0 | K26: 0 | L26: 0 | M26: 0 | N26: 0 | O26: 0 | P26: 0 | Q26: 0 | R26: 0 | S26: 0 | T26: 0 | V26: 0 | W26: 0
A27: 07-A2 | B27: L1 | C27: Life Safety Systems | J27: 0 | K27: 0 | L27: 0 | M27: 3 | N27: 0 | O27: 0 | P27: 1 | Q27: 0 | R27: 0 | S27: 4 | T27: 4 | U27: 0 | V27: =IFERROR(VLOOKUP($A$5,'Equipment List Template'!$1:$1048576,32,FALSE),"0") -> 3 | W27: 0 | X27: 12
A28: 07-A2 | B28: L2 | C28: Reduced Pressure Backflow Preventer(s) | J28: 0 | K28: 0 | L28: 0 | M28: 0 | N28: 0 | O28: 0 | P28: 1 | Q28: 0 | R28: 0 | S28: 1 | T28: 1 | U28: 0 | V28: =IFERROR(VLOOKUP($A$5,'Equipment List Template'!$1:$1048576,33,FALSE),"0") -> 4 | W28: 0 | X28: 4
A29: 07-A2 | B29: P1 | C29: Boiler (Condensing) | J29: 8 | K29: 0 | L29: 0 | M29: 3 | N29: 0 | O29: 0 | P29: 1 | Q29: 0 | R29: 0 | S29: 12 | T29: 0 | U29: 0 | V29: =IFERROR(VLOOKUP($A$5,'Equipment List Template'!$1:$1048576,34,FALSE),"0") -> 0 | W29: 0 | X29: 0
A30: 07-A2 | B30: P2 | C30: Domestic Water Heater (Gas-Fired, Condensing) | J30: 0 | K30: 0 | L30: 0 | M30: 0 | N30: 0 | O30: 0 | P30: 1 | Q30: 0 | R30: 0 | S30: 1 | T30: 1 | U30: 0 | V30: =IFERROR(VLOOKUP($A$5,'Equipment List Template'!$1:$1048576,35,FALSE),"0") -> 1 | W30: 0 | X30: 1
A31: 07-A2 | B31: P3 | C31: Domestic Water Heater (Electric, Non- Condensing) | J31: 0 | K31: 0 | L31: 0 | M31: 0 | N31: 0 | O31: 0 | P31: 1 | Q31: 0 | R31: 0 | S31: 1 | T31: 0 | U31: 0 | V31: =IFERROR(VLOOKUP($A$5,'Equipment List Template'!$1:$1048576,36,FALSE),"0") -> 0 | W31: 0 | X31: 0
A32: 07-A2 | B32: P4 | C32: Boiler (Steam, low pressure) | J32: 0 | K32: 0 | L32: 0 | M32: 3 | N32: 0 | O32: 0 | P32: 1 | Q32: 0 | R32: 0 | S32: 4 | T32: 4 | U32: 0 | V32: =IFERROR(VLOOKUP($A$5,'Equipment List Template'!$1:$1048576,37,FALSE),"0") -> 3 | W32: 0 | X32: 12
A33: 07-A2 | B33: P5 | C33: Steam System | J33: 8 | K33: 0 | L33: 0 | M33: 3 | N33: 0 | O33: 0 | P33: 1 | Q33: 0 | R33: 0 | S33: 12 | T33: 0 | U33: 0 | V33: =IFERROR(VLOOKUP($A$5,'Equipment List Template'!$1:$1048576,38,FALSE),"0") -> 0 | W33: 0 | X33: 0
A34: 07-A2 | B34: P6 | C34: Pneumatic Compressor System | J34: 11 | K34: 0 | L34: 0 | M34: 0 | N34: 0 | O34: 0 | P34: 1 | Q34: 0 | R34: 0 | S34: 12 | T34: 0 | U34: 0 | V34: =IFERROR(VLOOKUP($A$5,'Equipment List Template'!$1:$1048576,39,FALSE),"0") -> 0 | W34: 0 | X34: 0
B35: P7 | C35: Unique Plumbing System | J35: 0 | K35: 0 | L35: 0 | M35: 0 | N35: 0 | O35: 0 | P35: 0 | Q35: 0 | R35: 0 | S35: 0 | T35: 0 | U35: 0 | V35: 0 | W35: 0
A36: 07-A2 | B36: R1 | C36: Rounds and Readings | D36: =IFERROR(IF(VLOOKUP($A36,'Equipment List Template'!$1:$1048576,38,FALSE)=248,248,0),0) -> 0 | E36: 0 | F36: =+E36*D36 -> 0 | G36: =IFERROR(IF(VLOOKUP($A36,'Equipment List Template'!$1:$1048576,38,FALSE)=40,40,0),0) -> 0 | H36: 0 | I36: =+H36*G36 -> 0 | J36: 12 | K36: 0 | L36: 0 | S36: =+$J36+$M36+$P36+D36+G36 -> 12 | T36: 12 | U36: =+R36+O36+L36+I36+F36 -> 0 | V36: 1 | W36: =+U36*V36 -> 0 | X36: 12
A37: 07-A2 | B37: V1 | C37: Vertical Transportation | J37: 8 | K37: 0 | L37: =+K37*J37 -> 0 | M37: 3 | N37: 0 | O37: =+N37*M37 -> 0 | P37: 1 | Q37: 0 | R37: =+Q37*P37 -> 0 | S37: =+$J37+$M37+$P37+D37+G37 -> 12 | T37: 12 | U37: =+R37+O37+L37 -> 0 | V37: =IFERROR(VLOOKUP($A$5,'Equipment List Template'!$1:$1048576,42,FALSE),"0") -> 2 | W37: =+U37*V37 -> 0 | X37: 24
A38: 07-A2 | B38: W1 | C38: Water Treatment | D38: =IFERROR(IF(VLOOKUP($A38,'Equipment List Template'!$1:$1048576,40,FALSE)=248,260,0),0) -> 0 | E38: 0 | F38: =+E38*D38 -> 0 | S38: 0 | T38: 0 | U38: =+R38+O38+L38+I38+F38 -> 0 | V38: 1 | W38: 0 | X38: 0
A39: 07-A2 | B39: B1 | C39: Building Exterior / Hardscape (Monthly) | J39: 12 | K39: 0 | L39: =+K39*J39 -> 0 | S39: 12 | T39: 12 | U39: 0 | V39: =IFERROR(VLOOKUP($A$5,'Equipment List Template'!$1:$1048576,44,FALSE),"0") -> 1 | W39: 0 | X39: 12
A40: 07-A2 | B40: F1 | C40: Fountain Maintenance (Monthly) | J40: 12 | K40: 0 | L40: =+K40*J40 -> 0 | S40: 12 | T40: 0 | U40: 0 | V40: =IFERROR(VLOOKUP($A$5,'Equipment List Template'!$1:$1048576,45,FALSE),"0") -> 0 | W40: 0 | X40: 0
A41: 07-A2 | B41: F2 | C41: Above-Ground/Underground Fuel Storage Tanks (Quarterly) If applicable | M41: 4 | N41: 0 | O41: =+N41*M41 -> 0 | S41: 4 | T41: 0 | U41: 0 | V41: =IFERROR(VLOOKUP($A$5,'Equipment List Template'!$1:$1048576,46,FALSE),"0") -> 0 | W41: 0 | X41: 0
A42: 07-A2 | B42: G1 | C42: Landscape Maintenance * | S42: 0 | T42: 0 | U42: 0 | V42: =IFERROR(VLOOKUP($A$5,'Equipment List Template'!$1:$1048576,47,FALSE),"0") -> 1 | W42: 0 | X42: 0
B43: PC1 | C43: Pest Control (Monthly) | J43: 12 | K43: 0 | L43: =+K43*J43 -> 0 | S43: 12 | T43: 12 | U43: 0 | V43: 1 | W43: 0 | X43: 12
B44: PV1 | C44: Photovoltaic (PV) System | P44: 1 | Q44: 0 | R44: =+Q44*P44 -> 0 | S44: 1 | T44: 0 | U44: 0 | V44: 0 | W44: 0
A45: 07-A2 | B45: C1 | C45: Account Management and Supervision (Monthly) | J45: 12 | K45: 0 | L45: =+K45*J45 -> 0 | S45: 12 | T45: 12 | U45: 0 | V45: 1 | W45: 0 | X45: 12
A46: 07-A2 | B46: C2 | C46: Fee (Monthly) | J46: 12 | K46: 0 | L46: =+K46*J46 -> 0 | S46: 12 | T46: 12 | U46: 0 | V46: 1 | W46: 0 | X46: 12
Q47: JCC ID | R47: =B2 -> 07-A2 | U47: Total | W47: =SUM(W5:W46) -> 0
B48: S1 | C48: Snow Removal - (crew hourly rate) | D48: 0 | U48: Total # of PM's | W48: =SUM($X$5:$X$46) -> 210
B49: I1 | C49: Unclogging Blocked Toilet - In-custody cell (labor-only) | D49: 0
B50: I2 | C50: Unclogging Blocked Toilet - Public/Court Staff (labor-only) | D50: 0
B51: I3 | C51: Clean up & Disposal of Biological Waste Event | D51: 0
B52: I4 | C52: Clean up & Disposal of Biological Waste Labor Rate | D52: 0
B53: Hr 1 | C53: Hourly Rate (All Labor categories) | D53: 0
B54: M1 | C54: Markup on Materials (Percentage) | D54: 0
B55: Sub1 | C55: Markup on Subcontractors/Third-Parties (Percentage) | D55: 0
B57: * Landscape Maintenance varies by location on the number of weeks per year it can be preformed. For the purpose of the RFP, all facilities are pre-established at 40 weeks of service. The actual amount paid by facility will be based upon the actual weeks that service has been performed, validated and invoiced.

Sheet 07-A3
B1: JCC ID | C1: Facility Name | D1: Address | F1: City / Town | H1: Zip Code | J1: County | L1: Region | N1: RFP | P1: Proposer
B2: 07-A3 | C2: =IFERROR(VLOOKUP($B$2,'Equipment List Template'!$1:$1048576,2,FALSE),"") -> Bray Courts | D2: =IFERROR(VLOOKUP($B$2,'Equipment List Template'!$1:$1048576,3,FALSE),"") -> 1020 Ward St. | F2: =IFERROR(VLOOKUP($B$2,'Equipment List Template'!$1:$1048576,4,FALSE),"") -> Martinez | H2: =IFERROR(VLOOKUP($B$2,'Equipment List Template'!$1:$1048576,5,FALSE),"") -> 94553 | J2: =IFERROR(VLOOKUP($B$2,'Equipment List Template'!$1:$1048576,6,FALSE),"") -> Contra Costa | L2: =IFERROR(VLOOKUP($B$2,'Equipment List Template'!$1:$1048576,7,FALSE),"") -> BANCRO | N2: ='Summary Pricing Sheet'!B2 -> RFP-FS-SP-2019-03-JP | P2: ='Summary Pricing Sheet'!B3 -> Firm Name TBD
D3: Daily Activity | G3: Weekly Activity | J3: Monthly Activity | M3: Quarterly Activity | P3: Annual Activity | U3: Summary | AG3: System | AH3: Access | AI3: HVAC | AU3: Electrical | BD3: Life Safety | BF3: Plumbing | BM3: Building Systems | BV3: Corporate | BY3: Fixed Price - Facility Total Annual Cost Year 1 | CA3: Unit Pricing
B4: System ID | C4: Subsystem | D4: Quantity | E4: Cost | F4: Daily Total | G4: Quantity | H4: Cost | I4: Weekly Total | J4: Monthly Quantity | K4: Cost | L4: Monthly Total | M4: Quarterly Quantity | N4: Cost | O4: Quarterly Total | P4: Annual Quantity | Q4: Cost | R4: Annual PM Total | T4: Number of PM's | U4: Annual Cost | V4: Quantity | W4: Total Annual Cost | AG4: Subsystem | AH4: Access Doors, Gates, Sally Port | AI4: Air Cooled DX (Split System) | AJ4: Air Handling Unit (Air Cooled DX / Package) | AK4: Air-Cooled Chiller | AL4: Centrifugal Chiller | AM4: Cooling Tower (Induced Draft) | AN4: Ice Chiller Tank | AO4: Geothermal System | AP4: Water Source Heat Pump | AQ4: Fan Coil System | AR4: Supply / Return Fan and Exhaust | AS4: Evaporative and Spot Coolers (swamp coolers; spot cooler) | AT4: Unique HVAC System | AU4: Electrical Panels | AV4: Emergency Generator | AW4: Motor Control Center | AX4: Automatic Transfer Switch | AY4: Building Automated Systems (BAS) | AZ4: Transformer (Dry-Type) | BA4: Uninterruptible Power Supply (UPS) | BB4: Lighting and Controls (Interior and Exterior) | BC4: Unique Electrical System | BD4: Life Safety Systems | BE4: Reduced Pressure Backflow Preventer(s) | BF4: Boiler (Condensing) | BG4: Domestic Water Heater (Gas-Fired, Condensing) | BH4: Domestic Water Heater (Electric, Non- Condensing) | BI4: Boiler (Steam, low pressure) | BJ4: Steam System | BK4: Pneumatic Compressor System | BL4: Unique Plumbing System | BM4: Rounds and Readings | BN4: Vertical Transportation | BO4: Water Treatment | BP4: Building Exterior / Hardscape (Monthly) | BQ4: Fountain Maintenance (Monthly) | BR4: Above-Ground/Underground Fuel Storage Tanks (Quarterly) If applicable | BS4: Landscape Maintenance * | BT4: Pest Control (Monthly) | BU4: Photovoltaic (PV) System | BV4: Account Management and Supervision (Monthly) | BW4: Fee (Monthly) | CA4: Snow Removal - (crew hourly rate) | CB4: Unclogging Blocked Toilet - In-custody holding cell (labor) | CC4: Unclogging Blocked Toilet - Public/Court Staff (labor) | CD4: Clean up & Disposal of Biological Waste Event | CE4: Clean up & Disposal of Biological Waste Labor Rate | CF4: Hourly Rate | CG4: Markup on Materials | CH4: Markup on Subcontractors/Third-Parties
A5: =$B$2 -> 07-A3 | B5: A1 | C5: Access Doors, Gates, Sally Port | J5: 11 | K5: 0 | L5: =+K5*J5 -> 0 | M5: 0 | N5: 0 | O5: =+N5*M5 -> 0 | P5: 1 | Q5: 0 | R5: =+Q5*P5 -> 0 | S5: =+$J5+$M5+$P5 -> 12 | T5: =IF($V5>0,$S5,0) -> 12 | U5: =+R5+O5+L5+I5+F5 -> 0 | V5: =IFERROR(VLOOKUP($A$5,'Equipment List Template'!$1:$1048576,10,FALSE),"0") -> 1 | W5: =+U5*V5 -> 0 | X5: =$T5*$V5 -> 12 | Z5: JCC ID | AA5: Facility Name | AB5: Address | AC5: City / Town | AD5: County | AE5: Region | AF5: Region | AG5: System ID | AH5: A1 | AI5: H1 | AJ5: H2 | AK5: H3 | AL5: H4 | AM5: H5 | AN5: H6 | AO5: H7 | AP5: H8 | AQ5: H9 | AR5: H10 | AS5: H11 | AT5: H12 | AU5: E1 | AV5: E2 | AW5: E3 | AX5: E4 | AY5: E5 | AZ5: E6 | BA5: E7 | BB5: E8 | BC5: E9 | BD5: L1 | BE5: L2 | BF5: P1 | BG5: P2 | BH5: P3 | BI5: P4 | BJ5: P5 | BK5: P6 | BL5: P7 | BM5: R1 | BN5: V1 | BO5: W1 | BP5: B1 | BQ5: F1 | BR5: F2 | BS5: G1 | BT5: PC1 | BU5: PV1 | BV5: C1 | BW5: C2 | CA5: S1 | CB5: I1 | CC5: I2 | CD5: I3 | CE5: I4 | CF5: Hr 1 | CG5: M1 | CH5: Sub1
A6: =$B$2 -> 07-A3 | B6: H1 | C6: Air Cooled DX (Split System) | J6: 0 | K6: 0 | L6: =+K6*J6 -> 0 | M6: 3 | N6: 0 | O6: =+N6*M6 -> 0 | P6: 1 | Q6: 0 | R6: =+Q6*P6 -> 0 | S6: =+$J6+$M6+$P6 -> 4 | T6: =IF($V6>0,$S6,0) -> 4 | U6: =+R6+O6+L6+I6+F6 -> 0 | V6: =IFERROR(VLOOKUP($A$5,'Equipment List Template'!$1:$1048576,11,FALSE),"0") -> 6 | W6: =+U6*V6 -> 0 | X6: =$T6*$V6 -> 24 | Z6: =B2 -> 07-A3 | AA6: =IFERROR(VLOOKUP($Z$6,'Equipment List Template'!$1:$1048576,2,FALSE),"") -> Bray Courts | AB6: =IFERROR(VLOOKUP($Z$6,'Equipment List Template'!$1:$1048576,3,FALSE),"") -> 1020 Ward St. | AC6: =IFERROR(VLOOKUP($Z$6,'Equipment List Template'!$1:$1048576,4,FALSE),"") -> Martinez | AD6: =IFERROR(VLOOKUP($Z$6,'Equipment List Template'!$1:$1048576,5,FALSE),"") -> 94553 | AE6: =IFERROR(VLOOKUP($Z$6,'Equipment List Template'!$1:$1048576,6,FALSE),"") -> Contra Costa | AF6: =IFERROR(VLOOKUP($Z$6,'Equipment List Template'!$1:$1048576,7,FALSE),"") -> BANCRO | AH6: =+$W5 -> 0 | AI6: =+$W6 -> 0 | AJ6: =+$W7 -> 0 | AK6: =+$W8 -> 0 | AL6: =+$W9 -> 0 | AM6: =+$W10 -> 0 | AN6: =+$W11 -> 0 | AO6: =+$W12 -> 0 | AP6: =+$W13 -> 0 | AQ6: =+$W14 -> 0 | AR6: =+$W15 -> 0 | AS6: =+$W16 -> 0 | AT6: =+$W17 -> 0 | AU6: =+$W18 -> 0 | AV6: =+$W19 -> 0 | AW6: =+$W20 -> 0 | AX6: =+$W21 -> 0 | AY6: =+$W22 -> 0 | AZ6: =+$W23 -> 0 | BA6: =+$W24 -> 0 | BB6: =+$W25 -> 0 | BC6: =+$W26 -> 0 | BD6: =+$W27 -> 0 | BE6: =+$W28 -> 0 | BF6: =+$W29 -> 0 | BG6: =+$W30 -> 0 | BH6: =+$W31 -> 0 | BI6: =+$W32 -> 0 | BJ6: =+$W33 -> 0 | BK6: =+$W34 -> 0 | BL6: =+$W35 -> 0 | BM6: =+$W36 -> 0 | BN6: =+$W37 -> 0 | BO6: =+$W38 -> 0 | BP6: =+$W39 -> 0 | BQ6: =+$W40 -> 0 | BR6: =+$W41 -> 0 | BS6: =+$W42 -> 0 | BT6: =+$W43 -> 0 | BU6: =+$W44 -> 0 | BV6: =+$W45 -> 0 | BW6: =+$W46 -> 0 | BY6: =+$W47 -> 0 | CA6: =+$D48 -> 0 | CB6: =+$D49 -> 0 | CC6: =+$D50 -> 0 | CD6: =+$D51 -> 0 | CE6: =+$D52 -> 0 | CF6: =+$D53 -> 0 | CG6: =+$D54 -> 0 | CH6: =+$D55 -> 0
A7: =$B$2 -> 07-A3 | B7: H2 | C7: Air Handling Unit (Air Cooled DX / Package) | J7: 0 | K7: 0 | L7: =+K7*J7 -> 0 | M7: 3 | N7: 0 | O7: =+N7*M7 -> 0 | P7: 1 | Q7: 0 | R7: =+Q7*P7 -> 0 | S7: =+$J7+$M7+$P7 -> 4 | T7: =IF($V7>0,$S7,0) -> 0 | U7: =+R7+O7+L7+I7+F7 -> 0 | V7: =IFERROR(VLOOKUP($A$5,'Equipment List Template'!$1:$1048576,12,FALSE),"0") -> 0 | W7: =+U7*V7 -> 0 | X7: =$T7*$V7 -> 0
A8: 07-A3 | B8: H3 | C8: Air-Cooled Chiller | J8: 11 | K8: 0 | L8: 0 | M8: 0 | N8: 0 | O8: 0 | P8: 1 | Q8: 0 | R8: 0 | S8: 12 | T8: 0 | U8: 0 | V8: =IFERROR(VLOOKUP($A$5,'Equipment List Template'!$1:$1048576,13,FALSE),"0") -> 0 | W8: 0 | X8: 0
A9: 07-A3 | B9: H4 | C9: Centrifugal Chiller | J9: 11 | K9: 0 | L9: 0 | M9: 0 | N9: 0 | O9: 0 | P9: 1 | Q9: 0 | R9: 0 | S9: 12 | T9: 0 | U9: 0 | V9: =IFERROR(VLOOKUP($A$5,'Equipment List Template'!$1:$1048576,14,FALSE),"0") -> 0 | W9: 0 | X9: 0
A10: 07-A3 | B10: H5 | C10: Cooling Tower (Induced Draft) | J10: 8 | K10: 0 | L10: 0 | M10: 3 | N10: 0 | O10: 0 | P10: 1 | Q10: 0 | R10: 0 | S10: 12 | T10: 0 | U10: 0 | V10: =IFERROR(VLOOKUP($A$5,'Equipment List Template'!$1:$1048576,15,FALSE),"0") -> 0 | W10: 0 | X10: 0
A11: 07-A3 | B11: H6 | C11: Ice Chiller Tank | J11: 8 | K11: 0 | L11: 0 | M11: 3 | N11: 0 | O11: 0 | P11: 1 | Q11: 0 | R11: 0 | S11: 12 | T11: 0 | U11: 0 | V11: =IFERROR(VLOOKUP($A$5,'Equipment List Template'!$1:$1048576,16,FALSE),"0") -> 0 | W11: 0 | X11: 0
A12: 07-A3 | B12: H7 | C12: Geothermal System | J12: 11 | K12: 0 | L12: 0 | M12: 0 | N12: 0 | O12: 0 | P12: 1 | Q12: 0 | R12: 0 | S12: 12 | T12: 0 | U12: 0 | V12: =IFERROR(VLOOKUP($A$5,'Equipment List Template'!$1:$1048576,17,FALSE),"0") -> 0 | W12: 0 | X12: 0
A13: 07-A3 | B13: H8 | C13: Water Source Heat Pump | J13: 8 | K13: 0 | L13: 0 | M13: 3 | N13: 0 | O13: 0 | P13: 1 | Q13: 0 | R13: 0 | S13: 12 | T13: 0 | U13: 0 | V13: =IFERROR(VLOOKUP($A$5,'Equipment List Template'!$1:$1048576,18,FALSE),"0") -> 0 | W13: 0 | X13: 0
A14: 07-A3 | B14: H9 | C14: Fan Coil System | J14: 0 | K14: 0 | L14: 0 | M14: 3 | N14: 0 | O14: 0 | P14: 1 | Q14: 0 | R14: 0 | S14: 4 | T14: 0 | U14: 0 | V14: =IFERROR(VLOOKUP($A$5,'Equipment List Template'!$1:$1048576,19,FALSE),"0") -> 0 | W14: 0 | X14: 0
A15: 07-A3 | B15: H10 | C15: Supply / Return Fan and Exhaust | J15: 0 | K15: 0 | L15: 0 | M15: 3 | N15: 0 | O15: 0 | P15: 1 | Q15: 0 | R15: 0 | S15: 4 | T15: 0 | U15: 0 | V15: =IFERROR(VLOOKUP($A$5,'Equipment List Template'!$1:$1048576,20,FALSE),"0") -> 0 | W15: 0 | X15: 0
A16: 07-A3 | B16: H11 | C16: Evaporative and Spot Coolers (swamp coolers; spot cooler) | J16: 8 | K16: 0 | L16: 0 | M16: 3 | N16: 0 | O16: 0 | P16: 1 | Q16: 0 | R16: 0 | S16: 12 | T16: 0 | U16: 0 | V16: =IFERROR(VLOOKUP($A$5,'Equipment List Template'!$1:$1048576,21,FALSE),"0") -> 0 | W16: 0 | X16: 0
B17: H12 | C17: Unique HVAC System | J17: 0 | K17: 0 | L17: 0 | M17: 0 | N17: 0 | O17: 0 | P17: 0 | Q17: 0 | R17: 0 | S17: 0 | T17: 0 | V17: 0 | W17: 0
A18: 07-A3 | B18: E1 | C18: Electrical Panels | J18: 0 | K18: 0 | L18: 0 | M18: 3 | N18: 0 | O18: 0 | P18: 1 | Q18: 0 | R18: 0 | S18: 4 | T18: 4 | U18: 0 | V18: =IFERROR(VLOOKUP($A$5,'Equipment List Template'!$1:$1048576,23,FALSE),"0") -> 1 | W18: 0 | X18: 4
A19: 07-A3 | B19: E2 | C19: Emergency Generator | J19: 8 | K19: 0 | L19: 0 | M19: 3 | N19: 0 | O19: 0 | P19: 1 | Q19: 0 | R19: 0 | S19: 12 | T19: 12 | U19: 0 | V19: =IFERROR(VLOOKUP($A$5,'Equipment List Template'!$1:$1048576,24,FALSE),"0") -> 1 | W19: 0 | X19: 12
A20: 07-A3 | B20: E3 | C20: Motor Control Center | J20: 0 | K20: 0 | L20: 0 | M20: 3 | N20: 0 | O20: 0 | P20: 1 | Q20: 0 | R20: 0 | S20: 4 | T20: 0 | U20: 0 | V20: =IFERROR(VLOOKUP($A$5,'Equipment List Template'!$1:$1048576,25,FALSE),"0") -> 0 | W20: 0 | X20: 0
A21: 07-A3 | B21: E4 | C21: Automatic Transfer Switch | J21: 8 | K21: 0 | L21: 0 | M21: 3 | N21: 0 | O21: 0 | P21: 1 | Q21: 0 | R21: 0 | S21: 12 | T21: 12 | U21: 0 | V21: =IFERROR(VLOOKUP($A$5,'Equipment List Template'!$1:$1048576,26,FALSE),"0") -> 1 | W21: 0 | X21: 12
A22: 07-A3 | B22: E5 | C22: Building Automated Systems (BAS) | J22: 0 | K22: 0 | L22: 0 | M22: 0 | N22: 0 | O22: 0 | P22: 1 | Q22: 0 | R22: 0 | S22: 1 | T22: 1 | U22: 0 | V22: =IFERROR(VLOOKUP($A$5,'Equipment List Template'!$1:$1048576,27,FALSE),"0") -> 1 | W22: 0 | X22: 1
A23: 07-A3 | B23: E6 | C23: Transformer (Dry-Type) | J23: 0 | K23: 0 | L23: 0 | M23: 3 | N23: 0 | O23: 0 | P23: 1 | Q23: 0 | R23: 0 | S23: 4 | T23: 0 | U23: 0 | V23: =IFERROR(VLOOKUP($A$5,'Equipment List Template'!$1:$1048576,28,FALSE),"0") -> 0 | W23: 0 | X23: 0
A24: 07-A3 | B24: E7 | C24: Uninterruptible Power Supply (UPS) | J24: 0 | K24: 0 | L24: 0 | M24: 0 | N24: 0 | O24: 0 | P24: 1 | Q24: 0 | R24: 0 | S24: 1 | T24: 0 | U24: 0 | V24: =IFERROR(VLOOKUP($A$5,'Equipment List Template'!$1:$1048576,29,FALSE),"0") -> 0 | W24: 0 | X24: 0
A25: 07-A3 | B25: E8 | C25: Lighting and Controls (Interior and Exterior) | J25: 12 | K25: 0 | L25: 0 | M25: 0 | N25: 0 | O25: 0 | P25: 0 | Q25: 0 | R25: 0 | S25: 12 | T25: 12 | U25: 0 | V25: =IFERROR(VLOOKUP($A$5,'Equipment List Template'!$1:$1048576,30,FALSE),"0") -> 2 | W25: 0 | X25: 24
B26: E9 | C26: Unique Electrical System | J26: 0 | K26: 0 | L26: 0 | M26: 0 | N26: 0 | O26: 0 | P26: 0 | Q26: 0 | R26: 0 | S26: 0 | T26: 0 | V26: 0 | W26: 0
A27: 07-A3 | B27: L1 | C27: Life Safety Systems | J27: 0 | K27: 0 | L27: 0 | M27: 3 | N27: 0 | O27: 0 | P27: 1 | Q27: 0 | R27: 0 | S27: 4 | T27: 4 | U27: 0 | V27: =IFERROR(VLOOKUP($A$5,'Equipment List Template'!$1:$1048576,32,FALSE),"0") -> 3 | W27: 0 | X27: 12
A28: 07-A3 | B28: L2 | C28: Reduced Pressure Backflow Preventer(s) | J28: 0 | K28: 0 | L28: 0 | M28: 0 | N28: 0 | O28: 0 | P28: 1 | Q28: 0 | R28: 0 | S28: 1 | T28: 1 | U28: 0 | V28: =IFERROR(VLOOKUP($A$5,'Equipment List Template'!$1:$1048576,33,FALSE),"0") -> 3 | W28: 0 | X28: 3
A29: 07-A3 | B29: P1 | C29: Boiler (Condensing) | J29: 8 | K29: 0 | L29: 0 | M29: 3 | N29: 0 | O29: 0 | P29: 1 | Q29: 0 | R29: 0 | S29: 12 | T29: 12 | U29: 0 | V29: =IFERROR(VLOOKUP($A$5,'Equipment List Template'!$1:$1048576,34,FALSE),"0") -> 1 | W29: 0 | X29: 12
A30: 07-A3 | B30: P2 | C30: Domestic Water Heater (Gas-Fired, Condensing) | J30: 0 | K30: 0 | L30: 0 | M30: 0 | N30: 0 | O30: 0 | P30: 1 | Q30: 0 | R30: 0 | S30: 1 | T30: 1 | U30: 0 | V30: =IFERROR(VLOOKUP($A$5,'Equipment List Template'!$1:$1048576,35,FALSE),"0") -> 1 | W30: 0 | X30: 1
A31: 07-A3 | B31: P3 | C31: Domestic Water Heater (Electric, Non- Condensing) | J31: 0 | K31: 0 | L31: 0 | M31: 0 | N31: 0 | O31: 0 | P31: 1 | Q31: 0 | R31: 0 | S31: 1 | T31: 0 | U31: 0 | V31: =IFERROR(VLOOKUP($A$5,'Equipment List Template'!$1:$1048576,36,FALSE),"0") -> 0 | W31: 0 | X31: 0
A32: 07-A3 | B32: P4 | C32: Boiler (Steam, low pressure) | J32: 0 | K32: 0 | L32: 0 | M32: 3 | N32: 0 | O32: 0 | P32: 1 | Q32: 0 | R32: 0 | S32: 4 | T32: 0 | U32: 0 | V32: =IFERROR(VLOOKUP($A$5,'Equipment List Template'!$1:$1048576,37,FALSE),"0") -> 0 | W32: 0 | X32: 0
A33: 07-A3 | B33: P5 | C33: Steam System | J33: 8 | K33: 0 | L33: 0 | M33: 3 | N33: 0 | O33: 0 | P33: 1 | Q33: 0 | R33: 0 | S33: 12 | T33: 0 | U33: 0 | V33: =IFERROR(VLOOKUP($A$5,'Equipment List Template'!$1:$1048576,38,FALSE),"0") -> 0 | W33: 0 | X33: 0
A34: 07-A3 | B34: P6 | C34: Pneumatic Compressor System | J34: 11 | K34: 0 | L34: 0 | M34: 0 | N34: 0 | O34: 0 | P34: 1 | Q34: 0 | R34: 0 | S34: 12 | T34: 0 | U34: 0 | V34: =IFERROR(VLOOKUP($A$5,'Equipment List Template'!$1:$1048576,39,FALSE),"0") -> 0 | W34: 0 | X34: 0
B35: P7 | C35: Unique Plumbing System | J35: 0 | K35: 0 | L35: 0 | M35: 0 | N35: 0 | O35: 0 | P35: 0 | Q35: 0 | R35: 0 | S35: 0 | T35: 0 | U35: 0 | V35: 0 | W35: 0
A36: 07-A3 | B36: R1 | C36: Rounds and Readings | D36: =IFERROR(IF(VLOOKUP($A36,'Equipment List Template'!$1:$1048576,38,FALSE)=248,248,0),0) -> 0 | E36: 0 | F36: =+E36*D36 -> 0 | G36: =IFERROR(IF(VLOOKUP($A36,'Equipment List Template'!$1:$1048576,38,FALSE)=40,40,0),0) -> 0 | H36: 0 | I36: =+H36*G36 -> 0 | J36: 12 | K36: 0 | L36: 0 | S36: =+$J36+$M36+$P36+D36+G36 -> 12 | T36: 12 | U36: =+R36+O36+L36+I36+F36 -> 0 | V36: 1 | W36: =+U36*V36 -> 0 | X36: 12
A37: 07-A3 | B37: V1 | C37: Vertical Transportation | J37: 8 | K37: 0 | L37: =+K37*J37 -> 0 | M37: 3 | N37: 0 | O37: =+N37*M37 -> 0 | P37: 1 | Q37: 0 | R37: =+Q37*P37 -> 0 | S37: =+$J37+$M37+$P37+D37+G37 -> 12 | T37: 12 | U37: =+R37+O37+L37 -> 0 | V37: =IFERROR(VLOOKUP($A$5,'Equipment List Template'!$1:$1048576,42,FALSE),"0") -> 3 | W37: =+U37*V37 -> 0 | X37: 36
A38: 07-A3 | B38: W1 | C38: Water Treatment | D38: =IFERROR(IF(VLOOKUP($A38,'Equipment List Template'!$1:$1048576,40,FALSE)=248,260,0),0) -> 0 | E38: 0 | F38: =+E38*D38 -> 0 | S38: 0 | T38: 0 | U38: =+R38+O38+L38+I38+F38 -> 0 | V38: 1 | W38: 0 | X38: 0
A39: 07-A3 | B39: B1 | C39: Building Exterior / Hardscape (Monthly) | J39: 12 | K39: 0 | L39: =+K39*J39 -> 0 | S39: 12 | T39: 12 | U39: 0 | V39: =IFERROR(VLOOKUP($A$5,'Equipment List Template'!$1:$1048576,44,FALSE),"0") -> 1 | W39: 0 | X39: 12
A40: 07-A3 | B40: F1 | C40: Fountain Maintenance (Monthly) | J40: 12 | K40: 0 | L40: =+K40*J40 -> 0 | S40: 12 | T40: 0 | U40: 0 | V40: =IFERROR(VLOOKUP($A$5,'Equipment List Template'!$1:$1048576,45,FALSE),"0") -> 0 | W40: 0 | X40: 0
A41: 07-A3 | B41: F2 | C41: Above-Ground/Underground Fuel Storage Tanks (Quarterly) If applicable | M41: 4 | N41: 0 | O41: =+N41*M41 -> 0 | S41: 4 | T41: 0 | U41: 0 | V41: =IFERROR(VLOOKUP($A$5,'Equipment List Template'!$1:$1048576,46,FALSE),"0") -> 0 | W41: 0 | X41: 0
A42: 07-A3 | B42: G1 | C42: Landscape Maintenance * | S42: 0 | T42: 0 | U42: 0 | V42: =IFERROR(VLOOKUP($A$5,'Equipment List Template'!$1:$1048576,47,FALSE),"0") -> 1 | W42: 0 | X42: 0
B43: PC1 | C43: Pest Control (Monthly) | J43: 12 | K43: 0 | L43: =+K43*J43 -> 0 | S43: 12 | T43: 12 | U43: 0 | V43: 1 | W43: 0 | X43: 12
B44: PV1 | C44: Photovoltaic (PV) System | P44: 1 | Q44: 0 | R44: =+Q44*P44 -> 0 | S44: 1 | T44: 0 | U44: 0 | V44: 0 | W44: 0
A45: 07-A3 | B45: C1 | C45: Account Management and Supervision (Monthly) | J45: 12 | K45: 0 | L45: =+K45*J45 -> 0 | S45: 12 | T45: 12 | U45: 0 | V45: 1 | W45: 0 | X45: 12
A46: 07-A3 | B46: C2 | C46: Fee (Monthly) | J46: 12 | K46: 0 | L46: =+K46*J46 -> 0 | S46: 12 | T46: 12 | U46: 0 | V46: 1 | W46: 0 | X46: 12
Q47: JCC ID | R47: =B2 -> 07-A3 | U47: Total | W47: =SUM(W5:W46) -> 0
B48: S1 | C48: Snow Removal - (crew hourly rate) | D48: 0 | U48: Total # of PM's | W48: =SUM($X$5:$X$46) -> 213
B49: I1 | C49: Unclogging Blocked Toilet - In-custody cell (labor-only) | D49: 0
B50: I2 | C50: Unclogging Blocked Toilet - Public/Court Staff (labor-only) | D50: 0
B51: I3 | C51: Clean up & Disposal of Biological Waste Event | D51: 0
B52: I4 | C52: Clean up & Disposal of Biological Waste Labor Rate | D52: 0
B53: Hr 1 | C53: Hourly Rate (All Labor categories) | D53: 0
B54: M1 | C54: Markup on Materials (Percentage) | D54: 0
B55: Sub1 | C55: Markup on Subcontractors/Third-Parties (Percentage) | D55: 0
B57: * Landscape Maintenance varies by location on the number of weeks per year it can be preformed. For the purpose of the RFP, all facilities are pre-established at 40 weeks of service. The actual amount paid by facility will be based upon the actual weeks that service has been performed, validated and invoiced.

Sheet 07-C1
B1: JCC ID | C1: Facility Name | D1: Address | F1: City / Town | H1: Zip Code | J1: County | L1: Region | N1: RFP | P1: Proposer
B2: 07-C1 | C2: =IFERROR(VLOOKUP($B$2,'Equipment List Template'!$1:$1048576,2,FALSE),"") -> Walnut Creek Courthouse | D2: =IFERROR(VLOOKUP($B$2,'Equipment List Template'!$1:$1048576,3,FALSE),"") -> 640 Ygnacio Valley Rd. | F2: =IFERROR(VLOOKUP($B$2,'Equipment List Template'!$1:$1048576,4,FALSE),"") -> Walnut Creek | H2: =IFERROR(VLOOKUP($B$2,'Equipment List Template'!$1:$1048576,5,FALSE),"") -> 94596 | J2: =IFERROR(VLOOKUP($B$2,'Equipment List Template'!$1:$1048576,6,FALSE),"") -> Contra Costa | L2: =IFERROR(VLOOKUP($B$2,'Equipment List Template'!$1:$1048576,7,FALSE),"") -> BANCRO | N2: ='Summary Pricing Sheet'!B2 -> RFP-FS-SP-2019-03-JP | P2: ='Summary Pricing Sheet'!B3 -> Firm Name TBD
D3: Daily Activity | G3: Weekly Activity | J3: Monthly Activity | M3: Quarterly Activity | P3: Annual Activity | U3: Summary | AG3: System | AH3: Access | AI3: HVAC | AU3: Electrical | BD3: Life Safety | BF3: Plumbing | BM3: Building Systems | BV3: Corporate | BY3: Fixed Price - Facility Total Annual Cost Year 1 | CA3: Unit Pricing
B4: System ID | C4: Subsystem | D4: Quantity | E4: Cost | F4: Daily Total | G4: Quantity | H4: Cost | I4: Weekly Total | J4: Monthly Quantity | K4: Cost | L4: Monthly Total | M4: Quarterly Quantity | N4: Cost | O4: Quarterly Total | P4: Annual Quantity | Q4: Cost | R4: Annual PM Total | T4: Number of PM's | U4: Annual Cost | V4: Quantity | W4: Total Annual Cost | AG4: Subsystem | AH4: Access Doors, Gates, Sally Port | AI4: Air Cooled DX (Split System) | AJ4: Air Handling Unit (Air Cooled DX / Package) | AK4: Air-Cooled Chiller | AL4: Centrifugal Chiller | AM4: Cooling Tower (Induced Draft) | AN4: Ice Chiller Tank | AO4: Geothermal System | AP4: Water Source Heat Pump | AQ4: Fan Coil System | AR4: Supply / Return Fan and Exhaust | AS4: Evaporative and Spot Coolers (swamp coolers; spot cooler) | AT4: Unique HVAC System | AU4: Electrical Panels | AV4: Emergency Generator | AW4: Motor Control Center | AX4: Automatic Transfer Switch | AY4: Building Automated Systems (BAS) | AZ4: Transformer (Dry-Type) | BA4: Uninterruptible Power Supply (UPS) | BB4: Lighting and Controls (Interior and Exterior) | BC4: Unique Electrical System | BD4: Life Safety Systems | BE4: Reduced Pressure Backflow Preventer(s) | BF4: Boiler (Condensing) | BG4: Domestic Water Heater (Gas-Fired, Condensing) | BH4: Domestic Water Heater (Electric, Non- Condensing) | BI4: Boiler (Steam, low pressure) | BJ4: Steam System | BK4: Pneumatic Compressor System | BL4: Unique Plumbing System | BM4: Rounds and Readings | BN4: Vertical Transportation | BO4: Water Treatment | BP4: Building Exterior / Hardscape (Monthly) | BQ4: Fountain Maintenance (Monthly) | BR4: Above-Ground/Underground Fuel Storage Tanks (Quarterly) If applicable | BS4: Landscape Maintenance * | BT4: Pest Control (Monthly) | BU4: Photovoltaic (PV) System | BV4: Account Management and Supervision (Monthly) | BW4: Fee (Monthly) | CA4: Snow Removal - (crew hourly rate) | CB4: Unclogging Blocked Toilet - In-custody holding cell (labor) | CC4: Unclogging Blocked Toilet - Public/Court Staff (labor) | CD4: Clean up & Disposal of Biological Waste Event | CE4: Clean up & Disposal of Biological Waste Labor Rate | CF4: Hourly Rate | CG4: Markup on Materials | CH4: Markup on Subcontractors/Third-Parties
A5: =$B$2 -> 07-C1 | B5: A1 | C5: Access Doors, Gates, Sally Port | J5: 11 | K5: 0 | L5: =+K5*J5 -> 0 | M5: 0 | N5: 0 | O5: =+N5*M5 -> 0 | P5: 1 | Q5: 0 | R5: =+Q5*P5 -> 0 | S5: =+$J5+$M5+$P5 -> 12 | T5: =IF($V5>0,$S5,0) -> 12 | U5: =+R5+O5+L5+I5+F5 -> 0 | V5: =IFERROR(VLOOKUP($A$5,'Equipment List Template'!$1:$1048576,10,FALSE),"0") -> 7 | W5: =+U5*V5 -> 0 | X5: =$T5*$V5 -> 84 | Z5: JCC ID | AA5: Facility Name | AB5: Address | AC5: City / Town | AD5: County | AE5: Region | AF5: Region | AG5: System ID | AH5: A1 | AI5: H1 | AJ5: H2 | AK5: H3 | AL5: H4 | AM5: H5 | AN5: H6 | AO5: H7 | AP5: H8 | AQ5: H9 | AR5: H10 | AS5: H11 | AT5: H12 | AU5: E1 | AV5: E2 | AW5: E3 | AX5: E4 | AY5: E5 | AZ5: E6 | BA5: E7 | BB5: E8 | BC5: E9 | BD5: L1 | BE5: L2 | BF5: P1 | BG5: P2 | BH5: P3 | BI5: P4 | BJ5: P5 | BK5: P6 | BL5: P7 | BM5: R1 | BN5: V1 | BO5: W1 | BP5: B1 | BQ5: F1 | BR5: F2 | BS5: G1 | BT5: PC1 | BU5: PV1 | BV5: C1 | BW5: C2 | CA5: S1 | CB5: I1 | CC5: I2 | CD5: I3 | CE5: I4 | CF5: Hr 1 | CG5: M1 | CH5: Sub1
A6: =$B$2 -> 07-C1 | B6: H1 | C6: Air Cooled DX (Split System) | J6: 0 | K6: 0 | L6: =+K6*J6 -> 0 | M6: 3 | N6: 0 | O6: =+N6*M6 -> 0 | P6: 1 | Q6: 0 | R6: =+Q6*P6 -> 0 | S6: =+$J6+$M6+$P6 -> 4 | T6: =IF($V6>0,$S6,0) -> 4 | U6: =+R6+O6+L6+I6+F6 -> 0 | V6: =IFERROR(VLOOKUP($A$5,'Equipment List Template'!$1:$1048576,11,FALSE),"0") -> 11 | W6: =+U6*V6 -> 0 | X6: =$T6*$V6 -> 44 | Z6: =B2 -> 07-C1 | AA6: =IFERROR(VLOOKUP($Z$6,'Equipment List Template'!$1:$1048576,2,FALSE),"") -> Walnut Creek Courthouse | AB6: =IFERROR(VLOOKUP($Z$6,'Equipment List Template'!$1:$1048576,3,FALSE),"") -> 640 Ygnacio Valley Rd. | AC6: =IFERROR(VLOOKUP($Z$6,'Equipment List Template'!$1:$1048576,4,FALSE),"") -> Walnut Creek | AD6: =IFERROR(VLOOKUP($Z$6,'Equipment List Template'!$1:$1048576,5,FALSE),"") -> 94596 | AE6: =IFERROR(VLOOKUP($Z$6,'Equipment List Template'!$1:$1048576,6,FALSE),"") -> Contra Costa | AF6: =IFERROR(VLOOKUP($Z$6,'Equipment List Template'!$1:$1048576,7,FALSE),"") -> BANCRO | AH6: =+$W5 -> 0 | AI6: =+$W6 -> 0 | AJ6: =+$W7 -> 0 | AK6: =+$W8 -> 0 | AL6: =+$W9 -> 0 | AM6: =+$W10 -> 0 | AN6: =+$W11 -> 0 | AO6: =+$W12 -> 0 | AP6: =+$W13 -> 0 | AQ6: =+$W14 -> 0 | AR6: =+$W15 -> 0 | AS6: =+$W16 -> 0 | AT6: =+$W17 -> 0 | AU6: =+$W18 -> 0 | AV6: =+$W19 -> 0 | AW6: =+$W20 -> 0 | AX6: =+$W21 -> 0 | AY6: =+$W22 -> 0 | AZ6: =+$W23 -> 0 | BA6: =+$W24 -> 0 | BB6: =+$W25 -> 0 | BC6: =+$W26 -> 0 | BD6: =+$W27 -> 0 | BE6: =+$W28 -> 0 | BF6: =+$W29 -> 0 | BG6: =+$W30 -> 0 | BH6: =+$W31 -> 0 | BI6: =+$W32 -> 0 | BJ6: =+$W33 -> 0 | BK6: =+$W34 -> 0 | BL6: =+$W35 -> 0 | BM6: =+$W36 -> 0 | BN6: =+$W37 -> 0 | BO6: =+$W38 -> 0 | BP6: =+$W39 -> 0 | BQ6: =+$W40 -> 0 | BR6: =+$W41 -> 0 | BS6: =+$W42 -> 0 | BT6: =+$W43 -> 0 | BU6: =+$W44 -> 0 | BV6: =+$W45 -> 0 | BW6: =+$W46 -> 0 | BY6: =+$W47 -> 0 | CA6: =+$D48 -> 0 | CB6: =+$D49 -> 0 | CC6: =+$D50 -> 0 | CD6: =+$D51 -> 0 | CE6: =+$D52 -> 0 | CF6: =+$D53 -> 0 | CG6: =+$D54 -> 0 | CH6: =+$D55 -> 0
A7: =$B$2 -> 07-C1 | B7: H2 | C7: Air Handling Unit (Air Cooled DX / Package) | J7: 0 | K7: 0 | L7: =+K7*J7 -> 0 | M7: 3 | N7: 0 | O7: =+N7*M7 -> 0 | P7: 1 | Q7: 0 | R7: =+Q7*P7 -> 0 | S7: =+$J7+$M7+$P7 -> 4 | T7: =IF($V7>0,$S7,0) -> 0 | U7: =+R7+O7+L7+I7+F7 -> 0 | V7: =IFERROR(VLOOKUP($A$5,'Equipment List Template'!$1:$1048576,12,FALSE),"0") -> 0 | W7: =+U7*V7 -> 0 | X7: =$T7*$V7 -> 0
A8: 07-C1 | B8: H3 | C8: Air-Cooled Chiller | J8: 11 | K8: 0 | L8: 0 | M8: 0 | N8: 0 | O8: 0 | P8: 1 | Q8: 0 | R8: 0 | S8: 12 | T8: 0 | U8: 0 | V8: =IFERROR(VLOOKUP($A$5,'Equipment List Template'!$1:$1048576,13,FALSE),"0") -> 0 | W8: 0 | X8: 0
A9: 07-C1 | B9: H4 | C9: Centrifugal Chiller | J9: 11 | K9: 0 | L9: 0 | M9: 0 | N9: 0 | O9: 0 | P9: 1 | Q9: 0 | R9: 0 | S9: 12 | T9: 0 | U9: 0 | V9: =IFERROR(VLOOKUP($A$5,'Equipment List Template'!$1:$1048576,14,FALSE),"0") -> 0 | W9: 0 | X9: 0
A10: 07-C1 | B10: H5 | C10: Cooling Tower (Induced Draft) | J10: 8 | K10: 0 | L10: 0 | M10: 3 | N10: 0 | O10: 0 | P10: 1 | Q10: 0 | R10: 0 | S10: 12 | T10: 0 | U10: 0 | V10: =IFERROR(VLOOKUP($A$5,'Equipment List Template'!$1:$1048576,15,FALSE),"0") -> 0 | W10: 0 | X10: 0
A11: 07-C1 | B11: H6 | C11: Ice Chiller Tank | J11: 8 | K11: 0 | L11: 0 | M11: 3 | N11: 0 | O11: 0 | P11: 1 | Q11: 0 | R11: 0 | S11: 12 | T11: 0 | U11: 0 | V11: =IFERROR(VLOOKUP($A$5,'Equipment List Template'!$1:$1048576,16,FALSE),"0") -> 0 | W11: 0 | X11: 0
A12: 07-C1 | B12: H7 | C12: Geothermal System | J12: 11 | K12: 0 | L12: 0 | M12: 0 | N12: 0 | O12: 0 | P12: 1 | Q12: 0 | R12: 0 | S12: 12 | T12: 0 | U12: 0 | V12: =IFERROR(VLOOKUP($A$5,'Equipment List Template'!$1:$1048576,17,FALSE),"0") -> 0 | W12: 0 | X12: 0
A13: 07-C1 | B13: H8 | C13: Water Source Heat Pump | J13: 8 | K13: 0 | L13: 0 | M13: 3 | N13: 0 | O13: 0 | P13: 1 | Q13: 0 | R13: 0 | S13: 12 | T13: 0 | U13: 0 | V13: =IFERROR(VLOOKUP($A$5,'Equipment List Template'!$1:$1048576,18,FALSE),"0") -> 0 | W13: 0 | X13: 0
A14: 07-C1 | B14: H9 | C14: Fan Coil System | J14: 0 | K14: 0 | L14: 0 | M14: 3 | N14: 0 | O14: 0 | P14: 1 | Q14: 0 | R14: 0 | S14: 4 | T14: 0 | U14: 0 | V14: =IFERROR(VLOOKUP($A$5,'Equipment List Template'!$1:$1048576,19,FALSE),"0") -> 0 | W14: 0 | X14: 0
A15: 07-C1 | B15: H10 | C15: Supply / Return Fan and Exhaust | J15: 0 | K15: 0 | L15: 0 | M15: 3 | N15: 0 | O15: 0 | P15: 1 | Q15: 0 | R15: 0 | S15: 4 | T15: 0 | U15: 0 | V15: =IFERROR(VLOOKUP($A$5,'Equipment List Template'!$1:$1048576,20,FALSE),"0") -> 0 | W15: 0 | X15: 0
A16: 07-C1 | B16: H11 | C16: Evaporative and Spot Coolers (swamp coolers; spot cooler) | J16: 8 | K16: 0 | L16: 0 | M16: 3 | N16: 0 | O16: 0 | P16: 1 | Q16: 0 | R16: 0 | S16: 12 | T16: 0 | U16: 0 | V16: =IFERROR(VLOOKUP($A$5,'Equipment List Template'!$1:$1048576,21,FALSE),"0") -> 0 | W16: 0 | X16: 0
B17: H12 | C17: Unique HVAC System | J17: 0 | K17: 0 | L17: 0 | M17: 0 | N17: 0 | O17: 0 | P17: 0 | Q17: 0 | R17: 0 | S17: 0 | T17: 0 | V17: 0 | W17: 0
A18: 07-C1 | B18: E1 | C18: Electrical Panels | J18: 0 | K18: 0 | L18: 0 | M18: 3 | N18: 0 | O18: 0 | P18: 1 | Q18: 0 | R18: 0 | S18: 4 | T18: 4 | U18: 0 | V18: =IFERROR(VLOOKUP($A$5,'Equipment List Template'!$1:$1048576,23,FALSE),"0") -> 1 | W18: 0 | X18: 4
A19: 07-C1 | B19: E2 | C19: Emergency Generator | J19: 8 | K19: 0 | L19: 0 | M19: 3 | N19: 0 | O19: 0 | P19: 1 | Q19: 0 | R19: 0 | S19: 12 | T19: 12 | U19: 0 | V19: =IFERROR(VLOOKUP($A$5,'Equipment List Template'!$1:$1048576,24,FALSE),"0") -> 1 | W19: 0 | X19: 12
A20: 07-C1 | B20: E3 | C20: Motor Control Center | J20: 0 | K20: 0 | L20: 0 | M20: 3 | N20: 0 | O20: 0 | P20: 1 | Q20: 0 | R20: 0 | S20: 4 | T20: 0 | U20: 0 | V20: =IFERROR(VLOOKUP($A$5,'Equipment List Template'!$1:$1048576,25,FALSE),"0") -> 0 | W20: 0 | X20: 0
A21: 07-C1 | B21: E4 | C21: Automatic Transfer Switch | J21: 8 | K21: 0 | L21: 0 | M21: 3 | N21: 0 | O21: 0 | P21: 1 | Q21: 0 | R21: 0 | S21: 12 | T21: 12 | U21: 0 | V21: =IFERROR(VLOOKUP($A$5,'Equipment List Template'!$1:$1048576,26,FALSE),"0") -> 1 | W21: 0 | X21: 12
A22: 07-C1 | B22: E5 | C22: Building Automated Systems (BAS) | J22: 0 | K22: 0 | L22: 0 | M22: 0 | N22: 0 | O22: 0 | P22: 1 | Q22: 0 | R22: 0 | S22: 1 | T22: 0 | U22: 0 | V22: =IFERROR(VLOOKUP($A$5,'Equipment List Template'!$1:$1048576,27,FALSE),"0") -> 0 | W22: 0 | X22: 0
A23: 07-C1 | B23: E6 | C23: Transformer (Dry-Type) | J23: 0 | K23: 0 | L23: 0 | M23: 3 | N23: 0 | O23: 0 | P23: 1 | Q23: 0 | R23: 0 | S23: 4 | T23: 0 | U23: 0 | V23: =IFERROR(VLOOKUP($A$5,'Equipment List Template'!$1:$1048576,28,FALSE),"0") -> 0 | W23: 0 | X23: 0
A24: 07-C1 | B24: E7 | C24: Uninterruptible Power Supply (UPS) | J24: 0 | K24: 0 | L24: 0 | M24: 0 | N24: 0 | O24: 0 | P24: 1 | Q24: 0 | R24: 0 | S24: 1 | T24: 0 | U24: 0 | V24: =IFERROR(VLOOKUP($A$5,'Equipment List Template'!$1:$1048576,29,FALSE),"0") -> 0 | W24: 0 | X24: 0
A25: 07-C1 | B25: E8 | C25: Lighting and Controls (Interior and Exterior) | J25: 12 | K25: 0 | L25: 0 | M25: 0 | N25: 0 | O25: 0 | P25: 0 | Q25: 0 | R25: 0 | S25: 12 | T25: 12 | U25: 0 | V25: =IFERROR(VLOOKUP($A$5,'Equipment List Template'!$1:$1048576,30,FALSE),"0") -> 2 | W25: 0 | X25: 24
B26: E9 | C26: Unique Electrical System | J26: 0 | K26: 0 | L26: 0 | M26: 0 | N26: 0 | O26: 0 | P26: 0 | Q26: 0 | R26: 0 | S26: 0 | T26: 0 | V26: 0 | W26: 0
A27: 07-C1 | B27: L1 | C27: Life Safety Systems | J27: 0 | K27: 0 | L27: 0 | M27: 3 | N27: 0 | O27: 0 | P27: 1 | Q27: 0 | R27: 0 | S27: 4 | T27: 4 | U27: 0 | V27: =IFERROR(VLOOKUP($A$5,'Equipment List Template'!$1:$1048576,32,FALSE),"0") -> 4 | W27: 0 | X27: 16
A28: 07-C1 | B28: L2 | C28: Reduced Pressure Backflow Preventer(s) | J28: 0 | K28: 0 | L28: 0 | M28: 0 | N28: 0 | O28: 0 | P28: 1 | Q28: 0 | R28: 0 | S28: 1 | T28: 0 | U28: 0 | V28: =IFERROR(VLOOKUP($A$5,'Equipment List Template'!$1:$1048576,33,FALSE),"0") -> 0 | W28: 0 | X28: 0
A29: 07-C1 | B29: P1 | C29: Boiler (Condensing) | J29: 8 | K29: 0 | L29: 0 | M29: 3 | N29: 0 | O29: 0 | P29: 1 | Q29: 0 | R29: 0 | S29: 12 | T29: 0 | U29: 0 | V29: =IFERROR(VLOOKUP($A$5,'Equipment List Template'!$1:$1048576,34,FALSE),"0") -> 0 | W29: 0 | X29: 0
A30: 07-C1 | B30: P2 | C30: Domestic Water Heater (Gas-Fired, Condensing) | J30: 0 | K30: 0 | L30: 0 | M30: 0 | N30: 0 | O30: 0 | P30: 1 | Q30: 0 | R30: 0 | S30: 1 | T30: 0 | U30: 0 | V30: =IFERROR(VLOOKUP($A$5,'Equipment List Template'!$1:$1048576,35,FALSE),"0") -> 0 | W30: 0 | X30: 0
A31: 07-C1 | B31: P3 | C31: Domestic Water Heater (Electric, Non- Condensing) | J31: 0 | K31: 0 | L31: 0 | M31: 0 | N31: 0 | O31: 0 | P31: 1 | Q31: 0 | R31: 0 | S31: 1 | T31: 1 | U31: 0 | V31: =IFERROR(VLOOKUP($A$5,'Equipment List Template'!$1:$1048576,36,FALSE),"0") -> 5 | W31: 0 | X31: 5
A32: 07-C1 | B32: P4 | C32: Boiler (Steam, low pressure) | J32: 0 | K32: 0 | L32: 0 | M32: 3 | N32: 0 | O32: 0 | P32: 1 | Q32: 0 | R32: 0 | S32: 4 | T32: 0 | U32: 0 | V32: =IFERROR(VLOOKUP($A$5,'Equipment List Template'!$1:$1048576,37,FALSE),"0") -> 0 | W32: 0 | X32: 0
A33: 07-C1 | B33: P5 | C33: Steam System | J33: 8 | K33: 0 | L33: 0 | M33: 3 | N33: 0 | O33: 0 | P33: 1 | Q33: 0 | R33: 0 | S33: 12 | T33: 0 | U33: 0 | V33: =IFERROR(VLOOKUP($A$5,'Equipment List Template'!$1:$1048576,38,FALSE),"0") -> 0 | W33: 0 | X33: 0
